Workbook

Sheet Состав блюд
A1: Первые блюда | G1: Вторые блюда | M1: Гарниры | S1: Салаты | Y1: Напитки
A2: Борщ украинский | D2: =COUNTIF(A$2:A3,"№") -> 1 | G2: Котлета по-киевски | J2: =COUNTIF(G$2:G3,"№") -> 1 | M2: Рис отварной | P2: =COUNTIF(M$2:M3,"№") -> 1 | S2: Салат "Оливье" | V2: =COUNTIF(S$2:S3,"№") -> 1 | Y2: Чай | AB2: =COUNTIF(Y$2:Y3,"№") -> 1
A3: № | B3: Наименование продукта | C3: Норма, г | D3: =COUNTIF(A$2:A4,"№") -> 1 | G3: № | H3: Наименование продукта | I3: Норма, г | J3: =COUNTIF(G$2:G4,"№") -> 1 | M3: № | N3: Наименование продукта | O3: Норма, г | P3: =COUNTIF(M$2:M4,"№") -> 1 | S3: № | T3: Наименование продукта | U3: Норма, г | V3: =COUNTIF(S$2:S4,"№") -> 1 | Y3: № | Z3: Наименование продукта | AA3: Норма, г | AB3: =COUNTIF(Y$2:Y4,"№") -> 1 | AF3: Наименование продукта
A4: 1 | B4: Свекла | C4: 40 | D4: =COUNTIF(A$2:A5,"№") -> 1 | E4: =IF(COUNTIF(#REF!,'Состав блюд'!$A$2),SUMIF(#REF!,'Состав блюд'!$A$2,#REF!)*SUMIF(#REF!,'Состав блюд'!$A$2,#REF!)*'Состав блюд'!C4,0)/1000 ->  | G4: 1 | H4: Курица | I4: 40 | J4: =COUNTIF(G$2:G5,"№") -> 1 | K4: =IF(COUNTIF(#REF!,'Состав блюд'!$G$2),SUMIF(#REF!,'Состав блюд'!$G$2,#REF!)*SUMIF(#REF!,'Состав блюд'!$G$2,#REF!)*'Состав блюд'!I4,0)/1000 ->  | M4: 1 | N4: Рис | O4: 40 | P4: =COUNTIF(M$2:M5,"№") -> 1 | Q4: =IF(COUNTIF(#REF!,'Состав блюд'!$M$2),SUMIF(#REF!,'Состав блюд'!$M$2,#REF!)*SUMIF(#REF!,'Состав блюд'!$M$2,#REF!)*'Состав блюд'!O4,0)/1000 ->  | S4: 1 | T4: Колбаса "Докторская" | U4: 40 | V4: =COUNTIF(S$2:S5,"№") -> 1 | W4: =IF(COUNTIF(#REF!,'Состав блюд'!$S$2),SUMIF(#REF!,'Состав блюд'!$S$2,#REF!)*SUMIF(#REF!,'Состав блюд'!$S$2,#REF!)*'Состав блюд'!U4,0)/1000 ->  | Y4: 1 | Z4: Чай | AA4: 40 | AB4: =COUNTIF(Y$2:Y5,"№") -> 1 | AC4: =IF(COUNTIF(#REF!,'Состав блюд'!$Y$2),SUMIF(#REF!,'Состав блюд'!$Y$2,#REF!)*SUMIF(#REF!,'Состав блюд'!$Y$2,#REF!)*'Состав блюд'!AA4,0)/1000 ->  | AF4: Говядина
A5: 2 | B5: Свинина | C5: 10 | D5: =COUNTIF(A$2:A6,"№") -> 1 | E5: =IF(COUNTIF(#REF!,'Состав блюд'!$A$2),SUMIF(#REF!,'Состав блюд'!$A$2,#REF!)*SUMIF(#REF!,'Состав блюд'!$A$2,#REF!)*'Состав блюд'!C5,0)/1000 ->  | G5: 2 | H5: Сыр | I5: 10 | J5: =COUNTIF(G$2:G6,"№") -> 1 | K5: =IF(COUNTIF(#REF!,'Состав блюд'!$G$2),SUMIF(#REF!,'Состав блюд'!$G$2,#REF!)*SUMIF(#REF!,'Состав блюд'!$G$2,#REF!)*'Состав блюд'!I5,0)/1000 ->  | M5: 2 | N5: Соль | O5: 10 | P5: =COUNTIF(M$2:M6,"№") -> 1 | Q5: =IF(COUNTIF(#REF!,'Состав блюд'!$M$2),SUMIF(#REF!,'Состав блюд'!$M$2,#REF!)*SUMIF(#REF!,'Состав блюд'!$M$2,#REF!)*'Состав блюд'!O5,0)/1000 ->  | S5: 2 | T5: Картофель | U5: 10 | V5: =COUNTIF(S$2:S6,"№") -> 1 | W5: =IF(COUNTIF(#REF!,'Состав блюд'!$S$2),SUMIF(#REF!,'Состав блюд'!$S$2,#REF!)*SUMIF(#REF!,'Состав блюд'!$S$2,#REF!)*'Состав блюд'!U5,0)/1000 ->  | Y5: 2 | Z5: Сахар | AA5: 10 | AB5: =COUNTIF(Y$2:Y6,"№") -> 1 | AC5: =IF(COUNTIF(#REF!,'Состав блюд'!$Y$2),SUMIF(#REF!,'Состав блюд'!$Y$2,#REF!)*SUMIF(#REF!,'Состав блюд'!$Y$2,#REF!)*'Состав блюд'!AA5,0)/1000 ->  | AF5: Гречка
A6: 3 | B6: Соль | C6: 30 | D6: =COUNTIF(A$2:A7,"№") -> 1 | E6: =IF(COUNTIF(#REF!,'Состав блюд'!$A$2),SUMIF(#REF!,'Состав блюд'!$A$2,#REF!)*SUMIF(#REF!,'Состав блюд'!$A$2,#REF!)*'Состав блюд'!C6,0)/1000 ->  | G6: 3 | H6: Томатная паста | I6: 30 | J6: =COUNTIF(G$2:G7,"№") -> 1 | K6: =IF(COUNTIF(#REF!,'Состав блюд'!$G$2),SUMIF(#REF!,'Состав блюд'!$G$2,#REF!)*SUMIF(#REF!,'Состав блюд'!$G$2,#REF!)*'Состав блюд'!I6,0)/1000 ->  | M6: 3 | N6: Масло сливочное | O6: 30 | P6: =COUNTIF(M$2:M7,"№") -> 1 | Q6: =IF(COUNTIF(#REF!,'Состав блюд'!$M$2),SUMIF(#REF!,'Состав блюд'!$M$2,#REF!)*SUMIF(#REF!,'Состав блюд'!$M$2,#REF!)*'Состав блюд'!O6,0)/1000 ->  | S6: 3 | T6: Морковь | U6: 30 | V6: =COUNTIF(S$2:S7,"№") -> 1 | W6: =IF(COUNTIF(#REF!,'Состав блюд'!$S$2),SUMIF(#REF!,'Состав блюд'!$S$2,#REF!)*SUMIF(#REF!,'Состав блюд'!$S$2,#REF!)*'Состав блюд'!U6,0)/1000 ->  | Y6: 3 | AB6: =COUNTIF(Y$2:Y7,"№") -> 1 | AC6: =IF(COUNTIF(#REF!,'Состав блюд'!$Y$2),SUMIF(#REF!,'Состав блюд'!$Y$2,#REF!)*SUMIF(#REF!,'Состав блюд'!$Y$2,#REF!)*'Состав блюд'!AA6,0)/1000 ->  | AF6: Какао в порошке
A7: 4 | B7: Томатная паста | C7: 32 | D7: =COUNTIF(A$2:A8,"№") -> 1 | E7: =IF(COUNTIF(#REF!,'Состав блюд'!$A$2),SUMIF(#REF!,'Состав блюд'!$A$2,#REF!)*SUMIF(#REF!,'Состав блюд'!$A$2,#REF!)*'Состав блюд'!C7,0)/1000 ->  | G7: 4 | H7: Сухари панировочные | I7: 32 | J7: =COUNTIF(G$2:G8,"№") -> 1 | K7: =IF(COUNTIF(#REF!,'Состав блюд'!$G$2),SUMIF(#REF!,'Состав блюд'!$G$2,#REF!)*SUMIF(#REF!,'Состав блюд'!$G$2,#REF!)*'Состав блюд'!I7,0)/1000 ->  | M7: 4 | P7: =COUNTIF(M$2:M8,"№") -> 1 | Q7: =IF(COUNTIF(#REF!,'Состав блюд'!$M$2),SUMIF(#REF!,'Состав блюд'!$M$2,#REF!)*SUMIF(#REF!,'Состав блюд'!$M$2,#REF!)*'Состав блюд'!O7,0)/1000 ->  | S7: 4 | T7: Яйца куриные | U7: 32 | V7: =COUNTIF(S$2:S8,"№") -> 1 | W7: =IF(COUNTIF(#REF!,'Состав блюд'!$S$2),SUMIF(#REF!,'Состав блюд'!$S$2,#REF!)*SUMIF(#REF!,'Состав блюд'!$S$2,#REF!)*'Состав блюд'!U7,0)/1000 ->  | Y7: 4 | AB7: =COUNTIF(Y$2:Y8,"№") -> 1 | AC7: =IF(COUNTIF(#REF!,'Состав блюд'!$Y$2),SUMIF(#REF!,'Состав блюд'!$Y$2,#REF!)*SUMIF(#REF!,'Состав блюд'!$Y$2,#REF!)*'Состав блюд'!AA7,0)/1000 ->  | AF7: Капуста
A8: 5 | B8: Уксус 9%-ный | C8: 5 | D8: =COUNTIF(A$2:A9,"№") -> 1 | E8: =IF(COUNTIF(#REF!,'Состав блюд'!$A$2),SUMIF(#REF!,'Состав блюд'!$A$2,#REF!)*SUMIF(#REF!,'Состав блюд'!$A$2,#REF!)*'Состав блюд'!C8,0)/1000 ->  | G8: 5 | H8: Лук | I8: 5 | J8: =COUNTIF(G$2:G9,"№") -> 1 | K8: =IF(COUNTIF(#REF!,'Состав блюд'!$G$2),SUMIF(#REF!,'Состав блюд'!$G$2,#REF!)*SUMIF(#REF!,'Состав блюд'!$G$2,#REF!)*'Состав блюд'!I8,0)/1000 ->  | M8: 5 | P8: =COUNTIF(M$2:M9,"№") -> 1 | Q8: =IF(COUNTIF(#REF!,'Состав блюд'!$M$2),SUMIF(#REF!,'Состав блюд'!$M$2,#REF!)*SUMIF(#REF!,'Состав блюд'!$M$2,#REF!)*'Состав блюд'!O8,0)/1000 ->  | S8: 5 | T8: Майонез | U8: 5 | V8: =COUNTIF(S$2:S9,"№") -> 1 | W8: =IF(COUNTIF(#REF!,'Состав блюд'!$S$2),SUMIF(#REF!,'Состав блюд'!$S$2,#REF!)*SUMIF(#REF!,'Состав блюд'!$S$2,#REF!)*'Состав блюд'!U8,0)/1000 ->  | Y8: 5 | AB8: =COUNTIF(Y$2:Y9,"№") -> 1 | AC8: =IF(COUNTIF(#REF!,'Состав блюд'!$Y$2),SUMIF(#REF!,'Состав блюд'!$Y$2,#REF!)*SUMIF(#REF!,'Состав блюд'!$Y$2,#REF!)*'Состав блюд'!AA8,0)/1000 ->  | AF8: Картофель
A9: 6 | B9: Лук | C9: 26 | D9: =COUNTIF(A$2:A10,"№") -> 1 | E9: =IF(COUNTIF(#REF!,'Состав блюд'!$A$2),SUMIF(#REF!,'Состав блюд'!$A$2,#REF!)*SUMIF(#REF!,'Состав блюд'!$A$2,#REF!)*'Состав блюд'!C9,0)/1000 ->  | G9: 6 | I9: 26 | J9: =COUNTIF(G$2:G10,"№") -> 1 | K9: =IF(COUNTIF(#REF!,'Состав блюд'!$G$2),SUMIF(#REF!,'Состав блюд'!$G$2,#REF!)*SUMIF(#REF!,'Состав блюд'!$G$2,#REF!)*'Состав блюд'!I9,0)/1000 ->  | M9: 6 | P9: =COUNTIF(M$2:M10,"№") -> 1 | Q9: =IF(COUNTIF(#REF!,'Состав блюд'!$M$2),SUMIF(#REF!,'Состав блюд'!$M$2,#REF!)*SUMIF(#REF!,'Состав блюд'!$M$2,#REF!)*'Состав блюд'!O9,0)/1000 ->  | S9: 6 | U9: 26 | V9: =COUNTIF(S$2:S10,"№") -> 1 | W9: =IF(COUNTIF(#REF!,'Состав блюд'!$S$2),SUMIF(#REF!,'Состав блюд'!$S$2,#REF!)*SUMIF(#REF!,'Состав блюд'!$S$2,#REF!)*'Состав блюд'!U9,0)/1000 ->  | Y9: 6 | AB9: =COUNTIF(Y$2:Y10,"№") -> 1 | AC9: =IF(COUNTIF(#REF!,'Состав блюд'!$Y$2),SUMIF(#REF!,'Состав блюд'!$Y$2,#REF!)*SUMIF(#REF!,'Состав блюд'!$Y$2,#REF!)*'Состав блюд'!AA9,0)/1000 ->  | AF9: Колбаса "Докторская"
A10: 7 | B10: Соль | C10: 10 | D10: =COUNTIF(A$2:A14,"№") -> 1 | E10: =IF(COUNTIF(#REF!,'Состав блюд'!$A$2),SUMIF(#REF!,'Состав блюд'!$A$2,#REF!)*SUMIF(#REF!,'Состав блюд'!$A$2,#REF!)*'Состав блюд'!C10,0)/1000 ->  | G10: 7 | J10: =COUNTIF(G$2:G14,"№") -> 1 | K10: =IF(COUNTIF(#REF!,'Состав блюд'!$G$2),SUMIF(#REF!,'Состав блюд'!$G$2,#REF!)*SUMIF(#REF!,'Состав блюд'!$G$2,#REF!)*'Состав блюд'!I10,0)/1000 ->  | M10: 7 | P10: =COUNTIF(M$2:M14,"№") -> 1 | Q10: =IF(COUNTIF(#REF!,'Состав блюд'!$M$2),SUMIF(#REF!,'Состав блюд'!$M$2,#REF!)*SUMIF(#REF!,'Состав блюд'!$M$2,#REF!)*'Состав блюд'!O10,0)/1000 ->  | S10: 7 | U10: 10 | V10: =COUNTIF(S$2:S14,"№") -> 1 | W10: =IF(COUNTIF(#REF!,'Состав блюд'!$S$2),SUMIF(#REF!,'Состав блюд'!$S$2,#REF!)*SUMIF(#REF!,'Состав блюд'!$S$2,#REF!)*'Состав блюд'!U10,0)/1000 ->  | Y10: 7 | AB10: =COUNTIF(Y$2:Y14,"№") -> 1 | AC10: =IF(COUNTIF(#REF!,'Состав блюд'!$Y$2),SUMIF(#REF!,'Состав блюд'!$Y$2,#REF!)*SUMIF(#REF!,'Состав блюд'!$Y$2,#REF!)*'Состав блюд'!AA10,0)/1000 ->  | AF10: Курица
A11: 8 | B11: Капуста | C11: 10 | D11: =COUNTIF(A$2:A15,"№") -> 1 | E11: =IF(COUNTIF(#REF!,'Состав блюд'!$A$2),SUMIF(#REF!,'Состав блюд'!$A$2,#REF!)*SUMIF(#REF!,'Состав блюд'!$A$2,#REF!)*'Состав блюд'!C11,0)/1000 ->  | G11: 8 | J11: =COUNTIF(G$2:G15,"№") -> 1 | K11: =IF(COUNTIF(#REF!,'Состав блюд'!$G$2),SUMIF(#REF!,'Состав блюд'!$G$2,#REF!)*SUMIF(#REF!,'Состав блюд'!$G$2,#REF!)*'Состав блюд'!I11,0)/1000 ->  | M11: 8 | P11: =COUNTIF(M$2:M15,"№") -> 1 | Q11: =IF(COUNTIF(#REF!,'Состав блюд'!$M$2),SUMIF(#REF!,'Состав блюд'!$M$2,#REF!)*SUMIF(#REF!,'Состав блюд'!$M$2,#REF!)*'Состав блюд'!O11,0)/1000 ->  | S11: 8 | U11: 10 | V11: =COUNTIF(S$2:S15,"№") -> 1 | W11: =IF(COUNTIF(#REF!,'Состав блюд'!$S$2),SUMIF(#REF!,'Состав блюд'!$S$2,#REF!)*SUMIF(#REF!,'Состав блюд'!$S$2,#REF!)*'Состав блюд'!U11,0)/1000 ->  | Y11: 8 | AB11: =COUNTIF(Y$2:Y15,"№") -> 1 | AC11: =IF(COUNTIF(#REF!,'Состав блюд'!$Y$2),SUMIF(#REF!,'Состав блюд'!$Y$2,#REF!)*SUMIF(#REF!,'Состав блюд'!$Y$2,#REF!)*'Состав блюд'!AA11,0)/1000 ->  | AF11: Лавровый лист
A12: 9 | B12: Картофель | C12: 10 | D12: =COUNTIF(A$2:A16,"№") -> 1 | E12: =IF(COUNTIF(#REF!,'Состав блюд'!$A$2),SUMIF(#REF!,'Состав блюд'!$A$2,#REF!)*SUMIF(#REF!,'Состав блюд'!$A$2,#REF!)*'Состав блюд'!C12,0)/1000 ->  | G12: 9 | J12: =COUNTIF(G$2:G16,"№") -> 1 | K12: =IF(COUNTIF(#REF!,'Состав блюд'!$G$2),SUMIF(#REF!,'Состав блюд'!$G$2,#REF!)*SUMIF(#REF!,'Состав блюд'!$G$2,#REF!)*'Состав блюд'!I12,0)/1000 ->  | M12: 9 | P12: =COUNTIF(M$2:M16,"№") -> 1 | Q12: =IF(COUNTIF(#REF!,'Состав блюд'!$M$2),SUMIF(#REF!,'Состав блюд'!$M$2,#REF!)*SUMIF(#REF!,'Состав блюд'!$M$2,#REF!)*'Состав блюд'!O12,0)/1000 ->  | S12: 9 | V12: =COUNTIF(S$2:S16,"№") -> 1 | W12: =IF(COUNTIF(#REF!,'Состав блюд'!$S$2),SUMIF(#REF!,'Состав блюд'!$S$2,#REF!)*SUMIF(#REF!,'Состав блюд'!$S$2,#REF!)*'Состав блюд'!U12,0)/1000 ->  | Y12: 9 | AB12: =COUNTIF(Y$2:Y16,"№") -> 1 | AC12: =IF(COUNTIF(#REF!,'Состав блюд'!$Y$2),SUMIF(#REF!,'Состав блюд'!$Y$2,#REF!)*SUMIF(#REF!,'Состав блюд'!$Y$2,#REF!)*'Состав блюд'!AA12,0)/1000 ->  | AF12: Лук
A13: 10 | C13: 10 | D13: =COUNTIF(A$2:A17,"№") -> 1 | E13: =IF(COUNTIF(#REF!,'Состав блюд'!$A$2),SUMIF(#REF!,'Состав блюд'!$A$2,#REF!)*SUMIF(#REF!,'Состав блюд'!$A$2,#REF!)*'Состав блюд'!C13,0)/1000 ->  | G13: 10 | J13: =COUNTIF(G$2:G17,"№") -> 1 | K13: =IF(COUNTIF(#REF!,'Состав блюд'!$G$2),SUMIF(#REF!,'Состав блюд'!$G$2,#REF!)*SUMIF(#REF!,'Состав блюд'!$G$2,#REF!)*'Состав блюд'!I13,0)/1000 ->  | M13: 10 | P13: =COUNTIF(M$2:M17,"№") -> 1 | Q13: =IF(COUNTIF(#REF!,'Состав блюд'!$M$2),SUMIF(#REF!,'Состав блюд'!$M$2,#REF!)*SUMIF(#REF!,'Состав блюд'!$M$2,#REF!)*'Состав блюд'!O13,0)/1000 ->  | S13: 10 | V13: =COUNTIF(S$2:S17,"№") -> 1 | W13: =IF(COUNTIF(#REF!,'Состав блюд'!$S$2),SUMIF(#REF!,'Состав блюд'!$S$2,#REF!)*SUMIF(#REF!,'Состав блюд'!$S$2,#REF!)*'Состав блюд'!U13,0)/1000 ->  | Y13: 10 | AB13: =COUNTIF(Y$2:Y17,"№") -> 1 | AC13: =IF(COUNTIF(#REF!,'Состав блюд'!$Y$2),SUMIF(#REF!,'Состав блюд'!$Y$2,#REF!)*SUMIF(#REF!,'Состав блюд'!$Y$2,#REF!)*'Состав блюд'!AA13,0)/1000 ->  | AF13: Майонез
A14: 11 | C14: 10 | D14: =COUNTIF(A$2:A15,"№") -> 1 | E14: =IF(COUNTIF(#REF!,'Состав блюд'!$A$2),SUMIF(#REF!,'Состав блюд'!$A$2,#REF!)*SUMIF(#REF!,'Состав блюд'!$A$2,#REF!)*'Состав блюд'!C14,0)/1000 ->  | G14: 11 | J14: =COUNTIF(G$2:G15,"№") -> 1 | K14: =IF(COUNTIF(#REF!,'Состав блюд'!$G$2),SUMIF(#REF!,'Состав блюд'!$G$2,#REF!)*SUMIF(#REF!,'Состав блюд'!$G$2,#REF!)*'Состав блюд'!I14,0)/1000 ->  | M14: 11 | P14: =COUNTIF(M$2:M15,"№") -> 1 | Q14: =IF(COUNTIF(#REF!,'Состав блюд'!$M$2),SUMIF(#REF!,'Состав блюд'!$M$2,#REF!)*SUMIF(#REF!,'Состав блюд'!$M$2,#REF!)*'Состав блюд'!O14,0)/1000 ->  | S14: 11 | V14: =COUNTIF(S$2:S15,"№") -> 1 | W14: =IF(COUNTIF(#REF!,'Состав блюд'!$S$2),SUMIF(#REF!,'Состав блюд'!$S$2,#REF!)*SUMIF(#REF!,'Состав блюд'!$S$2,#REF!)*'Состав блюд'!U14,0)/1000 ->  | Y14: 11 | AB14: =COUNTIF(Y$2:Y15,"№") -> 1 | AC14: =IF(COUNTIF(#REF!,'Состав блюд'!$Y$2),SUMIF(#REF!,'Состав блюд'!$Y$2,#REF!)*SUMIF(#REF!,'Состав блюд'!$Y$2,#REF!)*'Состав блюд'!AA14,0)/1000 ->  | AF14: Масло растительное
A15: 12 | D15: =COUNTIF(A$2:A16,"№") -> 1 | E15: =IF(COUNTIF(#REF!,'Состав блюд'!$A$2),SUMIF(#REF!,'Состав блюд'!$A$2,#REF!)*SUMIF(#REF!,'Состав блюд'!$A$2,#REF!)*'Состав блюд'!C15,0)/1000 ->  | G15: 12 | J15: =COUNTIF(G$2:G16,"№") -> 1 | K15: =IF(COUNTIF(#REF!,'Состав блюд'!$G$2),SUMIF(#REF!,'Состав блюд'!$G$2,#REF!)*SUMIF(#REF!,'Состав блюд'!$G$2,#REF!)*'Состав блюд'!I15,0)/1000 ->  | M15: 12 | P15: =COUNTIF(M$2:M16,"№") -> 1 | Q15: =IF(COUNTIF(#REF!,'Состав блюд'!$M$2),SUMIF(#REF!,'Состав блюд'!$M$2,#REF!)*SUMIF(#REF!,'Состав блюд'!$M$2,#REF!)*'Состав блюд'!O15,0)/1000 ->  | S15: 12 | V15: =COUNTIF(S$2:S16,"№") -> 1 | W15: =IF(COUNTIF(#REF!,'Состав блюд'!$S$2),SUMIF(#REF!,'Состав блюд'!$S$2,#REF!)*SUMIF(#REF!,'Состав блюд'!$S$2,#REF!)*'Состав блюд'!U15,0)/1000 ->  | Y15: 12 | AB15: =COUNTIF(Y$2:Y16,"№") -> 1 | AC15: =IF(COUNTIF(#REF!,'Состав блюд'!$Y$2),SUMIF(#REF!,'Состав блюд'!$Y$2,#REF!)*SUMIF(#REF!,'Состав блюд'!$Y$2,#REF!)*'Состав блюд'!AA15,0)/1000 ->  | AF15: Масло сливочное
A16: 13 | D16: =COUNTIF(A$2:A17,"№") -> 1 | E16: =IF(COUNTIF(#REF!,'Состав блюд'!$A$2),SUMIF(#REF!,'Состав блюд'!$A$2,#REF!)*SUMIF(#REF!,'Состав блюд'!$A$2,#REF!)*'Состав блюд'!C16,0)/1000 ->  | G16: 13 | J16: =COUNTIF(G$2:G17,"№") -> 1 | K16: =IF(COUNTIF(#REF!,'Состав блюд'!$G$2),SUMIF(#REF!,'Состав блюд'!$G$2,#REF!)*SUMIF(#REF!,'Состав блюд'!$G$2,#REF!)*'Состав блюд'!I16,0)/1000 ->  | M16: 13 | P16: =COUNTIF(M$2:M17,"№") -> 1 | Q16: =IF(COUNTIF(#REF!,'Состав блюд'!$M$2),SUMIF(#REF!,'Состав блюд'!$M$2,#REF!)*SUMIF(#REF!,'Состав блюд'!$M$2,#REF!)*'Состав блюд'!O16,0)/1000 ->  | S16: 13 | V16: =COUNTIF(S$2:S17,"№") -> 1 | W16: =IF(COUNTIF(#REF!,'Состав блюд'!$S$2),SUMIF(#REF!,'Состав блюд'!$S$2,#REF!)*SUMIF(#REF!,'Состав блюд'!$S$2,#REF!)*'Состав блюд'!U16,0)/1000 ->  | Y16: 13 | AB16: =COUNTIF(Y$2:Y17,"№") -> 1 | AC16: =IF(COUNTIF(#REF!,'Состав блюд'!$Y$2),SUMIF(#REF!,'Состав блюд'!$Y$2,#REF!)*SUMIF(#REF!,'Состав блюд'!$Y$2,#REF!)*'Состав блюд'!AA16,0)/1000 ->  | AF16: Морковь
A17: 14 | E17: =IF(COUNTIF(#REF!,'Состав блюд'!$A$2),SUMIF(#REF!,'Состав блюд'!$A$2,#REF!)*SUMIF(#REF!,'Состав блюд'!$A$2,#REF!)*'Состав блюд'!C17,0)/1000 ->  | G17: 14 | K17: =IF(COUNTIF(#REF!,'Состав блюд'!$G$2),SUMIF(#REF!,'Состав блюд'!$G$2,#REF!)*SUMIF(#REF!,'Состав блюд'!$G$2,#REF!)*'Состав блюд'!I17,0)/1000 ->  | M17: 14 | Q17: =IF(COUNTIF(#REF!,'Состав блюд'!$M$2),SUMIF(#REF!,'Состав блюд'!$M$2,#REF!)*SUMIF(#REF!,'Состав блюд'!$M$2,#REF!)*'Состав блюд'!O17,0)/1000 ->  | S17: 14 | W17: =IF(COUNTIF(#REF!,'Состав блюд'!$S$2),SUMIF(#REF!,'Состав блюд'!$S$2,#REF!)*SUMIF(#REF!,'Состав блюд'!$S$2,#REF!)*'Состав блюд'!U17,0)/1000 ->  | Y17: 14 | AC17: =IF(COUNTIF(#REF!,'Состав блюд'!$Y$2),SUMIF(#REF!,'Состав блюд'!$Y$2,#REF!)*SUMIF(#REF!,'Состав блюд'!$Y$2,#REF!)*'Состав блюд'!AA17,0)/1000 ->  | AF17: Огурец свежий
A18: 15 | E18: =IF(COUNTIF(#REF!,'Состав блюд'!$A$2),SUMIF(#REF!,'Состав блюд'!$A$2,#REF!)*SUMIF(#REF!,'Состав блюд'!$A$2,#REF!)*'Состав блюд'!C18,0)/1000 ->  | G18: 15 | K18: =IF(COUNTIF(#REF!,'Состав блюд'!$G$2),SUMIF(#REF!,'Состав блюд'!$G$2,#REF!)*SUMIF(#REF!,'Состав блюд'!$G$2,#REF!)*'Состав блюд'!I18,0)/1000 ->  | M18: 15 | Q18: =IF(COUNTIF(#REF!,'Состав блюд'!$M$2),SUMIF(#REF!,'Состав блюд'!$M$2,#REF!)*SUMIF(#REF!,'Состав блюд'!$M$2,#REF!)*'Состав блюд'!O18,0)/1000 ->  | S18: 15 | W18: =IF(COUNTIF(#REF!,'Состав блюд'!$S$2),SUMIF(#REF!,'Состав блюд'!$S$2,#REF!)*SUMIF(#REF!,'Состав блюд'!$S$2,#REF!)*'Состав блюд'!U18,0)/1000 ->  | Y18: 15 | AC18: =IF(COUNTIF(#REF!,'Состав блюд'!$Y$2),SUMIF(#REF!,'Состав блюд'!$Y$2,#REF!)*SUMIF(#REF!,'Состав блюд'!$Y$2,#REF!)*'Состав блюд'!AA18,0)/1000 ->  | AF18: Перец сладкий
AF19: Помидоры
A20: Щи | D20: =COUNTIF(A$2:A21,"№") -> 2 | G20: Жаркое по-домашнему | J20: =COUNTIF(G$2:G21,"№") -> 2 | M20: Гречка отварная | P20: =COUNTIF(M$2:M21,"№") -> 2 | S20: Салат "Капустный" | V20: =COUNTIF(S$2:S21,"№") -> 2 | Y20: Какао | AB20: =COUNTIF(Y$2:Y21,"№") -> 2 | AF20: Рис
A21: № | B21: Наименование продукта | C21: Норма, г | D21: =COUNTIF(A$2:A22,"№") -> 2 | G21: № | H21: Наименование продукта | I21: Норма, г | J21: =COUNTIF(G$2:G22,"№") -> 2 | M21: № | N21: Наименование продукта | O21: Норма, г | P21: =COUNTIF(M$2:M22,"№") -> 2 | S21: № | T21: Наименование продукта | U21: Норма, г | V21: =COUNTIF(S$2:S22,"№") -> 2 | Y21: № | Z21: Наименование продукта | AA21: Норма, г | AB21: =COUNTIF(Y$2:Y22,"№") -> 2 | AF21: Сахар
A22: 1 | B22: Капуста | C22: 100 | D22: =COUNTIF(A$2:A23,"№") -> 2 | E22: =IF(COUNTIF(#REF!,'Состав блюд'!$A$20),SUMIF(#REF!,'Состав блюд'!$A$20,#REF!)*SUMIF(#REF!,'Состав блюд'!$A$20,#REF!)*'Состав блюд'!C22,0)/1000 ->  | G22: 1 | H22: Говядина | I22: 100 | J22: =COUNTIF(G$2:G23,"№") -> 2 | K22: =IF(COUNTIF(#REF!,'Состав блюд'!$G$20),SUMIF(#REF!,'Состав блюд'!$G$20,#REF!)*SUMIF(#REF!,'Состав блюд'!$G$20,#REF!)*'Состав блюд'!I22,0)/1000 ->  | M22: 1 | N22: Гречка | O22: 100 | P22: =COUNTIF(M$2:M23,"№") -> 2 | Q22: =IF(COUNTIF(#REF!,'Состав блюд'!$M$20),SUMIF(#REF!,'Состав блюд'!$M$20,#REF!)*SUMIF(#REF!,'Состав блюд'!$M$20,#REF!)*'Состав блюд'!O22,0)/1000 ->  | S22: 1 | T22: Капуста | U22: 100 | V22: =COUNTIF(S$2:S23,"№") -> 2 | W22: =IF(COUNTIF(#REF!,'Состав блюд'!$S$20),SUMIF(#REF!,'Состав блюд'!$S$20,#REF!)*SUMIF(#REF!,'Состав блюд'!$S$20,#REF!)*'Состав блюд'!U22,0)/1000 ->  | Y22: 1 | Z22: Какао в порошке | AA22: 100 | AB22: =COUNTIF(Y$2:Y23,"№") -> 2 | AC22: =IF(COUNTIF(#REF!,'Состав блюд'!$Y$20),SUMIF(#REF!,'Состав блюд'!$Y$20,#REF!)*SUMIF(#REF!,'Состав блюд'!$Y$20,#REF!)*'Состав блюд'!AA22,0)/1000 ->  | AF22: Свекла
A23: 2 | B23: Лук | C23: 32 | D23: =COUNTIF(A$2:A24,"№") -> 2 | E23: =IF(COUNTIF(#REF!,'Состав блюд'!$A$20),SUMIF(#REF!,'Состав блюд'!$A$20,#REF!)*SUMIF(#REF!,'Состав блюд'!$A$20,#REF!)*'Состав блюд'!C23,0)/1000 ->  | G23: 2 | H23: Лавровый лист | I23: 32 | J23: =COUNTIF(G$2:G24,"№") -> 2 | K23: =IF(COUNTIF(#REF!,'Состав блюд'!$G$20),SUMIF(#REF!,'Состав блюд'!$G$20,#REF!)*SUMIF(#REF!,'Состав блюд'!$G$20,#REF!)*'Состав блюд'!I23,0)/1000 ->  | M23: 2 | N23: Соль | O23: 32 | P23: =COUNTIF(M$2:M24,"№") -> 2 | Q23: =IF(COUNTIF(#REF!,'Состав блюд'!$M$20),SUMIF(#REF!,'Состав блюд'!$M$20,#REF!)*SUMIF(#REF!,'Состав блюд'!$M$20,#REF!)*'Состав блюд'!O23,0)/1000 ->  | S23: 2 | T23: Лук | U23: 32 | V23: =COUNTIF(S$2:S24,"№") -> 2 | W23: =IF(COUNTIF(#REF!,'Состав блюд'!$S$20),SUMIF(#REF!,'Состав блюд'!$S$20,#REF!)*SUMIF(#REF!,'Состав блюд'!$S$20,#REF!)*'Состав блюд'!U23,0)/1000 ->  | Y23: 2 | Z23: Сахар | AA23: 32 | AB23: =COUNTIF(Y$2:Y24,"№") -> 2 | AC23: =IF(COUNTIF(#REF!,'Состав блюд'!$Y$20),SUMIF(#REF!,'Состав блюд'!$Y$20,#REF!)*SUMIF(#REF!,'Состав блюд'!$Y$20,#REF!)*'Состав блюд'!AA23,0)/1000 ->  | AF23: Свинина
A24: 3 | B24: Свинина | C24: 5 | D24: =COUNTIF(A$2:A25,"№") -> 2 | E24: =IF(COUNTIF(#REF!,'Состав блюд'!$A$20),SUMIF(#REF!,'Состав блюд'!$A$20,#REF!)*SUMIF(#REF!,'Состав блюд'!$A$20,#REF!)*'Состав блюд'!C24,0)/1000 ->  | G24: 3 | H24: Лук | I24: 5 | J24: =COUNTIF(G$2:G25,"№") -> 2 | K24: =IF(COUNTIF(#REF!,'Состав блюд'!$G$20),SUMIF(#REF!,'Состав блюд'!$G$20,#REF!)*SUMIF(#REF!,'Состав блюд'!$G$20,#REF!)*'Состав блюд'!I24,0)/1000 ->  | M24: 3 | N24: Масло сливочное | O24: 5 | P24: =COUNTIF(M$2:M25,"№") -> 2 | Q24: =IF(COUNTIF(#REF!,'Состав блюд'!$M$20),SUMIF(#REF!,'Состав блюд'!$M$20,#REF!)*SUMIF(#REF!,'Состав блюд'!$M$20,#REF!)*'Состав блюд'!O24,0)/1000 ->  | S24: 3 | T24: Масло растительное | U24: 5 | V24: =COUNTIF(S$2:S25,"№") -> 2 | W24: =IF(COUNTIF(#REF!,'Состав блюд'!$S$20),SUMIF(#REF!,'Состав блюд'!$S$20,#REF!)*SUMIF(#REF!,'Состав блюд'!$S$20,#REF!)*'Состав блюд'!U24,0)/1000 ->  | Y24: 3 | AB24: =COUNTIF(Y$2:Y25,"№") -> 2 | AC24: =IF(COUNTIF(#REF!,'Состав блюд'!$Y$20),SUMIF(#REF!,'Состав блюд'!$Y$20,#REF!)*SUMIF(#REF!,'Состав блюд'!$Y$20,#REF!)*'Состав блюд'!AA24,0)/1000 ->  | AF24: Соль
A25: 4 | B25: Лавровый лист | C25: 10 | D25: =COUNTIF(A$2:A26,"№") -> 2 | E25: =IF(COUNTIF(#REF!,'Состав блюд'!$A$20),SUMIF(#REF!,'Состав блюд'!$A$20,#REF!)*SUMIF(#REF!,'Состав блюд'!$A$20,#REF!)*'Состав блюд'!C25,0)/1000 ->  | G25: 4 | H25: Масло растительное | I25: 10 | J25: =COUNTIF(G$2:G26,"№") -> 2 | K25: =IF(COUNTIF(#REF!,'Состав блюд'!$G$20),SUMIF(#REF!,'Состав блюд'!$G$20,#REF!)*SUMIF(#REF!,'Состав блюд'!$G$20,#REF!)*'Состав блюд'!I25,0)/1000 ->  | M25: 4 | P25: =COUNTIF(M$2:M26,"№") -> 2 | Q25: =IF(COUNTIF(#REF!,'Состав блюд'!$M$20),SUMIF(#REF!,'Состав блюд'!$M$20,#REF!)*SUMIF(#REF!,'Состав блюд'!$M$20,#REF!)*'Состав блюд'!O25,0)/1000 ->  | S25: 4 | T25: Морковь | U25: 10 | V25: =COUNTIF(S$2:S26,"№") -> 2 | W25: =IF(COUNTIF(#REF!,'Состав блюд'!$S$20),SUMIF(#REF!,'Состав блюд'!$S$20,#REF!)*SUMIF(#REF!,'Состав блюд'!$S$20,#REF!)*'Состав блюд'!U25,0)/1000 ->  | Y25: 4 | AB25: =COUNTIF(Y$2:Y26,"№") -> 2 | AC25: =IF(COUNTIF(#REF!,'Состав блюд'!$Y$20),SUMIF(#REF!,'Состав блюд'!$Y$20,#REF!)*SUMIF(#REF!,'Состав блюд'!$Y$20,#REF!)*'Состав блюд'!AA25,0)/1000 ->  | AF25: Сухари панировочные
A26: 5 | B26: Масло растительное | C26: 10 | D26: =COUNTIF(A$2:A27,"№") -> 2 | E26: =IF(COUNTIF(#REF!,'Состав блюд'!$A$20),SUMIF(#REF!,'Состав блюд'!$A$20,#REF!)*SUMIF(#REF!,'Состав блюд'!$A$20,#REF!)*'Состав блюд'!C26,0)/1000 ->  | G26: 5 | H26: Помидоры | I26: 10 | J26: =COUNTIF(G$2:G27,"№") -> 2 | K26: =IF(COUNTIF(#REF!,'Состав блюд'!$G$20),SUMIF(#REF!,'Состав блюд'!$G$20,#REF!)*SUMIF(#REF!,'Состав блюд'!$G$20,#REF!)*'Состав блюд'!I26,0)/1000 ->  | M26: 5 | P26: =COUNTIF(M$2:M27,"№") -> 2 | Q26: =IF(COUNTIF(#REF!,'Состав блюд'!$M$20),SUMIF(#REF!,'Состав блюд'!$M$20,#REF!)*SUMIF(#REF!,'Состав блюд'!$M$20,#REF!)*'Состав блюд'!O26,0)/1000 ->  | S26: 5 | T26: Соль | U26: 10 | V26: =COUNTIF(S$2:S27,"№") -> 2 | W26: =IF(COUNTIF(#REF!,'Состав блюд'!$S$20),SUMIF(#REF!,'Состав блюд'!$S$20,#REF!)*SUMIF(#REF!,'Состав блюд'!$S$20,#REF!)*'Состав блюд'!U26,0)/1000 ->  | Y26: 5 | AB26: =COUNTIF(Y$2:Y27,"№") -> 2 | AC26: =IF(COUNTIF(#REF!,'Состав блюд'!$Y$20),SUMIF(#REF!,'Состав блюд'!$Y$20,#REF!)*SUMIF(#REF!,'Состав блюд'!$Y$20,#REF!)*'Состав блюд'!AA26,0)/1000 ->  | AF26: Сыр
A27: 6 | B27: Соль | C27: 80 | D27: =COUNTIF(A$2:A28,"№") -> 2 | E27: =IF(COUNTIF(#REF!,'Состав блюд'!$A$20),SUMIF(#REF!,'Состав блюд'!$A$20,#REF!)*SUMIF(#REF!,'Состав блюд'!$A$20,#REF!)*'Состав блюд'!C27,0)/1000 ->  | G27: 6 | I27: 80 | J27: =COUNTIF(G$2:G28,"№") -> 2 | K27: =IF(COUNTIF(#REF!,'Состав блюд'!$G$20),SUMIF(#REF!,'Состав блюд'!$G$20,#REF!)*SUMIF(#REF!,'Состав блюд'!$G$20,#REF!)*'Состав блюд'!I27,0)/1000 ->  | M27: 6 | P27: =COUNTIF(M$2:M28,"№") -> 2 | Q27: =IF(COUNTIF(#REF!,'Состав блюд'!$M$20),SUMIF(#REF!,'Состав блюд'!$M$20,#REF!)*SUMIF(#REF!,'Состав блюд'!$M$20,#REF!)*'Состав блюд'!O27,0)/1000 ->  | S27: 6 | T27: Сахар | U27: 80 | V27: =COUNTIF(S$2:S28,"№") -> 2 | W27: =IF(COUNTIF(#REF!,'Состав блюд'!$S$20),SUMIF(#REF!,'Состав блюд'!$S$20,#REF!)*SUMIF(#REF!,'Состав блюд'!$S$20,#REF!)*'Состав блюд'!U27,0)/1000 ->  | Y27: 6 | AB27: =COUNTIF(Y$2:Y28,"№") -> 2 | AC27: =IF(COUNTIF(#REF!,'Состав блюд'!$Y$20),SUMIF(#REF!,'Состав блюд'!$Y$20,#REF!)*SUMIF(#REF!,'Состав блюд'!$Y$20,#REF!)*'Состав блюд'!AA27,0)/1000 ->  | AF27: Томатная паста
A28: 7 | C28: 5 | D28: =COUNTIF(A$2:A29,"№") -> 2 | E28: =IF(COUNTIF(#REF!,'Состав блюд'!$A$20),SUMIF(#REF!,'Состав блюд'!$A$20,#REF!)*SUMIF(#REF!,'Состав блюд'!$A$20,#REF!)*'Состав блюд'!C28,0)/1000 ->  | G28: 7 | I28: 5 | J28: =COUNTIF(G$2:G29,"№") -> 2 | K28: =IF(COUNTIF(#REF!,'Состав блюд'!$G$20),SUMIF(#REF!,'Состав блюд'!$G$20,#REF!)*SUMIF(#REF!,'Состав блюд'!$G$20,#REF!)*'Состав блюд'!I28,0)/1000 ->  | M28: 7 | P28: =COUNTIF(M$2:M29,"№") -> 2 | Q28: =IF(COUNTIF(#REF!,'Состав блюд'!$M$20),SUMIF(#REF!,'Состав блюд'!$M$20,#REF!)*SUMIF(#REF!,'Состав блюд'!$M$20,#REF!)*'Состав блюд'!O28,0)/1000 ->  | S28: 7 | T28: Уксус 9%-ный | V28: =COUNTIF(S$2:S29,"№") -> 2 | W28: =IF(COUNTIF(#REF!,'Состав блюд'!$S$20),SUMIF(#REF!,'Состав блюд'!$S$20,#REF!)*SUMIF(#REF!,'Состав блюд'!$S$20,#REF!)*'Состав блюд'!U28,0)/1000 ->  | Y28: 7 | AB28: =COUNTIF(Y$2:Y29,"№") -> 2 | AC28: =IF(COUNTIF(#REF!,'Состав блюд'!$Y$20),SUMIF(#REF!,'Состав блюд'!$Y$20,#REF!)*SUMIF(#REF!,'Состав блюд'!$Y$20,#REF!)*'Состав блюд'!AA28,0)/1000 ->  | AF28: Уксус 9%-ный
A29: 8 | C29: 10 | D29: =COUNTIF(A$2:A30,"№") -> 2 | E29: =IF(COUNTIF(#REF!,'Состав блюд'!$A$20),SUMIF(#REF!,'Состав блюд'!$A$20,#REF!)*SUMIF(#REF!,'Состав блюд'!$A$20,#REF!)*'Состав блюд'!C29,0)/1000 ->  | G29: 8 | J29: =COUNTIF(G$2:G30,"№") -> 2 | K29: =IF(COUNTIF(#REF!,'Состав блюд'!$G$20),SUMIF(#REF!,'Состав блюд'!$G$20,#REF!)*SUMIF(#REF!,'Состав блюд'!$G$20,#REF!)*'Состав блюд'!I29,0)/1000 ->  | M29: 8 | P29: =COUNTIF(M$2:M30,"№") -> 2 | Q29: =IF(COUNTIF(#REF!,'Состав блюд'!$M$20),SUMIF(#REF!,'Состав блюд'!$M$20,#REF!)*SUMIF(#REF!,'Состав блюд'!$M$20,#REF!)*'Состав блюд'!O29,0)/1000 ->  | S29: 8 | V29: =COUNTIF(S$2:S30,"№") -> 2 | W29: =IF(COUNTIF(#REF!,'Состав блюд'!$S$20),SUMIF(#REF!,'Состав блюд'!$S$20,#REF!)*SUMIF(#REF!,'Состав блюд'!$S$20,#REF!)*'Состав блюд'!U29,0)/1000 ->  | Y29: 8 | AB29: =COUNTIF(Y$2:Y30,"№") -> 2 | AC29: =IF(COUNTIF(#REF!,'Состав блюд'!$Y$20),SUMIF(#REF!,'Состав блюд'!$Y$20,#REF!)*SUMIF(#REF!,'Состав блюд'!$Y$20,#REF!)*'Состав блюд'!AA29,0)/1000 ->  | AF29: Чай
A30: 9 | C30: 5 | D30: =COUNTIF(A$2:A31,"№") -> 2 | E30: =IF(COUNTIF(#REF!,'Состав блюд'!$A$20),SUMIF(#REF!,'Состав блюд'!$A$20,#REF!)*SUMIF(#REF!,'Состав блюд'!$A$20,#REF!)*'Состав блюд'!C30,0)/1000 ->  | G30: 9 | J30: =COUNTIF(G$2:G31,"№") -> 2 | K30: =IF(COUNTIF(#REF!,'Состав блюд'!$G$20),SUMIF(#REF!,'Состав блюд'!$G$20,#REF!)*SUMIF(#REF!,'Состав блюд'!$G$20,#REF!)*'Состав блюд'!I30,0)/1000 ->  | M30: 9 | P30: =COUNTIF(M$2:M31,"№") -> 2 | Q30: =IF(COUNTIF(#REF!,'Состав блюд'!$M$20),SUMIF(#REF!,'Состав блюд'!$M$20,#REF!)*SUMIF(#REF!,'Состав блюд'!$M$20,#REF!)*'Состав блюд'!O30,0)/1000 ->  | S30: 9 | V30: =COUNTIF(S$2:S31,"№") -> 2 | W30: =IF(COUNTIF(#REF!,'Состав блюд'!$S$20),SUMIF(#REF!,'Состав блюд'!$S$20,#REF!)*SUMIF(#REF!,'Состав блюд'!$S$20,#REF!)*'Состав блюд'!U30,0)/1000 ->  | Y30: 9 | AB30: =COUNTIF(Y$2:Y31,"№") -> 2 | AC30: =IF(COUNTIF(#REF!,'Состав блюд'!$Y$20),SUMIF(#REF!,'Состав блюд'!$Y$20,#REF!)*SUMIF(#REF!,'Состав блюд'!$Y$20,#REF!)*'Состав блюд'!AA30,0)/1000 ->  | AF30: Яйца куриные
A31: 10 | D31: =COUNTIF(A$2:A32,"№") -> 2 | E31: =IF(COUNTIF(#REF!,'Состав блюд'!$A$20),SUMIF(#REF!,'Состав блюд'!$A$20,#REF!)*SUMIF(#REF!,'Состав блюд'!$A$20,#REF!)*'Состав блюд'!C31,0)/1000 ->  | G31: 10 | J31: =COUNTIF(G$2:G32,"№") -> 2 | K31: =IF(COUNTIF(#REF!,'Состав блюд'!$G$20),SUMIF(#REF!,'Состав блюд'!$G$20,#REF!)*SUMIF(#REF!,'Состав блюд'!$G$20,#REF!)*'Состав блюд'!I31,0)/1000 ->  | M31: 10 | P31: =COUNTIF(M$2:M32,"№") -> 2 | Q31: =IF(COUNTIF(#REF!,'Состав блюд'!$M$20),SUMIF(#REF!,'Состав блюд'!$M$20,#REF!)*SUMIF(#REF!,'Состав блюд'!$M$20,#REF!)*'Состав блюд'!O31,0)/1000 ->  | S31: 10 | V31: =COUNTIF(S$2:S32,"№") -> 2 | W31: =IF(COUNTIF(#REF!,'Состав блюд'!$S$20),SUMIF(#REF!,'Состав блюд'!$S$20,#REF!)*SUMIF(#REF!,'Состав блюд'!$S$20,#REF!)*'Состав блюд'!U31,0)/1000 ->  | Y31: 10 | AB31: =COUNTIF(Y$2:Y32,"№") -> 2 | AC31: =IF(COUNTIF(#REF!,'Состав блюд'!$Y$20),SUMIF(#REF!,'Состав блюд'!$Y$20,#REF!)*SUMIF(#REF!,'Состав блюд'!$Y$20,#REF!)*'Состав блюд'!AA31,0)/1000 ->  | AF31: Фасоль
A32: 11 | D32: =COUNTIF(A$2:A33,"№") -> 2 | E32: =IF(COUNTIF(#REF!,'Состав блюд'!$A$20),SUMIF(#REF!,'Состав блюд'!$A$20,#REF!)*SUMIF(#REF!,'Состав блюд'!$A$20,#REF!)*'Состав блюд'!C32,0)/1000 ->  | G32: 11 | J32: =COUNTIF(G$2:G33,"№") -> 2 | K32: =IF(COUNTIF(#REF!,'Состав блюд'!$G$20),SUMIF(#REF!,'Состав блюд'!$G$20,#REF!)*SUMIF(#REF!,'Состав блюд'!$G$20,#REF!)*'Состав блюд'!I32,0)/1000 ->  | M32: 11 | P32: =COUNTIF(M$2:M33,"№") -> 2 | Q32: =IF(COUNTIF(#REF!,'Состав блюд'!$M$20),SUMIF(#REF!,'Состав блюд'!$M$20,#REF!)*SUMIF(#REF!,'Состав блюд'!$M$20,#REF!)*'Состав блюд'!O32,0)/1000 ->  | S32: 11 | V32: =COUNTIF(S$2:S33,"№") -> 2 | W32: =IF(COUNTIF(#REF!,'Состав блюд'!$S$20),SUMIF(#REF!,'Состав блюд'!$S$20,#REF!)*SUMIF(#REF!,'Состав блюд'!$S$20,#REF!)*'Состав блюд'!U32,0)/1000 ->  | Y32: 11 | AB32: =COUNTIF(Y$2:Y33,"№") -> 2 | AC32: =IF(COUNTIF(#REF!,'Состав блюд'!$Y$20),SUMIF(#REF!,'Состав блюд'!$Y$20,#REF!)*SUMIF(#REF!,'Состав блюд'!$Y$20,#REF!)*'Состав блюд'!AA32,0)/1000 ->  | AF32: Арбуз
A33: 12 | D33: =COUNTIF(A$2:A34,"№") -> 2 | E33: =IF(COUNTIF(#REF!,'Состав блюд'!$A$20),SUMIF(#REF!,'Состав блюд'!$A$20,#REF!)*SUMIF(#REF!,'Состав блюд'!$A$20,#REF!)*'Состав блюд'!C33,0)/1000 ->  | G33: 12 | J33: =COUNTIF(G$2:G34,"№") -> 2 | K33: =IF(COUNTIF(#REF!,'Состав блюд'!$G$20),SUMIF(#REF!,'Состав блюд'!$G$20,#REF!)*SUMIF(#REF!,'Состав блюд'!$G$20,#REF!)*'Состав блюд'!I33,0)/1000 ->  | M33: 12 | P33: =COUNTIF(M$2:M34,"№") -> 2 | Q33: =IF(COUNTIF(#REF!,'Состав блюд'!$M$20),SUMIF(#REF!,'Состав блюд'!$M$20,#REF!)*SUMIF(#REF!,'Состав блюд'!$M$20,#REF!)*'Состав блюд'!O33,0)/1000 ->  | S33: 12 | V33: =COUNTIF(S$2:S34,"№") -> 2 | W33: =IF(COUNTIF(#REF!,'Состав блюд'!$S$20),SUMIF(#REF!,'Состав блюд'!$S$20,#REF!)*SUMIF(#REF!,'Состав блюд'!$S$20,#REF!)*'Состав блюд'!U33,0)/1000 ->  | Y33: 12 | AB33: =COUNTIF(Y$2:Y34,"№") -> 2 | AC33: =IF(COUNTIF(#REF!,'Состав блюд'!$Y$20),SUMIF(#REF!,'Состав блюд'!$Y$20,#REF!)*SUMIF(#REF!,'Состав блюд'!$Y$20,#REF!)*'Состав блюд'!AA33,0)/1000 -> 
A35: Суп вермишелевый | D35: =COUNTIF(A$2:A36,"№") -> 3 | G35: Азу с рисом | J35: =COUNTIF(G$2:G36,"№") -> 3 | M35: Пюре картофельное | P35: =COUNTIF(M$2:M36,"№") -> 3 | S35: Салат "Мимоза" | V35: =COUNTIF(S$2:S36,"№") -> 3 | Y35: Компот из яблок | AB35: =COUNTIF(Y$2:Y36,"№") -> 3
A36: № | B36: Наименование продукта | C36: Норма, г | D36: =COUNTIF(A$2:A37,"№") -> 3 | G36: № | H36: Наименование продукта | I36: Норма, г | J36: =COUNTIF(G$2:G37,"№") -> 3 | M36: № | N36: Наименование продукта | O36: Норма, г | P36: =COUNTIF(M$2:M37,"№") -> 3 | S36: № | T36: Наименование продукта | U36: Норма, г | V36: =COUNTIF(S$2:S37,"№") -> 3 | Y36: № | Z36: Наименование продукта | AA36: Норма, г | AB36: =COUNTIF(Y$2:Y37,"№") -> 3
A37: 1 | D37: =COUNTIF(A$2:A38,"№") -> 3 | E37: =IF(COUNTIF(#REF!,'Состав блюд'!$A$35),SUMIF(#REF!,'Состав блюд'!$A$35,#REF!)*SUMIF(#REF!,'Состав блюд'!$A$35,#REF!)*'Состав блюд'!C37,0)/1000 ->  | G37: 1 | J37: =COUNTIF(G$2:G38,"№") -> 3 | K37: =IF(COUNTIF(#REF!,'Состав блюд'!$G$35),SUMIF(#REF!,'Состав блюд'!$G$35,#REF!)*SUMIF(#REF!,'Состав блюд'!$G$35,#REF!)*'Состав блюд'!I37,0)/1000 ->  | M37: 1 | P37: =COUNTIF(M$2:M38,"№") -> 3 | Q37: =IF(COUNTIF(#REF!,'Состав блюд'!$M$35),SUMIF(#REF!,'Состав блюд'!$M$35,#REF!)*SUMIF(#REF!,'Состав блюд'!$M$35,#REF!)*'Состав блюд'!O37,0)/1000 ->  | S37: 1 | V37: =COUNTIF(S$2:S38,"№") -> 3 | W37: =IF(COUNTIF(#REF!,'Состав блюд'!$S$35),SUMIF(#REF!,'Состав блюд'!$S$35,#REF!)*SUMIF(#REF!,'Состав блюд'!$S$35,#REF!)*'Состав блюд'!U37,0)/1000 ->  | Y37: 1 | AB37: =COUNTIF(Y$2:Y38,"№") -> 3 | AC37: =IF(COUNTIF(#REF!,'Состав блюд'!$Y$35),SUMIF(#REF!,'Состав блюд'!$Y$35,#REF!)*SUMIF(#REF!,'Состав блюд'!$Y$35,#REF!)*'Состав блюд'!AA37,0)/1000 -> 
A38: 2 | D38: =COUNTIF(A$2:A39,"№") -> 3 | E38: =IF(COUNTIF(#REF!,'Состав блюд'!$A$35),SUMIF(#REF!,'Состав блюд'!$A$35,#REF!)*SUMIF(#REF!,'Состав блюд'!$A$35,#REF!)*'Состав блюд'!C38,0)/1000 ->  | G38: 2 | J38: =COUNTIF(G$2:G39,"№") -> 3 | K38: =IF(COUNTIF(#REF!,'Состав блюд'!$G$35),SUMIF(#REF!,'Состав блюд'!$G$35,#REF!)*SUMIF(#REF!,'Состав блюд'!$G$35,#REF!)*'Состав блюд'!I38,0)/1000 ->  | M38: 2 | P38: =COUNTIF(M$2:M39,"№") -> 3 | Q38: =IF(COUNTIF(#REF!,'Состав блюд'!$M$35),SUMIF(#REF!,'Состав блюд'!$M$35,#REF!)*SUMIF(#REF!,'Состав блюд'!$M$35,#REF!)*'Состав блюд'!O38,0)/1000 ->  | S38: 2 | V38: =COUNTIF(S$2:S39,"№") -> 3 | W38: =IF(COUNTIF(#REF!,'Состав блюд'!$S$35),SUMIF(#REF!,'Состав блюд'!$S$35,#REF!)*SUMIF(#REF!,'Состав блюд'!$S$35,#REF!)*'Состав блюд'!U38,0)/1000 ->  | Y38: 2 | AB38: =COUNTIF(Y$2:Y39,"№") -> 3 | AC38: =IF(COUNTIF(#REF!,'Состав блюд'!$Y$35),SUMIF(#REF!,'Состав блюд'!$Y$35,#REF!)*SUMIF(#REF!,'Состав блюд'!$Y$35,#REF!)*'Состав блюд'!AA38,0)/1000 -> 
A39: 3 | D39: =COUNTIF(A$2:A40,"№") -> 3 | E39: =IF(COUNTIF(#REF!,'Состав блюд'!$A$35),SUMIF(#REF!,'Состав блюд'!$A$35,#REF!)*SUMIF(#REF!,'Состав блюд'!$A$35,#REF!)*'Состав блюд'!C39,0)/1000 ->  | G39: 3 | J39: =COUNTIF(G$2:G40,"№") -> 3 | K39: =IF(COUNTIF(#REF!,'Состав блюд'!$G$35),SUMIF(#REF!,'Состав блюд'!$G$35,#REF!)*SUMIF(#REF!,'Состав блюд'!$G$35,#REF!)*'Состав блюд'!I39,0)/1000 ->  | M39: 3 | P39: =COUNTIF(M$2:M40,"№") -> 3 | Q39: =IF(COUNTIF(#REF!,'Состав блюд'!$M$35),SUMIF(#REF!,'Состав блюд'!$M$35,#REF!)*SUMIF(#REF!,'Состав блюд'!$M$35,#REF!)*'Состав блюд'!O39,0)/1000 ->  | S39: 3 | V39: =COUNTIF(S$2:S40,"№") -> 3 | W39: =IF(COUNTIF(#REF!,'Состав блюд'!$S$35),SUMIF(#REF!,'Состав блюд'!$S$35,#REF!)*SUMIF(#REF!,'Состав блюд'!$S$35,#REF!)*'Состав блюд'!U39,0)/1000 ->  | Y39: 3 | AB39: =COUNTIF(Y$2:Y40,"№") -> 3 | AC39: =IF(COUNTIF(#REF!,'Состав блюд'!$Y$35),SUMIF(#REF!,'Состав блюд'!$Y$35,#REF!)*SUMIF(#REF!,'Состав блюд'!$Y$35,#REF!)*'Состав блюд'!AA39,0)/1000 -> 
A40: 4 | D40: =COUNTIF(A$2:A41,"№") -> 3 | E40: =IF(COUNTIF(#REF!,'Состав блюд'!$A$35),SUMIF(#REF!,'Состав блюд'!$A$35,#REF!)*SUMIF(#REF!,'Состав блюд'!$A$35,#REF!)*'Состав блюд'!C40,0)/1000 ->  | G40: 4 | J40: =COUNTIF(G$2:G41,"№") -> 3 | K40: =IF(COUNTIF(#REF!,'Состав блюд'!$G$35),SUMIF(#REF!,'Состав блюд'!$G$35,#REF!)*SUMIF(#REF!,'Состав блюд'!$G$35,#REF!)*'Состав блюд'!I40,0)/1000 ->  | M40: 4 | P40: =COUNTIF(M$2:M41,"№") -> 3 | Q40: =IF(COUNTIF(#REF!,'Состав блюд'!$M$35),SUMIF(#REF!,'Состав блюд'!$M$35,#REF!)*SUMIF(#REF!,'Состав блюд'!$M$35,#REF!)*'Состав блюд'!O40,0)/1000 ->  | S40: 4 | V40: =COUNTIF(S$2:S41,"№") -> 3 | W40: =IF(COUNTIF(#REF!,'Состав блюд'!$S$35),SUMIF(#REF!,'Состав блюд'!$S$35,#REF!)*SUMIF(#REF!,'Состав блюд'!$S$35,#REF!)*'Состав блюд'!U40,0)/1000 ->  | Y40: 4 | AB40: =COUNTIF(Y$2:Y41,"№") -> 3 | AC40: =IF(COUNTIF(#REF!,'Состав блюд'!$Y$35),SUMIF(#REF!,'Состав блюд'!$Y$35,#REF!)*SUMIF(#REF!,'Состав блюд'!$Y$35,#REF!)*'Состав блюд'!AA40,0)/1000 -> 
A41: 5 | D41: =COUNTIF(A$2:A42,"№") -> 3 | E41: =IF(COUNTIF(#REF!,'Состав блюд'!$A$35),SUMIF(#REF!,'Состав блюд'!$A$35,#REF!)*SUMIF(#REF!,'Состав блюд'!$A$35,#REF!)*'Состав блюд'!C41,0)/1000 ->  | G41: 5 | J41: =COUNTIF(G$2:G42,"№") -> 3 | K41: =IF(COUNTIF(#REF!,'Состав блюд'!$G$35),SUMIF(#REF!,'Состав блюд'!$G$35,#REF!)*SUMIF(#REF!,'Состав блюд'!$G$35,#REF!)*'Состав блюд'!I41,0)/1000 ->  | M41: 5 | P41: =COUNTIF(M$2:M42,"№") -> 3 | Q41: =IF(COUNTIF(#REF!,'Состав блюд'!$M$35),SUMIF(#REF!,'Состав блюд'!$M$35,#REF!)*SUMIF(#REF!,'Состав блюд'!$M$35,#REF!)*'Состав блюд'!O41,0)/1000 ->  | S41: 5 | V41: =COUNTIF(S$2:S42,"№") -> 3 | W41: =IF(COUNTIF(#REF!,'Состав блюд'!$S$35),SUMIF(#REF!,'Состав блюд'!$S$35,#REF!)*SUMIF(#REF!,'Состав блюд'!$S$35,#REF!)*'Состав блюд'!U41,0)/1000 ->  | Y41: 5 | AB41: =COUNTIF(Y$2:Y42,"№") -> 3 | AC41: =IF(COUNTIF(#REF!,'Состав блюд'!$Y$35),SUMIF(#REF!,'Состав блюд'!$Y$35,#REF!)*SUMIF(#REF!,'Состав блюд'!$Y$35,#REF!)*'Состав блюд'!AA41,0)/1000 -> 
A42: 6 | D42: =COUNTIF(A$2:A43,"№") -> 3 | E42: =IF(COUNTIF(#REF!,'Состав блюд'!$A$35),SUMIF(#REF!,'Состав блюд'!$A$35,#REF!)*SUMIF(#REF!,'Состав блюд'!$A$35,#REF!)*'Состав блюд'!C42,0)/1000 ->  | G42: 6 | J42: =COUNTIF(G$2:G43,"№") -> 3 | K42: =IF(COUNTIF(#REF!,'Состав блюд'!$G$35),SUMIF(#REF!,'Состав блюд'!$G$35,#REF!)*SUMIF(#REF!,'Состав блюд'!$G$35,#REF!)*'Состав блюд'!I42,0)/1000 ->  | M42: 6 | P42: =COUNTIF(M$2:M43,"№") -> 3 | Q42: =IF(COUNTIF(#REF!,'Состав блюд'!$M$35),SUMIF(#REF!,'Состав блюд'!$M$35,#REF!)*SUMIF(#REF!,'Состав блюд'!$M$35,#REF!)*'Состав блюд'!O42,0)/1000 ->  | S42: 6 | V42: =COUNTIF(S$2:S43,"№") -> 3 | W42: =IF(COUNTIF(#REF!,'Состав блюд'!$S$35),SUMIF(#REF!,'Состав блюд'!$S$35,#REF!)*SUMIF(#REF!,'Состав блюд'!$S$35,#REF!)*'Состав блюд'!U42,0)/1000 ->  | Y42: 6 | AB42: =COUNTIF(Y$2:Y43,"№") -> 3 | AC42: =IF(COUNTIF(#REF!,'Состав блюд'!$Y$35),SUMIF(#REF!,'Состав блюд'!$Y$35,#REF!)*SUMIF(#REF!,'Состав блюд'!$Y$35,#REF!)*'Состав блюд'!AA42,0)/1000 -> 
A43: 7 | D43: =COUNTIF(A$2:A44,"№") -> 3 | E43: =IF(COUNTIF(#REF!,'Состав блюд'!$A$35),SUMIF(#REF!,'Состав блюд'!$A$35,#REF!)*SUMIF(#REF!,'Состав блюд'!$A$35,#REF!)*'Состав блюд'!C43,0)/1000 ->  | G43: 7 | J43: =COUNTIF(G$2:G44,"№") -> 3 | K43: =IF(COUNTIF(#REF!,'Состав блюд'!$G$35),SUMIF(#REF!,'Состав блюд'!$G$35,#REF!)*SUMIF(#REF!,'Состав блюд'!$G$35,#REF!)*'Состав блюд'!I43,0)/1000 ->  | M43: 7 | P43: =COUNTIF(M$2:M44,"№") -> 3 | Q43: =IF(COUNTIF(#REF!,'Состав блюд'!$M$35),SUMIF(#REF!,'Состав блюд'!$M$35,#REF!)*SUMIF(#REF!,'Состав блюд'!$M$35,#REF!)*'Состав блюд'!O43,0)/1000 ->  | S43: 7 | V43: =COUNTIF(S$2:S44,"№") -> 3 | W43: =IF(COUNTIF(#REF!,'Состав блюд'!$S$35),SUMIF(#REF!,'Состав блюд'!$S$35,#REF!)*SUMIF(#REF!,'Состав блюд'!$S$35,#REF!)*'Состав блюд'!U43,0)/1000 ->  | Y43: 7 | AB43: =COUNTIF(Y$2:Y44,"№") -> 3 | AC43: =IF(COUNTIF(#REF!,'Состав блюд'!$Y$35),SUMIF(#REF!,'Состав блюд'!$Y$35,#REF!)*SUMIF(#REF!,'Состав блюд'!$Y$35,#REF!)*'Состав блюд'!AA43,0)/1000 -> 
A44: 8 | D44: =COUNTIF(A$2:A45,"№") -> 3 | E44: =IF(COUNTIF(#REF!,'Состав блюд'!$A$35),SUMIF(#REF!,'Состав блюд'!$A$35,#REF!)*SUMIF(#REF!,'Состав блюд'!$A$35,#REF!)*'Состав блюд'!C44,0)/1000 ->  | G44: 8 | J44: =COUNTIF(G$2:G45,"№") -> 3 | K44: =IF(COUNTIF(#REF!,'Состав блюд'!$G$35),SUMIF(#REF!,'Состав блюд'!$G$35,#REF!)*SUMIF(#REF!,'Состав блюд'!$G$35,#REF!)*'Состав блюд'!I44,0)/1000 ->  | M44: 8 | P44: =COUNTIF(M$2:M45,"№") -> 3 | Q44: =IF(COUNTIF(#REF!,'Состав блюд'!$M$35),SUMIF(#REF!,'Состав блюд'!$M$35,#REF!)*SUMIF(#REF!,'Состав блюд'!$M$35,#REF!)*'Состав блюд'!O44,0)/1000 ->  | S44: 8 | V44: =COUNTIF(S$2:S45,"№") -> 3 | W44: =IF(COUNTIF(#REF!,'Состав блюд'!$S$35),SUMIF(#REF!,'Состав блюд'!$S$35,#REF!)*SUMIF(#REF!,'Состав блюд'!$S$35,#REF!)*'Состав блюд'!U44,0)/1000 ->  | Y44: 8 | AB44: =COUNTIF(Y$2:Y45,"№") -> 3 | AC44: =IF(COUNTIF(#REF!,'Состав блюд'!$Y$35),SUMIF(#REF!,'Состав блюд'!$Y$35,#REF!)*SUMIF(#REF!,'Состав блюд'!$Y$35,#REF!)*'Состав блюд'!AA44,0)/1000 -> 
A45: 9 | D45: =COUNTIF(A$2:A46,"№") -> 3 | E45: =IF(COUNTIF(#REF!,'Состав блюд'!$A$35),SUMIF(#REF!,'Состав блюд'!$A$35,#REF!)*SUMIF(#REF!,'Состав блюд'!$A$35,#REF!)*'Состав блюд'!C45,0)/1000 ->  | G45: 9 | J45: =COUNTIF(G$2:G46,"№") -> 3 | K45: =IF(COUNTIF(#REF!,'Состав блюд'!$G$35),SUMIF(#REF!,'Состав блюд'!$G$35,#REF!)*SUMIF(#REF!,'Состав блюд'!$G$35,#REF!)*'Состав блюд'!I45,0)/1000 ->  | M45: 9 | P45: =COUNTIF(M$2:M46,"№") -> 3 | Q45: =IF(COUNTIF(#REF!,'Состав блюд'!$M$35),SUMIF(#REF!,'Состав блюд'!$M$35,#REF!)*SUMIF(#REF!,'Состав блюд'!$M$35,#REF!)*'Состав блюд'!O45,0)/1000 ->  | S45: 9 | V45: =COUNTIF(S$2:S46,"№") -> 3 | W45: =IF(COUNTIF(#REF!,'Состав блюд'!$S$35),SUMIF(#REF!,'Состав блюд'!$S$35,#REF!)*SUMIF(#REF!,'Состав блюд'!$S$35,#REF!)*'Состав блюд'!U45,0)/1000 ->  | Y45: 9 | AB45: =COUNTIF(Y$2:Y46,"№") -> 3 | AC45: =IF(COUNTIF(#REF!,'Состав блюд'!$Y$35),SUMIF(#REF!,'Состав блюд'!$Y$35,#REF!)*SUMIF(#REF!,'Состав блюд'!$Y$35,#REF!)*'Состав блюд'!AA45,0)/1000 -> 
A46: 10 | D46: =COUNTIF(A$2:A47,"№") -> 3 | E46: =IF(COUNTIF(#REF!,'Состав блюд'!$A$35),SUMIF(#REF!,'Состав блюд'!$A$35,#REF!)*SUMIF(#REF!,'Состав блюд'!$A$35,#REF!)*'Состав блюд'!C46,0)/1000 ->  | G46: 10 | J46: =COUNTIF(G$2:G47,"№") -> 3 | K46: =IF(COUNTIF(#REF!,'Состав блюд'!$G$35),SUMIF(#REF!,'Состав блюд'!$G$35,#REF!)*SUMIF(#REF!,'Состав блюд'!$G$35,#REF!)*'Состав блюд'!I46,0)/1000 ->  | M46: 10 | P46: =COUNTIF(M$2:M47,"№") -> 3 | Q46: =IF(COUNTIF(#REF!,'Состав блюд'!$M$35),SUMIF(#REF!,'Состав блюд'!$M$35,#REF!)*SUMIF(#REF!,'Состав блюд'!$M$35,#REF!)*'Состав блюд'!O46,0)/1000 ->  | S46: 10 | V46: =COUNTIF(S$2:S47,"№") -> 3 | W46: =IF(COUNTIF(#REF!,'Состав блюд'!$S$35),SUMIF(#REF!,'Состав блюд'!$S$35,#REF!)*SUMIF(#REF!,'Состав блюд'!$S$35,#REF!)*'Состав блюд'!U46,0)/1000 ->  | Y46: 10 | AB46: =COUNTIF(Y$2:Y47,"№") -> 3 | AC46: =IF(COUNTIF(#REF!,'Состав блюд'!$Y$35),SUMIF(#REF!,'Состав блюд'!$Y$35,#REF!)*SUMIF(#REF!,'Состав блюд'!$Y$35,#REF!)*'Состав блюд'!AA46,0)/1000 -> 
A47: 11 | D47: =COUNTIF(A$2:A48,"№") -> 3 | E47: =IF(COUNTIF(#REF!,'Состав блюд'!$A$35),SUMIF(#REF!,'Состав блюд'!$A$35,#REF!)*SUMIF(#REF!,'Состав блюд'!$A$35,#REF!)*'Состав блюд'!C47,0)/1000 ->  | G47: 11 | J47: =COUNTIF(G$2:G48,"№") -> 3 | K47: =IF(COUNTIF(#REF!,'Состав блюд'!$G$35),SUMIF(#REF!,'Состав блюд'!$G$35,#REF!)*SUMIF(#REF!,'Состав блюд'!$G$35,#REF!)*'Состав блюд'!I47,0)/1000 ->  | M47: 11 | P47: =COUNTIF(M$2:M48,"№") -> 3 | Q47: =IF(COUNTIF(#REF!,'Состав блюд'!$M$35),SUMIF(#REF!,'Состав блюд'!$M$35,#REF!)*SUMIF(#REF!,'Состав блюд'!$M$35,#REF!)*'Состав блюд'!O47,0)/1000 ->  | S47: 11 | V47: =COUNTIF(S$2:S48,"№") -> 3 | W47: =IF(COUNTIF(#REF!,'Состав блюд'!$S$35),SUMIF(#REF!,'Состав блюд'!$S$35,#REF!)*SUMIF(#REF!,'Состав блюд'!$S$35,#REF!)*'Состав блюд'!U47,0)/1000 ->  | Y47: 11 | AB47: =COUNTIF(Y$2:Y48,"№") -> 3 | AC47: =IF(COUNTIF(#REF!,'Состав блюд'!$Y$35),SUMIF(#REF!,'Состав блюд'!$Y$35,#REF!)*SUMIF(#REF!,'Состав блюд'!$Y$35,#REF!)*'Состав блюд'!AA47,0)/1000 -> 
A48: 12 | D48: =COUNTIF(A$2:A49,"№") -> 3 | E48: =IF(COUNTIF(#REF!,'Состав блюд'!$A$35),SUMIF(#REF!,'Состав блюд'!$A$35,#REF!)*SUMIF(#REF!,'Состав блюд'!$A$35,#REF!)*'Состав блюд'!C48,0)/1000 ->  | G48: 12 | J48: =COUNTIF(G$2:G49,"№") -> 3 | K48: =IF(COUNTIF(#REF!,'Состав блюд'!$G$35),SUMIF(#REF!,'Состав блюд'!$G$35,#REF!)*SUMIF(#REF!,'Состав блюд'!$G$35,#REF!)*'Состав блюд'!I48,0)/1000 ->  | M48: 12 | P48: =COUNTIF(M$2:M49,"№") -> 3 | Q48: =IF(COUNTIF(#REF!,'Состав блюд'!$M$35),SUMIF(#REF!,'Состав блюд'!$M$35,#REF!)*SUMIF(#REF!,'Состав блюд'!$M$35,#REF!)*'Состав блюд'!O48,0)/1000 ->  | S48: 12 | V48: =COUNTIF(S$2:S49,"№") -> 3 | W48: =IF(COUNTIF(#REF!,'Состав блюд'!$S$35),SUMIF(#REF!,'Состав блюд'!$S$35,#REF!)*SUMIF(#REF!,'Состав блюд'!$S$35,#REF!)*'Состав блюд'!U48,0)/1000 ->  | Y48: 12 | AB48: =COUNTIF(Y$2:Y49,"№") -> 3 | AC48: =IF(COUNTIF(#REF!,'Состав блюд'!$Y$35),SUMIF(#REF!,'Состав блюд'!$Y$35,#REF!)*SUMIF(#REF!,'Состав блюд'!$Y$35,#REF!)*'Состав блюд'!AA48,0)/1000 -> 
A50: Суп фасолевый | D50: =COUNTIF(A$2:A51,"№") -> 4 | G50: Гречка по-купечески | J50: =COUNTIF(G$2:G51,"№") -> 4 | M50: Картофель жареный | P50: =COUNTIF(M$2:M51,"№") -> 4 | S50: Салат "Крабовый" | V50: =COUNTIF(S$2:S51,"№") -> 4 | Y50: Компот из сухофруктов | AB50: =COUNTIF(Y$2:Y51,"№") -> 4
A51: № | B51: Наименование продукта | C51: Норма, г | D51: =COUNTIF(A$2:A52,"№") -> 4 | G51: № | H51: Наименование продукта | I51: Норма, г | J51: =COUNTIF(G$2:G52,"№") -> 4 | M51: № | N51: Наименование продукта | O51: Норма, г | P51: =COUNTIF(M$2:M52,"№") -> 4 | S51: № | T51: Наименование продукта | U51: Норма, г | V51: =COUNTIF(S$2:S52,"№") -> 4 | Y51: № | Z51: Наименование продукта | AA51: Норма, г | AB51: =COUNTIF(Y$2:Y52,"№") -> 4
A52: 1 | D52: =COUNTIF(A$2:A53,"№") -> 4 | E52: =IF(COUNTIF(#REF!,'Состав блюд'!$A$50),SUMIF(#REF!,'Состав блюд'!$A$50,#REF!)*SUMIF(#REF!,'Состав блюд'!$A$50,#REF!)*'Состав блюд'!C52,0)/1000 ->  | G52: 1 | J52: =COUNTIF(G$2:G53,"№") -> 4 | K52: =IF(COUNTIF(#REF!,'Состав блюд'!$G$50),SUMIF(#REF!,'Состав блюд'!$G$50,#REF!)*SUMIF(#REF!,'Состав блюд'!$G$50,#REF!)*'Состав блюд'!I52,0)/1000 ->  | M52: 1 | P52: =COUNTIF(M$2:M53,"№") -> 4 | Q52: =IF(COUNTIF(#REF!,'Состав блюд'!$M$50),SUMIF(#REF!,'Состав блюд'!$M$50,#REF!)*SUMIF(#REF!,'Состав блюд'!$M$50,#REF!)*'Состав блюд'!O52,0)/1000 ->  | S52: 1 | V52: =COUNTIF(S$2:S53,"№") -> 4 | W52: =IF(COUNTIF(#REF!,'Состав блюд'!$S$50),SUMIF(#REF!,'Состав блюд'!$S$50,#REF!)*SUMIF(#REF!,'Состав блюд'!$S$50,#REF!)*'Состав блюд'!U52,0)/1000 ->  | Y52: 1 | AB52: =COUNTIF(Y$2:Y53,"№") -> 4 | AC52: =IF(COUNTIF(#REF!,'Состав блюд'!$Y$50),SUMIF(#REF!,'Состав блюд'!$Y$50,#REF!)*SUMIF(#REF!,'Состав блюд'!$Y$50,#REF!)*'Состав блюд'!AA52,0)/1000 -> 
A53: 2 | D53: =COUNTIF(A$2:A54,"№") -> 4 | E53: =IF(COUNTIF(#REF!,'Состав блюд'!$A$50),SUMIF(#REF!,'Состав блюд'!$A$50,#REF!)*SUMIF(#REF!,'Состав блюд'!$A$50,#REF!)*'Состав блюд'!C53,0)/1000 ->  | G53: 2 | J53: =COUNTIF(G$2:G54,"№") -> 4 | K53: =IF(COUNTIF(#REF!,'Состав блюд'!$G$50),SUMIF(#REF!,'Состав блюд'!$G$50,#REF!)*SUMIF(#REF!,'Состав блюд'!$G$50,#REF!)*'Состав блюд'!I53,0)/1000 ->  | M53: 2 | P53: =COUNTIF(M$2:M54,"№") -> 4 | Q53: =IF(COUNTIF(#REF!,'Состав блюд'!$M$50),SUMIF(#REF!,'Состав блюд'!$M$50,#REF!)*SUMIF(#REF!,'Состав блюд'!$M$50,#REF!)*'Состав блюд'!O53,0)/1000 ->  | S53: 2 | V53: =COUNTIF(S$2:S54,"№") -> 4 | W53: =IF(COUNTIF(#REF!,'Состав блюд'!$S$50),SUMIF(#REF!,'Состав блюд'!$S$50,#REF!)*SUMIF(#REF!,'Состав блюд'!$S$50,#REF!)*'Состав блюд'!U53,0)/1000 ->  | Y53: 2 | AB53: =COUNTIF(Y$2:Y54,"№") -> 4 | AC53: =IF(COUNTIF(#REF!,'Состав блюд'!$Y$50),SUMIF(#REF!,'Состав блюд'!$Y$50,#REF!)*SUMIF(#REF!,'Состав блюд'!$Y$50,#REF!)*'Состав блюд'!AA53,0)/1000 -> 
A54: 3 | D54: =COUNTIF(A$2:A55,"№") -> 4 | E54: =IF(COUNTIF(#REF!,'Состав блюд'!$A$50),SUMIF(#REF!,'Состав блюд'!$A$50,#REF!)*SUMIF(#REF!,'Состав блюд'!$A$50,#REF!)*'Состав блюд'!C54,0)/1000 ->  | G54: 3 | J54: =COUNTIF(G$2:G55,"№") -> 4 | K54: =IF(COUNTIF(#REF!,'Состав блюд'!$G$50),SUMIF(#REF!,'Состав блюд'!$G$50,#REF!)*SUMIF(#REF!,'Состав блюд'!$G$50,#REF!)*'Состав блюд'!I54,0)/1000 ->  | M54: 3 | P54: =COUNTIF(M$2:M55,"№") -> 4 | Q54: =IF(COUNTIF(#REF!,'Состав блюд'!$M$50),SUMIF(#REF!,'Состав блюд'!$M$50,#REF!)*SUMIF(#REF!,'Состав блюд'!$M$50,#REF!)*'Состав блюд'!O54,0)/1000 ->  | S54: 3 | V54: =COUNTIF(S$2:S55,"№") -> 4 | W54: =IF(COUNTIF(#REF!,'Состав блюд'!$S$50),SUMIF(#REF!,'Состав блюд'!$S$50,#REF!)*SUMIF(#REF!,'Состав блюд'!$S$50,#REF!)*'Состав блюд'!U54,0)/1000 ->  | Y54: 3 | AB54: =COUNTIF(Y$2:Y55,"№") -> 4 | AC54: =IF(COUNTIF(#REF!,'Состав блюд'!$Y$50),SUMIF(#REF!,'Состав блюд'!$Y$50,#REF!)*SUMIF(#REF!,'Состав блюд'!$Y$50,#REF!)*'Состав блюд'!AA54,0)/1000 -> 
A55: 4 | D55: =COUNTIF(A$2:A57,"№") -> 4 | E55: =IF(COUNTIF(#REF!,'Состав блюд'!$A$50),SUMIF(#REF!,'Состав блюд'!$A$50,#REF!)*SUMIF(#REF!,'Состав блюд'!$A$50,#REF!)*'Состав блюд'!C55,0)/1000 ->  | G55: 4 | J55: =COUNTIF(G$2:G57,"№") -> 4 | K55: =IF(COUNTIF(#REF!,'Состав блюд'!$G$50),SUMIF(#REF!,'Состав блюд'!$G$50,#REF!)*SUMIF(#REF!,'Состав блюд'!$G$50,#REF!)*'Состав блюд'!I55,0)/1000 ->  | M55: 4 | P55: =COUNTIF(M$2:M57,"№") -> 4 | Q55: =IF(COUNTIF(#REF!,'Состав блюд'!$M$50),SUMIF(#REF!,'Состав блюд'!$M$50,#REF!)*SUMIF(#REF!,'Состав блюд'!$M$50,#REF!)*'Состав блюд'!O55,0)/1000 ->  | S55: 4 | V55: =COUNTIF(S$2:S57,"№") -> 4 | W55: =IF(COUNTIF(#REF!,'Состав блюд'!$S$50),SUMIF(#REF!,'Состав блюд'!$S$50,#REF!)*SUMIF(#REF!,'Состав блюд'!$S$50,#REF!)*'Состав блюд'!U55,0)/1000 ->  | Y55: 4 | AB55: =COUNTIF(Y$2:Y57,"№") -> 4 | AC55: =IF(COUNTIF(#REF!,'Состав блюд'!$Y$50),SUMIF(#REF!,'Состав блюд'!$Y$50,#REF!)*SUMIF(#REF!,'Состав блюд'!$Y$50,#REF!)*'Состав блюд'!AA55,0)/1000 -> 
A56: 5 | E56: =IF(COUNTIF(#REF!,'Состав блюд'!$A$50),SUMIF(#REF!,'Состав блюд'!$A$50,#REF!)*SUMIF(#REF!,'Состав блюд'!$A$50,#REF!)*'Состав блюд'!C56,0)/1000 ->  | G56: 5 | K56: =IF(COUNTIF(#REF!,'Состав блюд'!$G$50),SUMIF(#REF!,'Состав блюд'!$G$50,#REF!)*SUMIF(#REF!,'Состав блюд'!$G$50,#REF!)*'Состав блюд'!I56,0)/1000 ->  | M56: 5 | Q56: =IF(COUNTIF(#REF!,'Состав блюд'!$M$50),SUMIF(#REF!,'Состав блюд'!$M$50,#REF!)*SUMIF(#REF!,'Состав блюд'!$M$50,#REF!)*'Состав блюд'!O56,0)/1000 ->  | S56: 5 | W56: =IF(COUNTIF(#REF!,'Состав блюд'!$S$50),SUMIF(#REF!,'Состав блюд'!$S$50,#REF!)*SUMIF(#REF!,'Состав блюд'!$S$50,#REF!)*'Состав блюд'!U56,0)/1000 ->  | Y56: 5 | AC56: =IF(COUNTIF(#REF!,'Состав блюд'!$Y$50),SUMIF(#REF!,'Состав блюд'!$Y$50,#REF!)*SUMIF(#REF!,'Состав блюд'!$Y$50,#REF!)*'Состав блюд'!AA56,0)/1000 -> 
A57: 6 | D57: =COUNTIF(A$2:A58,"№") -> 4 | E57: =IF(COUNTIF(#REF!,'Состав блюд'!$A$50),SUMIF(#REF!,'Состав блюд'!$A$50,#REF!)*SUMIF(#REF!,'Состав блюд'!$A$50,#REF!)*'Состав блюд'!C57,0)/1000 ->  | G57: 6 | J57: =COUNTIF(G$2:G58,"№") -> 4 | K57: =IF(COUNTIF(#REF!,'Состав блюд'!$G$50),SUMIF(#REF!,'Состав блюд'!$G$50,#REF!)*SUMIF(#REF!,'Состав блюд'!$G$50,#REF!)*'Состав блюд'!I57,0)/1000 ->  | M57: 6 | P57: =COUNTIF(M$2:M58,"№") -> 4 | Q57: =IF(COUNTIF(#REF!,'Состав блюд'!$M$50),SUMIF(#REF!,'Состав блюд'!$M$50,#REF!)*SUMIF(#REF!,'Состав блюд'!$M$50,#REF!)*'Состав блюд'!O57,0)/1000 ->  | S57: 6 | V57: =COUNTIF(S$2:S58,"№") -> 4 | W57: =IF(COUNTIF(#REF!,'Состав блюд'!$S$50),SUMIF(#REF!,'Состав блюд'!$S$50,#REF!)*SUMIF(#REF!,'Состав блюд'!$S$50,#REF!)*'Состав блюд'!U57,0)/1000 ->  | Y57: 6 | AB57: =COUNTIF(Y$2:Y58,"№") -> 4 | AC57: =IF(COUNTIF(#REF!,'Состав блюд'!$Y$50),SUMIF(#REF!,'Состав блюд'!$Y$50,#REF!)*SUMIF(#REF!,'Состав блюд'!$Y$50,#REF!)*'Состав блюд'!AA57,0)/1000 -> 
A58: 7 | D58: =COUNTIF(A$2:A59,"№") -> 4 | E58: =IF(COUNTIF(#REF!,'Состав блюд'!$A$50),SUMIF(#REF!,'Состав блюд'!$A$50,#REF!)*SUMIF(#REF!,'Состав блюд'!$A$50,#REF!)*'Состав блюд'!C58,0)/1000 ->  | G58: 7 | J58: =COUNTIF(G$2:G59,"№") -> 4 | K58: =IF(COUNTIF(#REF!,'Состав блюд'!$G$50),SUMIF(#REF!,'Состав блюд'!$G$50,#REF!)*SUMIF(#REF!,'Состав блюд'!$G$50,#REF!)*'Состав блюд'!I58,0)/1000 ->  | M58: 7 | P58: =COUNTIF(M$2:M59,"№") -> 4 | Q58: =IF(COUNTIF(#REF!,'Состав блюд'!$M$50),SUMIF(#REF!,'Состав блюд'!$M$50,#REF!)*SUMIF(#REF!,'Состав блюд'!$M$50,#REF!)*'Состав блюд'!O58,0)/1000 ->  | S58: 7 | V58: =COUNTIF(S$2:S59,"№") -> 4 | W58: =IF(COUNTIF(#REF!,'Состав блюд'!$S$50),SUMIF(#REF!,'Состав блюд'!$S$50,#REF!)*SUMIF(#REF!,'Состав блюд'!$S$50,#REF!)*'Состав блюд'!U58,0)/1000 ->  | Y58: 7 | AB58: =COUNTIF(Y$2:Y59,"№") -> 4 | AC58: =IF(COUNTIF(#REF!,'Состав блюд'!$Y$50),SUMIF(#REF!,'Состав блюд'!$Y$50,#REF!)*SUMIF(#REF!,'Состав блюд'!$Y$50,#REF!)*'Состав блюд'!AA58,0)/1000 -> 
A59: 8 | D59: =COUNTIF(A$2:A60,"№") -> 4 | E59: =IF(COUNTIF(#REF!,'Состав блюд'!$A$50),SUMIF(#REF!,'Состав блюд'!$A$50,#REF!)*SUMIF(#REF!,'Состав блюд'!$A$50,#REF!)*'Состав блюд'!C59,0)/1000 ->  | G59: 8 | J59: =COUNTIF(G$2:G60,"№") -> 4 | K59: =IF(COUNTIF(#REF!,'Состав блюд'!$G$50),SUMIF(#REF!,'Состав блюд'!$G$50,#REF!)*SUMIF(#REF!,'Состав блюд'!$G$50,#REF!)*'Состав блюд'!I59,0)/1000 ->  | M59: 8 | P59: =COUNTIF(M$2:M60,"№") -> 4 | Q59: =IF(COUNTIF(#REF!,'Состав блюд'!$M$50),SUMIF(#REF!,'Состав блюд'!$M$50,#REF!)*SUMIF(#REF!,'Состав блюд'!$M$50,#REF!)*'Состав блюд'!O59,0)/1000 ->  | S59: 8 | V59: =COUNTIF(S$2:S60,"№") -> 4 | W59: =IF(COUNTIF(#REF!,'Состав блюд'!$S$50),SUMIF(#REF!,'Состав блюд'!$S$50,#REF!)*SUMIF(#REF!,'Состав блюд'!$S$50,#REF!)*'Состав блюд'!U59,0)/1000 ->  | Y59: 8 | AB59: =COUNTIF(Y$2:Y60,"№") -> 4 | AC59: =IF(COUNTIF(#REF!,'Состав блюд'!$Y$50),SUMIF(#REF!,'Состав блюд'!$Y$50,#REF!)*SUMIF(#REF!,'Состав блюд'!$Y$50,#REF!)*'Состав блюд'!AA59,0)/1000 -> 
A60: 9 | D60: =COUNTIF(A$2:A61,"№") -> 4 | E60: =IF(COUNTIF(#REF!,'Состав блюд'!$A$50),SUMIF(#REF!,'Состав блюд'!$A$50,#REF!)*SUMIF(#REF!,'Состав блюд'!$A$50,#REF!)*'Состав блюд'!C60,0)/1000 ->  | G60: 9 | J60: =COUNTIF(G$2:G61,"№") -> 4 | K60: =IF(COUNTIF(#REF!,'Состав блюд'!$G$50),SUMIF(#REF!,'Состав блюд'!$G$50,#REF!)*SUMIF(#REF!,'Состав блюд'!$G$50,#REF!)*'Состав блюд'!I60,0)/1000 ->  | M60: 9 | P60: =COUNTIF(M$2:M61,"№") -> 4 | Q60: =IF(COUNTIF(#REF!,'Состав блюд'!$M$50),SUMIF(#REF!,'Состав блюд'!$M$50,#REF!)*SUMIF(#REF!,'Состав блюд'!$M$50,#REF!)*'Состав блюд'!O60,0)/1000 ->  | S60: 9 | V60: =COUNTIF(S$2:S61,"№") -> 4 | W60: =IF(COUNTIF(#REF!,'Состав блюд'!$S$50),SUMIF(#REF!,'Состав блюд'!$S$50,#REF!)*SUMIF(#REF!,'Состав блюд'!$S$50,#REF!)*'Состав блюд'!U60,0)/1000 ->  | Y60: 9 | AB60: =COUNTIF(Y$2:Y61,"№") -> 4 | AC60: =IF(COUNTIF(#REF!,'Состав блюд'!$Y$50),SUMIF(#REF!,'Состав блюд'!$Y$50,#REF!)*SUMIF(#REF!,'Состав блюд'!$Y$50,#REF!)*'Состав блюд'!AA60,0)/1000 -> 
A61: 10 | E61: =IF(COUNTIF(#REF!,'Состав блюд'!$A$50),SUMIF(#REF!,'Состав блюд'!$A$50,#REF!)*SUMIF(#REF!,'Состав блюд'!$A$50,#REF!)*'Состав блюд'!C61,0)/1000 ->  | G61: 10 | K61: =IF(COUNTIF(#REF!,'Состав блюд'!$G$50),SUMIF(#REF!,'Состав блюд'!$G$50,#REF!)*SUMIF(#REF!,'Состав блюд'!$G$50,#REF!)*'Состав блюд'!I61,0)/1000 ->  | M61: 10 | Q61: =IF(COUNTIF(#REF!,'Состав блюд'!$M$50),SUMIF(#REF!,'Состав блюд'!$M$50,#REF!)*SUMIF(#REF!,'Состав блюд'!$M$50,#REF!)*'Состав блюд'!O61,0)/1000 ->  | S61: 10 | W61: =IF(COUNTIF(#REF!,'Состав блюд'!$S$50),SUMIF(#REF!,'Состав блюд'!$S$50,#REF!)*SUMIF(#REF!,'Состав блюд'!$S$50,#REF!)*'Состав блюд'!U61,0)/1000 ->  | Y61: 10 | AC61: =IF(COUNTIF(#REF!,'Состав блюд'!$Y$50),SUMIF(#REF!,'Состав блюд'!$Y$50,#REF!)*SUMIF(#REF!,'Состав блюд'!$Y$50,#REF!)*'Состав блюд'!AA61,0)/1000 -> 
A62: 11 | E62: =IF(COUNTIF(#REF!,'Состав блюд'!$A$50),SUMIF(#REF!,'Состав блюд'!$A$50,#REF!)*SUMIF(#REF!,'Состав блюд'!$A$50,#REF!)*'Состав блюд'!C62,0)/1000 ->  | G62: 11 | K62: =IF(COUNTIF(#REF!,'Состав блюд'!$G$50),SUMIF(#REF!,'Состав блюд'!$G$50,#REF!)*SUMIF(#REF!,'Состав блюд'!$G$50,#REF!)*'Состав блюд'!I62,0)/1000 ->  | M62: 11 | Q62: =IF(COUNTIF(#REF!,'Состав блюд'!$M$50),SUMIF(#REF!,'Состав блюд'!$M$50,#REF!)*SUMIF(#REF!,'Состав блюд'!$M$50,#REF!)*'Состав блюд'!O62,0)/1000 ->  | S62: 11 | W62: =IF(COUNTIF(#REF!,'Состав блюд'!$S$50),SUMIF(#REF!,'Состав блюд'!$S$50,#REF!)*SUMIF(#REF!,'Состав блюд'!$S$50,#REF!)*'Состав блюд'!U62,0)/1000 ->  | Y62: 11 | AC62: =IF(COUNTIF(#REF!,'Состав блюд'!$Y$50),SUMIF(#REF!,'Состав блюд'!$Y$50,#REF!)*SUMIF(#REF!,'Состав блюд'!$Y$50,#REF!)*'Состав блюд'!AA62,0)/1000 -> 
D64: =COUNTIF(A$2:A65,"№") -> 5 | J64: =COUNTIF(G$2:G65,"№") -> 5 | P64: =COUNTIF(M$2:M65,"№") -> 5 | V64: =COUNTIF(S$2:S65,"№") -> 5 | AB64: =COUNTIF(Y$2:Y65,"№") -> 5
A65: № | B65: Наименование продукта | C65: Норма, г | D65: =COUNTIF(A$2:A66,"№") -> 5 | G65: № | H65: Наименование продукта | I65: Норма, г | J65: =COUNTIF(G$2:G66,"№") -> 5 | M65: № | N65: Наименование продукта | O65: Норма, г | P65: =COUNTIF(M$2:M66,"№") -> 5 | S65: № | T65: Наименование продукта | U65: Норма, г | V65: =COUNTIF(S$2:S66,"№") -> 5 | Y65: № | Z65: Наименование продукта | AA65: Норма, г | AB65: =COUNTIF(Y$2:Y66,"№") -> 5
A66: 1 | D66: =COUNTIF(A$2:A67,"№") -> 5 | E66: =IF(COUNTIF(#REF!,'Состав блюд'!$A$64),SUMIF(#REF!,'Состав блюд'!$A$64,#REF!)*SUMIF(#REF!,'Состав блюд'!$A$64,#REF!)*'Состав блюд'!C66,0)/1000 ->  | G66: 1 | J66: =COUNTIF(G$2:G67,"№") -> 5 | K66: =IF(COUNTIF(#REF!,'Состав блюд'!$G$64),SUMIF(#REF!,'Состав блюд'!$G$64,#REF!)*SUMIF(#REF!,'Состав блюд'!$G$64,#REF!)*'Состав блюд'!I66,0)/1000 ->  | M66: 1 | P66: =COUNTIF(M$2:M67,"№") -> 5 | Q66: =IF(COUNTIF(#REF!,'Состав блюд'!$M$64),SUMIF(#REF!,'Состав блюд'!$M$64,#REF!)*SUMIF(#REF!,'Состав блюд'!$M$64,#REF!)*'Состав блюд'!O66,0)/1000 ->  | S66: 1 | V66: =COUNTIF(S$2:S67,"№") -> 5 | W66: =IF(COUNTIF(#REF!,'Состав блюд'!$S$64),SUMIF(#REF!,'Состав блюд'!$S$64,#REF!)*SUMIF(#REF!,'Состав блюд'!$S$64,#REF!)*'Состав блюд'!U66,0)/1000 ->  | Y66: 1 | AB66: =COUNTIF(Y$2:Y67,"№") -> 5 | AC66: =IF(COUNTIF(#REF!,'Состав блюд'!$Y$64),SUMIF(#REF!,'Состав блюд'!$Y$64,#REF!)*SUMIF(#REF!,'Состав блюд'!$Y$64,#REF!)*'Состав блюд'!AA66,0)/1000 -> 
A67: 2 | D67: =COUNTIF(A$2:A68,"№") -> 5 | E67: =IF(COUNTIF(#REF!,'Состав блюд'!$A$64),SUMIF(#REF!,'Состав блюд'!$A$64,#REF!)*SUMIF(#REF!,'Состав блюд'!$A$64,#REF!)*'Состав блюд'!C67,0)/1000 ->  | G67: 2 | J67: =COUNTIF(G$2:G68,"№") -> 5 | K67: =IF(COUNTIF(#REF!,'Состав блюд'!$G$64),SUMIF(#REF!,'Состав блюд'!$G$64,#REF!)*SUMIF(#REF!,'Состав блюд'!$G$64,#REF!)*'Состав блюд'!I67,0)/1000 ->  | M67: 2 | P67: =COUNTIF(M$2:M68,"№") -> 5 | Q67: =IF(COUNTIF(#REF!,'Состав блюд'!$M$64),SUMIF(#REF!,'Состав блюд'!$M$64,#REF!)*SUMIF(#REF!,'Состав блюд'!$M$64,#REF!)*'Состав блюд'!O67,0)/1000 ->  | S67: 2 | V67: =COUNTIF(S$2:S68,"№") -> 5 | W67: =IF(COUNTIF(#REF!,'Состав блюд'!$S$64),SUMIF(#REF!,'Состав блюд'!$S$64,#REF!)*SUMIF(#REF!,'Состав блюд'!$S$64,#REF!)*'Состав блюд'!U67,0)/1000 ->  | Y67: 2 | AB67: =COUNTIF(Y$2:Y68,"№") -> 5 | AC67: =IF(COUNTIF(#REF!,'Состав блюд'!$Y$64),SUMIF(#REF!,'Состав блюд'!$Y$64,#REF!)*SUMIF(#REF!,'Состав блюд'!$Y$64,#REF!)*'Состав блюд'!AA67,0)/1000 -> 
A68: 3 | D68: =COUNTIF(A$2:A69,"№") -> 5 | E68: =IF(COUNTIF(#REF!,'Состав блюд'!$A$64),SUMIF(#REF!,'Состав блюд'!$A$64,#REF!)*SUMIF(#REF!,'Состав блюд'!$A$64,#REF!)*'Состав блюд'!C68,0)/1000 ->  | G68: 3 | J68: =COUNTIF(G$2:G69,"№") -> 5 | K68: =IF(COUNTIF(#REF!,'Состав блюд'!$G$64),SUMIF(#REF!,'Состав блюд'!$G$64,#REF!)*SUMIF(#REF!,'Состав блюд'!$G$64,#REF!)*'Состав блюд'!I68,0)/1000 ->  | M68: 3 | P68: =COUNTIF(M$2:M69,"№") -> 5 | Q68: =IF(COUNTIF(#REF!,'Состав блюд'!$M$64),SUMIF(#REF!,'Состав блюд'!$M$64,#REF!)*SUMIF(#REF!,'Состав блюд'!$M$64,#REF!)*'Состав блюд'!O68,0)/1000 ->  | S68: 3 | V68: =COUNTIF(S$2:S69,"№") -> 5 | W68: =IF(COUNTIF(#REF!,'Состав блюд'!$S$64),SUMIF(#REF!,'Состав блюд'!$S$64,#REF!)*SUMIF(#REF!,'Состав блюд'!$S$64,#REF!)*'Состав блюд'!U68,0)/1000 ->  | Y68: 3 | AB68: =COUNTIF(Y$2:Y69,"№") -> 5 | AC68: =IF(COUNTIF(#REF!,'Состав блюд'!$Y$64),SUMIF(#REF!,'Состав блюд'!$Y$64,#REF!)*SUMIF(#REF!,'Состав блюд'!$Y$64,#REF!)*'Состав блюд'!AA68,0)/1000 -> 
A69: 4 | D69: =COUNTIF(A$2:A70,"№") -> 5 | E69: =IF(COUNTIF(#REF!,'Состав блюд'!$A$64),SUMIF(#REF!,'Состав блюд'!$A$64,#REF!)*SUMIF(#REF!,'Состав блюд'!$A$64,#REF!)*'Состав блюд'!C69,0)/1000 ->  | G69: 4 | J69: =COUNTIF(G$2:G70,"№") -> 5 | K69: =IF(COUNTIF(#REF!,'Состав блюд'!$G$64),SUMIF(#REF!,'Состав блюд'!$G$64,#REF!)*SUMIF(#REF!,'Состав блюд'!$G$64,#REF!)*'Состав блюд'!I69,0)/1000 ->  | M69: 4 | P69: =COUNTIF(M$2:M70,"№") -> 5 | Q69: =IF(COUNTIF(#REF!,'Состав блюд'!$M$64),SUMIF(#REF!,'Состав блюд'!$M$64,#REF!)*SUMIF(#REF!,'Состав блюд'!$M$64,#REF!)*'Состав блюд'!O69,0)/1000 ->  | S69: 4 | V69: =COUNTIF(S$2:S70,"№") -> 5 | W69: =IF(COUNTIF(#REF!,'Состав блюд'!$S$64),SUMIF(#REF!,'Состав блюд'!$S$64,#REF!)*SUMIF(#REF!,'Состав блюд'!$S$64,#REF!)*'Состав блюд'!U69,0)/1000 ->  | Y69: 4 | AB69: =COUNTIF(Y$2:Y70,"№") -> 5 | AC69: =IF(COUNTIF(#REF!,'Состав блюд'!$Y$64),SUMIF(#REF!,'Состав блюд'!$Y$64,#REF!)*SUMIF(#REF!,'Состав блюд'!$Y$64,#REF!)*'Состав блюд'!AA69,0)/1000 -> 
A70: 5 | D70: =COUNTIF(A$2:A71,"№") -> 5 | E70: =IF(COUNTIF(#REF!,'Состав блюд'!$A$64),SUMIF(#REF!,'Состав блюд'!$A$64,#REF!)*SUMIF(#REF!,'Состав блюд'!$A$64,#REF!)*'Состав блюд'!C70,0)/1000 ->  | G70: 5 | J70: =COUNTIF(G$2:G71,"№") -> 5 | K70: =IF(COUNTIF(#REF!,'Состав блюд'!$G$64),SUMIF(#REF!,'Состав блюд'!$G$64,#REF!)*SUMIF(#REF!,'Состав блюд'!$G$64,#REF!)*'Состав блюд'!I70,0)/1000 ->  | M70: 5 | P70: =COUNTIF(M$2:M71,"№") -> 5 | Q70: =IF(COUNTIF(#REF!,'Состав блюд'!$M$64),SUMIF(#REF!,'Состав блюд'!$M$64,#REF!)*SUMIF(#REF!,'Состав блюд'!$M$64,#REF!)*'Состав блюд'!O70,0)/1000 ->  | S70: 5 | V70: =COUNTIF(S$2:S71,"№") -> 5 | W70: =IF(COUNTIF(#REF!,'Состав блюд'!$S$64),SUMIF(#REF!,'Состав блюд'!$S$64,#REF!)*SUMIF(#REF!,'Состав блюд'!$S$64,#REF!)*'Состав блюд'!U70,0)/1000 ->  | Y70: 5 | AB70: =COUNTIF(Y$2:Y71,"№") -> 5 | AC70: =IF(COUNTIF(#REF!,'Состав блюд'!$Y$64),SUMIF(#REF!,'Состав блюд'!$Y$64,#REF!)*SUMIF(#REF!,'Состав блюд'!$Y$64,#REF!)*'Состав блюд'!AA70,0)/1000 -> 
A71: 6 | D71: =COUNTIF(A$2:A72,"№") -> 5 | E71: =IF(COUNTIF(#REF!,'Состав блюд'!$A$64),SUMIF(#REF!,'Состав блюд'!$A$64,#REF!)*SUMIF(#REF!,'Состав блюд'!$A$64,#REF!)*'Состав блюд'!C71,0)/1000 ->  | G71: 6 | J71: =COUNTIF(G$2:G72,"№") -> 5 | K71: =IF(COUNTIF(#REF!,'Состав блюд'!$G$64),SUMIF(#REF!,'Состав блюд'!$G$64,#REF!)*SUMIF(#REF!,'Состав блюд'!$G$64,#REF!)*'Состав блюд'!I71,0)/1000 ->  | M71: 6 | P71: =COUNTIF(M$2:M72,"№") -> 5 | Q71: =IF(COUNTIF(#REF!,'Состав блюд'!$M$64),SUMIF(#REF!,'Состав блюд'!$M$64,#REF!)*SUMIF(#REF!,'Состав блюд'!$M$64,#REF!)*'Состав блюд'!O71,0)/1000 ->  | S71: 6 | V71: =COUNTIF(S$2:S72,"№") -> 5 | W71: =IF(COUNTIF(#REF!,'Состав блюд'!$S$64),SUMIF(#REF!,'Состав блюд'!$S$64,#REF!)*SUMIF(#REF!,'Состав блюд'!$S$64,#REF!)*'Состав блюд'!U71,0)/1000 ->  | Y71: 6 | AB71: =COUNTIF(Y$2:Y72,"№") -> 5 | AC71: =IF(COUNTIF(#REF!,'Состав блюд'!$Y$64),SUMIF(#REF!,'Состав блюд'!$Y$64,#REF!)*SUMIF(#REF!,'Состав блюд'!$Y$64,#REF!)*'Состав блюд'!AA71,0)/1000 -> 
A72: 7 | D72: =COUNTIF(A$2:A73,"№") -> 5 | E72: =IF(COUNTIF(#REF!,'Состав блюд'!$A$64),SUMIF(#REF!,'Состав блюд'!$A$64,#REF!)*SUMIF(#REF!,'Состав блюд'!$A$64,#REF!)*'Состав блюд'!C72,0)/1000 ->  | G72: 7 | J72: =COUNTIF(G$2:G73,"№") -> 5 | K72: =IF(COUNTIF(#REF!,'Состав блюд'!$G$64),SUMIF(#REF!,'Состав блюд'!$G$64,#REF!)*SUMIF(#REF!,'Состав блюд'!$G$64,#REF!)*'Состав блюд'!I72,0)/1000 ->  | M72: 7 | P72: =COUNTIF(M$2:M73,"№") -> 5 | Q72: =IF(COUNTIF(#REF!,'Состав блюд'!$M$64),SUMIF(#REF!,'Состав блюд'!$M$64,#REF!)*SUMIF(#REF!,'Состав блюд'!$M$64,#REF!)*'Состав блюд'!O72,0)/1000 ->  | S72: 7 | V72: =COUNTIF(S$2:S73,"№") -> 5 | W72: =IF(COUNTIF(#REF!,'Состав блюд'!$S$64),SUMIF(#REF!,'Состав блюд'!$S$64,#REF!)*SUMIF(#REF!,'Состав блюд'!$S$64,#REF!)*'Состав блюд'!U72,0)/1000 ->  | Y72: 7 | AB72: =COUNTIF(Y$2:Y73,"№") -> 5 | AC72: =IF(COUNTIF(#REF!,'Состав блюд'!$Y$64),SUMIF(#REF!,'Состав блюд'!$Y$64,#REF!)*SUMIF(#REF!,'Состав блюд'!$Y$64,#REF!)*'Состав блюд'!AA72,0)/1000 -> 
A73: 8 | D73: =COUNTIF(A$2:A74,"№") -> 5 | E73: =IF(COUNTIF(#REF!,'Состав блюд'!$A$64),SUMIF(#REF!,'Состав блюд'!$A$64,#REF!)*SUMIF(#REF!,'Состав блюд'!$A$64,#REF!)*'Состав блюд'!C73,0)/1000 ->  | G73: 8 | J73: =COUNTIF(G$2:G74,"№") -> 5 | K73: =IF(COUNTIF(#REF!,'Состав блюд'!$G$64),SUMIF(#REF!,'Состав блюд'!$G$64,#REF!)*SUMIF(#REF!,'Состав блюд'!$G$64,#REF!)*'Состав блюд'!I73,0)/1000 ->  | M73: 8 | P73: =COUNTIF(M$2:M74,"№") -> 5 | Q73: =IF(COUNTIF(#REF!,'Состав блюд'!$M$64),SUMIF(#REF!,'Состав блюд'!$M$64,#REF!)*SUMIF(#REF!,'Состав блюд'!$M$64,#REF!)*'Состав блюд'!O73,0)/1000 ->  | S73: 8 | V73: =COUNTIF(S$2:S74,"№") -> 5 | W73: =IF(COUNTIF(#REF!,'Состав блюд'!$S$64),SUMIF(#REF!,'Состав блюд'!$S$64,#REF!)*SUMIF(#REF!,'Состав блюд'!$S$64,#REF!)*'Состав блюд'!U73,0)/1000 ->  | Y73: 8 | AB73: =COUNTIF(Y$2:Y74,"№") -> 5 | AC73: =IF(COUNTIF(#REF!,'Состав блюд'!$Y$64),SUMIF(#REF!,'Состав блюд'!$Y$64,#REF!)*SUMIF(#REF!,'Состав блюд'!$Y$64,#REF!)*'Состав блюд'!AA73,0)/1000 -> 
A74: 9 | D74: =COUNTIF(A$2:A75,"№") -> 5 | E74: =IF(COUNTIF(#REF!,'Состав блюд'!$A$64),SUMIF(#REF!,'Состав блюд'!$A$64,#REF!)*SUMIF(#REF!,'Состав блюд'!$A$64,#REF!)*'Состав блюд'!C74,0)/1000 ->  | G74: 9 | J74: =COUNTIF(G$2:G75,"№") -> 5 | K74: =IF(COUNTIF(#REF!,'Состав блюд'!$G$64),SUMIF(#REF!,'Состав блюд'!$G$64,#REF!)*SUMIF(#REF!,'Состав блюд'!$G$64,#REF!)*'Состав блюд'!I74,0)/1000 ->  | M74: 9 | P74: =COUNTIF(M$2:M75,"№") -> 5 | Q74: =IF(COUNTIF(#REF!,'Состав блюд'!$M$64),SUMIF(#REF!,'Состав блюд'!$M$64,#REF!)*SUMIF(#REF!,'Состав блюд'!$M$64,#REF!)*'Состав блюд'!O74,0)/1000 ->  | S74: 9 | V74: =COUNTIF(S$2:S75,"№") -> 5 | W74: =IF(COUNTIF(#REF!,'Состав блюд'!$S$64),SUMIF(#REF!,'Состав блюд'!$S$64,#REF!)*SUMIF(#REF!,'Состав блюд'!$S$64,#REF!)*'Состав блюд'!U74,0)/1000 ->  | Y74: 9 | AB74: =COUNTIF(Y$2:Y75,"№") -> 5 | AC74: =IF(COUNTIF(#REF!,'Состав блюд'!$Y$64),SUMIF(#REF!,'Состав блюд'!$Y$64,#REF!)*SUMIF(#REF!,'Состав блюд'!$Y$64,#REF!)*'Состав блюд'!AA74,0)/1000 -> 
A75: 10 | D75: =COUNTIF(A$2:A76,"№") -> 5 | E75: =IF(COUNTIF(#REF!,'Состав блюд'!$A$64),SUMIF(#REF!,'Состав блюд'!$A$64,#REF!)*SUMIF(#REF!,'Состав блюд'!$A$64,#REF!)*'Состав блюд'!C75,0)/1000 ->  | G75: 10 | J75: =COUNTIF(G$2:G76,"№") -> 5 | K75: =IF(COUNTIF(#REF!,'Состав блюд'!$G$64),SUMIF(#REF!,'Состав блюд'!$G$64,#REF!)*SUMIF(#REF!,'Состав блюд'!$G$64,#REF!)*'Состав блюд'!I75,0)/1000 ->  | M75: 10 | P75: =COUNTIF(M$2:M76,"№") -> 5 | Q75: =IF(COUNTIF(#REF!,'Состав блюд'!$M$64),SUMIF(#REF!,'Состав блюд'!$M$64,#REF!)*SUMIF(#REF!,'Состав блюд'!$M$64,#REF!)*'Состав блюд'!O75,0)/1000 ->  | S75: 10 | V75: =COUNTIF(S$2:S76,"№") -> 5 | W75: =IF(COUNTIF(#REF!,'Состав блюд'!$S$64),SUMIF(#REF!,'Состав блюд'!$S$64,#REF!)*SUMIF(#REF!,'Состав блюд'!$S$64,#REF!)*'Состав блюд'!U75,0)/1000 ->  | Y75: 10 | AB75: =COUNTIF(Y$2:Y76,"№") -> 5 | AC75: =IF(COUNTIF(#REF!,'Состав блюд'!$Y$64),SUMIF(#REF!,'Состав блюд'!$Y$64,#REF!)*SUMIF(#REF!,'Состав блюд'!$Y$64,#REF!)*'Состав блюд'!AA75,0)/1000 -> 
A76: 11 | D76: =COUNTIF(A$2:A77,"№") -> 5 | E76: =IF(COUNTIF(#REF!,'Состав блюд'!$A$64),SUMIF(#REF!,'Состав блюд'!$A$64,#REF!)*SUMIF(#REF!,'Состав блюд'!$A$64,#REF!)*'Состав блюд'!C76,0)/1000 ->  | G76: 11 | J76: =COUNTIF(G$2:G77,"№") -> 5 | K76: =IF(COUNTIF(#REF!,'Состав блюд'!$G$64),SUMIF(#REF!,'Состав блюд'!$G$64,#REF!)*SUMIF(#REF!,'Состав блюд'!$G$64,#REF!)*'Состав блюд'!I76,0)/1000 ->  | M76: 11 | P76: =COUNTIF(M$2:M77,"№") -> 5 | Q76: =IF(COUNTIF(#REF!,'Состав блюд'!$M$64),SUMIF(#REF!,'Состав блюд'!$M$64,#REF!)*SUMIF(#REF!,'Состав блюд'!$M$64,#REF!)*'Состав блюд'!O76,0)/1000 ->  | S76: 11 | V76: =COUNTIF(S$2:S77,"№") -> 5 | W76: =IF(COUNTIF(#REF!,'Состав блюд'!$S$64),SUMIF(#REF!,'Состав блюд'!$S$64,#REF!)*SUMIF(#REF!,'Состав блюд'!$S$64,#REF!)*'Состав блюд'!U76,0)/1000 ->  | Y76: 11 | AB76: =COUNTIF(Y$2:Y77,"№") -> 5 | AC76: =IF(COUNTIF(#REF!,'Состав блюд'!$Y$64),SUMIF(#REF!,'Состав блюд'!$Y$64,#REF!)*SUMIF(#REF!,'Состав блюд'!$Y$64,#REF!)*'Состав блюд'!AA76,0)/1000 -> 
A77: 12 | D77: =COUNTIF(A$2:A78,"№") -> 5 | E77: =IF(COUNTIF(#REF!,'Состав блюд'!$A$64),SUMIF(#REF!,'Состав блюд'!$A$64,#REF!)*SUMIF(#REF!,'Состав блюд'!$A$64,#REF!)*'Состав блюд'!C77,0)/1000 ->  | G77: 12 | J77: =COUNTIF(G$2:G78,"№") -> 5 | K77: =IF(COUNTIF(#REF!,'Состав блюд'!$G$64),SUMIF(#REF!,'Состав блюд'!$G$64,#REF!)*SUMIF(#REF!,'Состав блюд'!$G$64,#REF!)*'Состав блюд'!I77,0)/1000 ->  | M77: 12 | P77: =COUNTIF(M$2:M78,"№") -> 5 | Q77: =IF(COUNTIF(#REF!,'Состав блюд'!$M$64),SUMIF(#REF!,'Состав блюд'!$M$64,#REF!)*SUMIF(#REF!,'Состав блюд'!$M$64,#REF!)*'Состав блюд'!O77,0)/1000 ->  | S77: 12 | V77: =COUNTIF(S$2:S78,"№") -> 5 | W77: =IF(COUNTIF(#REF!,'Состав блюд'!$S$64),SUMIF(#REF!,'Состав блюд'!$S$64,#REF!)*SUMIF(#REF!,'Состав блюд'!$S$64,#REF!)*'Состав блюд'!U77,0)/1000 ->  | Y77: 12 | AB77: =COUNTIF(Y$2:Y78,"№") -> 5 | AC77: =IF(COUNTIF(#REF!,'Состав блюд'!$Y$64),SUMIF(#REF!,'Состав блюд'!$Y$64,#REF!)*SUMIF(#REF!,'Состав блюд'!$Y$64,#REF!)*'Состав блюд'!AA77,0)/1000 -> 
D79: =COUNTIF(A$2:A80,"№") -> 6 | J79: =COUNTIF(G$2:G80,"№") -> 6 | P79: =COUNTIF(M$2:M80,"№") -> 6 | V79: =COUNTIF(S$2:S80,"№") -> 6 | AB79: =COUNTIF(Y$2:Y80,"№") -> 6
A80: № | B80: Наименование продукта | C80: Норма, г | D80: =COUNTIF(A$2:A81,"№") -> 6 | G80: № | H80: Наименование продукта | I80: Норма, г | J80: =COUNTIF(G$2:G81,"№") -> 6 | M80: № | N80: Наименование продукта | O80: Норма, г | P80: =COUNTIF(M$2:M81,"№") -> 6 | S80: № | T80: Наименование продукта | U80: Норма, г | V80: =COUNTIF(S$2:S81,"№") -> 6 | Y80: № | Z80: Наименование продукта | AA80: Норма, г | AB80: =COUNTIF(Y$2:Y81,"№") -> 6
A81: 1 | D81: =COUNTIF(A$2:A82,"№") -> 6 | E81: =IF(COUNTIF(#REF!,'Состав блюд'!$A$79),SUMIF(#REF!,'Состав блюд'!$A$79,#REF!)*SUMIF(#REF!,'Состав блюд'!$A$79,#REF!)*'Состав блюд'!C81,0)/1000 ->  | G81: 1 | J81: =COUNTIF(G$2:G82,"№") -> 6 | K81: =IF(COUNTIF(#REF!,'Состав блюд'!$G$79),SUMIF(#REF!,'Состав блюд'!$G$79,#REF!)*SUMIF(#REF!,'Состав блюд'!$G$79,#REF!)*'Состав блюд'!I81,0)/1000 ->  | M81: 1 | P81: =COUNTIF(M$2:M82,"№") -> 6 | Q81: =IF(COUNTIF(#REF!,'Состав блюд'!$M$79),SUMIF(#REF!,'Состав блюд'!$M$79,#REF!)*SUMIF(#REF!,'Состав блюд'!$M$79,#REF!)*'Состав блюд'!O81,0)/1000 ->  | S81: 1 | V81: =COUNTIF(S$2:S82,"№") -> 6 | W81: =IF(COUNTIF(#REF!,'Состав блюд'!$S$79),SUMIF(#REF!,'Состав блюд'!$S$79,#REF!)*SUMIF(#REF!,'Состав блюд'!$S$79,#REF!)*'Состав блюд'!U81,0)/1000 ->  | Y81: 1 | AB81: =COUNTIF(Y$2:Y82,"№") -> 6 | AC81: =IF(COUNTIF(#REF!,'Состав блюд'!$Y$79),SUMIF(#REF!,'Состав блюд'!$Y$79,#REF!)*SUMIF(#REF!,'Состав блюд'!$Y$79,#REF!)*'Состав блюд'!AA81,0)/1000 -> 
A82: 2 | D82: =COUNTIF(A$2:A83,"№") -> 6 | E82: =IF(COUNTIF(#REF!,'Состав блюд'!$A$79),SUMIF(#REF!,'Состав блюд'!$A$79,#REF!)*SUMIF(#REF!,'Состав блюд'!$A$79,#REF!)*'Состав блюд'!C82,0)/1000 ->  | G82: 2 | J82: =COUNTIF(G$2:G83,"№") -> 6 | K82: =IF(COUNTIF(#REF!,'Состав блюд'!$G$79),SUMIF(#REF!,'Состав блюд'!$G$79,#REF!)*SUMIF(#REF!,'Состав блюд'!$G$79,#REF!)*'Состав блюд'!I82,0)/1000 ->  | M82: 2 | P82: =COUNTIF(M$2:M83,"№") -> 6 | Q82: =IF(COUNTIF(#REF!,'Состав блюд'!$M$79),SUMIF(#REF!,'Состав блюд'!$M$79,#REF!)*SUMIF(#REF!,'Состав блюд'!$M$79,#REF!)*'Состав блюд'!O82,0)/1000 ->  | S82: 2 | V82: =COUNTIF(S$2:S83,"№") -> 6 | W82: =IF(COUNTIF(#REF!,'Состав блюд'!$S$79),SUMIF(#REF!,'Состав блюд'!$S$79,#REF!)*SUMIF(#REF!,'Состав блюд'!$S$79,#REF!)*'Состав блюд'!U82,0)/1000 ->  | Y82: 2 | AB82: =COUNTIF(Y$2:Y83,"№") -> 6 | AC82: =IF(COUNTIF(#REF!,'Состав блюд'!$Y$79),SUMIF(#REF!,'Состав блюд'!$Y$79,#REF!)*SUMIF(#REF!,'Состав блюд'!$Y$79,#REF!)*'Состав блюд'!AA82,0)/1000 -> 
A83: 3 | D83: =COUNTIF(A$2:A84,"№") -> 6 | E83: =IF(COUNTIF(#REF!,'Состав блюд'!$A$79),SUMIF(#REF!,'Состав блюд'!$A$79,#REF!)*SUMIF(#REF!,'Состав блюд'!$A$79,#REF!)*'Состав блюд'!C83,0)/1000 ->  | G83: 3 | J83: =COUNTIF(G$2:G84,"№") -> 6 | K83: =IF(COUNTIF(#REF!,'Состав блюд'!$G$79),SUMIF(#REF!,'Состав блюд'!$G$79,#REF!)*SUMIF(#REF!,'Состав блюд'!$G$79,#REF!)*'Состав блюд'!I83,0)/1000 ->  | M83: 3 | P83: =COUNTIF(M$2:M84,"№") -> 6 | Q83: =IF(COUNTIF(#REF!,'Состав блюд'!$M$79),SUMIF(#REF!,'Состав блюд'!$M$79,#REF!)*SUMIF(#REF!,'Состав блюд'!$M$79,#REF!)*'Состав блюд'!O83,0)/1000 ->  | S83: 3 | V83: =COUNTIF(S$2:S84,"№") -> 6 | W83: =IF(COUNTIF(#REF!,'Состав блюд'!$S$79),SUMIF(#REF!,'Состав блюд'!$S$79,#REF!)*SUMIF(#REF!,'Состав блюд'!$S$79,#REF!)*'Состав блюд'!U83,0)/1000 ->  | Y83: 3 | AB83: =COUNTIF(Y$2:Y84,"№") -> 6 | AC83: =IF(COUNTIF(#REF!,'Состав блюд'!$Y$79),SUMIF(#REF!,'Состав блюд'!$Y$79,#REF!)*SUMIF(#REF!,'Состав блюд'!$Y$79,#REF!)*'Состав блюд'!AA83,0)/1000 -> 
A84: 4 | D84: =COUNTIF(A$2:A85,"№") -> 6 | E84: =IF(COUNTIF(#REF!,'Состав блюд'!$A$79),SUMIF(#REF!,'Состав блюд'!$A$79,#REF!)*SUMIF(#REF!,'Состав блюд'!$A$79,#REF!)*'Состав блюд'!C84,0)/1000 ->  | G84: 4 | J84: =COUNTIF(G$2:G85,"№") -> 6 | K84: =IF(COUNTIF(#REF!,'Состав блюд'!$G$79),SUMIF(#REF!,'Состав блюд'!$G$79,#REF!)*SUMIF(#REF!,'Состав блюд'!$G$79,#REF!)*'Состав блюд'!I84,0)/1000 ->  | M84: 4 | P84: =COUNTIF(M$2:M85,"№") -> 6 | Q84: =IF(COUNTIF(#REF!,'Состав блюд'!$M$79),SUMIF(#REF!,'Состав блюд'!$M$79,#REF!)*SUMIF(#REF!,'Состав блюд'!$M$79,#REF!)*'Состав блюд'!O84,0)/1000 ->  | S84: 4 | V84: =COUNTIF(S$2:S85,"№") -> 6 | W84: =IF(COUNTIF(#REF!,'Состав блюд'!$S$79),SUMIF(#REF!,'Состав блюд'!$S$79,#REF!)*SUMIF(#REF!,'Состав блюд'!$S$79,#REF!)*'Состав блюд'!U84,0)/1000 ->  | Y84: 4 | AB84: =COUNTIF(Y$2:Y85,"№") -> 6 | AC84: =IF(COUNTIF(#REF!,'Состав блюд'!$Y$79),SUMIF(#REF!,'Состав блюд'!$Y$79,#REF!)*SUMIF(#REF!,'Состав блюд'!$Y$79,#REF!)*'Состав блюд'!AA84,0)/1000 -> 
A85: 5 | D85: =COUNTIF(A$2:A86,"№") -> 6 | E85: =IF(COUNTIF(#REF!,'Состав блюд'!$A$79),SUMIF(#REF!,'Состав блюд'!$A$79,#REF!)*SUMIF(#REF!,'Состав блюд'!$A$79,#REF!)*'Состав блюд'!C85,0)/1000 ->  | G85: 5 | J85: =COUNTIF(G$2:G86,"№") -> 6 | K85: =IF(COUNTIF(#REF!,'Состав блюд'!$G$79),SUMIF(#REF!,'Состав блюд'!$G$79,#REF!)*SUMIF(#REF!,'Состав блюд'!$G$79,#REF!)*'Состав блюд'!I85,0)/1000 ->  | M85: 5 | P85: =COUNTIF(M$2:M86,"№") -> 6 | Q85: =IF(COUNTIF(#REF!,'Состав блюд'!$M$79),SUMIF(#REF!,'Состав блюд'!$M$79,#REF!)*SUMIF(#REF!,'Состав блюд'!$M$79,#REF!)*'Состав блюд'!O85,0)/1000 ->  | S85: 5 | V85: =COUNTIF(S$2:S86,"№") -> 6 | W85: =IF(COUNTIF(#REF!,'Состав блюд'!$S$79),SUMIF(#REF!,'Состав блюд'!$S$79,#REF!)*SUMIF(#REF!,'Состав блюд'!$S$79,#REF!)*'Состав блюд'!U85,0)/1000 ->  | Y85: 5 | AB85: =COUNTIF(Y$2:Y86,"№") -> 6 | AC85: =IF(COUNTIF(#REF!,'Состав блюд'!$Y$79),SUMIF(#REF!,'Состав блюд'!$Y$79,#REF!)*SUMIF(#REF!,'Состав блюд'!$Y$79,#REF!)*'Состав блюд'!AA85,0)/1000 -> 
A86: 6 | D86: =COUNTIF(A$2:A87,"№") -> 6 | E86: =IF(COUNTIF(#REF!,'Состав блюд'!$A$79),SUMIF(#REF!,'Состав блюд'!$A$79,#REF!)*SUMIF(#REF!,'Состав блюд'!$A$79,#REF!)*'Состав блюд'!C86,0)/1000 ->  | G86: 6 | J86: =COUNTIF(G$2:G87,"№") -> 6 | K86: =IF(COUNTIF(#REF!,'Состав блюд'!$G$79),SUMIF(#REF!,'Состав блюд'!$G$79,#REF!)*SUMIF(#REF!,'Состав блюд'!$G$79,#REF!)*'Состав блюд'!I86,0)/1000 ->  | M86: 6 | P86: =COUNTIF(M$2:M87,"№") -> 6 | Q86: =IF(COUNTIF(#REF!,'Состав блюд'!$M$79),SUMIF(#REF!,'Состав блюд'!$M$79,#REF!)*SUMIF(#REF!,'Состав блюд'!$M$79,#REF!)*'Состав блюд'!O86,0)/1000 ->  | S86: 6 | V86: =COUNTIF(S$2:S87,"№") -> 6 | W86: =IF(COUNTIF(#REF!,'Состав блюд'!$S$79),SUMIF(#REF!,'Состав блюд'!$S$79,#REF!)*SUMIF(#REF!,'Состав блюд'!$S$79,#REF!)*'Состав блюд'!U86,0)/1000 ->  | Y86: 6 | AB86: =COUNTIF(Y$2:Y87,"№") -> 6 | AC86: =IF(COUNTIF(#REF!,'Состав блюд'!$Y$79),SUMIF(#REF!,'Состав блюд'!$Y$79,#REF!)*SUMIF(#REF!,'Состав блюд'!$Y$79,#REF!)*'Состав блюд'!AA86,0)/1000 -> 
A87: 7 | D87: =COUNTIF(A$2:A88,"№") -> 6 | E87: =IF(COUNTIF(#REF!,'Состав блюд'!$A$79),SUMIF(#REF!,'Состав блюд'!$A$79,#REF!)*SUMIF(#REF!,'Состав блюд'!$A$79,#REF!)*'Состав блюд'!C87,0)/1000 ->  | G87: 7 | J87: =COUNTIF(G$2:G88,"№") -> 6 | K87: =IF(COUNTIF(#REF!,'Состав блюд'!$G$79),SUMIF(#REF!,'Состав блюд'!$G$79,#REF!)*SUMIF(#REF!,'Состав блюд'!$G$79,#REF!)*'Состав блюд'!I87,0)/1000 ->  | M87: 7 | P87: =COUNTIF(M$2:M88,"№") -> 6 | Q87: =IF(COUNTIF(#REF!,'Состав блюд'!$M$79),SUMIF(#REF!,'Состав блюд'!$M$79,#REF!)*SUMIF(#REF!,'Состав блюд'!$M$79,#REF!)*'Состав блюд'!O87,0)/1000 ->  | S87: 7 | V87: =COUNTIF(S$2:S88,"№") -> 6 | W87: =IF(COUNTIF(#REF!,'Состав блюд'!$S$79),SUMIF(#REF!,'Состав блюд'!$S$79,#REF!)*SUMIF(#REF!,'Состав блюд'!$S$79,#REF!)*'Состав блюд'!U87,0)/1000 ->  | Y87: 7 | AB87: =COUNTIF(Y$2:Y88,"№") -> 6 | AC87: =IF(COUNTIF(#REF!,'Состав блюд'!$Y$79),SUMIF(#REF!,'Состав блюд'!$Y$79,#REF!)*SUMIF(#REF!,'Состав блюд'!$Y$79,#REF!)*'Состав блюд'!AA87,0)/1000 -> 
A88: 8 | D88: =COUNTIF(A$2:A89,"№") -> 6 | E88: =IF(COUNTIF(#REF!,'Состав блюд'!$A$79),SUMIF(#REF!,'Состав блюд'!$A$79,#REF!)*SUMIF(#REF!,'Состав блюд'!$A$79,#REF!)*'Состав блюд'!C88,0)/1000 ->  | G88: 8 | J88: =COUNTIF(G$2:G89,"№") -> 6 | K88: =IF(COUNTIF(#REF!,'Состав блюд'!$G$79),SUMIF(#REF!,'Состав блюд'!$G$79,#REF!)*SUMIF(#REF!,'Состав блюд'!$G$79,#REF!)*'Состав блюд'!I88,0)/1000 ->  | M88: 8 | P88: =COUNTIF(M$2:M89,"№") -> 6 | Q88: =IF(COUNTIF(#REF!,'Состав блюд'!$M$79),SUMIF(#REF!,'Состав блюд'!$M$79,#REF!)*SUMIF(#REF!,'Состав блюд'!$M$79,#REF!)*'Состав блюд'!O88,0)/1000 ->  | S88: 8 | V88: =COUNTIF(S$2:S89,"№") -> 6 | W88: =IF(COUNTIF(#REF!,'Состав блюд'!$S$79),SUMIF(#REF!,'Состав блюд'!$S$79,#REF!)*SUMIF(#REF!,'Состав блюд'!$S$79,#REF!)*'Состав блюд'!U88,0)/1000 ->  | Y88: 8 | AB88: =COUNTIF(Y$2:Y89,"№") -> 6 | AC88: =IF(COUNTIF(#REF!,'Состав блюд'!$Y$79),SUMIF(#REF!,'Состав блюд'!$Y$79,#REF!)*SUMIF(#REF!,'Состав блюд'!$Y$79,#REF!)*'Состав блюд'!AA88,0)/1000 -> 
A89: 9 | D89: =COUNTIF(A$2:A90,"№") -> 6 | E89: =IF(COUNTIF(#REF!,'Состав блюд'!$A$79),SUMIF(#REF!,'Состав блюд'!$A$79,#REF!)*SUMIF(#REF!,'Состав блюд'!$A$79,#REF!)*'Состав блюд'!C89,0)/1000 ->  | G89: 9 | J89: =COUNTIF(G$2:G90,"№") -> 6 | K89: =IF(COUNTIF(#REF!,'Состав блюд'!$G$79),SUMIF(#REF!,'Состав блюд'!$G$79,#REF!)*SUMIF(#REF!,'Состав блюд'!$G$79,#REF!)*'Состав блюд'!I89,0)/1000 ->  | M89: 9 | P89: =COUNTIF(M$2:M90,"№") -> 6 | Q89: =IF(COUNTIF(#REF!,'Состав блюд'!$M$79),SUMIF(#REF!,'Состав блюд'!$M$79,#REF!)*SUMIF(#REF!,'Состав блюд'!$M$79,#REF!)*'Состав блюд'!O89,0)/1000 ->  | S89: 9 | V89: =COUNTIF(S$2:S90,"№") -> 6 | W89: =IF(COUNTIF(#REF!,'Состав блюд'!$S$79),SUMIF(#REF!,'Состав блюд'!$S$79,#REF!)*SUMIF(#REF!,'Состав блюд'!$S$79,#REF!)*'Состав блюд'!U89,0)/1000 ->  | Y89: 9 | AB89: =COUNTIF(Y$2:Y90,"№") -> 6 | AC89: =IF(COUNTIF(#REF!,'Состав блюд'!$Y$79),SUMIF(#REF!,'Состав блюд'!$Y$79,#REF!)*SUMIF(#REF!,'Состав блюд'!$Y$79,#REF!)*'Состав блюд'!AA89,0)/1000 -> 
D91: =COUNTIF(A$2:A92,"№") -> 7 | J91: =COUNTIF(G$2:G92,"№") -> 7 | P91: =COUNTIF(M$2:M92,"№") -> 7 | V91: =COUNTIF(S$2:S92,"№") -> 7 | AB91: =COUNTIF(Y$2:Y92,"№") -> 7
A92: № | B92: Наименование продукта | C92: Норма, г | D92: =COUNTIF(A$2:A93,"№") -> 7 | G92: № | H92: Наименование продукта | I92: Норма, г | J92: =COUNTIF(G$2:G93,"№") -> 7 | M92: № | N92: Наименование продукта | O92: Норма, г | P92: =COUNTIF(M$2:M93,"№") -> 7 | S92: № | T92: Наименование продукта | U92: Норма, г | V92: =COUNTIF(S$2:S93,"№") -> 7 | Y92: № | Z92: Наименование продукта | AA92: Норма, г | AB92: =COUNTIF(Y$2:Y93,"№") -> 7
A93: 1 | D93: =COUNTIF(A$2:A94,"№") -> 7 | E93: =IF(COUNTIF(#REF!,'Состав блюд'!$A$91),SUMIF(#REF!,'Состав блюд'!$A$91,#REF!)*SUMIF(#REF!,'Состав блюд'!$A$91,#REF!)*'Состав блюд'!C93,0)/1000 ->  | G93: 1 | J93: =COUNTIF(G$2:G94,"№") -> 7 | K93: =IF(COUNTIF(#REF!,'Состав блюд'!$G$91),SUMIF(#REF!,'Состав блюд'!$G$91,#REF!)*SUMIF(#REF!,'Состав блюд'!$G$91,#REF!)*'Состав блюд'!I93,0)/1000 ->  | M93: 1 | P93: =COUNTIF(M$2:M94,"№") -> 7 | Q93: =IF(COUNTIF(#REF!,'Состав блюд'!$M$91),SUMIF(#REF!,'Состав блюд'!$M$91,#REF!)*SUMIF(#REF!,'Состав блюд'!$M$91,#REF!)*'Состав блюд'!O93,0)/1000 ->  | S93: 1 | V93: =COUNTIF(S$2:S94,"№") -> 7 | W93: =IF(COUNTIF(#REF!,'Состав блюд'!$S$91),SUMIF(#REF!,'Состав блюд'!$S$91,#REF!)*SUMIF(#REF!,'Состав блюд'!$S$91,#REF!)*'Состав блюд'!U93,0)/1000 ->  | Y93: 1 | AB93: =COUNTIF(Y$2:Y94,"№") -> 7 | AC93: =IF(COUNTIF(#REF!,'Состав блюд'!$Y$91),SUMIF(#REF!,'Состав блюд'!$Y$91,#REF!)*SUMIF(#REF!,'Состав блюд'!$Y$91,#REF!)*'Состав блюд'!AA93,0)/1000 -> 
A94: 2 | D94: =COUNTIF(A$2:A95,"№") -> 7 | E94: =IF(COUNTIF(#REF!,'Состав блюд'!$A$91),SUMIF(#REF!,'Состав блюд'!$A$91,#REF!)*SUMIF(#REF!,'Состав блюд'!$A$91,#REF!)*'Состав блюд'!C94,0)/1000 ->  | G94: 2 | J94: =COUNTIF(G$2:G95,"№") -> 7 | K94: =IF(COUNTIF(#REF!,'Состав блюд'!$G$91),SUMIF(#REF!,'Состав блюд'!$G$91,#REF!)*SUMIF(#REF!,'Состав блюд'!$G$91,#REF!)*'Состав блюд'!I94,0)/1000 ->  | M94: 2 | P94: =COUNTIF(M$2:M95,"№") -> 7 | Q94: =IF(COUNTIF(#REF!,'Состав блюд'!$M$91),SUMIF(#REF!,'Состав блюд'!$M$91,#REF!)*SUMIF(#REF!,'Состав блюд'!$M$91,#REF!)*'Состав блюд'!O94,0)/1000 ->  | S94: 2 | V94: =COUNTIF(S$2:S95,"№") -> 7 | W94: =IF(COUNTIF(#REF!,'Состав блюд'!$S$91),SUMIF(#REF!,'Состав блюд'!$S$91,#REF!)*SUMIF(#REF!,'Состав блюд'!$S$91,#REF!)*'Состав блюд'!U94,0)/1000 ->  | Y94: 2 | AB94: =COUNTIF(Y$2:Y95,"№") -> 7 | AC94: =IF(COUNTIF(#REF!,'Состав блюд'!$Y$91),SUMIF(#REF!,'Состав блюд'!$Y$91,#REF!)*SUMIF(#REF!,'Состав блюд'!$Y$91,#REF!)*'Состав блюд'!AA94,0)/1000 -> 
A95: 3 | D95: =COUNTIF(A$2:A96,"№") -> 7 | E95: =IF(COUNTIF(#REF!,'Состав блюд'!$A$91),SUMIF(#REF!,'Состав блюд'!$A$91,#REF!)*SUMIF(#REF!,'Состав блюд'!$A$91,#REF!)*'Состав блюд'!C95,0)/1000 ->  | G95: 3 | J95: =COUNTIF(G$2:G96,"№") -> 7 | K95: =IF(COUNTIF(#REF!,'Состав блюд'!$G$91),SUMIF(#REF!,'Состав блюд'!$G$91,#REF!)*SUMIF(#REF!,'Состав блюд'!$G$91,#REF!)*'Состав блюд'!I95,0)/1000 ->  | M95: 3 | P95: =COUNTIF(M$2:M96,"№") -> 7 | Q95: =IF(COUNTIF(#REF!,'Состав блюд'!$M$91),SUMIF(#REF!,'Состав блюд'!$M$91,#REF!)*SUMIF(#REF!,'Состав блюд'!$M$91,#REF!)*'Состав блюд'!O95,0)/1000 ->  | S95: 3 | V95: =COUNTIF(S$2:S96,"№") -> 7 | W95: =IF(COUNTIF(#REF!,'Состав блюд'!$S$91),SUMIF(#REF!,'Состав блюд'!$S$91,#REF!)*SUMIF(#REF!,'Состав блюд'!$S$91,#REF!)*'Состав блюд'!U95,0)/1000 ->  | Y95: 3 | AB95: =COUNTIF(Y$2:Y96,"№") -> 7 | AC95: =IF(COUNTIF(#REF!,'Состав блюд'!$Y$91),SUMIF(#REF!,'Состав блюд'!$Y$91,#REF!)*SUMIF(#REF!,'Состав блюд'!$Y$91,#REF!)*'Состав блюд'!AA95,0)/1000 -> 
A96: 4 | D96: =COUNTIF(A$2:A97,"№") -> 7 | E96: =IF(COUNTIF(#REF!,'Состав блюд'!$A$91),SUMIF(#REF!,'Состав блюд'!$A$91,#REF!)*SUMIF(#REF!,'Состав блюд'!$A$91,#REF!)*'Состав блюд'!C96,0)/1000 ->  | G96: 4 | J96: =COUNTIF(G$2:G97,"№") -> 7 | K96: =IF(COUNTIF(#REF!,'Состав блюд'!$G$91),SUMIF(#REF!,'Состав блюд'!$G$91,#REF!)*SUMIF(#REF!,'Состав блюд'!$G$91,#REF!)*'Состав блюд'!I96,0)/1000 ->  | M96: 4 | P96: =COUNTIF(M$2:M97,"№") -> 7 | Q96: =IF(COUNTIF(#REF!,'Состав блюд'!$M$91),SUMIF(#REF!,'Состав блюд'!$M$91,#REF!)*SUMIF(#REF!,'Состав блюд'!$M$91,#REF!)*'Состав блюд'!O96,0)/1000 ->  | S96: 4 | V96: =COUNTIF(S$2:S97,"№") -> 7 | W96: =IF(COUNTIF(#REF!,'Состав блюд'!$S$91),SUMIF(#REF!,'Состав блюд'!$S$91,#REF!)*SUMIF(#REF!,'Состав блюд'!$S$91,#REF!)*'Состав блюд'!U96,0)/1000 ->  | Y96: 4 | AB96: =COUNTIF(Y$2:Y97,"№") -> 7 | AC96: =IF(COUNTIF(#REF!,'Состав блюд'!$Y$91),SUMIF(#REF!,'Состав блюд'!$Y$91,#REF!)*SUMIF(#REF!,'Состав блюд'!$Y$91,#REF!)*'Состав блюд'!AA96,0)/1000 -> 
A97: 5 | D97: =COUNTIF(A$2:A98,"№") -> 7 | E97: =IF(COUNTIF(#REF!,'Состав блюд'!$A$91),SUMIF(#REF!,'Состав блюд'!$A$91,#REF!)*SUMIF(#REF!,'Состав блюд'!$A$91,#REF!)*'Состав блюд'!C97,0)/1000 ->  | G97: 5 | J97: =COUNTIF(G$2:G98,"№") -> 7 | K97: =IF(COUNTIF(#REF!,'Состав блюд'!$G$91),SUMIF(#REF!,'Состав блюд'!$G$91,#REF!)*SUMIF(#REF!,'Состав блюд'!$G$91,#REF!)*'Состав блюд'!I97,0)/1000 ->  | M97: 5 | P97: =COUNTIF(M$2:M98,"№") -> 7 | Q97: =IF(COUNTIF(#REF!,'Состав блюд'!$M$91),SUMIF(#REF!,'Состав блюд'!$M$91,#REF!)*SUMIF(#REF!,'Состав блюд'!$M$91,#REF!)*'Состав блюд'!O97,0)/1000 ->  | S97: 5 | V97: =COUNTIF(S$2:S98,"№") -> 7 | W97: =IF(COUNTIF(#REF!,'Состав блюд'!$S$91),SUMIF(#REF!,'Состав блюд'!$S$91,#REF!)*SUMIF(#REF!,'Состав блюд'!$S$91,#REF!)*'Состав блюд'!U97,0)/1000 ->  | Y97: 5 | AB97: =COUNTIF(Y$2:Y98,"№") -> 7 | AC97: =IF(COUNTIF(#REF!,'Состав блюд'!$Y$91),SUMIF(#REF!,'Состав блюд'!$Y$91,#REF!)*SUMIF(#REF!,'Состав блюд'!$Y$91,#REF!)*'Состав блюд'!AA97,0)/1000 -> 
A98: 6 | D98: =COUNTIF(A$2:A99,"№") -> 7 | E98: =IF(COUNTIF(#REF!,'Состав блюд'!$A$91),SUMIF(#REF!,'Состав блюд'!$A$91,#REF!)*SUMIF(#REF!,'Состав блюд'!$A$91,#REF!)*'Состав блюд'!C98,0)/1000 ->  | G98: 6 | J98: =COUNTIF(G$2:G99,"№") -> 7 | K98: =IF(COUNTIF(#REF!,'Состав блюд'!$G$91),SUMIF(#REF!,'Состав блюд'!$G$91,#REF!)*SUMIF(#REF!,'Состав блюд'!$G$91,#REF!)*'Состав блюд'!I98,0)/1000 ->  | M98: 6 | P98: =COUNTIF(M$2:M99,"№") -> 7 | Q98: =IF(COUNTIF(#REF!,'Состав блюд'!$M$91),SUMIF(#REF!,'Состав блюд'!$M$91,#REF!)*SUMIF(#REF!,'Состав блюд'!$M$91,#REF!)*'Состав блюд'!O98,0)/1000 ->  | S98: 6 | V98: =COUNTIF(S$2:S99,"№") -> 7 | W98: =IF(COUNTIF(#REF!,'Состав блюд'!$S$91),SUMIF(#REF!,'Состав блюд'!$S$91,#REF!)*SUMIF(#REF!,'Состав блюд'!$S$91,#REF!)*'Состав блюд'!U98,0)/1000 ->  | Y98: 6 | AB98: =COUNTIF(Y$2:Y99,"№") -> 7 | AC98: =IF(COUNTIF(#REF!,'Состав блюд'!$Y$91),SUMIF(#REF!,'Состав блюд'!$Y$91,#REF!)*SUMIF(#REF!,'Состав блюд'!$Y$91,#REF!)*'Состав блюд'!AA98,0)/1000 -> 
A99: 7 | D99: =COUNTIF(A$2:A100,"№") -> 7 | E99: =IF(COUNTIF(#REF!,'Состав блюд'!$A$91),SUMIF(#REF!,'Состав блюд'!$A$91,#REF!)*SUMIF(#REF!,'Состав блюд'!$A$91,#REF!)*'Состав блюд'!C99,0)/1000 ->  | G99: 7 | J99: =COUNTIF(G$2:G100,"№") -> 7 | K99: =IF(COUNTIF(#REF!,'Состав блюд'!$G$91),SUMIF(#REF!,'Состав блюд'!$G$91,#REF!)*SUMIF(#REF!,'Состав блюд'!$G$91,#REF!)*'Состав блюд'!I99,0)/1000 ->  | M99: 7 | P99: =COUNTIF(M$2:M100,"№") -> 7 | Q99: =IF(COUNTIF(#REF!,'Состав блюд'!$M$91),SUMIF(#REF!,'Состав блюд'!$M$91,#REF!)*SUMIF(#REF!,'Состав блюд'!$M$91,#REF!)*'Состав блюд'!O99,0)/1000 ->  | S99: 7 | V99: =COUNTIF(S$2:S100,"№") -> 7 | W99: =IF(COUNTIF(#REF!,'Состав блюд'!$S$91),SUMIF(#REF!,'Состав блюд'!$S$91,#REF!)*SUMIF(#REF!,'Состав блюд'!$S$91,#REF!)*'Состав блюд'!U99,0)/1000 ->  | Y99: 7 | AB99: =COUNTIF(Y$2:Y100,"№") -> 7 | AC99: =IF(COUNTIF(#REF!,'Состав блюд'!$Y$91),SUMIF(#REF!,'Состав блюд'!$Y$91,#REF!)*SUMIF(#REF!,'Состав блюд'!$Y$91,#REF!)*'Состав блюд'!AA99,0)/1000 -> 
A100: 8 | D100: =COUNTIF(A$2:A101,"№") -> 7 | E100: =IF(COUNTIF(#REF!,'Состав блюд'!$A$91),SUMIF(#REF!,'Состав блюд'!$A$91,#REF!)*SUMIF(#REF!,'Состав блюд'!$A$91,#REF!)*'Состав блюд'!C100,0)/1000 ->  | G100: 8 | J100: =COUNTIF(G$2:G101,"№") -> 7 | K100: =IF(COUNTIF(#REF!,'Состав блюд'!$G$91),SUMIF(#REF!,'Состав блюд'!$G$91,#REF!)*SUMIF(#REF!,'Состав блюд'!$G$91,#REF!)*'Состав блюд'!I100,0)/1000 ->  | M100: 8 | P100: =COUNTIF(M$2:M101,"№") -> 7 | Q100: =IF(COUNTIF(#REF!,'Состав блюд'!$M$91),SUMIF(#REF!,'Состав блюд'!$M$91,#REF!)*SUMIF(#REF!,'Состав блюд'!$M$91,#REF!)*'Состав блюд'!O100,0)/1000 ->  | S100: 8 | V100: =COUNTIF(S$2:S101,"№") -> 7 | W100: =IF(COUNTIF(#REF!,'Состав блюд'!$S$91),SUMIF(#REF!,'Состав блюд'!$S$91,#REF!)*SUMIF(#REF!,'Состав блюд'!$S$91,#REF!)*'Состав блюд'!U100,0)/1000 ->  | Y100: 8 | AB100: =COUNTIF(Y$2:Y101,"№") -> 7 | AC100: =IF(COUNTIF(#REF!,'Состав блюд'!$Y$91),SUMIF(#REF!,'Состав блюд'!$Y$91,#REF!)*SUMIF(#REF!,'Состав блюд'!$Y$91,#REF!)*'Состав блюд'!AA100,0)/1000 -> 
A101: 9 | D101: =COUNTIF(A$2:A102,"№") -> 7 | E101: =IF(COUNTIF(#REF!,'Состав блюд'!$A$91),SUMIF(#REF!,'Состав блюд'!$A$91,#REF!)*SUMIF(#REF!,'Состав блюд'!$A$91,#REF!)*'Состав блюд'!C101,0)/1000 ->  | G101: 9 | J101: =COUNTIF(G$2:G102,"№") -> 7 | K101: =IF(COUNTIF(#REF!,'Состав блюд'!$G$91),SUMIF(#REF!,'Состав блюд'!$G$91,#REF!)*SUMIF(#REF!,'Состав блюд'!$G$91,#REF!)*'Состав блюд'!I101,0)/1000 ->  | M101: 9 | P101: =COUNTIF(M$2:M102,"№") -> 7 | Q101: =IF(COUNTIF(#REF!,'Состав блюд'!$M$91),SUMIF(#REF!,'Состав блюд'!$M$91,#REF!)*SUMIF(#REF!,'Состав блюд'!$M$91,#REF!)*'Состав блюд'!O101,0)/1000 ->  | S101: 9 | V101: =COUNTIF(S$2:S102,"№") -> 7 | W101: =IF(COUNTIF(#REF!,'Состав блюд'!$S$91),SUMIF(#REF!,'Состав блюд'!$S$91,#REF!)*SUMIF(#REF!,'Состав блюд'!$S$91,#REF!)*'Состав блюд'!U101,0)/1000 ->  | Y101: 9 | AB101: =COUNTIF(Y$2:Y102,"№") -> 7 | AC101: =IF(COUNTIF(#REF!,'Состав блюд'!$Y$91),SUMIF(#REF!,'Состав блюд'!$Y$91,#REF!)*SUMIF(#REF!,'Состав блюд'!$Y$91,#REF!)*'Состав блюд'!AA101,0)/1000 -> 
A102: 10 | D102: =COUNTIF(A$2:A103,"№") -> 7 | E102: =IF(COUNTIF(#REF!,'Состав блюд'!$A$91),SUMIF(#REF!,'Состав блюд'!$A$91,#REF!)*SUMIF(#REF!,'Состав блюд'!$A$91,#REF!)*'Состав блюд'!C102,0)/1000 ->  | G102: 10 | J102: =COUNTIF(G$2:G103,"№") -> 7 | K102: =IF(COUNTIF(#REF!,'Состав блюд'!$G$91),SUMIF(#REF!,'Состав блюд'!$G$91,#REF!)*SUMIF(#REF!,'Состав блюд'!$G$91,#REF!)*'Состав блюд'!I102,0)/1000 ->  | M102: 10 | P102: =COUNTIF(M$2:M103,"№") -> 7 | Q102: =IF(COUNTIF(#REF!,'Состав блюд'!$M$91),SUMIF(#REF!,'Состав блюд'!$M$91,#REF!)*SUMIF(#REF!,'Состав блюд'!$M$91,#REF!)*'Состав блюд'!O102,0)/1000 ->  | S102: 10 | V102: =COUNTIF(S$2:S103,"№") -> 7 | W102: =IF(COUNTIF(#REF!,'Состав блюд'!$S$91),SUMIF(#REF!,'Состав блюд'!$S$91,#REF!)*SUMIF(#REF!,'Состав блюд'!$S$91,#REF!)*'Состав блюд'!U102,0)/1000 ->  | Y102: 10 | AB102: =COUNTIF(Y$2:Y103,"№") -> 7 | AC102: =IF(COUNTIF(#REF!,'Состав блюд'!$Y$91),SUMIF(#REF!,'Состав блюд'!$Y$91,#REF!)*SUMIF(#REF!,'Состав блюд'!$Y$91,#REF!)*'Состав блюд'!AA102,0)/1000 -> 
D104: =COUNTIF(A$2:A105,"№") -> 8 | J104: =COUNTIF(G$2:G105,"№") -> 8 | P104: =COUNTIF(M$2:M105,"№") -> 8 | V104: =COUNTIF(S$2:S105,"№") -> 8 | AB104: =COUNTIF(Y$2:Y105,"№") -> 8
A105: № | B105: Наименование продукта | C105: Норма, г | D105: =COUNTIF(A$2:A106,"№") -> 8 | G105: № | H105: Наименование продукта | I105: Норма, г | J105: =COUNTIF(G$2:G106,"№") -> 8 | M105: № | N105: Наименование продукта | O105: Норма, г | P105: =COUNTIF(M$2:M106,"№") -> 8 | S105: № | T105: Наименование продукта | U105: Норма, г | V105: =COUNTIF(S$2:S106,"№") -> 8 | Y105: № | Z105: Наименование продукта | AA105: Норма, г | AB105: =COUNTIF(Y$2:Y106,"№") -> 8
A106: 1 | D106: =COUNTIF(A$2:A107,"№") -> 8 | E106: =IF(COUNTIF(#REF!,'Состав блюд'!$A$104),SUMIF(#REF!,'Состав блюд'!$A$104,#REF!)*SUMIF(#REF!,'Состав блюд'!$A$104,#REF!)*'Состав блюд'!C106,0)/1000 ->  | G106: 1 | J106: =COUNTIF(G$2:G107,"№") -> 8 | K106: =IF(COUNTIF(#REF!,'Состав блюд'!$G$104),SUMIF(#REF!,'Состав блюд'!$G$104,#REF!)*SUMIF(#REF!,'Состав блюд'!$G$104,#REF!)*'Состав блюд'!I106,0)/1000 ->  | M106: 1 | P106: =COUNTIF(M$2:M107,"№") -> 8 | Q106: =IF(COUNTIF(#REF!,'Состав блюд'!$M$104),SUMIF(#REF!,'Состав блюд'!$M$104,#REF!)*SUMIF(#REF!,'Состав блюд'!$M$104,#REF!)*'Состав блюд'!O106,0)/1000 ->  | S106: 1 | V106: =COUNTIF(S$2:S107,"№") -> 8 | W106: =IF(COUNTIF(#REF!,'Состав блюд'!$S$104),SUMIF(#REF!,'Состав блюд'!$S$104,#REF!)*SUMIF(#REF!,'Состав блюд'!$S$104,#REF!)*'Состав блюд'!U106,0)/1000 ->  | Y106: 1 | AB106: =COUNTIF(Y$2:Y107,"№") -> 8 | AC106: =IF(COUNTIF(#REF!,'Состав блюд'!$Y$104),SUMIF(#REF!,'Состав блюд'!$Y$104,#REF!)*SUMIF(#REF!,'Состав блюд'!$Y$104,#REF!)*'Состав блюд'!AA106,0)/1000 -> 
A107: 2 | D107: =COUNTIF(A$2:A108,"№") -> 8 | E107: =IF(COUNTIF(#REF!,'Состав блюд'!$A$104),SUMIF(#REF!,'Состав блюд'!$A$104,#REF!)*SUMIF(#REF!,'Состав блюд'!$A$104,#REF!)*'Состав блюд'!C107,0)/1000 ->  | G107: 2 | J107: =COUNTIF(G$2:G108,"№") -> 8 | K107: =IF(COUNTIF(#REF!,'Состав блюд'!$G$104),SUMIF(#REF!,'Состав блюд'!$G$104,#REF!)*SUMIF(#REF!,'Состав блюд'!$G$104,#REF!)*'Состав блюд'!I107,0)/1000 ->  | M107: 2 | P107: =COUNTIF(M$2:M108,"№") -> 8 | Q107: =IF(COUNTIF(#REF!,'Состав блюд'!$M$104),SUMIF(#REF!,'Состав блюд'!$M$104,#REF!)*SUMIF(#REF!,'Состав блюд'!$M$104,#REF!)*'Состав блюд'!O107,0)/1000 ->  | S107: 2 | V107: =COUNTIF(S$2:S108,"№") -> 8 | W107: =IF(COUNTIF(#REF!,'Состав блюд'!$S$104),SUMIF(#REF!,'Состав блюд'!$S$104,#REF!)*SUMIF(#REF!,'Состав блюд'!$S$104,#REF!)*'Состав блюд'!U107,0)/1000 ->  | Y107: 2 | AB107: =COUNTIF(Y$2:Y108,"№") -> 8 | AC107: =IF(COUNTIF(#REF!,'Состав блюд'!$Y$104),SUMIF(#REF!,'Состав блюд'!$Y$104,#REF!)*SUMIF(#REF!,'Состав блюд'!$Y$104,#REF!)*'Состав блюд'!AA107,0)/1000 -> 
A108: 3 | D108: =COUNTIF(A$2:A109,"№") -> 8 | E108: =IF(COUNTIF(#REF!,'Состав блюд'!$A$104),SUMIF(#REF!,'Состав блюд'!$A$104,#REF!)*SUMIF(#REF!,'Состав блюд'!$A$104,#REF!)*'Состав блюд'!C108,0)/1000 ->  | G108: 3 | J108: =COUNTIF(G$2:G109,"№") -> 8 | K108: =IF(COUNTIF(#REF!,'Состав блюд'!$G$104),SUMIF(#REF!,'Состав блюд'!$G$104,#REF!)*SUMIF(#REF!,'Состав блюд'!$G$104,#REF!)*'Состав блюд'!I108,0)/1000 ->  | M108: 3 | P108: =COUNTIF(M$2:M109,"№") -> 8 | Q108: =IF(COUNTIF(#REF!,'Состав блюд'!$M$104),SUMIF(#REF!,'Состав блюд'!$M$104,#REF!)*SUMIF(#REF!,'Состав блюд'!$M$104,#REF!)*'Состав блюд'!O108,0)/1000 ->  | S108: 3 | V108: =COUNTIF(S$2:S109,"№") -> 8 | W108: =IF(COUNTIF(#REF!,'Состав блюд'!$S$104),SUMIF(#REF!,'Состав блюд'!$S$104,#REF!)*SUMIF(#REF!,'Состав блюд'!$S$104,#REF!)*'Состав блюд'!U108,0)/1000 ->  | Y108: 3 | AB108: =COUNTIF(Y$2:Y109,"№") -> 8 | AC108: =IF(COUNTIF(#REF!,'Состав блюд'!$Y$104),SUMIF(#REF!,'Состав блюд'!$Y$104,#REF!)*SUMIF(#REF!,'Состав блюд'!$Y$104,#REF!)*'Состав блюд'!AA108,0)/1000 -> 
A109: 4 | D109: =COUNTIF(A$2:A110,"№") -> 8 | E109: =IF(COUNTIF(#REF!,'Состав блюд'!$A$104),SUMIF(#REF!,'Состав блюд'!$A$104,#REF!)*SUMIF(#REF!,'Состав блюд'!$A$104,#REF!)*'Состав блюд'!C109,0)/1000 ->  | G109: 4 | J109: =COUNTIF(G$2:G110,"№") -> 8 | K109: =IF(COUNTIF(#REF!,'Состав блюд'!$G$104),SUMIF(#REF!,'Состав блюд'!$G$104,#REF!)*SUMIF(#REF!,'Состав блюд'!$G$104,#REF!)*'Состав блюд'!I109,0)/1000 ->  | M109: 4 | P109: =COUNTIF(M$2:M110,"№") -> 8 | Q109: =IF(COUNTIF(#REF!,'Состав блюд'!$M$104),SUMIF(#REF!,'Состав блюд'!$M$104,#REF!)*SUMIF(#REF!,'Состав блюд'!$M$104,#REF!)*'Состав блюд'!O109,0)/1000 ->  | S109: 4 | V109: =COUNTIF(S$2:S110,"№") -> 8 | W109: =IF(COUNTIF(#REF!,'Состав блюд'!$S$104),SUMIF(#REF!,'Состав блюд'!$S$104,#REF!)*SUMIF(#REF!,'Состав блюд'!$S$104,#REF!)*'Состав блюд'!U109,0)/1000 ->  | Y109: 4 | AB109: =COUNTIF(Y$2:Y110,"№") -> 8 | AC109: =IF(COUNTIF(#REF!,'Состав блюд'!$Y$104),SUMIF(#REF!,'Состав блюд'!$Y$104,#REF!)*SUMIF(#REF!,'Состав блюд'!$Y$104,#REF!)*'Состав блюд'!AA109,0)/1000 -> 
A110: 5 | D110: =COUNTIF(A$2:A111,"№") -> 8 | E110: =IF(COUNTIF(#REF!,'Состав блюд'!$A$104),SUMIF(#REF!,'Состав блюд'!$A$104,#REF!)*SUMIF(#REF!,'Состав блюд'!$A$104,#REF!)*'Состав блюд'!C110,0)/1000 ->  | G110: 5 | J110: =COUNTIF(G$2:G111,"№") -> 8 | K110: =IF(COUNTIF(#REF!,'Состав блюд'!$G$104),SUMIF(#REF!,'Состав блюд'!$G$104,#REF!)*SUMIF(#REF!,'Состав блюд'!$G$104,#REF!)*'Состав блюд'!I110,0)/1000 ->  | M110: 5 | P110: =COUNTIF(M$2:M111,"№") -> 8 | Q110: =IF(COUNTIF(#REF!,'Состав блюд'!$M$104),SUMIF(#REF!,'Состав блюд'!$M$104,#REF!)*SUMIF(#REF!,'Состав блюд'!$M$104,#REF!)*'Состав блюд'!O110,0)/1000 ->  | S110: 5 | V110: =COUNTIF(S$2:S111,"№") -> 8 | W110: =IF(COUNTIF(#REF!,'Состав блюд'!$S$104),SUMIF(#REF!,'Состав блюд'!$S$104,#REF!)*SUMIF(#REF!,'Состав блюд'!$S$104,#REF!)*'Состав блюд'!U110,0)/1000 ->  | Y110: 5 | AB110: =COUNTIF(Y$2:Y111,"№") -> 8 | AC110: =IF(COUNTIF(#REF!,'Состав блюд'!$Y$104),SUMIF(#REF!,'Состав блюд'!$Y$104,#REF!)*SUMIF(#REF!,'Состав блюд'!$Y$104,#REF!)*'Состав блюд'!AA110,0)/1000 -> 
A111: 6 | D111: =COUNTIF(A$2:A112,"№") -> 8 | E111: =IF(COUNTIF(#REF!,'Состав блюд'!$A$104),SUMIF(#REF!,'Состав блюд'!$A$104,#REF!)*SUMIF(#REF!,'Состав блюд'!$A$104,#REF!)*'Состав блюд'!C111,0)/1000 ->  | G111: 6 | J111: =COUNTIF(G$2:G112,"№") -> 8 | K111: =IF(COUNTIF(#REF!,'Состав блюд'!$G$104),SUMIF(#REF!,'Состав блюд'!$G$104,#REF!)*SUMIF(#REF!,'Состав блюд'!$G$104,#REF!)*'Состав блюд'!I111,0)/1000 ->  | M111: 6 | P111: =COUNTIF(M$2:M112,"№") -> 8 | Q111: =IF(COUNTIF(#REF!,'Состав блюд'!$M$104),SUMIF(#REF!,'Состав блюд'!$M$104,#REF!)*SUMIF(#REF!,'Состав блюд'!$M$104,#REF!)*'Состав блюд'!O111,0)/1000 ->  | S111: 6 | V111: =COUNTIF(S$2:S112,"№") -> 8 | W111: =IF(COUNTIF(#REF!,'Состав блюд'!$S$104),SUMIF(#REF!,'Состав блюд'!$S$104,#REF!)*SUMIF(#REF!,'Состав блюд'!$S$104,#REF!)*'Состав блюд'!U111,0)/1000 ->  | Y111: 6 | AB111: =COUNTIF(Y$2:Y112,"№") -> 8 | AC111: =IF(COUNTIF(#REF!,'Состав блюд'!$Y$104),SUMIF(#REF!,'Состав блюд'!$Y$104,#REF!)*SUMIF(#REF!,'Состав блюд'!$Y$104,#REF!)*'Состав блюд'!AA111,0)/1000 -> 
A112: 7 | D112: =COUNTIF(A$2:A113,"№") -> 8 | E112: =IF(COUNTIF(#REF!,'Состав блюд'!$A$104),SUMIF(#REF!,'Состав блюд'!$A$104,#REF!)*SUMIF(#REF!,'Состав блюд'!$A$104,#REF!)*'Состав блюд'!C112,0)/1000 ->  | G112: 7 | J112: =COUNTIF(G$2:G113,"№") -> 8 | K112: =IF(COUNTIF(#REF!,'Состав блюд'!$G$104),SUMIF(#REF!,'Состав блюд'!$G$104,#REF!)*SUMIF(#REF!,'Состав блюд'!$G$104,#REF!)*'Состав блюд'!I112,0)/1000 ->  | M112: 7 | P112: =COUNTIF(M$2:M113,"№") -> 8 | Q112: =IF(COUNTIF(#REF!,'Состав блюд'!$M$104),SUMIF(#REF!,'Состав блюд'!$M$104,#REF!)*SUMIF(#REF!,'Состав блюд'!$M$104,#REF!)*'Состав блюд'!O112,0)/1000 ->  | S112: 7 | V112: =COUNTIF(S$2:S113,"№") -> 8 | W112: =IF(COUNTIF(#REF!,'Состав блюд'!$S$104),SUMIF(#REF!,'Состав блюд'!$S$104,#REF!)*SUMIF(#REF!,'Состав блюд'!$S$104,#REF!)*'Состав блюд'!U112,0)/1000 ->  | Y112: 7 | AB112: =COUNTIF(Y$2:Y113,"№") -> 8 | AC112: =IF(COUNTIF(#REF!,'Состав блюд'!$Y$104),SUMIF(#REF!,'Состав блюд'!$Y$104,#REF!)*SUMIF(#REF!,'Состав блюд'!$Y$104,#REF!)*'Состав блюд'!AA112,0)/1000 -> 
A113: 8 | D113: =COUNTIF(A$2:A114,"№") -> 8 | E113: =IF(COUNTIF(#REF!,'Состав блюд'!$A$104),SUMIF(#REF!,'Состав блюд'!$A$104,#REF!)*SUMIF(#REF!,'Состав блюд'!$A$104,#REF!)*'Состав блюд'!C113,0)/1000 ->  | G113: 8 | J113: =COUNTIF(G$2:G114,"№") -> 8 | K113: =IF(COUNTIF(#REF!,'Состав блюд'!$G$104),SUMIF(#REF!,'Состав блюд'!$G$104,#REF!)*SUMIF(#REF!,'Состав блюд'!$G$104,#REF!)*'Состав блюд'!I113,0)/1000 ->  | M113: 8 | P113: =COUNTIF(M$2:M114,"№") -> 8 | Q113: =IF(COUNTIF(#REF!,'Состав блюд'!$M$104),SUMIF(#REF!,'Состав блюд'!$M$104,#REF!)*SUMIF(#REF!,'Состав блюд'!$M$104,#REF!)*'Состав блюд'!O113,0)/1000 ->  | S113: 8 | V113: =COUNTIF(S$2:S114,"№") -> 8 | W113: =IF(COUNTIF(#REF!,'Состав блюд'!$S$104),SUMIF(#REF!,'Состав блюд'!$S$104,#REF!)*SUMIF(#REF!,'Состав блюд'!$S$104,#REF!)*'Состав блюд'!U113,0)/1000 ->  | Y113: 8 | AB113: =COUNTIF(Y$2:Y114,"№") -> 8 | AC113: =IF(COUNTIF(#REF!,'Состав блюд'!$Y$104),SUMIF(#REF!,'Состав блюд'!$Y$104,#REF!)*SUMIF(#REF!,'Состав блюд'!$Y$104,#REF!)*'Состав блюд'!AA113,0)/1000 -> 
A114: 9 | D114: =COUNTIF(A$2:A115,"№") -> 8 | E114: =IF(COUNTIF(#REF!,'Состав блюд'!$A$104),SUMIF(#REF!,'Состав блюд'!$A$104,#REF!)*SUMIF(#REF!,'Состав блюд'!$A$104,#REF!)*'Состав блюд'!C114,0)/1000 ->  | G114: 9 | J114: =COUNTIF(G$2:G115,"№") -> 8 | K114: =IF(COUNTIF(#REF!,'Состав блюд'!$G$104),SUMIF(#REF!,'Состав блюд'!$G$104,#REF!)*SUMIF(#REF!,'Состав блюд'!$G$104,#REF!)*'Состав блюд'!I114,0)/1000 ->  | M114: 9 | P114: =COUNTIF(M$2:M115,"№") -> 8 | Q114: =IF(COUNTIF(#REF!,'Состав блюд'!$M$104),SUMIF(#REF!,'Состав блюд'!$M$104,#REF!)*SUMIF(#REF!,'Состав блюд'!$M$104,#REF!)*'Состав блюд'!O114,0)/1000 ->  | S114: 9 | V114: =COUNTIF(S$2:S115,"№") -> 8 | W114: =IF(COUNTIF(#REF!,'Состав блюд'!$S$104),SUMIF(#REF!,'Состав блюд'!$S$104,#REF!)*SUMIF(#REF!,'Состав блюд'!$S$104,#REF!)*'Состав блюд'!U114,0)/1000 ->  | Y114: 9 | AB114: =COUNTIF(Y$2:Y115,"№") -> 8 | AC114: =IF(COUNTIF(#REF!,'Состав блюд'!$Y$104),SUMIF(#REF!,'Состав блюд'!$Y$104,#REF!)*SUMIF(#REF!,'Состав блюд'!$Y$104,#REF!)*'Состав блюд'!AA114,0)/1000 -> 
A115: 10 | D115: =COUNTIF(A$2:A116,"№") -> 8 | E115: =IF(COUNTIF(#REF!,'Состав блюд'!$A$104),SUMIF(#REF!,'Состав блюд'!$A$104,#REF!)*SUMIF(#REF!,'Состав блюд'!$A$104,#REF!)*'Состав блюд'!C115,0)/1000 ->  | G115: 10 | J115: =COUNTIF(G$2:G116,"№") -> 8 | K115: =IF(COUNTIF(#REF!,'Состав блюд'!$G$104),SUMIF(#REF!,'Состав блюд'!$G$104,#REF!)*SUMIF(#REF!,'Состав блюд'!$G$104,#REF!)*'Состав блюд'!I115,0)/1000 ->  | M115: 10 | P115: =COUNTIF(M$2:M116,"№") -> 8 | Q115: =IF(COUNTIF(#REF!,'Состав блюд'!$M$104),SUMIF(#REF!,'Состав блюд'!$M$104,#REF!)*SUMIF(#REF!,'Состав блюд'!$M$104,#REF!)*'Состав блюд'!O115,0)/1000 ->  | S115: 10 | V115: =COUNTIF(S$2:S116,"№") -> 8 | W115: =IF(COUNTIF(#REF!,'Состав блюд'!$S$104),SUMIF(#REF!,'Состав блюд'!$S$104,#REF!)*SUMIF(#REF!,'Состав блюд'!$S$104,#REF!)*'Состав блюд'!U115,0)/1000 ->  | Y115: 10 | AB115: =COUNTIF(Y$2:Y116,"№") -> 8 | AC115: =IF(COUNTIF(#REF!,'Состав блюд'!$Y$104),SUMIF(#REF!,'Состав блюд'!$Y$104,#REF!)*SUMIF(#REF!,'Состав блюд'!$Y$104,#REF!)*'Состав блюд'!AA115,0)/1000 -> 
D117: =COUNTIF(A$2:A118,"№") -> 9 | J117: =COUNTIF(G$2:G118,"№") -> 9 | P117: =COUNTIF(M$2:M118,"№") -> 9 | V117: =COUNTIF(S$2:S118,"№") -> 9 | AB117: =COUNTIF(Y$2:Y118,"№") -> 9
A118: № | B118: Наименование продукта | C118: Норма, г | D118: =COUNTIF(A$2:A119,"№") -> 9 | G118: № | H118: Наименование продукта | I118: Норма, г | J118: =COUNTIF(G$2:G119,"№") -> 9 | M118: № | N118: Наименование продукта | O118: Норма, г | P118: =COUNTIF(M$2:M119,"№") -> 9 | S118: № | T118: Наименование продукта | U118: Норма, г | V118: =COUNTIF(S$2:S119,"№") -> 9 | Y118: № | Z118: Наименование продукта | AA118: Норма, г | AB118: =COUNTIF(Y$2:Y119,"№") -> 9
A119: 1 | D119: =COUNTIF(A$2:A120,"№") -> 9 | E119: =IF(COUNTIF(#REF!,'Состав блюд'!$A$117),SUMIF(#REF!,'Состав блюд'!$A$117,#REF!)*SUMIF(#REF!,'Состав блюд'!$A$117,#REF!)*'Состав блюд'!C119,0)/1000 ->  | G119: 1 | J119: =COUNTIF(G$2:G120,"№") -> 9 | K119: =IF(COUNTIF(#REF!,'Состав блюд'!$G$117),SUMIF(#REF!,'Состав блюд'!$G$117,#REF!)*SUMIF(#REF!,'Состав блюд'!$G$117,#REF!)*'Состав блюд'!I119,0)/1000 ->  | M119: 1 | P119: =COUNTIF(M$2:M120,"№") -> 9 | Q119: =IF(COUNTIF(#REF!,'Состав блюд'!$M$117),SUMIF(#REF!,'Состав блюд'!$M$117,#REF!)*SUMIF(#REF!,'Состав блюд'!$M$117,#REF!)*'Состав блюд'!O119,0)/1000 ->  | S119: 1 | V119: =COUNTIF(S$2:S120,"№") -> 9 | W119: =IF(COUNTIF(#REF!,'Состав блюд'!$S$117),SUMIF(#REF!,'Состав блюд'!$S$117,#REF!)*SUMIF(#REF!,'Состав блюд'!$S$117,#REF!)*'Состав блюд'!U119,0)/1000 ->  | Y119: 1 | AB119: =COUNTIF(Y$2:Y120,"№") -> 9 | AC119: =IF(COUNTIF(#REF!,'Состав блюд'!$Y$117),SUMIF(#REF!,'Состав блюд'!$Y$117,#REF!)*SUMIF(#REF!,'Состав блюд'!$Y$117,#REF!)*'Состав блюд'!AA119,0)/1000 -> 
A120: 2 | D120: =COUNTIF(A$2:A121,"№") -> 9 | E120: =IF(COUNTIF(#REF!,'Состав блюд'!$A$117),SUMIF(#REF!,'Состав блюд'!$A$117,#REF!)*SUMIF(#REF!,'Состав блюд'!$A$117,#REF!)*'Состав блюд'!C120,0)/1000 ->  | G120: 2 | J120: =COUNTIF(G$2:G121,"№") -> 9 | K120: =IF(COUNTIF(#REF!,'Состав блюд'!$G$117),SUMIF(#REF!,'Состав блюд'!$G$117,#REF!)*SUMIF(#REF!,'Состав блюд'!$G$117,#REF!)*'Состав блюд'!I120,0)/1000 ->  | M120: 2 | P120: =COUNTIF(M$2:M121,"№") -> 9 | Q120: =IF(COUNTIF(#REF!,'Состав блюд'!$M$117),SUMIF(#REF!,'Состав блюд'!$M$117,#REF!)*SUMIF(#REF!,'Состав блюд'!$M$117,#REF!)*'Состав блюд'!O120,0)/1000 ->  | S120: 2 | V120: =COUNTIF(S$2:S121,"№") -> 9 | W120: =IF(COUNTIF(#REF!,'Состав блюд'!$S$117),SUMIF(#REF!,'Состав блюд'!$S$117,#REF!)*SUMIF(#REF!,'Состав блюд'!$S$117,#REF!)*'Состав блюд'!U120,0)/1000 ->  | Y120: 2 | AB120: =COUNTIF(Y$2:Y121,"№") -> 9 | AC120: =IF(COUNTIF(#REF!,'Состав блюд'!$Y$117),SUMIF(#REF!,'Состав блюд'!$Y$117,#REF!)*SUMIF(#REF!,'Состав блюд'!$Y$117,#REF!)*'Состав блюд'!AA120,0)/1000 -> 
A121: 3 | D121: =COUNTIF(A$2:A122,"№") -> 9 | E121: =IF(COUNTIF(#REF!,'Состав блюд'!$A$117),SUMIF(#REF!,'Состав блюд'!$A$117,#REF!)*SUMIF(#REF!,'Состав блюд'!$A$117,#REF!)*'Состав блюд'!C121,0)/1000 ->  | G121: 3 | J121: =COUNTIF(G$2:G122,"№") -> 9 | K121: =IF(COUNTIF(#REF!,'Состав блюд'!$G$117),SUMIF(#REF!,'Состав блюд'!$G$117,#REF!)*SUMIF(#REF!,'Состав блюд'!$G$117,#REF!)*'Состав блюд'!I121,0)/1000 ->  | M121: 3 | P121: =COUNTIF(M$2:M122,"№") -> 9 | Q121: =IF(COUNTIF(#REF!,'Состав блюд'!$M$117),SUMIF(#REF!,'Состав блюд'!$M$117,#REF!)*SUMIF(#REF!,'Состав блюд'!$M$117,#REF!)*'Состав блюд'!O121,0)/1000 ->  | S121: 3 | V121: =COUNTIF(S$2:S122,"№") -> 9 | W121: =IF(COUNTIF(#REF!,'Состав блюд'!$S$117),SUMIF(#REF!,'Состав блюд'!$S$117,#REF!)*SUMIF(#REF!,'Состав блюд'!$S$117,#REF!)*'Состав блюд'!U121,0)/1000 ->  | Y121: 3 | AB121: =COUNTIF(Y$2:Y122,"№") -> 9 | AC121: =IF(COUNTIF(#REF!,'Состав блюд'!$Y$117),SUMIF(#REF!,'Состав блюд'!$Y$117,#REF!)*SUMIF(#REF!,'Состав блюд'!$Y$117,#REF!)*'Состав блюд'!AA121,0)/1000 -> 
A122: 4 | D122: =COUNTIF(A$2:A123,"№") -> 9 | E122: =IF(COUNTIF(#REF!,'Состав блюд'!$A$117),SUMIF(#REF!,'Состав блюд'!$A$117,#REF!)*SUMIF(#REF!,'Состав блюд'!$A$117,#REF!)*'Состав блюд'!C122,0)/1000 ->  | G122: 4 | J122: =COUNTIF(G$2:G123,"№") -> 9 | K122: =IF(COUNTIF(#REF!,'Состав блюд'!$G$117),SUMIF(#REF!,'Состав блюд'!$G$117,#REF!)*SUMIF(#REF!,'Состав блюд'!$G$117,#REF!)*'Состав блюд'!I122,0)/1000 ->  | M122: 4 | P122: =COUNTIF(M$2:M123,"№") -> 9 | Q122: =IF(COUNTIF(#REF!,'Состав блюд'!$M$117),SUMIF(#REF!,'Состав блюд'!$M$117,#REF!)*SUMIF(#REF!,'Состав блюд'!$M$117,#REF!)*'Состав блюд'!O122,0)/1000 ->  | S122: 4 | V122: =COUNTIF(S$2:S123,"№") -> 9 | W122: =IF(COUNTIF(#REF!,'Состав блюд'!$S$117),SUMIF(#REF!,'Состав блюд'!$S$117,#REF!)*SUMIF(#REF!,'Состав блюд'!$S$117,#REF!)*'Состав блюд'!U122,0)/1000 ->  | Y122: 4 | AB122: =COUNTIF(Y$2:Y123,"№") -> 9 | AC122: =IF(COUNTIF(#REF!,'Состав блюд'!$Y$117),SUMIF(#REF!,'Состав блюд'!$Y$117,#REF!)*SUMIF(#REF!,'Состав блюд'!$Y$117,#REF!)*'Состав блюд'!AA122,0)/1000 -> 
A123: 5 | D123: =COUNTIF(A$2:A124,"№") -> 9 | E123: =IF(COUNTIF(#REF!,'Состав блюд'!$A$117),SUMIF(#REF!,'Состав блюд'!$A$117,#REF!)*SUMIF(#REF!,'Состав блюд'!$A$117,#REF!)*'Состав блюд'!C123,0)/1000 ->  | G123: 5 | J123: =COUNTIF(G$2:G124,"№") -> 9 | K123: =IF(COUNTIF(#REF!,'Состав блюд'!$G$117),SUMIF(#REF!,'Состав блюд'!$G$117,#REF!)*SUMIF(#REF!,'Состав блюд'!$G$117,#REF!)*'Состав блюд'!I123,0)/1000 ->  | M123: 5 | P123: =COUNTIF(M$2:M124,"№") -> 9 | Q123: =IF(COUNTIF(#REF!,'Состав блюд'!$M$117),SUMIF(#REF!,'Состав блюд'!$M$117,#REF!)*SUMIF(#REF!,'Состав блюд'!$M$117,#REF!)*'Состав блюд'!O123,0)/1000 ->  | S123: 5 | V123: =COUNTIF(S$2:S124,"№") -> 9 | W123: =IF(COUNTIF(#REF!,'Состав блюд'!$S$117),SUMIF(#REF!,'Состав блюд'!$S$117,#REF!)*SUMIF(#REF!,'Состав блюд'!$S$117,#REF!)*'Состав блюд'!U123,0)/1000 ->  | Y123: 5 | AB123: =COUNTIF(Y$2:Y124,"№") -> 9 | AC123: =IF(COUNTIF(#REF!,'Состав блюд'!$Y$117),SUMIF(#REF!,'Состав блюд'!$Y$117,#REF!)*SUMIF(#REF!,'Состав блюд'!$Y$117,#REF!)*'Состав блюд'!AA123,0)/1000 -> 
A124: 6 | D124: =COUNTIF(A$2:A125,"№") -> 9 | E124: =IF(COUNTIF(#REF!,'Состав блюд'!$A$117),SUMIF(#REF!,'Состав блюд'!$A$117,#REF!)*SUMIF(#REF!,'Состав блюд'!$A$117,#REF!)*'Состав блюд'!C124,0)/1000 ->  | G124: 6 | J124: =COUNTIF(G$2:G125,"№") -> 9 | K124: =IF(COUNTIF(#REF!,'Состав блюд'!$G$117),SUMIF(#REF!,'Состав блюд'!$G$117,#REF!)*SUMIF(#REF!,'Состав блюд'!$G$117,#REF!)*'Состав блюд'!I124,0)/1000 ->  | M124: 6 | P124: =COUNTIF(M$2:M125,"№") -> 9 | Q124: =IF(COUNTIF(#REF!,'Состав блюд'!$M$117),SUMIF(#REF!,'Состав блюд'!$M$117,#REF!)*SUMIF(#REF!,'Состав блюд'!$M$117,#REF!)*'Состав блюд'!O124,0)/1000 ->  | S124: 6 | V124: =COUNTIF(S$2:S125,"№") -> 9 | W124: =IF(COUNTIF(#REF!,'Состав блюд'!$S$117),SUMIF(#REF!,'Состав блюд'!$S$117,#REF!)*SUMIF(#REF!,'Состав блюд'!$S$117,#REF!)*'Состав блюд'!U124,0)/1000 ->  | Y124: 6 | AB124: =COUNTIF(Y$2:Y125,"№") -> 9 | AC124: =IF(COUNTIF(#REF!,'Состав блюд'!$Y$117),SUMIF(#REF!,'Состав блюд'!$Y$117,#REF!)*SUMIF(#REF!,'Состав блюд'!$Y$117,#REF!)*'Состав блюд'!AA124,0)/1000 -> 
A125: 7 | D125: =COUNTIF(A$2:A126,"№") -> 9 | E125: =IF(COUNTIF(#REF!,'Состав блюд'!$A$117),SUMIF(#REF!,'Состав блюд'!$A$117,#REF!)*SUMIF(#REF!,'Состав блюд'!$A$117,#REF!)*'Состав блюд'!C125,0)/1000 ->  | G125: 7 | J125: =COUNTIF(G$2:G126,"№") -> 9 | K125: =IF(COUNTIF(#REF!,'Состав блюд'!$G$117),SUMIF(#REF!,'Состав блюд'!$G$117,#REF!)*SUMIF(#REF!,'Состав блюд'!$G$117,#REF!)*'Состав блюд'!I125,0)/1000 ->  | M125: 7 | P125: =COUNTIF(M$2:M126,"№") -> 9 | Q125: =IF(COUNTIF(#REF!,'Состав блюд'!$M$117),SUMIF(#REF!,'Состав блюд'!$M$117,#REF!)*SUMIF(#REF!,'Состав блюд'!$M$117,#REF!)*'Состав блюд'!O125,0)/1000 ->  | S125: 7 | V125: =COUNTIF(S$2:S126,"№") -> 9 | W125: =IF(COUNTIF(#REF!,'Состав блюд'!$S$117),SUMIF(#REF!,'Состав блюд'!$S$117,#REF!)*SUMIF(#REF!,'Состав блюд'!$S$117,#REF!)*'Состав блюд'!U125,0)/1000 ->  | Y125: 7 | AB125: =COUNTIF(Y$2:Y126,"№") -> 9 | AC125: =IF(COUNTIF(#REF!,'Состав блюд'!$Y$117),SUMIF(#REF!,'Состав блюд'!$Y$117,#REF!)*SUMIF(#REF!,'Состав блюд'!$Y$117,#REF!)*'Состав блюд'!AA125,0)/1000 -> 
A126: 8 | D126: =COUNTIF(A$2:A127,"№") -> 9 | E126: =IF(COUNTIF(#REF!,'Состав блюд'!$A$117),SUMIF(#REF!,'Состав блюд'!$A$117,#REF!)*SUMIF(#REF!,'Состав блюд'!$A$117,#REF!)*'Состав блюд'!C126,0)/1000 ->  | G126: 8 | J126: =COUNTIF(G$2:G127,"№") -> 9 | K126: =IF(COUNTIF(#REF!,'Состав блюд'!$G$117),SUMIF(#REF!,'Состав блюд'!$G$117,#REF!)*SUMIF(#REF!,'Состав блюд'!$G$117,#REF!)*'Состав блюд'!I126,0)/1000 ->  | M126: 8 | P126: =COUNTIF(M$2:M127,"№") -> 9 | Q126: =IF(COUNTIF(#REF!,'Состав блюд'!$M$117),SUMIF(#REF!,'Состав блюд'!$M$117,#REF!)*SUMIF(#REF!,'Состав блюд'!$M$117,#REF!)*'Состав блюд'!O126,0)/1000 ->  | S126: 8 | V126: =COUNTIF(S$2:S127,"№") -> 9 | W126: =IF(COUNTIF(#REF!,'Состав блюд'!$S$117),SUMIF(#REF!,'Состав блюд'!$S$117,#REF!)*SUMIF(#REF!,'Состав блюд'!$S$117,#REF!)*'Состав блюд'!U126,0)/1000 ->  | Y126: 8 | AB126: =COUNTIF(Y$2:Y127,"№") -> 9 | AC126: =IF(COUNTIF(#REF!,'Состав блюд'!$Y$117),SUMIF(#REF!,'Состав блюд'!$Y$117,#REF!)*SUMIF(#REF!,'Состав блюд'!$Y$117,#REF!)*'Состав блюд'!AA126,0)/1000 -> 
A127: 9 | D127: =COUNTIF(A$2:A128,"№") -> 9 | E127: =IF(COUNTIF(#REF!,'Состав блюд'!$A$117),SUMIF(#REF!,'Состав блюд'!$A$117,#REF!)*SUMIF(#REF!,'Состав блюд'!$A$117,#REF!)*'Состав блюд'!C127,0)/1000 ->  | G127: 9 | J127: =COUNTIF(G$2:G128,"№") -> 9 | K127: =IF(COUNTIF(#REF!,'Состав блюд'!$G$117),SUMIF(#REF!,'Состав блюд'!$G$117,#REF!)*SUMIF(#REF!,'Состав блюд'!$G$117,#REF!)*'Состав блюд'!I127,0)/1000 ->  | M127: 9 | P127: =COUNTIF(M$2:M128,"№") -> 9 | Q127: =IF(COUNTIF(#REF!,'Состав блюд'!$M$117),SUMIF(#REF!,'Состав блюд'!$M$117,#REF!)*SUMIF(#REF!,'Состав блюд'!$M$117,#REF!)*'Состав блюд'!O127,0)/1000 ->  | S127: 9 | V127: =COUNTIF(S$2:S128,"№") -> 9 | W127: =IF(COUNTIF(#REF!,'Состав блюд'!$S$117),SUMIF(#REF!,'Состав блюд'!$S$117,#REF!)*SUMIF(#REF!,'Состав блюд'!$S$117,#REF!)*'Состав блюд'!U127,0)/1000 ->  | Y127: 9 | AB127: =COUNTIF(Y$2:Y128,"№") -> 9 | AC127: =IF(COUNTIF(#REF!,'Состав блюд'!$Y$117),SUMIF(#REF!,'Состав блюд'!$Y$117,#REF!)*SUMIF(#REF!,'Состав блюд'!$Y$117,#REF!)*'Состав блюд'!AA127,0)/1000 -> 
D129: =COUNTIF(A$2:A130,"№") -> 10 | J129: =COUNTIF(G$2:G130,"№") -> 10 | P129: =COUNTIF(M$2:M130,"№") -> 10 | V129: =COUNTIF(S$2:S130,"№") -> 10 | AB129: =COUNTIF(Y$2:Y130,"№") -> 10
A130: № | B130: Наименование продукта | C130: Норма, г | D130: =COUNTIF(A$2:A131,"№") -> 10 | G130: № | H130: Наименование продукта | I130: Норма, г | J130: =COUNTIF(G$2:G131,"№") -> 10 | M130: № | N130: Наименование продукта | O130: Норма, г | P130: =COUNTIF(M$2:M131,"№") -> 10 | S130: № | T130: Наименование продукта | U130: Норма, г | V130: =COUNTIF(S$2:S131,"№") -> 10 | Y130: № | Z130: Наименование продукта | AA130: Норма, г | AB130: =COUNTIF(Y$2:Y131,"№") -> 10
A131: 1 | D131: =COUNTIF(A$2:A132,"№") -> 10 | E131: =IF(COUNTIF(#REF!,'Состав блюд'!$A$129),SUMIF(#REF!,'Состав блюд'!$A$129,#REF!)*SUMIF(#REF!,'Состав блюд'!$A$129,#REF!)*'Состав блюд'!C131,0)/1000 ->  | G131: 1 | J131: =COUNTIF(G$2:G132,"№") -> 10 | K131: =IF(COUNTIF(#REF!,'Состав блюд'!$G$129),SUMIF(#REF!,'Состав блюд'!$G$129,#REF!)*SUMIF(#REF!,'Состав блюд'!$G$129,#REF!)*'Состав блюд'!I131,0)/1000 ->  | M131: 1 | P131: =COUNTIF(M$2:M132,"№") -> 10 | Q131: =IF(COUNTIF(#REF!,'Состав блюд'!$M$129),SUMIF(#REF!,'Состав блюд'!$M$129,#REF!)*SUMIF(#REF!,'Состав блюд'!$M$129,#REF!)*'Состав блюд'!O131,0)/1000 ->  | S131: 1 | V131: =COUNTIF(S$2:S132,"№") -> 10 | W131: =IF(COUNTIF(#REF!,'Состав блюд'!$S$129),SUMIF(#REF!,'Состав блюд'!$S$129,#REF!)*SUMIF(#REF!,'Состав блюд'!$S$129,#REF!)*'Состав блюд'!U131,0)/1000 ->  | Y131: 1 | AB131: =COUNTIF(Y$2:Y132,"№") -> 10 | AC131: =IF(COUNTIF(#REF!,'Состав блюд'!$Y$129),SUMIF(#REF!,'Состав блюд'!$Y$129,#REF!)*SUMIF(#REF!,'Состав блюд'!$Y$129,#REF!)*'Состав блюд'!AA131,0)/1000 -> 
A132: 2 | D132: =COUNTIF(A$2:A133,"№") -> 10 | E132: =IF(COUNTIF(#REF!,'Состав блюд'!$A$129),SUMIF(#REF!,'Состав блюд'!$A$129,#REF!)*SUMIF(#REF!,'Состав блюд'!$A$129,#REF!)*'Состав блюд'!C132,0)/1000 ->  | G132: 2 | J132: =COUNTIF(G$2:G133,"№") -> 10 | K132: =IF(COUNTIF(#REF!,'Состав блюд'!$G$129),SUMIF(#REF!,'Состав блюд'!$G$129,#REF!)*SUMIF(#REF!,'Состав блюд'!$G$129,#REF!)*'Состав блюд'!I132,0)/1000 ->  | M132: 2 | P132: =COUNTIF(M$2:M133,"№") -> 10 | Q132: =IF(COUNTIF(#REF!,'Состав блюд'!$M$129),SUMIF(#REF!,'Состав блюд'!$M$129,#REF!)*SUMIF(#REF!,'Состав блюд'!$M$129,#REF!)*'Состав блюд'!O132,0)/1000 ->  | S132: 2 | V132: =COUNTIF(S$2:S133,"№") -> 10 | W132: =IF(COUNTIF(#REF!,'Состав блюд'!$S$129),SUMIF(#REF!,'Состав блюд'!$S$129,#REF!)*SUMIF(#REF!,'Состав блюд'!$S$129,#REF!)*'Состав блюд'!U132,0)/1000 ->  | Y132: 2 | AB132: =COUNTIF(Y$2:Y133,"№") -> 10 | AC132: =IF(COUNTIF(#REF!,'Состав блюд'!$Y$129),SUMIF(#REF!,'Состав блюд'!$Y$129,#REF!)*SUMIF(#REF!,'Состав блюд'!$Y$129,#REF!)*'Состав блюд'!AA132,0)/1000 -> 
A133: 3 | D133: =COUNTIF(A$2:A134,"№") -> 10 | E133: =IF(COUNTIF(#REF!,'Состав блюд'!$A$129),SUMIF(#REF!,'Состав блюд'!$A$129,#REF!)*SUMIF(#REF!,'Состав блюд'!$A$129,#REF!)*'Состав блюд'!C133,0)/1000 ->  | G133: 3 | J133: =COUNTIF(G$2:G134,"№") -> 10 | K133: =IF(COUNTIF(#REF!,'Состав блюд'!$G$129),SUMIF(#REF!,'Состав блюд'!$G$129,#REF!)*SUMIF(#REF!,'Состав блюд'!$G$129,#REF!)*'Состав блюд'!I133,0)/1000 ->  | M133: 3 | P133: =COUNTIF(M$2:M134,"№") -> 10 | Q133: =IF(COUNTIF(#REF!,'Состав блюд'!$M$129),SUMIF(#REF!,'Состав блюд'!$M$129,#REF!)*SUMIF(#REF!,'Состав блюд'!$M$129,#REF!)*'Состав блюд'!O133,0)/1000 ->  | S133: 3 | V133: =COUNTIF(S$2:S134,"№") -> 10 | W133: =IF(COUNTIF(#REF!,'Состав блюд'!$S$129),SUMIF(#REF!,'Состав блюд'!$S$129,#REF!)*SUMIF(#REF!,'Состав блюд'!$S$129,#REF!)*'Состав блюд'!U133,0)/1000 ->  | Y133: 3 | AB133: =COUNTIF(Y$2:Y134,"№") -> 10 | AC133: =IF(COUNTIF(#REF!,'Состав блюд'!$Y$129),SUMIF(#REF!,'Состав блюд'!$Y$129,#REF!)*SUMIF(#REF!,'Состав блюд'!$Y$129,#REF!)*'Состав блюд'!AA133,0)/1000 -> 
A134: 4 | D134: =COUNTIF(A$2:A135,"№") -> 10 | E134: =IF(COUNTIF(#REF!,'Состав блюд'!$A$129),SUMIF(#REF!,'Состав блюд'!$A$129,#REF!)*SUMIF(#REF!,'Состав блюд'!$A$129,#REF!)*'Состав блюд'!C134,0)/1000 ->  | G134: 4 | J134: =COUNTIF(G$2:G135,"№") -> 10 | K134: =IF(COUNTIF(#REF!,'Состав блюд'!$G$129),SUMIF(#REF!,'Состав блюд'!$G$129,#REF!)*SUMIF(#REF!,'Состав блюд'!$G$129,#REF!)*'Состав блюд'!I134,0)/1000 ->  | M134: 4 | P134: =COUNTIF(M$2:M135,"№") -> 10 | Q134: =IF(COUNTIF(#REF!,'Состав блюд'!$M$129),SUMIF(#REF!,'Состав блюд'!$M$129,#REF!)*SUMIF(#REF!,'Состав блюд'!$M$129,#REF!)*'Состав блюд'!O134,0)/1000 ->  | S134: 4 | V134: =COUNTIF(S$2:S135,"№") -> 10 | W134: =IF(COUNTIF(#REF!,'Состав блюд'!$S$129),SUMIF(#REF!,'Состав блюд'!$S$129,#REF!)*SUMIF(#REF!,'Состав блюд'!$S$129,#REF!)*'Состав блюд'!U134,0)/1000 ->  | Y134: 4 | AB134: =COUNTIF(Y$2:Y135,"№") -> 10 | AC134: =IF(COUNTIF(#REF!,'Состав блюд'!$Y$129),SUMIF(#REF!,'Состав блюд'!$Y$129,#REF!)*SUMIF(#REF!,'Состав блюд'!$Y$129,#REF!)*'Состав блюд'!AA134,0)/1000 -> 
A135: 5 | D135: =COUNTIF(A$2:A136,"№") -> 10 | E135: =IF(COUNTIF(#REF!,'Состав блюд'!$A$129),SUMIF(#REF!,'Состав блюд'!$A$129,#REF!)*SUMIF(#REF!,'Состав блюд'!$A$129,#REF!)*'Состав блюд'!C135,0)/1000 ->  | G135: 5 | J135: =COUNTIF(G$2:G136,"№") -> 10 | K135: =IF(COUNTIF(#REF!,'Состав блюд'!$G$129),SUMIF(#REF!,'Состав блюд'!$G$129,#REF!)*SUMIF(#REF!,'Состав блюд'!$G$129,#REF!)*'Состав блюд'!I135,0)/1000 ->  | M135: 5 | P135: =COUNTIF(M$2:M136,"№") -> 10 | Q135: =IF(COUNTIF(#REF!,'Состав блюд'!$M$129),SUMIF(#REF!,'Состав блюд'!$M$129,#REF!)*SUMIF(#REF!,'Состав блюд'!$M$129,#REF!)*'Состав блюд'!O135,0)/1000 ->  | S135: 5 | V135: =COUNTIF(S$2:S136,"№") -> 10 | W135: =IF(COUNTIF(#REF!,'Состав блюд'!$S$129),SUMIF(#REF!,'Состав блюд'!$S$129,#REF!)*SUMIF(#REF!,'Состав блюд'!$S$129,#REF!)*'Состав блюд'!U135,0)/1000 ->  | Y135: 5 | AB135: =COUNTIF(Y$2:Y136,"№") -> 10 | AC135: =IF(COUNTIF(#REF!,'Состав блюд'!$Y$129),SUMIF(#REF!,'Состав блюд'!$Y$129,#REF!)*SUMIF(#REF!,'Состав блюд'!$Y$129,#REF!)*'Состав блюд'!AA135,0)/1000 -> 
A136: 6 | D136: =COUNTIF(A$2:A137,"№") -> 10 | E136: =IF(COUNTIF(#REF!,'Состав блюд'!$A$129),SUMIF(#REF!,'Состав блюд'!$A$129,#REF!)*SUMIF(#REF!,'Состав блюд'!$A$129,#REF!)*'Состав блюд'!C136,0)/1000 ->  | G136: 6 | J136: =COUNTIF(G$2:G137,"№") -> 10 | K136: =IF(COUNTIF(#REF!,'Состав блюд'!$G$129),SUMIF(#REF!,'Состав блюд'!$G$129,#REF!)*SUMIF(#REF!,'Состав блюд'!$G$129,#REF!)*'Состав блюд'!I136,0)/1000 ->  | M136: 6 | P136: =COUNTIF(M$2:M137,"№") -> 10 | Q136: =IF(COUNTIF(#REF!,'Состав блюд'!$M$129),SUMIF(#REF!,'Состав блюд'!$M$129,#REF!)*SUMIF(#REF!,'Состав блюд'!$M$129,#REF!)*'Состав блюд'!O136,0)/1000 ->  | S136: 6 | V136: =COUNTIF(S$2:S137,"№") -> 10 | W136: =IF(COUNTIF(#REF!,'Состав блюд'!$S$129),SUMIF(#REF!,'Состав блюд'!$S$129,#REF!)*SUMIF(#REF!,'Состав блюд'!$S$129,#REF!)*'Состав блюд'!U136,0)/1000 ->  | Y136: 6 | AB136: =COUNTIF(Y$2:Y137,"№") -> 10 | AC136: =IF(COUNTIF(#REF!,'Состав блюд'!$Y$129),SUMIF(#REF!,'Состав блюд'!$Y$129,#REF!)*SUMIF(#REF!,'Состав блюд'!$Y$129,#REF!)*'Состав блюд'!AA136,0)/1000 -> 
A137: 7 | D137: =COUNTIF(A$2:A138,"№") -> 10 | E137: =IF(COUNTIF(#REF!,'Состав блюд'!$A$129),SUMIF(#REF!,'Состав блюд'!$A$129,#REF!)*SUMIF(#REF!,'Состав блюд'!$A$129,#REF!)*'Состав блюд'!C137,0)/1000 ->  | G137: 7 | J137: =COUNTIF(G$2:G138,"№") -> 10 | K137: =IF(COUNTIF(#REF!,'Состав блюд'!$G$129),SUMIF(#REF!,'Состав блюд'!$G$129,#REF!)*SUMIF(#REF!,'Состав блюд'!$G$129,#REF!)*'Состав блюд'!I137,0)/1000 ->  | M137: 7 | P137: =COUNTIF(M$2:M138,"№") -> 10 | Q137: =IF(COUNTIF(#REF!,'Состав блюд'!$M$129),SUMIF(#REF!,'Состав блюд'!$M$129,#REF!)*SUMIF(#REF!,'Состав блюд'!$M$129,#REF!)*'Состав блюд'!O137,0)/1000 ->  | S137: 7 | V137: =COUNTIF(S$2:S138,"№") -> 10 | W137: =IF(COUNTIF(#REF!,'Состав блюд'!$S$129),SUMIF(#REF!,'Состав блюд'!$S$129,#REF!)*SUMIF(#REF!,'Состав блюд'!$S$129,#REF!)*'Состав блюд'!U137,0)/1000 ->  | Y137: 7 | AB137: =COUNTIF(Y$2:Y138,"№") -> 10 | AC137: =IF(COUNTIF(#REF!,'Состав блюд'!$Y$129),SUMIF(#REF!,'Состав блюд'!$Y$129,#REF!)*SUMIF(#REF!,'Состав блюд'!$Y$129,#REF!)*'Состав блюд'!AA137,0)/1000 -> 
A138: 8 | D138: =COUNTIF(A$2:A139,"№") -> 10 | E138: =IF(COUNTIF(#REF!,'Состав блюд'!$A$129),SUMIF(#REF!,'Состав блюд'!$A$129,#REF!)*SUMIF(#REF!,'Состав блюд'!$A$129,#REF!)*'Состав блюд'!C138,0)/1000 ->  | G138: 8 | J138: =COUNTIF(G$2:G139,"№") -> 10 | K138: =IF(COUNTIF(#REF!,'Состав блюд'!$G$129),SUMIF(#REF!,'Состав блюд'!$G$129,#REF!)*SUMIF(#REF!,'Состав блюд'!$G$129,#REF!)*'Состав блюд'!I138,0)/1000 ->  | M138: 8 | P138: =COUNTIF(M$2:M139,"№") -> 10 | Q138: =IF(COUNTIF(#REF!,'Состав блюд'!$M$129),SUMIF(#REF!,'Состав блюд'!$M$129,#REF!)*SUMIF(#REF!,'Состав блюд'!$M$129,#REF!)*'Состав блюд'!O138,0)/1000 ->  | S138: 8 | V138: =COUNTIF(S$2:S139,"№") -> 10 | W138: =IF(COUNTIF(#REF!,'Состав блюд'!$S$129),SUMIF(#REF!,'Состав блюд'!$S$129,#REF!)*SUMIF(#REF!,'Состав блюд'!$S$129,#REF!)*'Состав блюд'!U138,0)/1000 ->  | Y138: 8 | AB138: =COUNTIF(Y$2:Y139,"№") -> 10 | AC138: =IF(COUNTIF(#REF!,'Состав блюд'!$Y$129),SUMIF(#REF!,'Состав блюд'!$Y$129,#REF!)*SUMIF(#REF!,'Состав блюд'!$Y$129,#REF!)*'Состав блюд'!AA138,0)/1000 -> 
A139: 9 | D139: =COUNTIF(A$2:A140,"№") -> 10 | E139: =IF(COUNTIF(#REF!,'Состав блюд'!$A$129),SUMIF(#REF!,'Состав блюд'!$A$129,#REF!)*SUMIF(#REF!,'Состав блюд'!$A$129,#REF!)*'Состав блюд'!C139,0)/1000 ->  | G139: 9 | J139: =COUNTIF(G$2:G140,"№") -> 10 | K139: =IF(COUNTIF(#REF!,'Состав блюд'!$G$129),SUMIF(#REF!,'Состав блюд'!$G$129,#REF!)*SUMIF(#REF!,'Состав блюд'!$G$129,#REF!)*'Состав блюд'!I139,0)/1000 ->  | M139: 9 | P139: =COUNTIF(M$2:M140,"№") -> 10 | Q139: =IF(COUNTIF(#REF!,'Состав блюд'!$M$129),SUMIF(#REF!,'Состав блюд'!$M$129,#REF!)*SUMIF(#REF!,'Состав блюд'!$M$129,#REF!)*'Состав блюд'!O139,0)/1000 ->  | S139: 9 | V139: =COUNTIF(S$2:S140,"№") -> 10 | W139: =IF(COUNTIF(#REF!,'Состав блюд'!$S$129),SUMIF(#REF!,'Состав блюд'!$S$129,#REF!)*SUMIF(#REF!,'Состав блюд'!$S$129,#REF!)*'Состав блюд'!U139,0)/1000 ->  | Y139: 9 | AB139: =COUNTIF(Y$2:Y140,"№") -> 10 | AC139: =IF(COUNTIF(#REF!,'Состав блюд'!$Y$129),SUMIF(#REF!,'Состав блюд'!$Y$129,#REF!)*SUMIF(#REF!,'Состав блюд'!$Y$129,#REF!)*'Состав блюд'!AA139,0)/1000 -> 
D141: =COUNTIF(A$2:A142,"№") -> 11 | J141: =COUNTIF(G$2:G142,"№") -> 11 | P141: =COUNTIF(M$2:M142,"№") -> 11 | V141: =COUNTIF(S$2:S142,"№") -> 11 | AB141: =COUNTIF(Y$2:Y142,"№") -> 11
A142: № | B142: Наименование продукта | C142: Норма, г | D142: =COUNTIF(A$2:A143,"№") -> 11 | G142: № | H142: Наименование продукта | I142: Норма, г | J142: =COUNTIF(G$2:G143,"№") -> 11 | M142: № | N142: Наименование продукта | O142: Норма, г | P142: =COUNTIF(M$2:M143,"№") -> 11 | S142: № | T142: Наименование продукта | U142: Норма, г | V142: =COUNTIF(S$2:S143,"№") -> 11 | Y142: № | Z142: Наименование продукта | AA142: Норма, г | AB142: =COUNTIF(Y$2:Y143,"№") -> 11
A143: 1 | D143: =COUNTIF(A$2:A144,"№") -> 11 | E143: =IF(COUNTIF(#REF!,'Состав блюд'!$A$141),SUMIF(#REF!,'Состав блюд'!$A$141,#REF!)*SUMIF(#REF!,'Состав блюд'!$A$141,#REF!)*'Состав блюд'!C143,0)/1000 ->  | G143: 1 | J143: =COUNTIF(G$2:G144,"№") -> 11 | K143: =IF(COUNTIF(#REF!,'Состав блюд'!$G$141),SUMIF(#REF!,'Состав блюд'!$G$141,#REF!)*SUMIF(#REF!,'Состав блюд'!$G$141,#REF!)*'Состав блюд'!I143,0)/1000 ->  | M143: 1 | P143: =COUNTIF(M$2:M144,"№") -> 11 | Q143: =IF(COUNTIF(#REF!,'Состав блюд'!$M$141),SUMIF(#REF!,'Состав блюд'!$M$141,#REF!)*SUMIF(#REF!,'Состав блюд'!$M$141,#REF!)*'Состав блюд'!O143,0)/1000 ->  | S143: 1 | V143: =COUNTIF(S$2:S144,"№") -> 11 | W143: =IF(COUNTIF(#REF!,'Состав блюд'!$S$141),SUMIF(#REF!,'Состав блюд'!$S$141,#REF!)*SUMIF(#REF!,'Состав блюд'!$S$141,#REF!)*'Состав блюд'!U143,0)/1000 ->  | Y143: 1 | AB143: =COUNTIF(Y$2:Y144,"№") -> 11 | AC143: =IF(COUNTIF(#REF!,'Состав блюд'!$Y$141),SUMIF(#REF!,'Состав блюд'!$Y$141,#REF!)*SUMIF(#REF!,'Состав блюд'!$Y$141,#REF!)*'Состав блюд'!AA143,0)/1000 -> 
A144: 2 | D144: =COUNTIF(A$2:A145,"№") -> 11 | E144: =IF(COUNTIF(#REF!,'Состав блюд'!$A$141),SUMIF(#REF!,'Состав блюд'!$A$141,#REF!)*SUMIF(#REF!,'Состав блюд'!$A$141,#REF!)*'Состав блюд'!C144,0)/1000 ->  | G144: 2 | J144: =COUNTIF(G$2:G145,"№") -> 11 | K144: =IF(COUNTIF(#REF!,'Состав блюд'!$G$141),SUMIF(#REF!,'Состав блюд'!$G$141,#REF!)*SUMIF(#REF!,'Состав блюд'!$G$141,#REF!)*'Состав блюд'!I144,0)/1000 ->  | M144: 2 | P144: =COUNTIF(M$2:M145,"№") -> 11 | Q144: =IF(COUNTIF(#REF!,'Состав блюд'!$M$141),SUMIF(#REF!,'Состав блюд'!$M$141,#REF!)*SUMIF(#REF!,'Состав блюд'!$M$141,#REF!)*'Состав блюд'!O144,0)/1000 ->  | S144: 2 | V144: =COUNTIF(S$2:S145,"№") -> 11 | W144: =IF(COUNTIF(#REF!,'Состав блюд'!$S$141),SUMIF(#REF!,'Состав блюд'!$S$141,#REF!)*SUMIF(#REF!,'Состав блюд'!$S$141,#REF!)*'Состав блюд'!U144,0)/1000 ->  | Y144: 2 | AB144: =COUNTIF(Y$2:Y145,"№") -> 11 | AC144: =IF(COUNTIF(#REF!,'Состав блюд'!$Y$141),SUMIF(#REF!,'Состав блюд'!$Y$141,#REF!)*SUMIF(#REF!,'Состав блюд'!$Y$141,#REF!)*'Состав блюд'!AA144,0)/1000 -> 
A145: 3 | D145: =COUNTIF(A$2:A146,"№") -> 11 | E145: =IF(COUNTIF(#REF!,'Состав блюд'!$A$141),SUMIF(#REF!,'Состав блюд'!$A$141,#REF!)*SUMIF(#REF!,'Состав блюд'!$A$141,#REF!)*'Состав блюд'!C145,0)/1000 ->  | G145: 3 | J145: =COUNTIF(G$2:G146,"№") -> 11 | K145: =IF(COUNTIF(#REF!,'Состав блюд'!$G$141),SUMIF(#REF!,'Состав блюд'!$G$141,#REF!)*SUMIF(#REF!,'Состав блюд'!$G$141,#REF!)*'Состав блюд'!I145,0)/1000 ->  | M145: 3 | P145: =COUNTIF(M$2:M146,"№") -> 11 | Q145: =IF(COUNTIF(#REF!,'Состав блюд'!$M$141),SUMIF(#REF!,'Состав блюд'!$M$141,#REF!)*SUMIF(#REF!,'Состав блюд'!$M$141,#REF!)*'Состав блюд'!O145,0)/1000 ->  | S145: 3 | V145: =COUNTIF(S$2:S146,"№") -> 11 | W145: =IF(COUNTIF(#REF!,'Состав блюд'!$S$141),SUMIF(#REF!,'Состав блюд'!$S$141,#REF!)*SUMIF(#REF!,'Состав блюд'!$S$141,#REF!)*'Состав блюд'!U145,0)/1000 ->  | Y145: 3 | AB145: =COUNTIF(Y$2:Y146,"№") -> 11 | AC145: =IF(COUNTIF(#REF!,'Состав блюд'!$Y$141),SUMIF(#REF!,'Состав блюд'!$Y$141,#REF!)*SUMIF(#REF!,'Состав блюд'!$Y$141,#REF!)*'Состав блюд'!AA145,0)/1000 -> 
A146: 4 | D146: =COUNTIF(A$2:A147,"№") -> 11 | E146: =IF(COUNTIF(#REF!,'Состав блюд'!$A$141),SUMIF(#REF!,'Состав блюд'!$A$141,#REF!)*SUMIF(#REF!,'Состав блюд'!$A$141,#REF!)*'Состав блюд'!C146,0)/1000 ->  | G146: 4 | J146: =COUNTIF(G$2:G147,"№") -> 11 | K146: =IF(COUNTIF(#REF!,'Состав блюд'!$G$141),SUMIF(#REF!,'Состав блюд'!$G$141,#REF!)*SUMIF(#REF!,'Состав блюд'!$G$141,#REF!)*'Состав блюд'!I146,0)/1000 ->  | M146: 4 | P146: =COUNTIF(M$2:M147,"№") -> 11 | Q146: =IF(COUNTIF(#REF!,'Состав блюд'!$M$141),SUMIF(#REF!,'Состав блюд'!$M$141,#REF!)*SUMIF(#REF!,'Состав блюд'!$M$141,#REF!)*'Состав блюд'!O146,0)/1000 ->  | S146: 4 | V146: =COUNTIF(S$2:S147,"№") -> 11 | W146: =IF(COUNTIF(#REF!,'Состав блюд'!$S$141),SUMIF(#REF!,'Состав блюд'!$S$141,#REF!)*SUMIF(#REF!,'Состав блюд'!$S$141,#REF!)*'Состав блюд'!U146,0)/1000 ->  | Y146: 4 | AB146: =COUNTIF(Y$2:Y147,"№") -> 11 | AC146: =IF(COUNTIF(#REF!,'Состав блюд'!$Y$141),SUMIF(#REF!,'Состав блюд'!$Y$141,#REF!)*SUMIF(#REF!,'Состав блюд'!$Y$141,#REF!)*'Состав блюд'!AA146,0)/1000 -> 
A147: 5 | D147: =COUNTIF(A$2:A148,"№") -> 11 | E147: =IF(COUNTIF(#REF!,'Состав блюд'!$A$141),SUMIF(#REF!,'Состав блюд'!$A$141,#REF!)*SUMIF(#REF!,'Состав блюд'!$A$141,#REF!)*'Состав блюд'!C147,0)/1000 ->  | G147: 5 | J147: =COUNTIF(G$2:G148,"№") -> 11 | K147: =IF(COUNTIF(#REF!,'Состав блюд'!$G$141),SUMIF(#REF!,'Состав блюд'!$G$141,#REF!)*SUMIF(#REF!,'Состав блюд'!$G$141,#REF!)*'Состав блюд'!I147,0)/1000 ->  | M147: 5 | P147: =COUNTIF(M$2:M148,"№") -> 11 | Q147: =IF(COUNTIF(#REF!,'Состав блюд'!$M$141),SUMIF(#REF!,'Состав блюд'!$M$141,#REF!)*SUMIF(#REF!,'Состав блюд'!$M$141,#REF!)*'Состав блюд'!O147,0)/1000 ->  | S147: 5 | V147: =COUNTIF(S$2:S148,"№") -> 11 | W147: =IF(COUNTIF(#REF!,'Состав блюд'!$S$141),SUMIF(#REF!,'Состав блюд'!$S$141,#REF!)*SUMIF(#REF!,'Состав блюд'!$S$141,#REF!)*'Состав блюд'!U147,0)/1000 ->  | Y147: 5 | AB147: =COUNTIF(Y$2:Y148,"№") -> 11 | AC147: =IF(COUNTIF(#REF!,'Состав блюд'!$Y$141),SUMIF(#REF!,'Состав блюд'!$Y$141,#REF!)*SUMIF(#REF!,'Состав блюд'!$Y$141,#REF!)*'Состав блюд'!AA147,0)/1000 -> 
A148: 6 | D148: =COUNTIF(A$2:A149,"№") -> 11 | E148: =IF(COUNTIF(#REF!,'Состав блюд'!$A$141),SUMIF(#REF!,'Состав блюд'!$A$141,#REF!)*SUMIF(#REF!,'Состав блюд'!$A$141,#REF!)*'Состав блюд'!C148,0)/1000 ->  | G148: 6 | J148: =COUNTIF(G$2:G149,"№") -> 11 | K148: =IF(COUNTIF(#REF!,'Состав блюд'!$G$141),SUMIF(#REF!,'Состав блюд'!$G$141,#REF!)*SUMIF(#REF!,'Состав блюд'!$G$141,#REF!)*'Состав блюд'!I148,0)/1000 ->  | M148: 6 | P148: =COUNTIF(M$2:M149,"№") -> 11 | Q148: =IF(COUNTIF(#REF!,'Состав блюд'!$M$141),SUMIF(#REF!,'Состав блюд'!$M$141,#REF!)*SUMIF(#REF!,'Состав блюд'!$M$141,#REF!)*'Состав блюд'!O148,0)/1000 ->  | S148: 6 | V148: =COUNTIF(S$2:S149,"№") -> 11 | W148: =IF(COUNTIF(#REF!,'Состав блюд'!$S$141),SUMIF(#REF!,'Состав блюд'!$S$141,#REF!)*SUMIF(#REF!,'Состав блюд'!$S$141,#REF!)*'Состав блюд'!U148,0)/1000 ->  | Y148: 6 | AB148: =COUNTIF(Y$2:Y149,"№") -> 11 | AC148: =IF(COUNTIF(#REF!,'Состав блюд'!$Y$141),SUMIF(#REF!,'Состав блюд'!$Y$141,#REF!)*SUMIF(#REF!,'Состав блюд'!$Y$141,#REF!)*'Состав блюд'!AA148,0)/1000 -> 
A149: 7 | D149: =COUNTIF(A$2:A150,"№") -> 11 | E149: =IF(COUNTIF(#REF!,'Состав блюд'!$A$141),SUMIF(#REF!,'Состав блюд'!$A$141,#REF!)*SUMIF(#REF!,'Состав блюд'!$A$141,#REF!)*'Состав блюд'!C149,0)/1000 ->  | G149: 7 | J149: =COUNTIF(G$2:G150,"№") -> 11 | K149: =IF(COUNTIF(#REF!,'Состав блюд'!$G$141),SUMIF(#REF!,'Состав блюд'!$G$141,#REF!)*SUMIF(#REF!,'Состав блюд'!$G$141,#REF!)*'Состав блюд'!I149,0)/1000 ->  | M149: 7 | P149: =COUNTIF(M$2:M150,"№") -> 11 | Q149: =IF(COUNTIF(#REF!,'Состав блюд'!$M$141),SUMIF(#REF!,'Состав блюд'!$M$141,#REF!)*SUMIF(#REF!,'Состав блюд'!$M$141,#REF!)*'Состав блюд'!O149,0)/1000 ->  | S149: 7 | V149: =COUNTIF(S$2:S150,"№") -> 11 | W149: =IF(COUNTIF(#REF!,'Состав блюд'!$S$141),SUMIF(#REF!,'Состав блюд'!$S$141,#REF!)*SUMIF(#REF!,'Состав блюд'!$S$141,#REF!)*'Состав блюд'!U149,0)/1000 ->  | Y149: 7 | AB149: =COUNTIF(Y$2:Y150,"№") -> 11 | AC149: =IF(COUNTIF(#REF!,'Состав блюд'!$Y$141),SUMIF(#REF!,'Состав блюд'!$Y$141,#REF!)*SUMIF(#REF!,'Состав блюд'!$Y$141,#REF!)*'Состав блюд'!AA149,0)/1000 -> 
A150: 8 | D150: =COUNTIF(A$2:A151,"№") -> 11 | E150: =IF(COUNTIF(#REF!,'Состав блюд'!$A$141),SUMIF(#REF!,'Состав блюд'!$A$141,#REF!)*SUMIF(#REF!,'Состав блюд'!$A$141,#REF!)*'Состав блюд'!C150,0)/1000 ->  | G150: 8 | J150: =COUNTIF(G$2:G151,"№") -> 11 | K150: =IF(COUNTIF(#REF!,'Состав блюд'!$G$141),SUMIF(#REF!,'Состав блюд'!$G$141,#REF!)*SUMIF(#REF!,'Состав блюд'!$G$141,#REF!)*'Состав блюд'!I150,0)/1000 ->  | M150: 8 | P150: =COUNTIF(M$2:M151,"№") -> 11 | Q150: =IF(COUNTIF(#REF!,'Состав блюд'!$M$141),SUMIF(#REF!,'Состав блюд'!$M$141,#REF!)*SUMIF(#REF!,'Состав блюд'!$M$141,#REF!)*'Состав блюд'!O150,0)/1000 ->  | S150: 8 | V150: =COUNTIF(S$2:S151,"№") -> 11 | W150: =IF(COUNTIF(#REF!,'Состав блюд'!$S$141),SUMIF(#REF!,'Состав блюд'!$S$141,#REF!)*SUMIF(#REF!,'Состав блюд'!$S$141,#REF!)*'Состав блюд'!U150,0)/1000 ->  | Y150: 8 | AB150: =COUNTIF(Y$2:Y151,"№") -> 11 | AC150: =IF(COUNTIF(#REF!,'Состав блюд'!$Y$141),SUMIF(#REF!,'Состав блюд'!$Y$141,#REF!)*SUMIF(#REF!,'Состав блюд'!$Y$141,#REF!)*'Состав блюд'!AA150,0)/1000 -> 
A151: 9 | D151: =COUNTIF(A$2:A152,"№") -> 11 | E151: =IF(COUNTIF(#REF!,'Состав блюд'!$A$141),SUMIF(#REF!,'Состав блюд'!$A$141,#REF!)*SUMIF(#REF!,'Состав блюд'!$A$141,#REF!)*'Состав блюд'!C151,0)/1000 ->  | G151: 9 | J151: =COUNTIF(G$2:G152,"№") -> 11 | K151: =IF(COUNTIF(#REF!,'Состав блюд'!$G$141),SUMIF(#REF!,'Состав блюд'!$G$141,#REF!)*SUMIF(#REF!,'Состав блюд'!$G$141,#REF!)*'Состав блюд'!I151,0)/1000 ->  | M151: 9 | P151: =COUNTIF(M$2:M152,"№") -> 11 | Q151: =IF(COUNTIF(#REF!,'Состав блюд'!$M$141),SUMIF(#REF!,'Состав блюд'!$M$141,#REF!)*SUMIF(#REF!,'Состав блюд'!$M$141,#REF!)*'Состав блюд'!O151,0)/1000 ->  | S151: 9 | V151: =COUNTIF(S$2:S152,"№") -> 11 | W151: =IF(COUNTIF(#REF!,'Состав блюд'!$S$141),SUMIF(#REF!,'Состав блюд'!$S$141,#REF!)*SUMIF(#REF!,'Состав блюд'!$S$141,#REF!)*'Состав блюд'!U151,0)/1000 ->  | Y151: 9 | AB151: =COUNTIF(Y$2:Y152,"№") -> 11 | AC151: =IF(COUNTIF(#REF!,'Состав блюд'!$Y$141),SUMIF(#REF!,'Состав блюд'!$Y$141,#REF!)*SUMIF(#REF!,'Состав блюд'!$Y$141,#REF!)*'Состав блюд'!AA151,0)/1000 -> 
D153: 12 | J153: 12 | P153: 12 | V153: 12 | AB153: 12
A154: № | B154: Наименование продукта | C154: Норма, г | D154: 12 | G154: № | H154: Наименование продукта | I154: Норма, г | J154: 12 | M154: № | N154: Наименование продукта | O154: Норма, г | P154: 12 | S154: № | T154: Наименование продукта | U154: Норма, г | V154: 12 | Y154: № | Z154: Наименование продукта | AA154: Норма, г | AB154: 12
A155: 1 | D155: 12 | E155: =IF(COUNTIF(#REF!,'Состав блюд'!$A$153),SUMIF(#REF!,'Состав блюд'!$A$153,#REF!)*SUMIF(#REF!,'Состав блюд'!$A$153,#REF!)*'Состав блюд'!C155,0)/1000 ->  | G155: 1 | J155: 12 | K155: =IF(COUNTIF(#REF!,'Состав блюд'!$G$153),SUMIF(#REF!,'Состав блюд'!$G$153,#REF!)*SUMIF(#REF!,'Состав блюд'!$G$153,#REF!)*'Состав блюд'!I155,0)/1000 ->  | M155: 1 | P155: 12 | Q155: =IF(COUNTIF(#REF!,'Состав блюд'!$M$153),SUMIF(#REF!,'Состав блюд'!$M$153,#REF!)*SUMIF(#REF!,'Состав блюд'!$M$153,#REF!)*'Состав блюд'!O155,0)/1000 ->  | S155: 1 | V155: 12 | W155: =IF(COUNTIF(#REF!,'Состав блюд'!$S$153),SUMIF(#REF!,'Состав блюд'!$S$153,#REF!)*SUMIF(#REF!,'Состав блюд'!$S$153,#REF!)*'Состав блюд'!U155,0)/1000 ->  | Y155: 1 | AB155: 12 | AC155: =IF(COUNTIF(#REF!,'Состав блюд'!$Y$153),SUMIF(#REF!,'Состав блюд'!$Y$153,#REF!)*SUMIF(#REF!,'Состав блюд'!$Y$153,#REF!)*'Состав блюд'!AA155,0)/1000 -> 
A156: 2 | D156: 12 | E156: =IF(COUNTIF(#REF!,'Состав блюд'!$A$153),SUMIF(#REF!,'Состав блюд'!$A$153,#REF!)*SUMIF(#REF!,'Состав блюд'!$A$153,#REF!)*'Состав блюд'!C156,0)/1000 ->  | G156: 2 | J156: 12 | K156: =IF(COUNTIF(#REF!,'Состав блюд'!$G$153),SUMIF(#REF!,'Состав блюд'!$G$153,#REF!)*SUMIF(#REF!,'Состав блюд'!$G$153,#REF!)*'Состав блюд'!I156,0)/1000 ->  | M156: 2 | P156: 12 | Q156: =IF(COUNTIF(#REF!,'Состав блюд'!$M$153),SUMIF(#REF!,'Состав блюд'!$M$153,#REF!)*SUMIF(#REF!,'Состав блюд'!$M$153,#REF!)*'Состав блюд'!O156,0)/1000 ->  | S156: 2 | V156: 12 | W156: =IF(COUNTIF(#REF!,'Состав блюд'!$S$153),SUMIF(#REF!,'Состав блюд'!$S$153,#REF!)*SUMIF(#REF!,'Состав блюд'!$S$153,#REF!)*'Состав блюд'!U156,0)/1000 ->  | Y156: 2 | AB156: 12 | AC156: =IF(COUNTIF(#REF!,'Состав блюд'!$Y$153),SUMIF(#REF!,'Состав блюд'!$Y$153,#REF!)*SUMIF(#REF!,'Состав блюд'!$Y$153,#REF!)*'Состав блюд'!AA156,0)/1000 -> 
A157: 3 | D157: 12 | E157: =IF(COUNTIF(#REF!,'Состав блюд'!$A$153),SUMIF(#REF!,'Состав блюд'!$A$153,#REF!)*SUMIF(#REF!,'Состав блюд'!$A$153,#REF!)*'Состав блюд'!C157,0)/1000 ->  | G157: 3 | J157: 12 | K157: =IF(COUNTIF(#REF!,'Состав блюд'!$G$153),SUMIF(#REF!,'Состав блюд'!$G$153,#REF!)*SUMIF(#REF!,'Состав блюд'!$G$153,#REF!)*'Состав блюд'!I157,0)/1000 ->  | M157: 3 | P157: 12 | Q157: =IF(COUNTIF(#REF!,'Состав блюд'!$M$153),SUMIF(#REF!,'Состав блюд'!$M$153,#REF!)*SUMIF(#REF!,'Состав блюд'!$M$153,#REF!)*'Состав блюд'!O157,0)/1000 ->  | S157: 3 | V157: 12 | W157: =IF(COUNTIF(#REF!,'Состав блюд'!$S$153),SUMIF(#REF!,'Состав блюд'!$S$153,#REF!)*SUMIF(#REF!,'Состав блюд'!$S$153,#REF!)*'Состав блюд'!U157,0)/1000 ->  | Y157: 3 | AB157: 12 | AC157: =IF(COUNTIF(#REF!,'Состав блюд'!$Y$153),SUMIF(#REF!,'Состав блюд'!$Y$153,#REF!)*SUMIF(#REF!,'Состав блюд'!$Y$153,#REF!)*'Состав блюд'!AA157,0)/1000 -> 
A158: 4 | D158: 12 | E158: =IF(COUNTIF(#REF!,'Состав блюд'!$A$153),SUMIF(#REF!,'Состав блюд'!$A$153,#REF!)*SUMIF(#REF!,'Состав блюд'!$A$153,#REF!)*'Состав блюд'!C158,0)/1000 ->  | G158: 4 | J158: 12 | K158: =IF(COUNTIF(#REF!,'Состав блюд'!$G$153),SUMIF(#REF!,'Состав блюд'!$G$153,#REF!)*SUMIF(#REF!,'Состав блюд'!$G$153,#REF!)*'Состав блюд'!I158,0)/1000 ->  | M158: 4 | P158: 12 | Q158: =IF(COUNTIF(#REF!,'Состав блюд'!$M$153),SUMIF(#REF!,'Состав блюд'!$M$153,#REF!)*SUMIF(#REF!,'Состав блюд'!$M$153,#REF!)*'Состав блюд'!O158,0)/1000 ->  | S158: 4 | V158: 12 | W158: =IF(COUNTIF(#REF!,'Состав блюд'!$S$153),SUMIF(#REF!,'Состав блюд'!$S$153,#REF!)*SUMIF(#REF!,'Состав блюд'!$S$153,#REF!)*'Состав блюд'!U158,0)/1000 ->  | Y158: 4 | AB158: 12 | AC158: =IF(COUNTIF(#REF!,'Состав блюд'!$Y$153),SUMIF(#REF!,'Состав блюд'!$Y$153,#REF!)*SUMIF(#REF!,'Состав блюд'!$Y$153,#REF!)*'Состав блюд'!AA158,0)/1000 -> 
A159: 5 | D159: 12 | E159: =IF(COUNTIF(#REF!,'Состав блюд'!$A$153),SUMIF(#REF!,'Состав блюд'!$A$153,#REF!)*SUMIF(#REF!,'Состав блюд'!$A$153,#REF!)*'Состав блюд'!C159,0)/1000 ->  | G159: 5 | J159: 12 | K159: =IF(COUNTIF(#REF!,'Состав блюд'!$G$153),SUMIF(#REF!,'Состав блюд'!$G$153,#REF!)*SUMIF(#REF!,'Состав блюд'!$G$153,#REF!)*'Состав блюд'!I159,0)/1000 ->  | M159: 5 | P159: 12 | Q159: =IF(COUNTIF(#REF!,'Состав блюд'!$M$153),SUMIF(#REF!,'Состав блюд'!$M$153,#REF!)*SUMIF(#REF!,'Состав блюд'!$M$153,#REF!)*'Состав блюд'!O159,0)/1000 ->  | S159: 5 | V159: 12 | W159: =IF(COUNTIF(#REF!,'Состав блюд'!$S$153),SUMIF(#REF!,'Состав блюд'!$S$153,#REF!)*SUMIF(#REF!,'Состав блюд'!$S$153,#REF!)*'Состав блюд'!U159,0)/1000 ->  | Y159: 5 | AB159: 12 | AC159: =IF(COUNTIF(#REF!,'Состав блюд'!$Y$153),SUMIF(#REF!,'Состав блюд'!$Y$153,#REF!)*SUMIF(#REF!,'Состав блюд'!$Y$153,#REF!)*'Состав блюд'!AA159,0)/1000 -> 
A160: 6 | D160: 12 | E160: =IF(COUNTIF(#REF!,'Состав блюд'!$A$153),SUMIF(#REF!,'Состав блюд'!$A$153,#REF!)*SUMIF(#REF!,'Состав блюд'!$A$153,#REF!)*'Состав блюд'!C160,0)/1000 ->  | G160: 6 | J160: 12 | K160: =IF(COUNTIF(#REF!,'Состав блюд'!$G$153),SUMIF(#REF!,'Состав блюд'!$G$153,#REF!)*SUMIF(#REF!,'Состав блюд'!$G$153,#REF!)*'Состав блюд'!I160,0)/1000 ->  | M160: 6 | P160: 12 | Q160: =IF(COUNTIF(#REF!,'Состав блюд'!$M$153),SUMIF(#REF!,'Состав блюд'!$M$153,#REF!)*SUMIF(#REF!,'Состав блюд'!$M$153,#REF!)*'Состав блюд'!O160,0)/1000 ->  | S160: 6 | V160: 12 | W160: =IF(COUNTIF(#REF!,'Состав блюд'!$S$153),SUMIF(#REF!,'Состав блюд'!$S$153,#REF!)*SUMIF(#REF!,'Состав блюд'!$S$153,#REF!)*'Состав блюд'!U160,0)/1000 ->  | Y160: 6 | AB160: 12 | AC160: =IF(COUNTIF(#REF!,'Состав блюд'!$Y$153),SUMIF(#REF!,'Состав блюд'!$Y$153,#REF!)*SUMIF(#REF!,'Состав блюд'!$Y$153,#REF!)*'Состав блюд'!AA160,0)/1000 -> 
A161: 7 | D161: 12 | E161: =IF(COUNTIF(#REF!,'Состав блюд'!$A$153),SUMIF(#REF!,'Состав блюд'!$A$153,#REF!)*SUMIF(#REF!,'Состав блюд'!$A$153,#REF!)*'Состав блюд'!C161,0)/1000 ->  | G161: 7 | J161: 12 | K161: =IF(COUNTIF(#REF!,'Состав блюд'!$G$153),SUMIF(#REF!,'Состав блюд'!$G$153,#REF!)*SUMIF(#REF!,'Состав блюд'!$G$153,#REF!)*'Состав блюд'!I161,0)/1000 ->  | M161: 7 | P161: 12 | Q161: =IF(COUNTIF(#REF!,'Состав блюд'!$M$153),SUMIF(#REF!,'Состав блюд'!$M$153,#REF!)*SUMIF(#REF!,'Состав блюд'!$M$153,#REF!)*'Состав блюд'!O161,0)/1000 ->  | S161: 7 | V161: 12 | W161: =IF(COUNTIF(#REF!,'Состав блюд'!$S$153),SUMIF(#REF!,'Состав блюд'!$S$153,#REF!)*SUMIF(#REF!,'Состав блюд'!$S$153,#REF!)*'Состав блюд'!U161,0)/1000 ->  | Y161: 7 | AB161: 12 | AC161: =IF(COUNTIF(#REF!,'Состав блюд'!$Y$153),SUMIF(#REF!,'Состав блюд'!$Y$153,#REF!)*SUMIF(#REF!,'Состав блюд'!$Y$153,#REF!)*'Состав блюд'!AA161,0)/1000 -> 
A162: 8 | D162: 12 | E162: =IF(COUNTIF(#REF!,'Состав блюд'!$A$153),SUMIF(#REF!,'Состав блюд'!$A$153,#REF!)*SUMIF(#REF!,'Состав блюд'!$A$153,#REF!)*'Состав блюд'!C162,0)/1000 ->  | G162: 8 | J162: 12 | K162: =IF(COUNTIF(#REF!,'Состав блюд'!$G$153),SUMIF(#REF!,'Состав блюд'!$G$153,#REF!)*SUMIF(#REF!,'Состав блюд'!$G$153,#REF!)*'Состав блюд'!I162,0)/1000 ->  | M162: 8 | P162: 12 | Q162: =IF(COUNTIF(#REF!,'Состав блюд'!$M$153),SUMIF(#REF!,'Состав блюд'!$M$153,#REF!)*SUMIF(#REF!,'Состав блюд'!$M$153,#REF!)*'Состав блюд'!O162,0)/1000 ->  | S162: 8 | V162: 12 | W162: =IF(COUNTIF(#REF!,'Состав блюд'!$S$153),SUMIF(#REF!,'Состав блюд'!$S$153,#REF!)*SUMIF(#REF!,'Состав блюд'!$S$153,#REF!)*'Состав блюд'!U162,0)/1000 ->  | Y162: 8 | AB162: 12 | AC162: =IF(COUNTIF(#REF!,'Состав блюд'!$Y$153),SUMIF(#REF!,'Состав блюд'!$Y$153,#REF!)*SUMIF(#REF!,'Состав блюд'!$Y$153,#REF!)*'Состав блюд'!AA162,0)/1000 -> 
A163: 9 | D163: 12 | E163: =IF(COUNTIF(#REF!,'Состав блюд'!$A$153),SUMIF(#REF!,'Состав блюд'!$A$153,#REF!)*SUMIF(#REF!,'Состав блюд'!$A$153,#REF!)*'Состав блюд'!C163,0)/1000 ->  | G163: 9 | J163: 12 | K163: =IF(COUNTIF(#REF!,'Состав блюд'!$G$153),SUMIF(#REF!,'Состав блюд'!$G$153,#REF!)*SUMIF(#REF!,'Состав блюд'!$G$153,#REF!)*'Состав блюд'!I163,0)/1000 ->  | M163: 9 | P163: 12 | Q163: =IF(COUNTIF(#REF!,'Состав блюд'!$M$153),SUMIF(#REF!,'Состав блюд'!$M$153,#REF!)*SUMIF(#REF!,'Состав блюд'!$M$153,#REF!)*'Состав блюд'!O163,0)/1000 ->  | S163: 9 | V163: 12 | W163: =IF(COUNTIF(#REF!,'Состав блюд'!$S$153),SUMIF(#REF!,'Состав блюд'!$S$153,#REF!)*SUMIF(#REF!,'Состав блюд'!$S$153,#REF!)*'Состав блюд'!U163,0)/1000 ->  | Y163: 9 | AB163: 12 | AC163: =IF(COUNTIF(#REF!,'Состав блюд'!$Y$153),SUMIF(#REF!,'Состав блюд'!$Y$153,#REF!)*SUMIF(#REF!,'Состав блюд'!$Y$153,#REF!)*'Состав блюд'!AA163,0)/1000 -> 
A164: 10 | D164: 12 | E164: =IF(COUNTIF(#REF!,'Состав блюд'!$A$153),SUMIF(#REF!,'Состав блюд'!$A$153,#REF!)*SUMIF(#REF!,'Состав блюд'!$A$153,#REF!)*'Состав блюд'!C164,0)/1000 ->  | G164: 10 | J164: 12 | K164: =IF(COUNTIF(#REF!,'Состав блюд'!$G$153),SUMIF(#REF!,'Состав блюд'!$G$153,#REF!)*SUMIF(#REF!,'Состав блюд'!$G$153,#REF!)*'Состав блюд'!I164,0)/1000 ->  | M164: 10 | P164: 12 | Q164: =IF(COUNTIF(#REF!,'Состав блюд'!$M$153),SUMIF(#REF!,'Состав блюд'!$M$153,#REF!)*SUMIF(#REF!,'Состав блюд'!$M$153,#REF!)*'Состав блюд'!O164,0)/1000 ->  | S164: 10 | V164: 12 | W164: =IF(COUNTIF(#REF!,'Состав блюд'!$S$153),SUMIF(#REF!,'Состав блюд'!$S$153,#REF!)*SUMIF(#REF!,'Состав блюд'!$S$153,#REF!)*'Состав блюд'!U164,0)/1000 ->  | Y164: 10 | AB164: 12 | AC164: =IF(COUNTIF(#REF!,'Состав блюд'!$Y$153),SUMIF(#REF!,'Состав блюд'!$Y$153,#REF!)*SUMIF(#REF!,'Состав блюд'!$Y$153,#REF!)*'Состав блюд'!AA164,0)/1000 -> 
A165: 11 | D165: 12 | E165: =IF(COUNTIF(#REF!,'Состав блюд'!$A$153),SUMIF(#REF!,'Состав блюд'!$A$153,#REF!)*SUMIF(#REF!,'Состав блюд'!$A$153,#REF!)*'Состав блюд'!C165,0)/1000 ->  | G165: 11 | J165: 12 | K165: =IF(COUNTIF(#REF!,'Состав блюд'!$G$153),SUMIF(#REF!,'Состав блюд'!$G$153,#REF!)*SUMIF(#REF!,'Состав блюд'!$G$153,#REF!)*'Состав блюд'!I165,0)/1000 ->  | M165: 11 | P165: 12 | Q165: =IF(COUNTIF(#REF!,'Состав блюд'!$M$153),SUMIF(#REF!,'Состав блюд'!$M$153,#REF!)*SUMIF(#REF!,'Состав блюд'!$M$153,#REF!)*'Состав блюд'!O165,0)/1000 ->  | S165: 11 | V165: 12 | W165: =IF(COUNTIF(#REF!,'Состав блюд'!$S$153),SUMIF(#REF!,'Состав блюд'!$S$153,#REF!)*SUMIF(#REF!,'Состав блюд'!$S$153,#REF!)*'Состав блюд'!U165,0)/1000 ->  | Y165: 11 | AB165: 12 | AC165: =IF(COUNTIF(#REF!,'Состав блюд'!$Y$153),SUMIF(#REF!,'Состав блюд'!$Y$153,#REF!)*SUMIF(#REF!,'Состав блюд'!$Y$153,#REF!)*'Состав блюд'!AA165,0)/1000 -> 
D167: 13 | J167: 13 | P167: 13 | V167: 13 | AB167: 13
A168: № | B168: Наименование продукта | C168: Норма, г | D168: 13 | G168: № | H168: Наименование продукта | I168: Норма, г | J168: 13 | M168: № | N168: Наименование продукта | O168: Норма, г | P168: 13 | S168: № | T168: Наименование продукта | U168: Норма, г | V168: 13 | Y168: № | Z168: Наименование продукта | AA168: Норма, г | AB168: 13
A169: 1 | D169: 13 | E169: =IF(COUNTIF(#REF!,'Состав блюд'!$A$167),SUMIF(#REF!,'Состав блюд'!$A$167,#REF!)*SUMIF(#REF!,'Состав блюд'!$A$167,#REF!)*'Состав блюд'!C169,0)/1000 ->  | G169: 1 | J169: 13 | K169: =IF(COUNTIF(#REF!,'Состав блюд'!$G$167),SUMIF(#REF!,'Состав блюд'!$G$167,#REF!)*SUMIF(#REF!,'Состав блюд'!$G$167,#REF!)*'Состав блюд'!I169,0)/1000 ->  | M169: 1 | P169: 13 | Q169: =IF(COUNTIF(#REF!,'Состав блюд'!$M$167),SUMIF(#REF!,'Состав блюд'!$M$167,#REF!)*SUMIF(#REF!,'Состав блюд'!$M$167,#REF!)*'Состав блюд'!O169,0)/1000 ->  | S169: 1 | V169: 13 | W169: =IF(COUNTIF(#REF!,'Состав блюд'!$S$167),SUMIF(#REF!,'Состав блюд'!$S$167,#REF!)*SUMIF(#REF!,'Состав блюд'!$S$167,#REF!)*'Состав блюд'!U169,0)/1000 ->  | Y169: 1 | AB169: 13 | AC169: =IF(COUNTIF(#REF!,'Состав блюд'!$Y$167),SUMIF(#REF!,'Состав блюд'!$Y$167,#REF!)*SUMIF(#REF!,'Состав блюд'!$Y$167,#REF!)*'Состав блюд'!AA169,0)/1000 -> 
A170: 2 | D170: 13 | E170: =IF(COUNTIF(#REF!,'Состав блюд'!$A$167),SUMIF(#REF!,'Состав блюд'!$A$167,#REF!)*SUMIF(#REF!,'Состав блюд'!$A$167,#REF!)*'Состав блюд'!C170,0)/1000 ->  | G170: 2 | J170: 13 | K170: =IF(COUNTIF(#REF!,'Состав блюд'!$G$167),SUMIF(#REF!,'Состав блюд'!$G$167,#REF!)*SUMIF(#REF!,'Состав блюд'!$G$167,#REF!)*'Состав блюд'!I170,0)/1000 ->  | M170: 2 | P170: 13 | Q170: =IF(COUNTIF(#REF!,'Состав блюд'!$M$167),SUMIF(#REF!,'Состав блюд'!$M$167,#REF!)*SUMIF(#REF!,'Состав блюд'!$M$167,#REF!)*'Состав блюд'!O170,0)/1000 ->  | S170: 2 | V170: 13 | W170: =IF(COUNTIF(#REF!,'Состав блюд'!$S$167),SUMIF(#REF!,'Состав блюд'!$S$167,#REF!)*SUMIF(#REF!,'Состав блюд'!$S$167,#REF!)*'Состав блюд'!U170,0)/1000 ->  | Y170: 2 | AB170: 13 | AC170: =IF(COUNTIF(#REF!,'Состав блюд'!$Y$167),SUMIF(#REF!,'Состав блюд'!$Y$167,#REF!)*SUMIF(#REF!,'Состав блюд'!$Y$167,#REF!)*'Состав блюд'!AA170,0)/1000 -> 
A171: 3 | D171: 13 | E171: =IF(COUNTIF(#REF!,'Состав блюд'!$A$167),SUMIF(#REF!,'Состав блюд'!$A$167,#REF!)*SUMIF(#REF!,'Состав блюд'!$A$167,#REF!)*'Состав блюд'!C171,0)/1000 ->  | G171: 3 | J171: 13 | K171: =IF(COUNTIF(#REF!,'Состав блюд'!$G$167),SUMIF(#REF!,'Состав блюд'!$G$167,#REF!)*SUMIF(#REF!,'Состав блюд'!$G$167,#REF!)*'Состав блюд'!I171,0)/1000 ->  | M171: 3 | P171: 13 | Q171: =IF(COUNTIF(#REF!,'Состав блюд'!$M$167),SUMIF(#REF!,'Состав блюд'!$M$167,#REF!)*SUMIF(#REF!,'Состав блюд'!$M$167,#REF!)*'Состав блюд'!O171,0)/1000 ->  | S171: 3 | V171: 13 | W171: =IF(COUNTIF(#REF!,'Состав блюд'!$S$167),SUMIF(#REF!,'Состав блюд'!$S$167,#REF!)*SUMIF(#REF!,'Состав блюд'!$S$167,#REF!)*'Состав блюд'!U171,0)/1000 ->  | Y171: 3 | AB171: 13 | AC171: =IF(COUNTIF(#REF!,'Состав блюд'!$Y$167),SUMIF(#REF!,'Состав блюд'!$Y$167,#REF!)*SUMIF(#REF!,'Состав блюд'!$Y$167,#REF!)*'Состав блюд'!AA171,0)/1000 -> 
A172: 4 | D172: 13 | E172: =IF(COUNTIF(#REF!,'Состав блюд'!$A$167),SUMIF(#REF!,'Состав блюд'!$A$167,#REF!)*SUMIF(#REF!,'Состав блюд'!$A$167,#REF!)*'Состав блюд'!C172,0)/1000 ->  | G172: 4 | J172: 13 | K172: =IF(COUNTIF(#REF!,'Состав блюд'!$G$167),SUMIF(#REF!,'Состав блюд'!$G$167,#REF!)*SUMIF(#REF!,'Состав блюд'!$G$167,#REF!)*'Состав блюд'!I172,0)/1000 ->  | M172: 4 | P172: 13 | Q172: =IF(COUNTIF(#REF!,'Состав блюд'!$M$167),SUMIF(#REF!,'Состав блюд'!$M$167,#REF!)*SUMIF(#REF!,'Состав блюд'!$M$167,#REF!)*'Состав блюд'!O172,0)/1000 ->  | S172: 4 | V172: 13 | W172: =IF(COUNTIF(#REF!,'Состав блюд'!$S$167),SUMIF(#REF!,'Состав блюд'!$S$167,#REF!)*SUMIF(#REF!,'Состав блюд'!$S$167,#REF!)*'Состав блюд'!U172,0)/1000 ->  | Y172: 4 | AB172: 13 | AC172: =IF(COUNTIF(#REF!,'Состав блюд'!$Y$167),SUMIF(#REF!,'Состав блюд'!$Y$167,#REF!)*SUMIF(#REF!,'Состав блюд'!$Y$167,#REF!)*'Состав блюд'!AA172,0)/1000 -> 
A173: 5 | D173: 13 | E173: =IF(COUNTIF(#REF!,'Состав блюд'!$A$167),SUMIF(#REF!,'Состав блюд'!$A$167,#REF!)*SUMIF(#REF!,'Состав блюд'!$A$167,#REF!)*'Состав блюд'!C173,0)/1000 ->  | G173: 5 | J173: 13 | K173: =IF(COUNTIF(#REF!,'Состав блюд'!$G$167),SUMIF(#REF!,'Состав блюд'!$G$167,#REF!)*SUMIF(#REF!,'Состав блюд'!$G$167,#REF!)*'Состав блюд'!I173,0)/1000 ->  | M173: 5 | P173: 13 | Q173: =IF(COUNTIF(#REF!,'Состав блюд'!$M$167),SUMIF(#REF!,'Состав блюд'!$M$167,#REF!)*SUMIF(#REF!,'Состав блюд'!$M$167,#REF!)*'Состав блюд'!O173,0)/1000 ->  | S173: 5 | V173: 13 | W173: =IF(COUNTIF(#REF!,'Состав блюд'!$S$167),SUMIF(#REF!,'Состав блюд'!$S$167,#REF!)*SUMIF(#REF!,'Состав блюд'!$S$167,#REF!)*'Состав блюд'!U173,0)/1000 ->  | Y173: 5 | AB173: 13 | AC173: =IF(COUNTIF(#REF!,'Состав блюд'!$Y$167),SUMIF(#REF!,'Состав блюд'!$Y$167,#REF!)*SUMIF(#REF!,'Состав блюд'!$Y$167,#REF!)*'Состав блюд'!AA173,0)/1000 -> 
A174: 6 | D174: 13 | E174: =IF(COUNTIF(#REF!,'Состав блюд'!$A$167),SUMIF(#REF!,'Состав блюд'!$A$167,#REF!)*SUMIF(#REF!,'Состав блюд'!$A$167,#REF!)*'Состав блюд'!C174,0)/1000 ->  | G174: 6 | J174: 13 | K174: =IF(COUNTIF(#REF!,'Состав блюд'!$G$167),SUMIF(#REF!,'Состав блюд'!$G$167,#REF!)*SUMIF(#REF!,'Состав блюд'!$G$167,#REF!)*'Состав блюд'!I174,0)/1000 ->  | M174: 6 | P174: 13 | Q174: =IF(COUNTIF(#REF!,'Состав блюд'!$M$167),SUMIF(#REF!,'Состав блюд'!$M$167,#REF!)*SUMIF(#REF!,'Состав блюд'!$M$167,#REF!)*'Состав блюд'!O174,0)/1000 ->  | S174: 6 | V174: 13 | W174: =IF(COUNTIF(#REF!,'Состав блюд'!$S$167),SUMIF(#REF!,'Состав блюд'!$S$167,#REF!)*SUMIF(#REF!,'Состав блюд'!$S$167,#REF!)*'Состав блюд'!U174,0)/1000 ->  | Y174: 6 | AB174: 13 | AC174: =IF(COUNTIF(#REF!,'Состав блюд'!$Y$167),SUMIF(#REF!,'Состав блюд'!$Y$167,#REF!)*SUMIF(#REF!,'Состав блюд'!$Y$167,#REF!)*'Состав блюд'!AA174,0)/1000 -> 
A175: 7 | D175: 13 | E175: =IF(COUNTIF(#REF!,'Состав блюд'!$A$167),SUMIF(#REF!,'Состав блюд'!$A$167,#REF!)*SUMIF(#REF!,'Состав блюд'!$A$167,#REF!)*'Состав блюд'!C175,0)/1000 ->  | G175: 7 | J175: 13 | K175: =IF(COUNTIF(#REF!,'Состав блюд'!$G$167),SUMIF(#REF!,'Состав блюд'!$G$167,#REF!)*SUMIF(#REF!,'Состав блюд'!$G$167,#REF!)*'Состав блюд'!I175,0)/1000 ->  | M175: 7 | P175: 13 | Q175: =IF(COUNTIF(#REF!,'Состав блюд'!$M$167),SUMIF(#REF!,'Состав блюд'!$M$167,#REF!)*SUMIF(#REF!,'Состав блюд'!$M$167,#REF!)*'Состав блюд'!O175,0)/1000 ->  | S175: 7 | V175: 13 | W175: =IF(COUNTIF(#REF!,'Состав блюд'!$S$167),SUMIF(#REF!,'Состав блюд'!$S$167,#REF!)*SUMIF(#REF!,'Состав блюд'!$S$167,#REF!)*'Состав блюд'!U175,0)/1000 ->  | Y175: 7 | AB175: 13 | AC175: =IF(COUNTIF(#REF!,'Состав блюд'!$Y$167),SUMIF(#REF!,'Состав блюд'!$Y$167,#REF!)*SUMIF(#REF!,'Состав блюд'!$Y$167,#REF!)*'Состав блюд'!AA175,0)/1000 -> 
D177: 14 | J177: 14 | P177: 14 | V177: 14 | AB177: 14
A178: № | B178: Наименование продукта | C178: Норма, г | D178: 14 | G178: № | H178: Наименование продукта | I178: Норма, г | J178: 14 | M178: № | N178: Наименование продукта | O178: Норма, г | P178: 14 | S178: № | T178: Наименование продукта | U178: Норма, г | V178: 14 | Y178: № | Z178: Наименование продукта | AA178: Норма, г | AB178: 14
A179: 1 | D179: 14 | E179: =IF(COUNTIF(#REF!,'Состав блюд'!$A$177),SUMIF(#REF!,'Состав блюд'!$A$177,#REF!)*SUMIF(#REF!,'Состав блюд'!$A$177,#REF!)*'Состав блюд'!C179,0)/1000 ->  | G179: 1 | J179: 14 | K179: =IF(COUNTIF(#REF!,'Состав блюд'!$G$177),SUMIF(#REF!,'Состав блюд'!$G$177,#REF!)*SUMIF(#REF!,'Состав блюд'!$G$177,#REF!)*'Состав блюд'!I179,0)/1000 ->  | M179: 1 | P179: 14 | Q179: =IF(COUNTIF(#REF!,'Состав блюд'!$M$177),SUMIF(#REF!,'Состав блюд'!$M$177,#REF!)*SUMIF(#REF!,'Состав блюд'!$M$177,#REF!)*'Состав блюд'!O179,0)/1000 ->  | S179: 1 | V179: 14 | W179: =IF(COUNTIF(#REF!,'Состав блюд'!$S$177),SUMIF(#REF!,'Состав блюд'!$S$177,#REF!)*SUMIF(#REF!,'Состав блюд'!$S$177,#REF!)*'Состав блюд'!U179,0)/1000 ->  | Y179: 1 | AB179: 14 | AC179: =IF(COUNTIF(#REF!,'Состав блюд'!$Y$177),SUMIF(#REF!,'Состав блюд'!$Y$177,#REF!)*SUMIF(#REF!,'Состав блюд'!$Y$177,#REF!)*'Состав блюд'!AA179,0)/1000 -> 
A180: 2 | D180: 14 | E180: =IF(COUNTIF(#REF!,'Состав блюд'!$A$177),SUMIF(#REF!,'Состав блюд'!$A$177,#REF!)*SUMIF(#REF!,'Состав блюд'!$A$177,#REF!)*'Состав блюд'!C180,0)/1000 ->  | G180: 2 | J180: 14 | K180: =IF(COUNTIF(#REF!,'Состав блюд'!$G$177),SUMIF(#REF!,'Состав блюд'!$G$177,#REF!)*SUMIF(#REF!,'Состав блюд'!$G$177,#REF!)*'Состав блюд'!I180,0)/1000 ->  | M180: 2 | P180: 14 | Q180: =IF(COUNTIF(#REF!,'Состав блюд'!$M$177),SUMIF(#REF!,'Состав блюд'!$M$177,#REF!)*SUMIF(#REF!,'Состав блюд'!$M$177,#REF!)*'Состав блюд'!O180,0)/1000 ->  | S180: 2 | V180: 14 | W180: =IF(COUNTIF(#REF!,'Состав блюд'!$S$177),SUMIF(#REF!,'Состав блюд'!$S$177,#REF!)*SUMIF(#REF!,'Состав блюд'!$S$177,#REF!)*'Состав блюд'!U180,0)/1000 ->  | Y180: 2 | AB180: 14 | AC180: =IF(COUNTIF(#REF!,'Состав блюд'!$Y$177),SUMIF(#REF!,'Состав блюд'!$Y$177,#REF!)*SUMIF(#REF!,'Состав блюд'!$Y$177,#REF!)*'Состав блюд'!AA180,0)/1000 -> 
A181: 3 | D181: 14 | E181: =IF(COUNTIF(#REF!,'Состав блюд'!$A$177),SUMIF(#REF!,'Состав блюд'!$A$177,#REF!)*SUMIF(#REF!,'Состав блюд'!$A$177,#REF!)*'Состав блюд'!C181,0)/1000 ->  | G181: 3 | J181: 14 | K181: =IF(COUNTIF(#REF!,'Состав блюд'!$G$177),SUMIF(#REF!,'Состав блюд'!$G$177,#REF!)*SUMIF(#REF!,'Состав блюд'!$G$177,#REF!)*'Состав блюд'!I181,0)/1000 ->  | M181: 3 | P181: 14 | Q181: =IF(COUNTIF(#REF!,'Состав блюд'!$M$177),SUMIF(#REF!,'Состав блюд'!$M$177,#REF!)*SUMIF(#REF!,'Состав блюд'!$M$177,#REF!)*'Состав блюд'!O181,0)/1000 ->  | S181: 3 | V181: 14 | W181: =IF(COUNTIF(#REF!,'Состав блюд'!$S$177),SUMIF(#REF!,'Состав блюд'!$S$177,#REF!)*SUMIF(#REF!,'Состав блюд'!$S$177,#REF!)*'Состав блюд'!U181,0)/1000 ->  | Y181: 3 | AB181: 14 | AC181: =IF(COUNTIF(#REF!,'Состав блюд'!$Y$177),SUMIF(#REF!,'Состав блюд'!$Y$177,#REF!)*SUMIF(#REF!,'Состав блюд'!$Y$177,#REF!)*'Состав блюд'!AA181,0)/1000 -> 
A182: 4 | D182: 14 | E182: =IF(COUNTIF(#REF!,'Состав блюд'!$A$177),SUMIF(#REF!,'Состав блюд'!$A$177,#REF!)*SUMIF(#REF!,'Состав блюд'!$A$177,#REF!)*'Состав блюд'!C182,0)/1000 ->  | G182: 4 | J182: 14 | K182: =IF(COUNTIF(#REF!,'Состав блюд'!$G$177),SUMIF(#REF!,'Состав блюд'!$G$177,#REF!)*SUMIF(#REF!,'Состав блюд'!$G$177,#REF!)*'Состав блюд'!I182,0)/1000 ->  | M182: 4 | P182: 14 | Q182: =IF(COUNTIF(#REF!,'Состав блюд'!$M$177),SUMIF(#REF!,'Состав блюд'!$M$177,#REF!)*SUMIF(#REF!,'Состав блюд'!$M$177,#REF!)*'Состав блюд'!O182,0)/1000 ->  | S182: 4 | V182: 14 | W182: =IF(COUNTIF(#REF!,'Состав блюд'!$S$177),SUMIF(#REF!,'Состав блюд'!$S$177,#REF!)*SUMIF(#REF!,'Состав блюд'!$S$177,#REF!)*'Состав блюд'!U182,0)/1000 ->  | Y182: 4 | AB182: 14 | AC182: =IF(COUNTIF(#REF!,'Состав блюд'!$Y$177),SUMIF(#REF!,'Состав блюд'!$Y$177,#REF!)*SUMIF(#REF!,'Состав блюд'!$Y$177,#REF!)*'Состав блюд'!AA182,0)/1000 -> 
A183: 5 | D183: 14 | E183: =IF(COUNTIF(#REF!,'Состав блюд'!$A$177),SUMIF(#REF!,'Состав блюд'!$A$177,#REF!)*SUMIF(#REF!,'Состав блюд'!$A$177,#REF!)*'Состав блюд'!C183,0)/1000 ->  | G183: 5 | J183: 14 | K183: =IF(COUNTIF(#REF!,'Состав блюд'!$G$177),SUMIF(#REF!,'Состав блюд'!$G$177,#REF!)*SUMIF(#REF!,'Состав блюд'!$G$177,#REF!)*'Состав блюд'!I183,0)/1000 ->  | M183: 5 | P183: 14 | Q183: =IF(COUNTIF(#REF!,'Состав блюд'!$M$177),SUMIF(#REF!,'Состав блюд'!$M$177,#REF!)*SUMIF(#REF!,'Состав блюд'!$M$177,#REF!)*'Состав блюд'!O183,0)/1000 ->  | S183: 5 | V183: 14 | W183: =IF(COUNTIF(#REF!,'Состав блюд'!$S$177),SUMIF(#REF!,'Состав блюд'!$S$177,#REF!)*SUMIF(#REF!,'Состав блюд'!$S$177,#REF!)*'Состав блюд'!U183,0)/1000 ->  | Y183: 5 | AB183: 14 | AC183: =IF(COUNTIF(#REF!,'Состав блюд'!$Y$177),SUMIF(#REF!,'Состав блюд'!$Y$177,#REF!)*SUMIF(#REF!,'Состав блюд'!$Y$177,#REF!)*'Состав блюд'!AA183,0)/1000 -> 
A184: 6 | D184: 14 | E184: =IF(COUNTIF(#REF!,'Состав блюд'!$A$177),SUMIF(#REF!,'Состав блюд'!$A$177,#REF!)*SUMIF(#REF!,'Состав блюд'!$A$177,#REF!)*'Состав блюд'!C184,0)/1000 ->  | G184: 6 | J184: 14 | K184: =IF(COUNTIF(#REF!,'Состав блюд'!$G$177),SUMIF(#REF!,'Состав блюд'!$G$177,#REF!)*SUMIF(#REF!,'Состав блюд'!$G$177,#REF!)*'Состав блюд'!I184,0)/1000 ->  | M184: 6 | P184: 14 | Q184: =IF(COUNTIF(#REF!,'Состав блюд'!$M$177),SUMIF(#REF!,'Состав блюд'!$M$177,#REF!)*SUMIF(#REF!,'Состав блюд'!$M$177,#REF!)*'Состав блюд'!O184,0)/1000 ->  | S184: 6 | V184: 14 | W184: =IF(COUNTIF(#REF!,'Состав блюд'!$S$177),SUMIF(#REF!,'Состав блюд'!$S$177,#REF!)*SUMIF(#REF!,'Состав блюд'!$S$177,#REF!)*'Состав блюд'!U184,0)/1000 ->  | Y184: 6 | AB184: 14 | AC184: =IF(COUNTIF(#REF!,'Состав блюд'!$Y$177),SUMIF(#REF!,'Состав блюд'!$Y$177,#REF!)*SUMIF(#REF!,'Состав блюд'!$Y$177,#REF!)*'Состав блюд'!AA184,0)/1000 -> 
A185: 7 | D185: 14 | E185: =IF(COUNTIF(#REF!,'Состав блюд'!$A$177),SUMIF(#REF!,'Состав блюд'!$A$177,#REF!)*SUMIF(#REF!,'Состав блюд'!$A$177,#REF!)*'Состав блюд'!C185,0)/1000 ->  | G185: 7 | J185: 14 | K185: =IF(COUNTIF(#REF!,'Состав блюд'!$G$177),SUMIF(#REF!,'Состав блюд'!$G$177,#REF!)*SUMIF(#REF!,'Состав блюд'!$G$177,#REF!)*'Состав блюд'!I185,0)/1000 ->  | M185: 7 | P185: 14 | Q185: =IF(COUNTIF(#REF!,'Состав блюд'!$M$177),SUMIF(#REF!,'Состав блюд'!$M$177,#REF!)*SUMIF(#REF!,'Состав блюд'!$M$177,#REF!)*'Состав блюд'!O185,0)/1000 ->  | S185: 7 | V185: 14 | W185: =IF(COUNTIF(#REF!,'Состав блюд'!$S$177),SUMIF(#REF!,'Состав блюд'!$S$177,#REF!)*SUMIF(#REF!,'Состав блюд'!$S$177,#REF!)*'Состав блюд'!U185,0)/1000 ->  | Y185: 7 | AB185: 14 | AC185: =IF(COUNTIF(#REF!,'Состав блюд'!$Y$177),SUMIF(#REF!,'Состав блюд'!$Y$177,#REF!)*SUMIF(#REF!,'Состав блюд'!$Y$177,#REF!)*'Состав блюд'!AA185,0)/1000 -> 
D187: 15 | J187: 15 | P187: 15 | V187: 15 | AB187: 15
A188: № | B188: Наименование продукта | C188: Норма, г | D188: 15 | G188: № | H188: Наименование продукта | I188: Норма, г | J188: 15 | M188: № | N188: Наименование продукта | O188: Норма, г | P188: 15 | S188: № | T188: Наименование продукта | U188: Норма, г | V188: 15 | Y188: № | Z188: Наименование продукта | AA188: Норма, г | AB188: 15
A189: 1 | D189: 15 | E189: =IF(COUNTIF(#REF!,'Состав блюд'!$A$187),SUMIF(#REF!,'Состав блюд'!$A$187,#REF!)*SUMIF(#REF!,'Состав блюд'!$A$187,#REF!)*'Состав блюд'!C189,0)/1000 ->  | G189: 1 | J189: 15 | K189: =IF(COUNTIF(#REF!,'Состав блюд'!$G$187),SUMIF(#REF!,'Состав блюд'!$G$187,#REF!)*SUMIF(#REF!,'Состав блюд'!$G$187,#REF!)*'Состав блюд'!I189,0)/1000 ->  | M189: 1 | P189: 15 | Q189: =IF(COUNTIF(#REF!,'Состав блюд'!$M$187),SUMIF(#REF!,'Состав блюд'!$M$187,#REF!)*SUMIF(#REF!,'Состав блюд'!$M$187,#REF!)*'Состав блюд'!O189,0)/1000 ->  | S189: 1 | V189: 15 | W189: =IF(COUNTIF(#REF!,'Состав блюд'!$S$187),SUMIF(#REF!,'Состав блюд'!$S$187,#REF!)*SUMIF(#REF!,'Состав блюд'!$S$187,#REF!)*'Состав блюд'!U189,0)/1000 ->  | Y189: 1 | AB189: 15 | AC189: =IF(COUNTIF(#REF!,'Состав блюд'!$Y$187),SUMIF(#REF!,'Состав блюд'!$Y$187,#REF!)*SUMIF(#REF!,'Состав блюд'!$Y$187,#REF!)*'Состав блюд'!AA189,0)/1000 -> 
A190: 2 | D190: 15 | E190: =IF(COUNTIF(#REF!,'Состав блюд'!$A$187),SUMIF(#REF!,'Состав блюд'!$A$187,#REF!)*SUMIF(#REF!,'Состав блюд'!$A$187,#REF!)*'Состав блюд'!C190,0)/1000 ->  | G190: 2 | J190: 15 | K190: =IF(COUNTIF(#REF!,'Состав блюд'!$G$187),SUMIF(#REF!,'Состав блюд'!$G$187,#REF!)*SUMIF(#REF!,'Состав блюд'!$G$187,#REF!)*'Состав блюд'!I190,0)/1000 ->  | M190: 2 | P190: 15 | Q190: =IF(COUNTIF(#REF!,'Состав блюд'!$M$187),SUMIF(#REF!,'Состав блюд'!$M$187,#REF!)*SUMIF(#REF!,'Состав блюд'!$M$187,#REF!)*'Состав блюд'!O190,0)/1000 ->  | S190: 2 | V190: 15 | W190: =IF(COUNTIF(#REF!,'Состав блюд'!$S$187),SUMIF(#REF!,'Состав блюд'!$S$187,#REF!)*SUMIF(#REF!,'Состав блюд'!$S$187,#REF!)*'Состав блюд'!U190,0)/1000 ->  | Y190: 2 | AB190: 15 | AC190: =IF(COUNTIF(#REF!,'Состав блюд'!$Y$187),SUMIF(#REF!,'Состав блюд'!$Y$187,#REF!)*SUMIF(#REF!,'Состав блюд'!$Y$187,#REF!)*'Состав блюд'!AA190,0)/1000 -> 
A191: 3 | D191: 15 | E191: =IF(COUNTIF(#REF!,'Состав блюд'!$A$187),SUMIF(#REF!,'Состав блюд'!$A$187,#REF!)*SUMIF(#REF!,'Состав блюд'!$A$187,#REF!)*'Состав блюд'!C191,0)/1000 ->  | G191: 3 | J191: 15 | K191: =IF(COUNTIF(#REF!,'Состав блюд'!$G$187),SUMIF(#REF!,'Состав блюд'!$G$187,#REF!)*SUMIF(#REF!,'Состав блюд'!$G$187,#REF!)*'Состав блюд'!I191,0)/1000 ->  | M191: 3 | P191: 15 | Q191: =IF(COUNTIF(#REF!,'Состав блюд'!$M$187),SUMIF(#REF!,'Состав блюд'!$M$187,#REF!)*SUMIF(#REF!,'Состав блюд'!$M$187,#REF!)*'Состав блюд'!O191,0)/1000 ->  | S191: 3 | V191: 15 | W191: =IF(COUNTIF(#REF!,'Состав блюд'!$S$187),SUMIF(#REF!,'Состав блюд'!$S$187,#REF!)*SUMIF(#REF!,'Состав блюд'!$S$187,#REF!)*'Состав блюд'!U191,0)/1000 ->  | Y191: 3 | AB191: 15 | AC191: =IF(COUNTIF(#REF!,'Состав блюд'!$Y$187),SUMIF(#REF!,'Состав блюд'!$Y$187,#REF!)*SUMIF(#REF!,'Состав блюд'!$Y$187,#REF!)*'Состав блюд'!AA191,0)/1000 -> 
A192: 4 | D192: 15 | E192: =IF(COUNTIF(#REF!,'Состав блюд'!$A$187),SUMIF(#REF!,'Состав блюд'!$A$187,#REF!)*SUMIF(#REF!,'Состав блюд'!$A$187,#REF!)*'Состав блюд'!C192,0)/1000 ->  | G192: 4 | J192: 15 | K192: =IF(COUNTIF(#REF!,'Состав блюд'!$G$187),SUMIF(#REF!,'Состав блюд'!$G$187,#REF!)*SUMIF(#REF!,'Состав блюд'!$G$187,#REF!)*'Состав блюд'!I192,0)/1000 ->  | M192: 4 | P192: 15 | Q192: =IF(COUNTIF(#REF!,'Состав блюд'!$M$187),SUMIF(#REF!,'Состав блюд'!$M$187,#REF!)*SUMIF(#REF!,'Состав блюд'!$M$187,#REF!)*'Состав блюд'!O192,0)/1000 ->  | S192: 4 | V192: 15 | W192: =IF(COUNTIF(#REF!,'Состав блюд'!$S$187),SUMIF(#REF!,'Состав блюд'!$S$187,#REF!)*SUMIF(#REF!,'Состав блюд'!$S$187,#REF!)*'Состав блюд'!U192,0)/1000 ->  | Y192: 4 | AB192: 15 | AC192: =IF(COUNTIF(#REF!,'Состав блюд'!$Y$187),SUMIF(#REF!,'Состав блюд'!$Y$187,#REF!)*SUMIF(#REF!,'Состав блюд'!$Y$187,#REF!)*'Состав блюд'!AA192,0)/1000 -> 
A193: 5 | D193: 15 | E193: =IF(COUNTIF(#REF!,'Состав блюд'!$A$187),SUMIF(#REF!,'Состав блюд'!$A$187,#REF!)*SUMIF(#REF!,'Состав блюд'!$A$187,#REF!)*'Состав блюд'!C193,0)/1000 ->  | G193: 5 | J193: 15 | K193: =IF(COUNTIF(#REF!,'Состав блюд'!$G$187),SUMIF(#REF!,'Состав блюд'!$G$187,#REF!)*SUMIF(#REF!,'Состав блюд'!$G$187,#REF!)*'Состав блюд'!I193,0)/1000 ->  | M193: 5 | P193: 15 | Q193: =IF(COUNTIF(#REF!,'Состав блюд'!$M$187),SUMIF(#REF!,'Состав блюд'!$M$187,#REF!)*SUMIF(#REF!,'Состав блюд'!$M$187,#REF!)*'Состав блюд'!O193,0)/1000 ->  | S193: 5 | V193: 15 | W193: =IF(COUNTIF(#REF!,'Состав блюд'!$S$187),SUMIF(#REF!,'Состав блюд'!$S$187,#REF!)*SUMIF(#REF!,'Состав блюд'!$S$187,#REF!)*'Состав блюд'!U193,0)/1000 ->  | Y193: 5 | AB193: 15 | AC193: =IF(COUNTIF(#REF!,'Состав блюд'!$Y$187),SUMIF(#REF!,'Состав блюд'!$Y$187,#REF!)*SUMIF(#REF!,'Состав блюд'!$Y$187,#REF!)*'Состав блюд'!AA193,0)/1000 -> 
A194: 6 | D194: 15 | E194: =IF(COUNTIF(#REF!,'Состав блюд'!$A$187),SUMIF(#REF!,'Состав блюд'!$A$187,#REF!)*SUMIF(#REF!,'Состав блюд'!$A$187,#REF!)*'Состав блюд'!C194,0)/1000 ->  | G194: 6 | J194: 15 | K194: =IF(COUNTIF(#REF!,'Состав блюд'!$G$187),SUMIF(#REF!,'Состав блюд'!$G$187,#REF!)*SUMIF(#REF!,'Состав блюд'!$G$187,#REF!)*'Состав блюд'!I194,0)/1000 ->  | M194: 6 | P194: 15 | Q194: =IF(COUNTIF(#REF!,'Состав блюд'!$M$187),SUMIF(#REF!,'Состав блюд'!$M$187,#REF!)*SUMIF(#REF!,'Состав блюд'!$M$187,#REF!)*'Состав блюд'!O194,0)/1000 ->  | S194: 6 | V194: 15 | W194: =IF(COUNTIF(#REF!,'Состав блюд'!$S$187),SUMIF(#REF!,'Состав блюд'!$S$187,#REF!)*SUMIF(#REF!,'Состав блюд'!$S$187,#REF!)*'Состав блюд'!U194,0)/1000 ->  | Y194: 6 | AB194: 15 | AC194: =IF(COUNTIF(#REF!,'Состав блюд'!$Y$187),SUMIF(#REF!,'Состав блюд'!$Y$187,#REF!)*SUMIF(#REF!,'Состав блюд'!$Y$187,#REF!)*'Состав блюд'!AA194,0)/1000 -> 
D196: 16 | J196: 16 | P196: 16 | V196: 16 | AB196: 16
A197: № | B197: Наименование продукта | C197: Норма, г | D197: 16 | G197: № | H197: Наименование продукта | I197: Норма, г | J197: 16 | M197: № | N197: Наименование продукта | O197: Норма, г | P197: 16 | S197: № | T197: Наименование продукта | U197: Норма, г | V197: 16 | Y197: № | Z197: Наименование продукта | AA197: Норма, г | AB197: 16
A198: 1 | D198: 16 | E198: =IF(COUNTIF(#REF!,'Состав блюд'!$A$196),SUMIF(#REF!,'Состав блюд'!$A$196,#REF!)*SUMIF(#REF!,'Состав блюд'!$A$196,#REF!)*'Состав блюд'!C198,0)/1000 ->  | G198: 1 | J198: 16 | K198: =IF(COUNTIF(#REF!,'Состав блюд'!$G$196),SUMIF(#REF!,'Состав блюд'!$G$196,#REF!)*SUMIF(#REF!,'Состав блюд'!$G$196,#REF!)*'Состав блюд'!I198,0)/1000 ->  | M198: 1 | P198: 16 | Q198: =IF(COUNTIF(#REF!,'Состав блюд'!$M$196),SUMIF(#REF!,'Состав блюд'!$M$196,#REF!)*SUMIF(#REF!,'Состав блюд'!$M$196,#REF!)*'Состав блюд'!O198,0)/1000 ->  | S198: 1 | V198: 16 | W198: =IF(COUNTIF(#REF!,'Состав блюд'!$S$196),SUMIF(#REF!,'Состав блюд'!$S$196,#REF!)*SUMIF(#REF!,'Состав блюд'!$S$196,#REF!)*'Состав блюд'!U198,0)/1000 ->  | Y198: 1 | AB198: 16 | AC198: =IF(COUNTIF(#REF!,'Состав блюд'!$Y$196),SUMIF(#REF!,'Состав блюд'!$Y$196,#REF!)*SUMIF(#REF!,'Состав блюд'!$Y$196,#REF!)*'Состав блюд'!AA198,0)/1000 -> 
A199: 2 | D199: 16 | E199: =IF(COUNTIF(#REF!,'Состав блюд'!$A$196),SUMIF(#REF!,'Состав блюд'!$A$196,#REF!)*SUMIF(#REF!,'Состав блюд'!$A$196,#REF!)*'Состав блюд'!C199,0)/1000 ->  | G199: 2 | J199: 16 | K199: =IF(COUNTIF(#REF!,'Состав блюд'!$G$196),SUMIF(#REF!,'Состав блюд'!$G$196,#REF!)*SUMIF(#REF!,'Состав блюд'!$G$196,#REF!)*'Состав блюд'!I199,0)/1000 ->  | M199: 2 | P199: 16 | Q199: =IF(COUNTIF(#REF!,'Состав блюд'!$M$196),SUMIF(#REF!,'Состав блюд'!$M$196,#REF!)*SUMIF(#REF!,'Состав блюд'!$M$196,#REF!)*'Состав блюд'!O199,0)/1000 ->  | S199: 2 | V199: 16 | W199: =IF(COUNTIF(#REF!,'Состав блюд'!$S$196),SUMIF(#REF!,'Состав блюд'!$S$196,#REF!)*SUMIF(#REF!,'Состав блюд'!$S$196,#REF!)*'Состав блюд'!U199,0)/1000 ->  | Y199: 2 | AB199: 16 | AC199: =IF(COUNTIF(#REF!,'Состав блюд'!$Y$196),SUMIF(#REF!,'Состав блюд'!$Y$196,#REF!)*SUMIF(#REF!,'Состав блюд'!$Y$196,#REF!)*'Состав блюд'!AA199,0)/1000 -> 
A200: 3 | D200: 16 | E200: =IF(COUNTIF(#REF!,'Состав блюд'!$A$196),SUMIF(#REF!,'Состав блюд'!$A$196,#REF!)*SUMIF(#REF!,'Состав блюд'!$A$196,#REF!)*'Состав блюд'!C200,0)/1000 ->  | G200: 3 | J200: 16 | K200: =IF(COUNTIF(#REF!,'Состав блюд'!$G$196),SUMIF(#REF!,'Состав блюд'!$G$196,#REF!)*SUMIF(#REF!,'Состав блюд'!$G$196,#REF!)*'Состав блюд'!I200,0)/1000 ->  | M200: 3 | P200: 16 | Q200: =IF(COUNTIF(#REF!,'Состав блюд'!$M$196),SUMIF(#REF!,'Состав блюд'!$M$196,#REF!)*SUMIF(#REF!,'Состав блюд'!$M$196,#REF!)*'Состав блюд'!O200,0)/1000 ->  | S200: 3 | V200: 16 | W200: =IF(COUNTIF(#REF!,'Состав блюд'!$S$196),SUMIF(#REF!,'Состав блюд'!$S$196,#REF!)*SUMIF(#REF!,'Состав блюд'!$S$196,#REF!)*'Состав блюд'!U200,0)/1000 ->  | Y200: 3 | AB200: 16 | AC200: =IF(COUNTIF(#REF!,'Состав блюд'!$Y$196),SUMIF(#REF!,'Состав блюд'!$Y$196,#REF!)*SUMIF(#REF!,'Состав блюд'!$Y$196,#REF!)*'Состав блюд'!AA200,0)/1000 -> 
A201: 4 | D201: 16 | E201: =IF(COUNTIF(#REF!,'Состав блюд'!$A$196),SUMIF(#REF!,'Состав блюд'!$A$196,#REF!)*SUMIF(#REF!,'Состав блюд'!$A$196,#REF!)*'Состав блюд'!C201,0)/1000 ->  | G201: 4 | J201: 16 | K201: =IF(COUNTIF(#REF!,'Состав блюд'!$G$196),SUMIF(#REF!,'Состав блюд'!$G$196,#REF!)*SUMIF(#REF!,'Состав блюд'!$G$196,#REF!)*'Состав блюд'!I201,0)/1000 ->  | M201: 4 | P201: 16 | Q201: =IF(COUNTIF(#REF!,'Состав блюд'!$M$196),SUMIF(#REF!,'Состав блюд'!$M$196,#REF!)*SUMIF(#REF!,'Состав блюд'!$M$196,#REF!)*'Состав блюд'!O201,0)/1000 ->  | S201: 4 | V201: 16 | W201: =IF(COUNTIF(#REF!,'Состав блюд'!$S$196),SUMIF(#REF!,'Состав блюд'!$S$196,#REF!)*SUMIF(#REF!,'Состав блюд'!$S$196,#REF!)*'Состав блюд'!U201,0)/1000 ->  | Y201: 4 | AB201: 16 | AC201: =IF(COUNTIF(#REF!,'Состав блюд'!$Y$196),SUMIF(#REF!,'Состав блюд'!$Y$196,#REF!)*SUMIF(#REF!,'Состав блюд'!$Y$196,#REF!)*'Состав блюд'!AA201,0)/1000 -> 
A202: 5 | D202: 16 | E202: =IF(COUNTIF(#REF!,'Состав блюд'!$A$196),SUMIF(#REF!,'Состав блюд'!$A$196,#REF!)*SUMIF(#REF!,'Состав блюд'!$A$196,#REF!)*'Состав блюд'!C202,0)/1000 ->  | G202: 5 | J202: 16 | K202: =IF(COUNTIF(#REF!,'Состав блюд'!$G$196),SUMIF(#REF!,'Состав блюд'!$G$196,#REF!)*SUMIF(#REF!,'Состав блюд'!$G$196,#REF!)*'Состав блюд'!I202,0)/1000 ->  | M202: 5 | P202: 16 | Q202: =IF(COUNTIF(#REF!,'Состав блюд'!$M$196),SUMIF(#REF!,'Состав блюд'!$M$196,#REF!)*SUMIF(#REF!,'Состав блюд'!$M$196,#REF!)*'Состав блюд'!O202,0)/1000 ->  | S202: 5 | V202: 16 | W202: =IF(COUNTIF(#REF!,'Состав блюд'!$S$196),SUMIF(#REF!,'Состав блюд'!$S$196,#REF!)*SUMIF(#REF!,'Состав блюд'!$S$196,#REF!)*'Состав блюд'!U202,0)/1000 ->  | Y202: 5 | AB202: 16 | AC202: =IF(COUNTIF(#REF!,'Состав блюд'!$Y$196),SUMIF(#REF!,'Состав блюд'!$Y$196,#REF!)*SUMIF(#REF!,'Состав блюд'!$Y$196,#REF!)*'Состав блюд'!AA202,0)/1000 -> 
A203: 6 | D203: 16 | E203: =IF(COUNTIF(#REF!,'Состав блюд'!$A$196),SUMIF(#REF!,'Состав блюд'!$A$196,#REF!)*SUMIF(#REF!,'Состав блюд'!$A$196,#REF!)*'Состав блюд'!C203,0)/1000 ->  | G203: 6 | J203: 16 | K203: =IF(COUNTIF(#REF!,'Состав блюд'!$G$196),SUMIF(#REF!,'Состав блюд'!$G$196,#REF!)*SUMIF(#REF!,'Состав блюд'!$G$196,#REF!)*'Состав блюд'!I203,0)/1000 ->  | M203: 6 | P203: 16 | Q203: =IF(COUNTIF(#REF!,'Состав блюд'!$M$196),SUMIF(#REF!,'Состав блюд'!$M$196,#REF!)*SUMIF(#REF!,'Состав блюд'!$M$196,#REF!)*'Состав блюд'!O203,0)/1000 ->  | S203: 6 | V203: 16 | W203: =IF(COUNTIF(#REF!,'Состав блюд'!$S$196),SUMIF(#REF!,'Состав блюд'!$S$196,#REF!)*SUMIF(#REF!,'Состав блюд'!$S$196,#REF!)*'Состав блюд'!U203,0)/1000 ->  | Y203: 6 | AB203: 16 | AC203: =IF(COUNTIF(#REF!,'Состав блюд'!$Y$196),SUMIF(#REF!,'Состав блюд'!$Y$196,#REF!)*SUMIF(#REF!,'Состав блюд'!$Y$196,#REF!)*'Состав блюд'!AA203,0)/1000 -> 
D205: 17 | J205: 17 | P205: 17 | V205: 17 | AB205: 17
A206: № | B206: Наименование продукта | C206: Норма, г | D206: 17 | G206: № | H206: Наименование продукта | I206: Норма, г | J206: 17 | M206: № | N206: Наименование продукта | O206: Норма, г | P206: 17 | S206: № | T206: Наименование продукта | U206: Норма, г | V206: 17 | Y206: № | Z206: Наименование продукта | AA206: Норма, г | AB206: 17
A207: 1 | D207: 17 | E207: =IF(COUNTIF(#REF!,'Состав блюд'!$A$205),SUMIF(#REF!,'Состав блюд'!$A$205,#REF!)*SUMIF(#REF!,'Состав блюд'!$A$205,#REF!)*'Состав блюд'!C207,0)/1000 ->  | G207: 1 | J207: 17 | K207: =IF(COUNTIF(#REF!,'Состав блюд'!$G$205),SUMIF(#REF!,'Состав блюд'!$G$205,#REF!)*SUMIF(#REF!,'Состав блюд'!$G$205,#REF!)*'Состав блюд'!I207,0)/1000 ->  | M207: 1 | P207: 17 | Q207: =IF(COUNTIF(#REF!,'Состав блюд'!$M$205),SUMIF(#REF!,'Состав блюд'!$M$205,#REF!)*SUMIF(#REF!,'Состав блюд'!$M$205,#REF!)*'Состав блюд'!O207,0)/1000 ->  | S207: 1 | V207: 17 | W207: =IF(COUNTIF(#REF!,'Состав блюд'!$S$205),SUMIF(#REF!,'Состав блюд'!$S$205,#REF!)*SUMIF(#REF!,'Состав блюд'!$S$205,#REF!)*'Состав блюд'!U207,0)/1000 ->  | Y207: 1 | AB207: 17 | AC207: =IF(COUNTIF(#REF!,'Состав блюд'!$Y$205),SUMIF(#REF!,'Состав блюд'!$Y$205,#REF!)*SUMIF(#REF!,'Состав блюд'!$Y$205,#REF!)*'Состав блюд'!AA207,0)/1000 -> 
A208: 2 | D208: 17 | E208: =IF(COUNTIF(#REF!,'Состав блюд'!$A$205),SUMIF(#REF!,'Состав блюд'!$A$205,#REF!)*SUMIF(#REF!,'Состав блюд'!$A$205,#REF!)*'Состав блюд'!C208,0)/1000 ->  | G208: 2 | J208: 17 | K208: =IF(COUNTIF(#REF!,'Состав блюд'!$G$205),SUMIF(#REF!,'Состав блюд'!$G$205,#REF!)*SUMIF(#REF!,'Состав блюд'!$G$205,#REF!)*'Состав блюд'!I208,0)/1000 ->  | M208: 2 | P208: 17 | Q208: =IF(COUNTIF(#REF!,'Состав блюд'!$M$205),SUMIF(#REF!,'Состав блюд'!$M$205,#REF!)*SUMIF(#REF!,'Состав блюд'!$M$205,#REF!)*'Состав блюд'!O208,0)/1000 ->  | S208: 2 | V208: 17 | W208: =IF(COUNTIF(#REF!,'Состав блюд'!$S$205),SUMIF(#REF!,'Состав блюд'!$S$205,#REF!)*SUMIF(#REF!,'Состав блюд'!$S$205,#REF!)*'Состав блюд'!U208,0)/1000 ->  | Y208: 2 | AB208: 17 | AC208: =IF(COUNTIF(#REF!,'Состав блюд'!$Y$205),SUMIF(#REF!,'Состав блюд'!$Y$205,#REF!)*SUMIF(#REF!,'Состав блюд'!$Y$205,#REF!)*'Состав блюд'!AA208,0)/1000 -> 
A209: 3 | D209: 17 | E209: =IF(COUNTIF(#REF!,'Состав блюд'!$A$205),SUMIF(#REF!,'Состав блюд'!$A$205,#REF!)*SUMIF(#REF!,'Состав блюд'!$A$205,#REF!)*'Состав блюд'!C209,0)/1000 ->  | G209: 3 | J209: 17 | K209: =IF(COUNTIF(#REF!,'Состав блюд'!$G$205),SUMIF(#REF!,'Состав блюд'!$G$205,#REF!)*SUMIF(#REF!,'Состав блюд'!$G$205,#REF!)*'Состав блюд'!I209,0)/1000 ->  | M209: 3 | P209: 17 | Q209: =IF(COUNTIF(#REF!,'Состав блюд'!$M$205),SUMIF(#REF!,'Состав блюд'!$M$205,#REF!)*SUMIF(#REF!,'Состав блюд'!$M$205,#REF!)*'Состав блюд'!O209,0)/1000 ->  | S209: 3 | V209: 17 | W209: =IF(COUNTIF(#REF!,'Состав блюд'!$S$205),SUMIF(#REF!,'Состав блюд'!$S$205,#REF!)*SUMIF(#REF!,'Состав блюд'!$S$205,#REF!)*'Состав блюд'!U209,0)/1000 ->  | Y209: 3 | AB209: 17 | AC209: =IF(COUNTIF(#REF!,'Состав блюд'!$Y$205),SUMIF(#REF!,'Состав блюд'!$Y$205,#REF!)*SUMIF(#REF!,'Состав блюд'!$Y$205,#REF!)*'Состав блюд'!AA209,0)/1000 -> 
A210: 4 | D210: 17 | E210: =IF(COUNTIF(#REF!,'Состав блюд'!$A$205),SUMIF(#REF!,'Состав блюд'!$A$205,#REF!)*SUMIF(#REF!,'Состав блюд'!$A$205,#REF!)*'Состав блюд'!C210,0)/1000 ->  | G210: 4 | J210: 17 | K210: =IF(COUNTIF(#REF!,'Состав блюд'!$G$205),SUMIF(#REF!,'Состав блюд'!$G$205,#REF!)*SUMIF(#REF!,'Состав блюд'!$G$205,#REF!)*'Состав блюд'!I210,0)/1000 ->  | M210: 4 | P210: 17 | Q210: =IF(COUNTIF(#REF!,'Состав блюд'!$M$205),SUMIF(#REF!,'Состав блюд'!$M$205,#REF!)*SUMIF(#REF!,'Состав блюд'!$M$205,#REF!)*'Состав блюд'!O210,0)/1000 ->  | S210: 4 | V210: 17 | W210: =IF(COUNTIF(#REF!,'Состав блюд'!$S$205),SUMIF(#REF!,'Состав блюд'!$S$205,#REF!)*SUMIF(#REF!,'Состав блюд'!$S$205,#REF!)*'Состав блюд'!U210,0)/1000 ->  | Y210: 4 | AB210: 17 | AC210: =IF(COUNTIF(#REF!,'Состав блюд'!$Y$205),SUMIF(#REF!,'Состав блюд'!$Y$205,#REF!)*SUMIF(#REF!,'Состав блюд'!$Y$205,#REF!)*'Состав блюд'!AA210,0)/1000 -> 
A211: 5 | D211: 17 | E211: =IF(COUNTIF(#REF!,'Состав блюд'!$A$205),SUMIF(#REF!,'Состав блюд'!$A$205,#REF!)*SUMIF(#REF!,'Состав блюд'!$A$205,#REF!)*'Состав блюд'!C211,0)/1000 ->  | G211: 5 | J211: 17 | K211: =IF(COUNTIF(#REF!,'Состав блюд'!$G$205),SUMIF(#REF!,'Состав блюд'!$G$205,#REF!)*SUMIF(#REF!,'Состав блюд'!$G$205,#REF!)*'Состав блюд'!I211,0)/1000 ->  | M211: 5 | P211: 17 | Q211: =IF(COUNTIF(#REF!,'Состав блюд'!$M$205),SUMIF(#REF!,'Состав блюд'!$M$205,#REF!)*SUMIF(#REF!,'Состав блюд'!$M$205,#REF!)*'Состав блюд'!O211,0)/1000 ->  | S211: 5 | V211: 17 | W211: =IF(COUNTIF(#REF!,'Состав блюд'!$S$205),SUMIF(#REF!,'Состав блюд'!$S$205,#REF!)*SUMIF(#REF!,'Состав блюд'!$S$205,#REF!)*'Состав блюд'!U211,0)/1000 ->  | Y211: 5 | AB211: 17 | AC211: =IF(COUNTIF(#REF!,'Состав блюд'!$Y$205),SUMIF(#REF!,'Состав блюд'!$Y$205,#REF!)*SUMIF(#REF!,'Состав блюд'!$Y$205,#REF!)*'Состав блюд'!AA211,0)/1000 -> 
A212: 6 | D212: 17 | E212: =IF(COUNTIF(#REF!,'Состав блюд'!$A$205),SUMIF(#REF!,'Состав блюд'!$A$205,#REF!)*SUMIF(#REF!,'Состав блюд'!$A$205,#REF!)*'Состав блюд'!C212,0)/1000 ->  | G212: 6 | J212: 17 | K212: =IF(COUNTIF(#REF!,'Состав блюд'!$G$205),SUMIF(#REF!,'Состав блюд'!$G$205,#REF!)*SUMIF(#REF!,'Состав блюд'!$G$205,#REF!)*'Состав блюд'!I212,0)/1000 ->  | M212: 6 | P212: 17 | Q212: =IF(COUNTIF(#REF!,'Состав блюд'!$M$205),SUMIF(#REF!,'Состав блюд'!$M$205,#REF!)*SUMIF(#REF!,'Состав блюд'!$M$205,#REF!)*'Состав блюд'!O212,0)/1000 ->  | S212: 6 | V212: 17 | W212: =IF(COUNTIF(#REF!,'Состав блюд'!$S$205),SUMIF(#REF!,'Состав блюд'!$S$205,#REF!)*SUMIF(#REF!,'Состав блюд'!$S$205,#REF!)*'Состав блюд'!U212,0)/1000 ->  | Y212: 6 | AB212: 17 | AC212: =IF(COUNTIF(#REF!,'Состав блюд'!$Y$205),SUMIF(#REF!,'Состав блюд'!$Y$205,#REF!)*SUMIF(#REF!,'Состав блюд'!$Y$205,#REF!)*'Состав блюд'!AA212,0)/1000 -> 
A213: 7 | D213: 17 | E213: =IF(COUNTIF(#REF!,'Состав блюд'!$A$205),SUMIF(#REF!,'Состав блюд'!$A$205,#REF!)*SUMIF(#REF!,'Состав блюд'!$A$205,#REF!)*'Состав блюд'!C213,0)/1000 ->  | G213: 7 | J213: 17 | K213: =IF(COUNTIF(#REF!,'Состав блюд'!$G$205),SUMIF(#REF!,'Состав блюд'!$G$205,#REF!)*SUMIF(#REF!,'Состав блюд'!$G$205,#REF!)*'Состав блюд'!I213,0)/1000 ->  | M213: 7 | P213: 17 | Q213: =IF(COUNTIF(#REF!,'Состав блюд'!$M$205),SUMIF(#REF!,'Состав блюд'!$M$205,#REF!)*SUMIF(#REF!,'Состав блюд'!$M$205,#REF!)*'Состав блюд'!O213,0)/1000 ->  | S213: 7 | V213: 17 | W213: =IF(COUNTIF(#REF!,'Состав блюд'!$S$205),SUMIF(#REF!,'Состав блюд'!$S$205,#REF!)*SUMIF(#REF!,'Состав блюд'!$S$205,#REF!)*'Состав блюд'!U213,0)/1000 ->  | Y213: 7 | AB213: 17 | AC213: =IF(COUNTIF(#REF!,'Состав блюд'!$Y$205),SUMIF(#REF!,'Состав блюд'!$Y$205,#REF!)*SUMIF(#REF!,'Состав блюд'!$Y$205,#REF!)*'Состав блюд'!AA213,0)/1000 -> 
A214: 8 | D214: 17 | E214: =IF(COUNTIF(#REF!,'Состав блюд'!$A$205),SUMIF(#REF!,'Состав блюд'!$A$205,#REF!)*SUMIF(#REF!,'Состав блюд'!$A$205,#REF!)*'Состав блюд'!C214,0)/1000 ->  | G214: 8 | J214: 17 | K214: =IF(COUNTIF(#REF!,'Состав блюд'!$G$205),SUMIF(#REF!,'Состав блюд'!$G$205,#REF!)*SUMIF(#REF!,'Состав блюд'!$G$205,#REF!)*'Состав блюд'!I214,0)/1000 ->  | M214: 8 | P214: 17 | Q214: =IF(COUNTIF(#REF!,'Состав блюд'!$M$205),SUMIF(#REF!,'Состав блюд'!$M$205,#REF!)*SUMIF(#REF!,'Состав блюд'!$M$205,#REF!)*'Состав блюд'!O214,0)/1000 ->  | S214: 8 | V214: 17 | W214: =IF(COUNTIF(#REF!,'Состав блюд'!$S$205),SUMIF(#REF!,'Состав блюд'!$S$205,#REF!)*SUMIF(#REF!,'Состав блюд'!$S$205,#REF!)*'Состав блюд'!U214,0)/1000 ->  | Y214: 8 | AB214: 17 | AC214: =IF(COUNTIF(#REF!,'Состав блюд'!$Y$205),SUMIF(#REF!,'Состав блюд'!$Y$205,#REF!)*SUMIF(#REF!,'Состав блюд'!$Y$205,#REF!)*'Состав блюд'!AA214,0)/1000 -> 
A215: 9 | D215: 17 | E215: =IF(COUNTIF(#REF!,'Состав блюд'!$A$205),SUMIF(#REF!,'Состав блюд'!$A$205,#REF!)*SUMIF(#REF!,'Состав блюд'!$A$205,#REF!)*'Состав блюд'!C215,0)/1000 ->  | G215: 9 | J215: 17 | K215: =IF(COUNTIF(#REF!,'Состав блюд'!$G$205),SUMIF(#REF!,'Состав блюд'!$G$205,#REF!)*SUMIF(#REF!,'Состав блюд'!$G$205,#REF!)*'Состав блюд'!I215,0)/1000 ->  | M215: 9 | P215: 17 | Q215: =IF(COUNTIF(#REF!,'Состав блюд'!$M$205),SUMIF(#REF!,'Состав блюд'!$M$205,#REF!)*SUMIF(#REF!,'Состав блюд'!$M$205,#REF!)*'Состав блюд'!O215,0)/1000 ->  | S215: 9 | V215: 17 | W215: =IF(COUNTIF(#REF!,'Состав блюд'!$S$205),SUMIF(#REF!,'Состав блюд'!$S$205,#REF!)*SUMIF(#REF!,'Состав блюд'!$S$205,#REF!)*'Состав блюд'!U215,0)/1000 ->  | Y215: 9 | AB215: 17 | AC215: =IF(COUNTIF(#REF!,'Состав блюд'!$Y$205),SUMIF(#REF!,'Состав блюд'!$Y$205,#REF!)*SUMIF(#REF!,'Состав блюд'!$Y$205,#REF!)*'Состав блюд'!AA215,0)/1000 -> 
... 50 more rows

Sheet Перечень блюд
A1: № | B1: Первые блюда | D1: № | E1: Вторые блюда | G1: № | H1: Гарниры | J1: № | K1: Салаты | M1: № | N1: Напитки
A2: 1 | B2: =IFERROR(INDEX('Состав блюд'!A:A,MATCH(A2,'Состав блюд'!D:D,)),"") -> Борщ украинский | D2: 1 | E2: =IFERROR(INDEX('Состав блюд'!G:G,MATCH(D2,'Состав блюд'!J:J,)),"") -> Котлета по-киевски | G2: 1 | H2: =IFERROR(INDEX('Состав блюд'!M:M,MATCH(G2,'Состав блюд'!P:P,)),"") -> Рис отварной | J2: 1 | K2: =IFERROR(INDEX('Состав блюд'!S:S,MATCH(J2,'Состав блюд'!V:V,)),"") -> Салат "Оливье" | M2: 1 | N2: =IFERROR(INDEX('Состав блюд'!Y:Y,MATCH(M2,'Состав блюд'!AB:AB,)),"") -> Чай
A3: 2 | B3: =IFERROR(INDEX('Состав блюд'!A:A,MATCH(A3,'Состав блюд'!D:D,)),"") -> Щи | D3: 2 | E3: =IFERROR(INDEX('Состав блюд'!G:G,MATCH(D3,'Состав блюд'!J:J,)),"") -> Жаркое по-домашнему | G3: 2 | H3: =IFERROR(INDEX('Состав блюд'!M:M,MATCH(G3,'Состав блюд'!P:P,)),"") -> Гречка отварная | J3: 2 | K3: =IFERROR(INDEX('Состав блюд'!S:S,MATCH(J3,'Состав блюд'!V:V,)),"") -> Салат "Капустный" | M3: 2 | N3: =IFERROR(INDEX('Состав блюд'!Y:Y,MATCH(M3,'Состав блюд'!AB:AB,)),"") -> Какао
A4: 3 | B4: =IFERROR(INDEX('Состав блюд'!A:A,MATCH(A4,'Состав блюд'!D:D,)),"") -> Суп вермишелевый | D4: 3 | E4: =IFERROR(INDEX('Состав блюд'!G:G,MATCH(D4,'Состав блюд'!J:J,)),"") -> Азу с рисом | G4: 3 | H4: =IFERROR(INDEX('Состав блюд'!M:M,MATCH(G4,'Состав блюд'!P:P,)),"") -> Пюре картофельное | J4: 3 | K4: =IFERROR(INDEX('Состав блюд'!S:S,MATCH(J4,'Состав блюд'!V:V,)),"") -> Салат "Мимоза" | M4: 3 | N4: =IFERROR(INDEX('Состав блюд'!Y:Y,MATCH(M4,'Состав блюд'!AB:AB,)),"") -> Компот из яблок
A5: 4 | B5: =IFERROR(INDEX('Состав блюд'!A:A,MATCH(A5,'Состав блюд'!D:D,)),"") -> Суп фасолевый | D5: 4 | E5: =IFERROR(INDEX('Состав блюд'!G:G,MATCH(D5,'Состав блюд'!J:J,)),"") -> Гречка по-купечески | G5: 4 | H5: =IFERROR(INDEX('Состав блюд'!M:M,MATCH(G5,'Состав блюд'!P:P,)),"") -> Картофель жареный | J5: 4 | K5: =IFERROR(INDEX('Состав блюд'!S:S,MATCH(J5,'Состав блюд'!V:V,)),"") -> Салат "Крабовый" | M5: 4 | N5: =IFERROR(INDEX('Состав блюд'!Y:Y,MATCH(M5,'Состав блюд'!AB:AB,)),"") -> Компот из сухофруктов
A6: 5 | B6: =IFERROR(INDEX('Состав блюд'!A:A,MATCH(A6,'Состав блюд'!D:D,)),"") -> 0 | D6: 5 | E6: =IFERROR(INDEX('Состав блюд'!G:G,MATCH(D6,'Состав блюд'!J:J,)),"") -> 0 | G6: 5 | H6: =IFERROR(INDEX('Состав блюд'!M:M,MATCH(G6,'Состав блюд'!P:P,)),"") -> 0 | J6: 5 | K6: =IFERROR(INDEX('Состав блюд'!S:S,MATCH(J6,'Состав блюд'!V:V,)),"") -> 0 | M6: 5 | N6: =IFERROR(INDEX('Состав блюд'!Y:Y,MATCH(M6,'Состав блюд'!AB:AB,)),"") -> 0
A7: 6 | B7: =IFERROR(INDEX('Состав блюд'!A:A,MATCH(A7,'Состав блюд'!D:D,)),"") -> 0 | D7: 6 | E7: =IFERROR(INDEX('Состав блюд'!G:G,MATCH(D7,'Состав блюд'!J:J,)),"") -> 0 | G7: 6 | H7: =IFERROR(INDEX('Состав блюд'!M:M,MATCH(G7,'Состав блюд'!P:P,)),"") -> 0 | J7: 6 | K7: =IFERROR(INDEX('Состав блюд'!S:S,MATCH(J7,'Состав блюд'!V:V,)),"") -> 0 | M7: 6 | N7: =IFERROR(INDEX('Состав блюд'!Y:Y,MATCH(M7,'Состав блюд'!AB:AB,)),"") -> 0 | O7: =IF(AND($F$77<>"",INDEX('Состав блюд'!M:M,MATCH(INDEX('Перечень блюд'!G:G,MATCH(F$77,'Перечень блюд'!H:H,)),'Состав блюд'!P:P,)+ROW(O35))=ROW(O34)),INDEX('Состав блюд'!N:N,MATCH(INDEX('Перечень блюд'!G:G,MATCH(F$77,'Перечень блюд'!H:H,)),'Состав блюд'!P:P,)+ROW(O35)),"") -> 
A8: 7 | B8: =IFERROR(INDEX('Состав блюд'!A:A,MATCH(A8,'Состав блюд'!D:D,)),"") -> 0 | D8: 7 | E8: =IFERROR(INDEX('Состав блюд'!G:G,MATCH(D8,'Состав блюд'!J:J,)),"") -> 0 | G8: 7 | H8: =IFERROR(INDEX('Состав блюд'!M:M,MATCH(G8,'Состав блюд'!P:P,)),"") -> 0 | J8: 7 | K8: =IFERROR(INDEX('Состав блюд'!S:S,MATCH(J8,'Состав блюд'!V:V,)),"") -> 0 | M8: 7 | N8: =IFERROR(INDEX('Состав блюд'!Y:Y,MATCH(M8,'Состав блюд'!AB:AB,)),"") -> 0
A9: 8 | B9: =IFERROR(INDEX('Состав блюд'!A:A,MATCH(A9,'Состав блюд'!D:D,)),"") -> 0 | D9: 8 | E9: =IFERROR(INDEX('Состав блюд'!G:G,MATCH(D9,'Состав блюд'!J:J,)),"") -> 0 | G9: 8 | H9: =IFERROR(INDEX('Состав блюд'!M:M,MATCH(G9,'Состав блюд'!P:P,)),"") -> 0 | J9: 8 | K9: =IFERROR(INDEX('Состав блюд'!S:S,MATCH(J9,'Состав блюд'!V:V,)),"") -> 0 | M9: 8 | N9: =IFERROR(INDEX('Состав блюд'!Y:Y,MATCH(M9,'Состав блюд'!AB:AB,)),"") -> 0
A10: 9 | B10: =IFERROR(INDEX('Состав блюд'!A:A,MATCH(A10,'Состав блюд'!D:D,)),"") -> 0 | D10: 9 | E10: =IFERROR(INDEX('Состав блюд'!G:G,MATCH(D10,'Состав блюд'!J:J,)),"") -> 0 | G10: 9 | H10: =IFERROR(INDEX('Состав блюд'!M:M,MATCH(G10,'Состав блюд'!P:P,)),"") -> 0 | J10: 9 | K10: =IFERROR(INDEX('Состав блюд'!S:S,MATCH(J10,'Состав блюд'!V:V,)),"") -> 0 | M10: 9 | N10: =IFERROR(INDEX('Состав блюд'!Y:Y,MATCH(M10,'Состав блюд'!AB:AB,)),"") -> 0
A11: 10 | B11: =IFERROR(INDEX('Состав блюд'!A:A,MATCH(A11,'Состав блюд'!D:D,)),"") -> 0 | D11: 10 | E11: =IFERROR(INDEX('Состав блюд'!G:G,MATCH(D11,'Состав блюд'!J:J,)),"") -> 0 | G11: 10 | H11: =IFERROR(INDEX('Состав блюд'!M:M,MATCH(G11,'Состав блюд'!P:P,)),"") -> 0 | J11: 10 | K11: =IFERROR(INDEX('Состав блюд'!S:S,MATCH(J11,'Состав блюд'!V:V,)),"") -> 0 | M11: 10 | N11: =IFERROR(INDEX('Состав блюд'!Y:Y,MATCH(M11,'Состав блюд'!AB:AB,)),"") -> 0
A12: 11 | B12: =IFERROR(INDEX('Состав блюд'!A:A,MATCH(A12,'Состав блюд'!D:D,)),"") -> 0 | D12: 11 | E12: =IFERROR(INDEX('Состав блюд'!G:G,MATCH(D12,'Состав блюд'!J:J,)),"") -> 0 | G12: 11 | H12: =IFERROR(INDEX('Состав блюд'!M:M,MATCH(G12,'Состав блюд'!P:P,)),"") -> 0 | J12: 11 | K12: =IFERROR(INDEX('Состав блюд'!S:S,MATCH(J12,'Состав блюд'!V:V,)),"") -> 0 | M12: 11 | N12: =IFERROR(INDEX('Состав блюд'!Y:Y,MATCH(M12,'Состав блюд'!AB:AB,)),"") -> 0
A13: 12 | B13: =IFERROR(INDEX('Состав блюд'!A:A,MATCH(A13,'Состав блюд'!D:D,)),"") -> 0 | D13: 12 | E13: =IFERROR(INDEX('Состав блюд'!G:G,MATCH(D13,'Состав блюд'!J:J,)),"") -> 0 | G13: 12 | H13: =IFERROR(INDEX('Состав блюд'!M:M,MATCH(G13,'Состав блюд'!P:P,)),"") -> 0 | J13: 12 | K13: =IFERROR(INDEX('Состав блюд'!S:S,MATCH(J13,'Состав блюд'!V:V,)),"") -> 0 | M13: 12 | N13: =IFERROR(INDEX('Состав блюд'!Y:Y,MATCH(M13,'Состав блюд'!AB:AB,)),"") -> 0
A14: 13 | B14: =IFERROR(INDEX('Состав блюд'!A:A,MATCH(A14,'Состав блюд'!D:D,)),"") -> 0 | D14: 13 | E14: =IFERROR(INDEX('Состав блюд'!G:G,MATCH(D14,'Состав блюд'!J:J,)),"") -> 0 | G14: 13 | H14: =IFERROR(INDEX('Состав блюд'!M:M,MATCH(G14,'Состав блюд'!P:P,)),"") -> 0 | J14: 13 | K14: =IFERROR(INDEX('Состав блюд'!S:S,MATCH(J14,'Состав блюд'!V:V,)),"") -> 0 | M14: 13 | N14: =IFERROR(INDEX('Состав блюд'!Y:Y,MATCH(M14,'Состав блюд'!AB:AB,)),"") -> 0
A15: 14 | B15: =IFERROR(INDEX('Состав блюд'!A:A,MATCH(A15,'Состав блюд'!D:D,)),"") -> 0 | D15: 14 | E15: =IFERROR(INDEX('Состав блюд'!G:G,MATCH(D15,'Состав блюд'!J:J,)),"") -> 0 | G15: 14 | H15: =IFERROR(INDEX('Состав блюд'!M:M,MATCH(G15,'Состав блюд'!P:P,)),"") -> 0 | J15: 14 | K15: =IFERROR(INDEX('Состав блюд'!S:S,MATCH(J15,'Состав блюд'!V:V,)),"") -> 0 | M15: 14 | N15: =IFERROR(INDEX('Состав блюд'!Y:Y,MATCH(M15,'Состав блюд'!AB:AB,)),"") -> 0
A16: 15 | B16: =IFERROR(INDEX('Состав блюд'!A:A,MATCH(A16,'Состав блюд'!D:D,)),"") -> 0 | D16: 15 | E16: =IFERROR(INDEX('Состав блюд'!G:G,MATCH(D16,'Состав блюд'!J:J,)),"") -> 0 | G16: 15 | H16: =IFERROR(INDEX('Состав блюд'!M:M,MATCH(G16,'Состав блюд'!P:P,)),"") -> 0 | J16: 15 | K16: =IFERROR(INDEX('Состав блюд'!S:S,MATCH(J16,'Состав блюд'!V:V,)),"") -> 0 | M16: 15 | N16: =IFERROR(INDEX('Состав блюд'!Y:Y,MATCH(M16,'Состав блюд'!AB:AB,)),"") -> 0
A17: 16 | B17: =IFERROR(INDEX('Состав блюд'!A:A,MATCH(A17,'Состав блюд'!D:D,)),"") -> 0 | D17: 16 | E17: =IFERROR(INDEX('Состав блюд'!G:G,MATCH(D17,'Состав блюд'!J:J,)),"") -> 0 | G17: 16 | H17: =IFERROR(INDEX('Состав блюд'!M:M,MATCH(G17,'Состав блюд'!P:P,)),"") -> 0 | J17: 16 | K17: =IFERROR(INDEX('Состав блюд'!S:S,MATCH(J17,'Состав блюд'!V:V,)),"") -> 0 | M17: 16 | N17: =IFERROR(INDEX('Состав блюд'!Y:Y,MATCH(M17,'Состав блюд'!AB:AB,)),"") -> 0
A18: 17 | B18: =IFERROR(INDEX('Состав блюд'!A:A,MATCH(A18,'Состав блюд'!D:D,)),"") -> 0 | D18: 17 | E18: =IFERROR(INDEX('Состав блюд'!G:G,MATCH(D18,'Состав блюд'!J:J,)),"") -> 0 | G18: 17 | H18: =IFERROR(INDEX('Состав блюд'!M:M,MATCH(G18,'Состав блюд'!P:P,)),"") -> 0 | J18: 17 | K18: =IFERROR(INDEX('Состав блюд'!S:S,MATCH(J18,'Состав блюд'!V:V,)),"") -> 0 | M18: 17 | N18: =IFERROR(INDEX('Состав блюд'!Y:Y,MATCH(M18,'Состав блюд'!AB:AB,)),"") -> 0
A19: 18 | B19: =IFERROR(INDEX('Состав блюд'!A:A,MATCH(A19,'Состав блюд'!D:D,)),"") -> 0 | D19: 18 | E19: =IFERROR(INDEX('Состав блюд'!G:G,MATCH(D19,'Состав блюд'!J:J,)),"") -> 0 | G19: 18 | H19: =IFERROR(INDEX('Состав блюд'!M:M,MATCH(G19,'Состав блюд'!P:P,)),"") -> 0 | J19: 18 | K19: =IFERROR(INDEX('Состав блюд'!S:S,MATCH(J19,'Состав блюд'!V:V,)),"") -> 0 | M19: 18 | N19: =IFERROR(INDEX('Состав блюд'!Y:Y,MATCH(M19,'Состав блюд'!AB:AB,)),"") -> 0
A20: 19 | B20: =IFERROR(INDEX('Состав блюд'!A:A,MATCH(A20,'Состав блюд'!D:D,)),"") -> 0 | D20: 19 | E20: =IFERROR(INDEX('Состав блюд'!G:G,MATCH(D20,'Состав блюд'!J:J,)),"") -> 0 | G20: 19 | H20: =IFERROR(INDEX('Состав блюд'!M:M,MATCH(G20,'Состав блюд'!P:P,)),"") -> 0 | J20: 19 | K20: =IFERROR(INDEX('Состав блюд'!S:S,MATCH(J20,'Состав блюд'!V:V,)),"") -> 0 | M20: 19 | N20: =IFERROR(INDEX('Состав блюд'!Y:Y,MATCH(M20,'Состав блюд'!AB:AB,)),"") -> 0
A21: 20 | B21: =IFERROR(INDEX('Состав блюд'!A:A,MATCH(A21,'Состав блюд'!D:D,)),"") -> 0 | D21: 20 | E21: =IFERROR(INDEX('Состав блюд'!G:G,MATCH(D21,'Состав блюд'!J:J,)),"") -> 0 | G21: 20 | H21: =IFERROR(INDEX('Состав блюд'!M:M,MATCH(G21,'Состав блюд'!P:P,)),"") -> 0 | J21: 20 | K21: =IFERROR(INDEX('Состав блюд'!S:S,MATCH(J21,'Состав блюд'!V:V,)),"") -> 0 | M21: 20 | N21: =IFERROR(INDEX('Состав блюд'!Y:Y,MATCH(M21,'Состав блюд'!AB:AB,)),"") -> 0
A22: 21 | B22: =IFERROR(INDEX('Состав блюд'!A:A,MATCH(A22,'Состав блюд'!D:D,)),"") -> 0 | D22: 21 | E22: =IFERROR(INDEX('Состав блюд'!G:G,MATCH(D22,'Состав блюд'!J:J,)),"") -> 0 | G22: 21 | H22: =IFERROR(INDEX('Состав блюд'!M:M,MATCH(G22,'Состав блюд'!P:P,)),"") -> 0 | J22: 21 | K22: =IFERROR(INDEX('Состав блюд'!S:S,MATCH(J22,'Состав блюд'!V:V,)),"") -> 0 | M22: 21 | N22: =IFERROR(INDEX('Состав блюд'!Y:Y,MATCH(M22,'Состав блюд'!AB:AB,)),"") -> 0
A23: 22 | B23: =IFERROR(INDEX('Состав блюд'!A:A,MATCH(A23,'Состав блюд'!D:D,)),"") ->  | D23: 22 | E23: =IFERROR(INDEX('Состав блюд'!G:G,MATCH(D23,'Состав блюд'!J:J,)),"") ->  | G23: 22 | H23: =IFERROR(INDEX('Состав блюд'!M:M,MATCH(G23,'Состав блюд'!P:P,)),"") ->  | J23: 22 | K23: =IFERROR(INDEX('Состав блюд'!S:S,MATCH(J23,'Состав блюд'!V:V,)),"") ->  | M23: 22 | N23: =IFERROR(INDEX('Состав блюд'!Y:Y,MATCH(M23,'Состав блюд'!AB:AB,)),"") -> 
A24: 23 | B24: =IFERROR(INDEX('Состав блюд'!A:A,MATCH(A24,'Состав блюд'!D:D,)),"") ->  | D24: 23 | E24: =IFERROR(INDEX('Состав блюд'!G:G,MATCH(D24,'Состав блюд'!J:J,)),"") ->  | G24: 23 | H24: =IFERROR(INDEX('Состав блюд'!M:M,MATCH(G24,'Состав блюд'!P:P,)),"") ->  | J24: 23 | K24: =IFERROR(INDEX('Состав блюд'!S:S,MATCH(J24,'Состав блюд'!V:V,)),"") ->  | M24: 23 | N24: =IFERROR(INDEX('Состав блюд'!Y:Y,MATCH(M24,'Состав блюд'!AB:AB,)),"") -> 
A25: 24 | B25: =IFERROR(INDEX('Состав блюд'!A:A,MATCH(A25,'Состав блюд'!D:D,)),"") ->  | D25: 24 | E25: =IFERROR(INDEX('Состав блюд'!G:G,MATCH(D25,'Состав блюд'!J:J,)),"") ->  | G25: 24 | H25: =IFERROR(INDEX('Состав блюд'!M:M,MATCH(G25,'Состав блюд'!P:P,)),"") ->  | J25: 24 | K25: =IFERROR(INDEX('Состав блюд'!S:S,MATCH(J25,'Состав блюд'!V:V,)),"") ->  | M25: 24 | N25: =IFERROR(INDEX('Состав блюд'!Y:Y,MATCH(M25,'Состав блюд'!AB:AB,)),"") -> 
A26: 25 | B26: =IFERROR(INDEX('Состав блюд'!A:A,MATCH(A26,'Состав блюд'!D:D,)),"") ->  | D26: 25 | E26: =IFERROR(INDEX('Состав блюд'!G:G,MATCH(D26,'Состав блюд'!J:J,)),"") ->  | G26: 25 | H26: =IFERROR(INDEX('Состав блюд'!M:M,MATCH(G26,'Состав блюд'!P:P,)),"") ->  | J26: 25 | K26: =IFERROR(INDEX('Состав блюд'!S:S,MATCH(J26,'Состав блюд'!V:V,)),"") ->  | M26: 25 | N26: =IFERROR(INDEX('Состав блюд'!Y:Y,MATCH(M26,'Состав блюд'!AB:AB,)),"") -> 
A27: 26 | B27: =IFERROR(INDEX('Состав блюд'!A:A,MATCH(A27,'Состав блюд'!D:D,)),"") ->  | D27: 26 | E27: =IFERROR(INDEX('Состав блюд'!G:G,MATCH(D27,'Состав блюд'!J:J,)),"") ->  | G27: 26 | H27: =IFERROR(INDEX('Состав блюд'!M:M,MATCH(G27,'Состав блюд'!P:P,)),"") ->  | J27: 26 | K27: =IFERROR(INDEX('Состав блюд'!S:S,MATCH(J27,'Состав блюд'!V:V,)),"") ->  | M27: 26 | N27: =IFERROR(INDEX('Состав блюд'!Y:Y,MATCH(M27,'Состав блюд'!AB:AB,)),"") -> 
A28: 27 | B28: =IFERROR(INDEX('Состав блюд'!A:A,MATCH(A28,'Состав блюд'!D:D,)),"") ->  | D28: 27 | E28: =IFERROR(INDEX('Состав блюд'!G:G,MATCH(D28,'Состав блюд'!J:J,)),"") ->  | G28: 27 | H28: =IFERROR(INDEX('Состав блюд'!M:M,MATCH(G28,'Состав блюд'!P:P,)),"") ->  | J28: 27 | K28: =IFERROR(INDEX('Состав блюд'!S:S,MATCH(J28,'Состав блюд'!V:V,)),"") ->  | M28: 27 | N28: =IFERROR(INDEX('Состав блюд'!Y:Y,MATCH(M28,'Состав блюд'!AB:AB,)),"") -> 
A29: 28 | B29: =IFERROR(INDEX('Состав блюд'!A:A,MATCH(A29,'Состав блюд'!D:D,)),"") ->  | D29: 28 | E29: =IFERROR(INDEX('Состав блюд'!G:G,MATCH(D29,'Состав блюд'!J:J,)),"") ->  | G29: 28 | H29: =IFERROR(INDEX('Состав блюд'!M:M,MATCH(G29,'Состав блюд'!P:P,)),"") ->  | J29: 28 | K29: =IFERROR(INDEX('Состав блюд'!S:S,MATCH(J29,'Состав блюд'!V:V,)),"") ->  | M29: 28 | N29: =IFERROR(INDEX('Состав блюд'!Y:Y,MATCH(M29,'Состав блюд'!AB:AB,)),"") -> 
A30: 29 | B30: =IFERROR(INDEX('Состав блюд'!A:A,MATCH(A30,'Состав блюд'!D:D,)),"") ->  | D30: 29 | E30: =IFERROR(INDEX('Состав блюд'!G:G,MATCH(D30,'Состав блюд'!J:J,)),"") ->  | G30: 29 | H30: =IFERROR(INDEX('Состав блюд'!M:M,MATCH(G30,'Состав блюд'!P:P,)),"") ->  | J30: 29 | K30: =IFERROR(INDEX('Состав блюд'!S:S,MATCH(J30,'Состав блюд'!V:V,)),"") ->  | M30: 29 | N30: =IFERROR(INDEX('Состав блюд'!Y:Y,MATCH(M30,'Состав блюд'!AB:AB,)),"") -> 
A31: 30 | B31: =IFERROR(INDEX('Состав блюд'!A:A,MATCH(A31,'Состав блюд'!D:D,)),"") ->  | D31: 30 | E31: =IFERROR(INDEX('Состав блюд'!G:G,MATCH(D31,'Состав блюд'!J:J,)),"") ->  | G31: 30 | H31: =IFERROR(INDEX('Состав блюд'!M:M,MATCH(G31,'Состав блюд'!P:P,)),"") ->  | J31: 30 | K31: =IFERROR(INDEX('Состав блюд'!S:S,MATCH(J31,'Состав блюд'!V:V,)),"") ->  | M31: 30 | N31: =IFERROR(INDEX('Состав блюд'!Y:Y,MATCH(M31,'Состав блюд'!AB:AB,)),"") -> 
A32: 31 | B32: =IFERROR(INDEX('Состав блюд'!A:A,MATCH(A32,'Состав блюд'!D:D,)),"") ->  | D32: 31 | E32: =IFERROR(INDEX('Состав блюд'!G:G,MATCH(D32,'Состав блюд'!J:J,)),"") ->  | G32: 31 | H32: =IFERROR(INDEX('Состав блюд'!M:M,MATCH(G32,'Состав блюд'!P:P,)),"") ->  | J32: 31 | K32: =IFERROR(INDEX('Состав блюд'!S:S,MATCH(J32,'Состав блюд'!V:V,)),"") ->  | M32: 31 | N32: =IFERROR(INDEX('Состав блюд'!Y:Y,MATCH(M32,'Состав блюд'!AB:AB,)),"") -> 
A33: 32 | B33: =IFERROR(INDEX('Состав блюд'!A:A,MATCH(A33,'Состав блюд'!D:D,)),"") ->  | D33: 32 | E33: =IFERROR(INDEX('Состав блюд'!G:G,MATCH(D33,'Состав блюд'!J:J,)),"") ->  | G33: 32 | H33: =IFERROR(INDEX('Состав блюд'!M:M,MATCH(G33,'Состав блюд'!P:P,)),"") ->  | J33: 32 | K33: =IFERROR(INDEX('Состав блюд'!S:S,MATCH(J33,'Состав блюд'!V:V,)),"") ->  | M33: 32 | N33: =IFERROR(INDEX('Состав блюд'!Y:Y,MATCH(M33,'Состав блюд'!AB:AB,)),"") -> 
A34: 33 | B34: =IFERROR(INDEX('Состав блюд'!A:A,MATCH(A34,'Состав блюд'!D:D,)),"") ->  | D34: 33 | E34: =IFERROR(INDEX('Состав блюд'!G:G,MATCH(D34,'Состав блюд'!J:J,)),"") ->  | G34: 33 | H34: =IFERROR(INDEX('Состав блюд'!M:M,MATCH(G34,'Состав блюд'!P:P,)),"") ->  | J34: 33 | K34: =IFERROR(INDEX('Состав блюд'!S:S,MATCH(J34,'Состав блюд'!V:V,)),"") ->  | M34: 33 | N34: =IFERROR(INDEX('Состав блюд'!Y:Y,MATCH(M34,'Состав блюд'!AB:AB,)),"") -> 
A35: 34 | B35: =IFERROR(INDEX('Состав блюд'!A:A,MATCH(A35,'Состав блюд'!D:D,)),"") ->  | D35: 34 | E35: =IFERROR(INDEX('Состав блюд'!G:G,MATCH(D35,'Состав блюд'!J:J,)),"") ->  | G35: 34 | H35: =IFERROR(INDEX('Состав блюд'!M:M,MATCH(G35,'Состав блюд'!P:P,)),"") ->  | J35: 34 | K35: =IFERROR(INDEX('Состав блюд'!S:S,MATCH(J35,'Состав блюд'!V:V,)),"") ->  | M35: 34 | N35: =IFERROR(INDEX('Состав блюд'!Y:Y,MATCH(M35,'Состав блюд'!AB:AB,)),"") -> 
A36: 35 | B36: =IFERROR(INDEX('Состав блюд'!A:A,MATCH(A36,'Состав блюд'!D:D,)),"") ->  | D36: 35 | E36: =IFERROR(INDEX('Состав блюд'!G:G,MATCH(D36,'Состав блюд'!J:J,)),"") ->  | G36: 35 | H36: =IFERROR(INDEX('Состав блюд'!M:M,MATCH(G36,'Состав блюд'!P:P,)),"") ->  | J36: 35 | K36: =IFERROR(INDEX('Состав блюд'!S:S,MATCH(J36,'Состав блюд'!V:V,)),"") ->  | M36: 35 | N36: =IFERROR(INDEX('Состав блюд'!Y:Y,MATCH(M36,'Состав блюд'!AB:AB,)),"") -> 
A37: 36 | B37: =IFERROR(INDEX('Состав блюд'!A:A,MATCH(A37,'Состав блюд'!D:D,)),"") ->  | D37: 36 | E37: =IFERROR(INDEX('Состав блюд'!G:G,MATCH(D37,'Состав блюд'!J:J,)),"") ->  | G37: 36 | H37: =IFERROR(INDEX('Состав блюд'!M:M,MATCH(G37,'Состав блюд'!P:P,)),"") ->  | J37: 36 | K37: =IFERROR(INDEX('Состав блюд'!S:S,MATCH(J37,'Состав блюд'!V:V,)),"") ->  | M37: 36 | N37: =IFERROR(INDEX('Состав блюд'!Y:Y,MATCH(M37,'Состав блюд'!AB:AB,)),"") -> 
A38: 37 | B38: =IFERROR(INDEX('Состав блюд'!A:A,MATCH(A38,'Состав блюд'!D:D,)),"") ->  | D38: 37 | E38: =IFERROR(INDEX('Состав блюд'!G:G,MATCH(D38,'Состав блюд'!J:J,)),"") ->  | G38: 37 | H38: =IFERROR(INDEX('Состав блюд'!M:M,MATCH(G38,'Состав блюд'!P:P,)),"") ->  | J38: 37 | K38: =IFERROR(INDEX('Состав блюд'!S:S,MATCH(J38,'Состав блюд'!V:V,)),"") ->  | M38: 37 | N38: =IFERROR(INDEX('Состав блюд'!Y:Y,MATCH(M38,'Состав блюд'!AB:AB,)),"") -> 
A39: 38 | B39: =IFERROR(INDEX('Состав блюд'!A:A,MATCH(A39,'Состав блюд'!D:D,)),"") ->  | D39: 38 | E39: =IFERROR(INDEX('Состав блюд'!G:G,MATCH(D39,'Состав блюд'!J:J,)),"") ->  | G39: 38 | H39: =IFERROR(INDEX('Состав блюд'!M:M,MATCH(G39,'Состав блюд'!P:P,)),"") ->  | J39: 38 | K39: =IFERROR(INDEX('Состав блюд'!S:S,MATCH(J39,'Состав блюд'!V:V,)),"") ->  | M39: 38 | N39: =IFERROR(INDEX('Состав блюд'!Y:Y,MATCH(M39,'Состав блюд'!AB:AB,)),"") -> 
A40: 39 | B40: =IFERROR(INDEX('Состав блюд'!A:A,MATCH(A40,'Состав блюд'!D:D,)),"") ->  | D40: 39 | E40: =IFERROR(INDEX('Состав блюд'!G:G,MATCH(D40,'Состав блюд'!J:J,)),"") ->  | G40: 39 | H40: =IFERROR(INDEX('Состав блюд'!M:M,MATCH(G40,'Состав блюд'!P:P,)),"") ->  | J40: 39 | K40: =IFERROR(INDEX('Состав блюд'!S:S,MATCH(J40,'Состав блюд'!V:V,)),"") ->  | M40: 39 | N40: =IFERROR(INDEX('Состав блюд'!Y:Y,MATCH(M40,'Состав блюд'!AB:AB,)),"") -> 
A41: 40 | B41: =IFERROR(INDEX('Состав блюд'!A:A,MATCH(A41,'Состав блюд'!D:D,)),"") ->  | D41: 40 | E41: =IFERROR(INDEX('Состав блюд'!G:G,MATCH(D41,'Состав блюд'!J:J,)),"") ->  | G41: 40 | H41: =IFERROR(INDEX('Состав блюд'!M:M,MATCH(G41,'Состав блюд'!P:P,)),"") ->  | J41: 40 | K41: =IFERROR(INDEX('Состав блюд'!S:S,MATCH(J41,'Состав блюд'!V:V,)),"") ->  | M41: 40 | N41: =IFERROR(INDEX('Состав блюд'!Y:Y,MATCH(M41,'Состав блюд'!AB:AB,)),"") -> 
A42: 41 | B42: =IFERROR(INDEX('Состав блюд'!A:A,MATCH(A42,'Состав блюд'!D:D,)),"") ->  | D42: 41 | E42: =IFERROR(INDEX('Состав блюд'!G:G,MATCH(D42,'Состав блюд'!J:J,)),"") ->  | G42: 41 | H42: =IFERROR(INDEX('Состав блюд'!M:M,MATCH(G42,'Состав блюд'!P:P,)),"") ->  | J42: 41 | K42: =IFERROR(INDEX('Состав блюд'!S:S,MATCH(J42,'Состав блюд'!V:V,)),"") ->  | M42: 41 | N42: =IFERROR(INDEX('Состав блюд'!Y:Y,MATCH(M42,'Состав блюд'!AB:AB,)),"") -> 
A43: 42 | B43: =IFERROR(INDEX('Состав блюд'!A:A,MATCH(A43,'Состав блюд'!D:D,)),"") ->  | D43: 42 | E43: =IFERROR(INDEX('Состав блюд'!G:G,MATCH(D43,'Состав блюд'!J:J,)),"") ->  | G43: 42 | H43: =IFERROR(INDEX('Состав блюд'!M:M,MATCH(G43,'Состав блюд'!P:P,)),"") ->  | J43: 42 | K43: =IFERROR(INDEX('Состав блюд'!S:S,MATCH(J43,'Состав блюд'!V:V,)),"") ->  | M43: 42 | N43: =IFERROR(INDEX('Состав блюд'!Y:Y,MATCH(M43,'Состав блюд'!AB:AB,)),"") -> 
A44: 43 | B44: =IFERROR(INDEX('Состав блюд'!A:A,MATCH(A44,'Состав блюд'!D:D,)),"") ->  | D44: 43 | E44: =IFERROR(INDEX('Состав блюд'!G:G,MATCH(D44,'Состав блюд'!J:J,)),"") ->  | G44: 43 | H44: =IFERROR(INDEX('Состав блюд'!M:M,MATCH(G44,'Состав блюд'!P:P,)),"") ->  | J44: 43 | K44: =IFERROR(INDEX('Состав блюд'!S:S,MATCH(J44,'Состав блюд'!V:V,)),"") ->  | M44: 43 | N44: =IFERROR(INDEX('Состав блюд'!Y:Y,MATCH(M44,'Состав блюд'!AB:AB,)),"") -> 
A45: 44 | B45: =IFERROR(INDEX('Состав блюд'!A:A,MATCH(A45,'Состав блюд'!D:D,)),"") ->  | D45: 44 | E45: =IFERROR(INDEX('Состав блюд'!G:G,MATCH(D45,'Состав блюд'!J:J,)),"") ->  | G45: 44 | H45: =IFERROR(INDEX('Состав блюд'!M:M,MATCH(G45,'Состав блюд'!P:P,)),"") ->  | J45: 44 | K45: =IFERROR(INDEX('Состав блюд'!S:S,MATCH(J45,'Состав блюд'!V:V,)),"") ->  | M45: 44 | N45: =IFERROR(INDEX('Состав блюд'!Y:Y,MATCH(M45,'Состав блюд'!AB:AB,)),"") -> 
A46: 45 | B46: =IFERROR(INDEX('Состав блюд'!A:A,MATCH(A46,'Состав блюд'!D:D,)),"") ->  | D46: 45 | E46: =IFERROR(INDEX('Состав блюд'!G:G,MATCH(D46,'Состав блюд'!J:J,)),"") ->  | G46: 45 | H46: =IFERROR(INDEX('Состав блюд'!M:M,MATCH(G46,'Состав блюд'!P:P,)),"") ->  | J46: 45 | K46: =IFERROR(INDEX('Состав блюд'!S:S,MATCH(J46,'Состав блюд'!V:V,)),"") ->  | M46: 45 | N46: =IFERROR(INDEX('Состав блюд'!Y:Y,MATCH(M46,'Состав блюд'!AB:AB,)),"") -> 
A47: 46 | B47: =IFERROR(INDEX('Состав блюд'!A:A,MATCH(A47,'Состав блюд'!D:D,)),"") ->  | D47: 46 | E47: =IFERROR(INDEX('Состав блюд'!G:G,MATCH(D47,'Состав блюд'!J:J,)),"") ->  | G47: 46 | H47: =IFERROR(INDEX('Состав блюд'!M:M,MATCH(G47,'Состав блюд'!P:P,)),"") ->  | J47: 46 | K47: =IFERROR(INDEX('Состав блюд'!S:S,MATCH(J47,'Состав блюд'!V:V,)),"") ->  | M47: 46 | N47: =IFERROR(INDEX('Состав блюд'!Y:Y,MATCH(M47,'Состав блюд'!AB:AB,)),"") -> 
A48: 47 | B48: =IFERROR(INDEX('Состав блюд'!A:A,MATCH(A48,'Состав блюд'!D:D,)),"") ->  | D48: 47 | E48: =IFERROR(INDEX('Состав блюд'!G:G,MATCH(D48,'Состав блюд'!J:J,)),"") ->  | G48: 47 | H48: =IFERROR(INDEX('Состав блюд'!M:M,MATCH(G48,'Состав блюд'!P:P,)),"") ->  | J48: 47 | K48: =IFERROR(INDEX('Состав блюд'!S:S,MATCH(J48,'Состав блюд'!V:V,)),"") ->  | M48: 47 | N48: =IFERROR(INDEX('Состав блюд'!Y:Y,MATCH(M48,'Состав блюд'!AB:AB,)),"") -> 
A49: 48 | B49: =IFERROR(INDEX('Состав блюд'!A:A,MATCH(A49,'Состав блюд'!D:D,)),"") ->  | D49: 48 | E49: =IFERROR(INDEX('Состав блюд'!G:G,MATCH(D49,'Состав блюд'!J:J,)),"") ->  | G49: 48 | H49: =IFERROR(INDEX('Состав блюд'!M:M,MATCH(G49,'Состав блюд'!P:P,)),"") ->  | J49: 48 | K49: =IFERROR(INDEX('Состав блюд'!S:S,MATCH(J49,'Состав блюд'!V:V,)),"") ->  | M49: 48 | N49: =IFERROR(INDEX('Состав блюд'!Y:Y,MATCH(M49,'Состав блюд'!AB:AB,)),"") -> 
A50: 49 | B50: =IFERROR(INDEX('Состав блюд'!A:A,MATCH(A50,'Состав блюд'!D:D,)),"") ->  | D50: 49 | E50: =IFERROR(INDEX('Состав блюд'!G:G,MATCH(D50,'Состав блюд'!J:J,)),"") ->  | G50: 49 | H50: =IFERROR(INDEX('Состав блюд'!M:M,MATCH(G50,'Состав блюд'!P:P,)),"") ->  | J50: 49 | K50: =IFERROR(INDEX('Состав блюд'!S:S,MATCH(J50,'Состав блюд'!V:V,)),"") ->  | M50: 49 | N50: =IFERROR(INDEX('Состав блюд'!Y:Y,MATCH(M50,'Состав блюд'!AB:AB,)),"") -> 
A51: 50 | B51: =IFERROR(INDEX('Состав блюд'!A:A,MATCH(A51,'Состав блюд'!D:D,)),"") ->  | D51: 50 | E51: =IFERROR(INDEX('Состав блюд'!G:G,MATCH(D51,'Состав блюд'!J:J,)),"") ->  | G51: 50 | H51: =IFERROR(INDEX('Состав блюд'!M:M,MATCH(G51,'Состав блюд'!P:P,)),"") ->  | J51: 50 | K51: =IFERROR(INDEX('Состав блюд'!S:S,MATCH(J51,'Состав блюд'!V:V,)),"") ->  | M51: 50 | N51: =IFERROR(INDEX('Состав блюд'!Y:Y,MATCH(M51,'Состав блюд'!AB:AB,)),"") -> 
A52: 51 | B52: =IFERROR(INDEX('Состав блюд'!A:A,MATCH(A52,'Состав блюд'!D:D,)),"") ->  | D52: 51 | E52: =IFERROR(INDEX('Состав блюд'!G:G,MATCH(D52,'Состав блюд'!J:J,)),"") ->  | G52: 51 | H52: =IFERROR(INDEX('Состав блюд'!M:M,MATCH(G52,'Состав блюд'!P:P,)),"") ->  | J52: 51 | K52: =IFERROR(INDEX('Состав блюд'!S:S,MATCH(J52,'Состав блюд'!V:V,)),"") ->  | M52: 51 | N52: =IFERROR(INDEX('Состав блюд'!Y:Y,MATCH(M52,'Состав блюд'!AB:AB,)),"") -> 
A53: 52 | B53: =IFERROR(INDEX('Состав блюд'!A:A,MATCH(A53,'Состав блюд'!D:D,)),"") ->  | D53: 52 | E53: =IFERROR(INDEX('Состав блюд'!G:G,MATCH(D53,'Состав блюд'!J:J,)),"") ->  | G53: 52 | H53: =IFERROR(INDEX('Состав блюд'!M:M,MATCH(G53,'Состав блюд'!P:P,)),"") ->  | J53: 52 | K53: =IFERROR(INDEX('Состав блюд'!S:S,MATCH(J53,'Состав блюд'!V:V,)),"") ->  | M53: 52 | N53: =IFERROR(INDEX('Состав блюд'!Y:Y,MATCH(M53,'Состав блюд'!AB:AB,)),"") -> 
A54: 53 | B54: =IFERROR(INDEX('Состав блюд'!A:A,MATCH(A54,'Состав блюд'!D:D,)),"") ->  | D54: 53 | E54: =IFERROR(INDEX('Состав блюд'!G:G,MATCH(D54,'Состав блюд'!J:J,)),"") ->  | G54: 53 | H54: =IFERROR(INDEX('Состав блюд'!M:M,MATCH(G54,'Состав блюд'!P:P,)),"") ->  | J54: 53 | K54: =IFERROR(INDEX('Состав блюд'!S:S,MATCH(J54,'Состав блюд'!V:V,)),"") ->  | M54: 53 | N54: =IFERROR(INDEX('Состав блюд'!Y:Y,MATCH(M54,'Состав блюд'!AB:AB,)),"") -> 
A55: 54 | B55: =IFERROR(INDEX('Состав блюд'!A:A,MATCH(A55,'Состав блюд'!D:D,)),"") ->  | D55: 54 | E55: =IFERROR(INDEX('Состав блюд'!G:G,MATCH(D55,'Состав блюд'!J:J,)),"") ->  | G55: 54 | H55: =IFERROR(INDEX('Состав блюд'!M:M,MATCH(G55,'Состав блюд'!P:P,)),"") ->  | J55: 54 | K55: =IFERROR(INDEX('Состав блюд'!S:S,MATCH(J55,'Состав блюд'!V:V,)),"") ->  | M55: 54 | N55: =IFERROR(INDEX('Состав блюд'!Y:Y,MATCH(M55,'Состав блюд'!AB:AB,)),"") -> 
A56: 55 | B56: =IFERROR(INDEX('Состав блюд'!A:A,MATCH(A56,'Состав блюд'!D:D,)),"") ->  | D56: 55 | E56: =IFERROR(INDEX('Состав блюд'!G:G,MATCH(D56,'Состав блюд'!J:J,)),"") ->  | G56: 55 | H56: =IFERROR(INDEX('Состав блюд'!M:M,MATCH(G56,'Состав блюд'!P:P,)),"") ->  | J56: 55 | K56: =IFERROR(INDEX('Состав блюд'!S:S,MATCH(J56,'Состав блюд'!V:V,)),"") ->  | M56: 55 | N56: =IFERROR(INDEX('Состав блюд'!Y:Y,MATCH(M56,'Состав блюд'!AB:AB,)),"") -> 
A57: 56 | B57: =IFERROR(INDEX('Состав блюд'!A:A,MATCH(A57,'Состав блюд'!D:D,)),"") ->  | D57: 56 | E57: =IFERROR(INDEX('Состав блюд'!G:G,MATCH(D57,'Состав блюд'!J:J,)),"") ->  | G57: 56 | H57: =IFERROR(INDEX('Состав блюд'!M:M,MATCH(G57,'Состав блюд'!P:P,)),"") ->  | J57: 56 | K57: =IFERROR(INDEX('Состав блюд'!S:S,MATCH(J57,'Состав блюд'!V:V,)),"") ->  | M57: 56 | N57: =IFERROR(INDEX('Состав блюд'!Y:Y,MATCH(M57,'Состав блюд'!AB:AB,)),"") -> 
A58: 57 | B58: =IFERROR(INDEX('Состав блюд'!A:A,MATCH(A58,'Состав блюд'!D:D,)),"") ->  | D58: 57 | E58: =IFERROR(INDEX('Состав блюд'!G:G,MATCH(D58,'Состав блюд'!J:J,)),"") ->  | G58: 57 | H58: =IFERROR(INDEX('Состав блюд'!M:M,MATCH(G58,'Состав блюд'!P:P,)),"") ->  | J58: 57 | K58: =IFERROR(INDEX('Состав блюд'!S:S,MATCH(J58,'Состав блюд'!V:V,)),"") ->  | M58: 57 | N58: =IFERROR(INDEX('Состав блюд'!Y:Y,MATCH(M58,'Состав блюд'!AB:AB,)),"") -> 
A59: 58 | B59: =IFERROR(INDEX('Состав блюд'!A:A,MATCH(A59,'Состав блюд'!D:D,)),"") ->  | D59: 58 | E59: =IFERROR(INDEX('Состав блюд'!G:G,MATCH(D59,'Состав блюд'!J:J,)),"") ->  | G59: 58 | H59: =IFERROR(INDEX('Состав блюд'!M:M,MATCH(G59,'Состав блюд'!P:P,)),"") ->  | J59: 58 | K59: =IFERROR(INDEX('Состав блюд'!S:S,MATCH(J59,'Состав блюд'!V:V,)),"") ->  | M59: 58 | N59: =IFERROR(INDEX('Состав блюд'!Y:Y,MATCH(M59,'Состав блюд'!AB:AB,)),"") -> 
A60: 59 | B60: =IFERROR(INDEX('Состав блюд'!A:A,MATCH(A60,'Состав блюд'!D:D,)),"") ->  | D60: 59 | E60: =IFERROR(INDEX('Состав блюд'!G:G,MATCH(D60,'Состав блюд'!J:J,)),"") ->  | G60: 59 | H60: =IFERROR(INDEX('Состав блюд'!M:M,MATCH(G60,'Состав блюд'!P:P,)),"") ->  | J60: 59 | K60: =IFERROR(INDEX('Состав блюд'!S:S,MATCH(J60,'Состав блюд'!V:V,)),"") ->  | M60: 59 | N60: =IFERROR(INDEX('Состав блюд'!Y:Y,MATCH(M60,'Состав блюд'!AB:AB,)),"") -> 
A61: 60 | B61: =IFERROR(INDEX('Состав блюд'!A:A,MATCH(A61,'Состав блюд'!D:D,)),"") ->  | D61: 60 | E61: =IFERROR(INDEX('Состав блюд'!G:G,MATCH(D61,'Состав блюд'!J:J,)),"") ->  | G61: 60 | H61: =IFERROR(INDEX('Состав блюд'!M:M,MATCH(G61,'Состав блюд'!P:P,)),"") ->  | J61: 60 | K61: =IFERROR(INDEX('Состав блюд'!S:S,MATCH(J61,'Состав блюд'!V:V,)),"") ->  | M61: 60 | N61: =IFERROR(INDEX('Состав блюд'!Y:Y,MATCH(M61,'Состав блюд'!AB:AB,)),"") -> 
A62: 61 | B62: =IFERROR(INDEX('Состав блюд'!A:A,MATCH(A62,'Состав блюд'!D:D,)),"") ->  | D62: 61 | E62: =IFERROR(INDEX('Состав блюд'!G:G,MATCH(D62,'Состав блюд'!J:J,)),"") ->  | G62: 61 | H62: =IFERROR(INDEX('Состав блюд'!M:M,MATCH(G62,'Состав блюд'!P:P,)),"") ->  | J62: 61 | K62: =IFERROR(INDEX('Состав блюд'!S:S,MATCH(J62,'Состав блюд'!V:V,)),"") ->  | M62: 61 | N62: =IFERROR(INDEX('Состав блюд'!Y:Y,MATCH(M62,'Состав блюд'!AB:AB,)),"") -> 
A63: 62 | B63: =IFERROR(INDEX('Состав блюд'!A:A,MATCH(A63,'Состав блюд'!D:D,)),"") ->  | D63: 62 | E63: =IFERROR(INDEX('Состав блюд'!G:G,MATCH(D63,'Состав блюд'!J:J,)),"") ->  | G63: 62 | H63: =IFERROR(INDEX('Состав блюд'!M:M,MATCH(G63,'Состав блюд'!P:P,)),"") ->  | J63: 62 | K63: =IFERROR(INDEX('Состав блюд'!S:S,MATCH(J63,'Состав блюд'!V:V,)),"") ->  | M63: 62 | N63: =IFERROR(INDEX('Состав блюд'!Y:Y,MATCH(M63,'Состав блюд'!AB:AB,)),"") -> 
A64: 63 | B64: =IFERROR(INDEX('Состав блюд'!A:A,MATCH(A64,'Состав блюд'!D:D,)),"") ->  | D64: 63 | E64: =IFERROR(INDEX('Состав блюд'!G:G,MATCH(D64,'Состав блюд'!J:J,)),"") ->  | G64: 63 | H64: =IFERROR(INDEX('Состав блюд'!M:M,MATCH(G64,'Состав блюд'!P:P,)),"") ->  | J64: 63 | K64: =IFERROR(INDEX('Состав блюд'!S:S,MATCH(J64,'Состав блюд'!V:V,)),"") ->  | M64: 63 | N64: =IFERROR(INDEX('Состав блюд'!Y:Y,MATCH(M64,'Состав блюд'!AB:AB,)),"") -> 
A65: 64 | B65: =IFERROR(INDEX('Состав блюд'!A:A,MATCH(A65,'Состав блюд'!D:D,)),"") ->  | D65: 64 | E65: =IFERROR(INDEX('Состав блюд'!G:G,MATCH(D65,'Состав блюд'!J:J,)),"") ->  | G65: 64 | H65: =IFERROR(INDEX('Состав блюд'!M:M,MATCH(G65,'Состав блюд'!P:P,)),"") ->  | J65: 64 | K65: =IFERROR(INDEX('Состав блюд'!S:S,MATCH(J65,'Состав блюд'!V:V,)),"") ->  | M65: 64 | N65: =IFERROR(INDEX('Состав блюд'!Y:Y,MATCH(M65,'Состав блюд'!AB:AB,)),"") -> 
A66: 65 | B66: =IFERROR(INDEX('Состав блюд'!A:A,MATCH(A66,'Состав блюд'!D:D,)),"") ->  | D66: 65 | E66: =IFERROR(INDEX('Состав блюд'!G:G,MATCH(D66,'Состав блюд'!J:J,)),"") ->  | G66: 65 | H66: =IFERROR(INDEX('Состав блюд'!M:M,MATCH(G66,'Состав блюд'!P:P,)),"") ->  | J66: 65 | K66: =IFERROR(INDEX('Состав блюд'!S:S,MATCH(J66,'Состав блюд'!V:V,)),"") ->  | M66: 65 | N66: =IFERROR(INDEX('Состав блюд'!Y:Y,MATCH(M66,'Состав блюд'!AB:AB,)),"") -> 
A67: 66 | B67: =IFERROR(INDEX('Состав блюд'!A:A,MATCH(A67,'Состав блюд'!D:D,)),"") ->  | D67: 66 | E67: =IFERROR(INDEX('Состав блюд'!G:G,MATCH(D67,'Состав блюд'!J:J,)),"") ->  | G67: 66 | H67: =IFERROR(INDEX('Состав блюд'!M:M,MATCH(G67,'Состав блюд'!P:P,)),"") ->  | J67: 66 | K67: =IFERROR(INDEX('Состав блюд'!S:S,MATCH(J67,'Состав блюд'!V:V,)),"") ->  | M67: 66 | N67: =IFERROR(INDEX('Состав блюд'!Y:Y,MATCH(M67,'Состав блюд'!AB:AB,)),"") -> 
A68: 67 | B68: =IFERROR(INDEX('Состав блюд'!A:A,MATCH(A68,'Состав блюд'!D:D,)),"") ->  | D68: 67 | E68: =IFERROR(INDEX('Состав блюд'!G:G,MATCH(D68,'Состав блюд'!J:J,)),"") ->  | G68: 67 | H68: =IFERROR(INDEX('Состав блюд'!M:M,MATCH(G68,'Состав блюд'!P:P,)),"") ->  | J68: 67 | K68: =IFERROR(INDEX('Состав блюд'!S:S,MATCH(J68,'Состав блюд'!V:V,)),"") ->  | M68: 67 | N68: =IFERROR(INDEX('Состав блюд'!Y:Y,MATCH(M68,'Состав блюд'!AB:AB,)),"") -> 
A69: 68 | B69: =IFERROR(INDEX('Состав блюд'!A:A,MATCH(A69,'Состав блюд'!D:D,)),"") ->  | D69: 68 | E69: =IFERROR(INDEX('Состав блюд'!G:G,MATCH(D69,'Состав блюд'!J:J,)),"") ->  | G69: 68 | H69: =IFERROR(INDEX('Состав блюд'!M:M,MATCH(G69,'Состав блюд'!P:P,)),"") ->  | J69: 68 | K69: =IFERROR(INDEX('Состав блюд'!S:S,MATCH(J69,'Состав блюд'!V:V,)),"") ->  | M69: 68 | N69: =IFERROR(INDEX('Состав блюд'!Y:Y,MATCH(M69,'Состав блюд'!AB:AB,)),"") -> 
A70: 69 | B70: =IFERROR(INDEX('Состав блюд'!A:A,MATCH(A70,'Состав блюд'!D:D,)),"") ->  | D70: 69 | E70: =IFERROR(INDEX('Состав блюд'!G:G,MATCH(D70,'Состав блюд'!J:J,)),"") ->  | G70: 69 | H70: =IFERROR(INDEX('Состав блюд'!M:M,MATCH(G70,'Состав блюд'!P:P,)),"") ->  | J70: 69 | K70: =IFERROR(INDEX('Состав блюд'!S:S,MATCH(J70,'Состав блюд'!V:V,)),"") ->  | M70: 69 | N70: =IFERROR(INDEX('Состав блюд'!Y:Y,MATCH(M70,'Состав блюд'!AB:AB,)),"") -> 
A71: 70 | B71: =IFERROR(INDEX('Состав блюд'!A:A,MATCH(A71,'Состав блюд'!D:D,)),"") ->  | D71: 70 | E71: =IFERROR(INDEX('Состав блюд'!G:G,MATCH(D71,'Состав блюд'!J:J,)),"") ->  | G71: 70 | H71: =IFERROR(INDEX('Состав блюд'!M:M,MATCH(G71,'Состав блюд'!P:P,)),"") ->  | J71: 70 | K71: =IFERROR(INDEX('Состав блюд'!S:S,MATCH(J71,'Состав блюд'!V:V,)),"") ->  | M71: 70 | N71: =IFERROR(INDEX('Состав блюд'!Y:Y,MATCH(M71,'Состав блюд'!AB:AB,)),"") -> 
A72: 71 | B72: =IFERROR(INDEX('Состав блюд'!A:A,MATCH(A72,'Состав блюд'!D:D,)),"") ->  | D72: 71 | E72: =IFERROR(INDEX('Состав блюд'!G:G,MATCH(D72,'Состав блюд'!J:J,)),"") ->  | G72: 71 | H72: =IFERROR(INDEX('Состав блюд'!M:M,MATCH(G72,'Состав блюд'!P:P,)),"") ->  | J72: 71 | K72: =IFERROR(INDEX('Состав блюд'!S:S,MATCH(J72,'Состав блюд'!V:V,)),"") ->  | M72: 71 | N72: =IFERROR(INDEX('Состав блюд'!Y:Y,MATCH(M72,'Состав блюд'!AB:AB,)),"") -> 
A73: 72 | B73: =IFERROR(INDEX('Состав блюд'!A:A,MATCH(A73,'Состав блюд'!D:D,)),"") ->  | D73: 72 | E73: =IFERROR(INDEX('Состав блюд'!G:G,MATCH(D73,'Состав блюд'!J:J,)),"") ->  | G73: 72 | H73: =IFERROR(INDEX('Состав блюд'!M:M,MATCH(G73,'Состав блюд'!P:P,)),"") ->  | J73: 72 | K73: =IFERROR(INDEX('Состав блюд'!S:S,MATCH(J73,'Состав блюд'!V:V,)),"") ->  | M73: 72 | N73: =IFERROR(INDEX('Состав блюд'!Y:Y,MATCH(M73,'Состав блюд'!AB:AB,)),"") -> 
A74: 73 | B74: =IFERROR(INDEX('Состав блюд'!A:A,MATCH(A74,'Состав блюд'!D:D,)),"") ->  | D74: 73 | E74: =IFERROR(INDEX('Состав блюд'!G:G,MATCH(D74,'Состав блюд'!J:J,)),"") ->  | G74: 73 | H74: =IFERROR(INDEX('Состав блюд'!M:M,MATCH(G74,'Состав блюд'!P:P,)),"") ->  | J74: 73 | K74: =IFERROR(INDEX('Состав блюд'!S:S,MATCH(J74,'Состав блюд'!V:V,)),"") ->  | M74: 73 | N74: =IFERROR(INDEX('Состав блюд'!Y:Y,MATCH(M74,'Состав блюд'!AB:AB,)),"") -> 
A75: 74 | B75: =IFERROR(INDEX('Состав блюд'!A:A,MATCH(A75,'Состав блюд'!D:D,)),"") ->  | D75: 74 | E75: =IFERROR(INDEX('Состав блюд'!G:G,MATCH(D75,'Состав блюд'!J:J,)),"") ->  | G75: 74 | H75: =IFERROR(INDEX('Состав блюд'!M:M,MATCH(G75,'Состав блюд'!P:P,)),"") ->  | J75: 74 | K75: =IFERROR(INDEX('Состав блюд'!S:S,MATCH(J75,'Состав блюд'!V:V,)),"") ->  | M75: 74 | N75: =IFERROR(INDEX('Состав блюд'!Y:Y,MATCH(M75,'Состав блюд'!AB:AB,)),"") -> 
A76: 75 | B76: =IFERROR(INDEX('Состав блюд'!A:A,MATCH(A76,'Состав блюд'!D:D,)),"") ->  | D76: 75 | E76: =IFERROR(INDEX('Состав блюд'!G:G,MATCH(D76,'Состав блюд'!J:J,)),"") ->  | G76: 75 | H76: =IFERROR(INDEX('Состав блюд'!M:M,MATCH(G76,'Состав блюд'!P:P,)),"") ->  | J76: 75 | K76: =IFERROR(INDEX('Состав блюд'!S:S,MATCH(J76,'Состав блюд'!V:V,)),"") ->  | M76: 75 | N76: =IFERROR(INDEX('Состав блюд'!Y:Y,MATCH(M76,'Состав блюд'!AB:AB,)),"") -> 
A77: 76 | B77: =IFERROR(INDEX('Состав блюд'!A:A,MATCH(A77,'Состав блюд'!D:D,)),"") ->  | D77: 76 | E77: =IFERROR(INDEX('Состав блюд'!G:G,MATCH(D77,'Состав блюд'!J:J,)),"") ->  | G77: 76 | H77: =IFERROR(INDEX('Состав блюд'!M:M,MATCH(G77,'Состав блюд'!P:P,)),"") ->  | J77: 76 | K77: =IFERROR(INDEX('Состав блюд'!S:S,MATCH(J77,'Состав блюд'!V:V,)),"") ->  | M77: 76 | N77: =IFERROR(INDEX('Состав блюд'!Y:Y,MATCH(M77,'Состав блюд'!AB:AB,)),"") -> 
A78: 77 | B78: =IFERROR(INDEX('Состав блюд'!A:A,MATCH(A78,'Состав блюд'!D:D,)),"") ->  | D78: 77 | E78: =IFERROR(INDEX('Состав блюд'!G:G,MATCH(D78,'Состав блюд'!J:J,)),"") ->  | G78: 77 | H78: =IFERROR(INDEX('Состав блюд'!M:M,MATCH(G78,'Состав блюд'!P:P,)),"") ->  | J78: 77 | K78: =IFERROR(INDEX('Состав блюд'!S:S,MATCH(J78,'Состав блюд'!V:V,)),"") ->  | M78: 77 | N78: =IFERROR(INDEX('Состав блюд'!Y:Y,MATCH(M78,'Состав блюд'!AB:AB,)),"") -> 
A79: 78 | B79: =IFERROR(INDEX('Состав блюд'!A:A,MATCH(A79,'Состав блюд'!D:D,)),"") ->  | D79: 78 | E79: =IFERROR(INDEX('Состав блюд'!G:G,MATCH(D79,'Состав блюд'!J:J,)),"") ->  | G79: 78 | H79: =IFERROR(INDEX('Состав блюд'!M:M,MATCH(G79,'Состав блюд'!P:P,)),"") ->  | J79: 78 | K79: =IFERROR(INDEX('Состав блюд'!S:S,MATCH(J79,'Состав блюд'!V:V,)),"") ->  | M79: 78 | N79: =IFERROR(INDEX('Состав блюд'!Y:Y,MATCH(M79,'Состав блюд'!AB:AB,)),"") -> 
A80: 79 | B80: =IFERROR(INDEX('Состав блюд'!A:A,MATCH(A80,'Состав блюд'!D:D,)),"") ->  | D80: 79 | E80: =IFERROR(INDEX('Состав блюд'!G:G,MATCH(D80,'Состав блюд'!J:J,)),"") ->  | G80: 79 | H80: =IFERROR(INDEX('Состав блюд'!M:M,MATCH(G80,'Состав блюд'!P:P,)),"") ->  | J80: 79 | K80: =IFERROR(INDEX('Состав блюд'!S:S,MATCH(J80,'Состав блюд'!V:V,)),"") ->  | M80: 79 | N80: =IFERROR(INDEX('Состав блюд'!Y:Y,MATCH(M80,'Состав блюд'!AB:AB,)),"") -> 
A81: 80 | B81: =IFERROR(INDEX('Состав блюд'!A:A,MATCH(A81,'Состав блюд'!D:D,)),"") ->  | D81: 80 | E81: =IFERROR(INDEX('Состав блюд'!G:G,MATCH(D81,'Состав блюд'!J:J,)),"") ->  | G81: 80 | H81: =IFERROR(INDEX('Состав блюд'!M:M,MATCH(G81,'Состав блюд'!P:P,)),"") ->  | J81: 80 | K81: =IFERROR(INDEX('Состав блюд'!S:S,MATCH(J81,'Состав блюд'!V:V,)),"") ->  | M81: 80 | N81: =IFERROR(INDEX('Состав блюд'!Y:Y,MATCH(M81,'Состав блюд'!AB:AB,)),"") -> 
A82: 81 | B82: =IFERROR(INDEX('Состав блюд'!A:A,MATCH(A82,'Состав блюд'!D:D,)),"") ->  | D82: 81 | E82: =IFERROR(INDEX('Состав блюд'!G:G,MATCH(D82,'Состав блюд'!J:J,)),"") ->  | G82: 81 | H82: =IFERROR(INDEX('Состав блюд'!M:M,MATCH(G82,'Состав блюд'!P:P,)),"") ->  | J82: 81 | K82: =IFERROR(INDEX('Состав блюд'!S:S,MATCH(J82,'Состав блюд'!V:V,)),"") ->  | M82: 81 | N82: =IFERROR(INDEX('Состав блюд'!Y:Y,MATCH(M82,'Состав блюд'!AB:AB,)),"") -> 
A83: 82 | B83: =IFERROR(INDEX('Состав блюд'!A:A,MATCH(A83,'Состав блюд'!D:D,)),"") ->  | D83: 82 | E83: =IFERROR(INDEX('Состав блюд'!G:G,MATCH(D83,'Состав блюд'!J:J,)),"") ->  | G83: 82 | H83: =IFERROR(INDEX('Состав блюд'!M:M,MATCH(G83,'Состав блюд'!P:P,)),"") ->  | J83: 82 | K83: =IFERROR(INDEX('Состав блюд'!S:S,MATCH(J83,'Состав блюд'!V:V,)),"") ->  | M83: 82 | N83: =IFERROR(INDEX('Состав блюд'!Y:Y,MATCH(M83,'Состав блюд'!AB:AB,)),"") -> 
A84: 83 | B84: =IFERROR(INDEX('Состав блюд'!A:A,MATCH(A84,'Состав блюд'!D:D,)),"") ->  | D84: 83 | E84: =IFERROR(INDEX('Состав блюд'!G:G,MATCH(D84,'Состав блюд'!J:J,)),"") ->  | G84: 83 | H84: =IFERROR(INDEX('Состав блюд'!M:M,MATCH(G84,'Состав блюд'!P:P,)),"") ->  | J84: 83 | K84: =IFERROR(INDEX('Состав блюд'!S:S,MATCH(J84,'Состав блюд'!V:V,)),"") ->  | M84: 83 | N84: =IFERROR(INDEX('Состав блюд'!Y:Y,MATCH(M84,'Состав блюд'!AB:AB,)),"") -> 
A85: 84 | B85: =IFERROR(INDEX('Состав блюд'!A:A,MATCH(A85,'Состав блюд'!D:D,)),"") ->  | D85: 84 | E85: =IFERROR(INDEX('Состав блюд'!G:G,MATCH(D85,'Состав блюд'!J:J,)),"") ->  | G85: 84 | H85: =IFERROR(INDEX('Состав блюд'!M:M,MATCH(G85,'Состав блюд'!P:P,)),"") ->  | J85: 84 | K85: =IFERROR(INDEX('Состав блюд'!S:S,MATCH(J85,'Состав блюд'!V:V,)),"") ->  | M85: 84 | N85: =IFERROR(INDEX('Состав блюд'!Y:Y,MATCH(M85,'Состав блюд'!AB:AB,)),"") -> 
A86: 85 | B86: =IFERROR(INDEX('Состав блюд'!A:A,MATCH(A86,'Состав блюд'!D:D,)),"") ->  | D86: 85 | E86: =IFERROR(INDEX('Состав блюд'!G:G,MATCH(D86,'Состав блюд'!J:J,)),"") ->  | G86: 85 | H86: =IFERROR(INDEX('Состав блюд'!M:M,MATCH(G86,'Состав блюд'!P:P,)),"") ->  | J86: 85 | K86: =IFERROR(INDEX('Состав блюд'!S:S,MATCH(J86,'Состав блюд'!V:V,)),"") ->  | M86: 85 | N86: =IFERROR(INDEX('Состав блюд'!Y:Y,MATCH(M86,'Состав блюд'!AB:AB,)),"") -> 
A87: 86 | B87: =IFERROR(INDEX('Состав блюд'!A:A,MATCH(A87,'Состав блюд'!D:D,)),"") ->  | D87: 86 | E87: =IFERROR(INDEX('Состав блюд'!G:G,MATCH(D87,'Состав блюд'!J:J,)),"") ->  | G87: 86 | H87: =IFERROR(INDEX('Состав блюд'!M:M,MATCH(G87,'Состав блюд'!P:P,)),"") ->  | J87: 86 | K87: =IFERROR(INDEX('Состав блюд'!S:S,MATCH(J87,'Состав блюд'!V:V,)),"") ->  | M87: 86 | N87: =IFERROR(INDEX('Состав блюд'!Y:Y,MATCH(M87,'Состав блюд'!AB:AB,)),"") -> 
A88: 87 | B88: =IFERROR(INDEX('Состав блюд'!A:A,MATCH(A88,'Состав блюд'!D:D,)),"") ->  | D88: 87 | E88: =IFERROR(INDEX('Состав блюд'!G:G,MATCH(D88,'Состав блюд'!J:J,)),"") ->  | G88: 87 | H88: =IFERROR(INDEX('Состав блюд'!M:M,MATCH(G88,'Состав блюд'!P:P,)),"") ->  | J88: 87 | K88: =IFERROR(INDEX('Состав блюд'!S:S,MATCH(J88,'Состав блюд'!V:V,)),"") ->  | M88: 87 | N88: =IFERROR(INDEX('Состав блюд'!Y:Y,MATCH(M88,'Состав блюд'!AB:AB,)),"") -> 
A89: 88 | B89: =IFERROR(INDEX('Состав блюд'!A:A,MATCH(A89,'Состав блюд'!D:D,)),"") ->  | D89: 88 | E89: =IFERROR(INDEX('Состав блюд'!G:G,MATCH(D89,'Состав блюд'!J:J,)),"") ->  | G89: 88 | H89: =IFERROR(INDEX('Состав блюд'!M:M,MATCH(G89,'Состав блюд'!P:P,)),"") ->  | J89: 88 | K89: =IFERROR(INDEX('Состав блюд'!S:S,MATCH(J89,'Состав блюд'!V:V,)),"") ->  | M89: 88 | N89: =IFERROR(INDEX('Состав блюд'!Y:Y,MATCH(M89,'Состав блюд'!AB:AB,)),"") -> 
A90: 89 | B90: =IFERROR(INDEX('Состав блюд'!A:A,MATCH(A90,'Состав блюд'!D:D,)),"") ->  | D90: 89 | E90: =IFERROR(INDEX('Состав блюд'!G:G,MATCH(D90,'Состав блюд'!J:J,)),"") ->  | G90: 89 | H90: =IFERROR(INDEX('Состав блюд'!M:M,MATCH(G90,'Состав блюд'!P:P,)),"") ->  | J90: 89 | K90: =IFERROR(INDEX('Состав блюд'!S:S,MATCH(J90,'Состав блюд'!V:V,)),"") ->  | M90: 89 | N90: =IFERROR(INDEX('Состав блюд'!Y:Y,MATCH(M90,'Состав блюд'!AB:AB,)),"") -> 
A91: 90 | B91: =IFERROR(INDEX('Состав блюд'!A:A,MATCH(A91,'Состав блюд'!D:D,)),"") ->  | D91: 90 | E91: =IFERROR(INDEX('Состав блюд'!G:G,MATCH(D91,'Состав блюд'!J:J,)),"") ->  | G91: 90 | H91: =IFERROR(INDEX('Состав блюд'!M:M,MATCH(G91,'Состав блюд'!P:P,)),"") ->  | J91: 90 | K91: =IFERROR(INDEX('Состав блюд'!S:S,MATCH(J91,'Состав блюд'!V:V,)),"") ->  | M91: 90 | N91: =IFERROR(INDEX('Состав блюд'!Y:Y,MATCH(M91,'Состав блюд'!AB:AB,)),"") -> 
A92: 91 | B92: =IFERROR(INDEX('Состав блюд'!A:A,MATCH(A92,'Состав блюд'!D:D,)),"") ->  | D92: 91 | E92: =IFERROR(INDEX('Состав блюд'!G:G,MATCH(D92,'Состав блюд'!J:J,)),"") ->  | G92: 91 | H92: =IFERROR(INDEX('Состав блюд'!M:M,MATCH(G92,'Состав блюд'!P:P,)),"") ->  | J92: 91 | K92: =IFERROR(INDEX('Состав блюд'!S:S,MATCH(J92,'Состав блюд'!V:V,)),"") ->  | M92: 91 | N92: =IFERROR(INDEX('Состав блюд'!Y:Y,MATCH(M92,'Состав блюд'!AB:AB,)),"") -> 
A93: 92 | B93: =IFERROR(INDEX('Состав блюд'!A:A,MATCH(A93,'Состав блюд'!D:D,)),"") ->  | D93: 92 | E93: =IFERROR(INDEX('Состав блюд'!G:G,MATCH(D93,'Состав блюд'!J:J,)),"") ->  | G93: 92 | H93: =IFERROR(INDEX('Состав блюд'!M:M,MATCH(G93,'Состав блюд'!P:P,)),"") ->  | J93: 92 | K93: =IFERROR(INDEX('Состав блюд'!S:S,MATCH(J93,'Состав блюд'!V:V,)),"") ->  | M93: 92 | N93: =IFERROR(INDEX('Состав блюд'!Y:Y,MATCH(M93,'Состав блюд'!AB:AB,)),"") -> 
A94: 93 | B94: =IFERROR(INDEX('Состав блюд'!A:A,MATCH(A94,'Состав блюд'!D:D,)),"") ->  | D94: 93 | E94: =IFERROR(INDEX('Состав блюд'!G:G,MATCH(D94,'Состав блюд'!J:J,)),"") ->  | G94: 93 | H94: =IFERROR(INDEX('Состав блюд'!M:M,MATCH(G94,'Состав блюд'!P:P,)),"") ->  | J94: 93 | K94: =IFERROR(INDEX('Состав блюд'!S:S,MATCH(J94,'Состав блюд'!V:V,)),"") ->  | M94: 93 | N94: =IFERROR(INDEX('Состав блюд'!Y:Y,MATCH(M94,'Состав блюд'!AB:AB,)),"") -> 
A95: 94 | B95: =IFERROR(INDEX('Состав блюд'!A:A,MATCH(A95,'Состав блюд'!D:D,)),"") ->  | D95: 94 | E95: =IFERROR(INDEX('Состав блюд'!G:G,MATCH(D95,'Состав блюд'!J:J,)),"") ->  | G95: 94 | H95: =IFERROR(INDEX('Состав блюд'!M:M,MATCH(G95,'Состав блюд'!P:P,)),"") ->  | J95: 94 | K95: =IFERROR(INDEX('Состав блюд'!S:S,MATCH(J95,'Состав блюд'!V:V,)),"") ->  | M95: 94 | N95: =IFERROR(INDEX('Состав блюд'!Y:Y,MATCH(M95,'Состав блюд'!AB:AB,)),"") -> 
A96: 95 | B96: =IFERROR(INDEX('Состав блюд'!A:A,MATCH(A96,'Состав блюд'!D:D,)),"") ->  | D96: 95 | E96: =IFERROR(INDEX('Состав блюд'!G:G,MATCH(D96,'Состав блюд'!J:J,)),"") ->  | G96: 95 | H96: =IFERROR(INDEX('Состав блюд'!M:M,MATCH(G96,'Состав блюд'!P:P,)),"") ->  | J96: 95 | K96: =IFERROR(INDEX('Состав блюд'!S:S,MATCH(J96,'Состав блюд'!V:V,)),"") ->  | M96: 95 | N96: =IFERROR(INDEX('Состав блюд'!Y:Y,MATCH(M96,'Состав блюд'!AB:AB,)),"") -> 
B97: =IFERROR(INDEX('Состав блюд'!B:B,MATCH(A97,'Состав блюд'!D:D,)),"") ->  | E97: =IFERROR(INDEX('Состав блюд'!F:F,MATCH(D97,'Состав блюд'!H:H,)),"") ->  | H97: =IFERROR(INDEX('Состав блюд'!I:I,MATCH(G97,'Состав блюд'!L:L,)),"") ->  | K97: =IFERROR(INDEX('Состав блюд'!M:M,MATCH(J97,'Состав блюд'!O:O,)),"") ->  | N97: =IFERROR(INDEX('Состав блюд'!P:P,MATCH(M97,'Состав блюд'!S:S,)),"") -> 

Sheet Приход
M2: Унифицированная форма № ОП-1 Утверждена постановлением Госкомстата России от 25.12.98 № 132 | AA2: День | AB2: 9
AA3: Месяц | AB3: 11
E4: Товар | V4: Код | AA4: Год | AB4: 2022
E5: Борщ украинский | Q5: Форма по ОКУД | V5: 330501
E6: =IF(AND(E5<>"",INDEX('Состав блюд'!A:A,MATCH(INDEX('Перечень блюд'!A:A,MATCH(E$5,'Перечень блюд'!B:B,)),'Состав блюд'!D:D,)+ROW(E2))=ROW(E1)),INDEX('Состав блюд'!B:B,MATCH(INDEX('Перечень блюд'!A:A,MATCH(E$5,'Перечень блюд'!B:B,)),'Состав блюд'!D:D,)+ROW(E2)),"") -> Свекла | T6: по ОКПО
E7: =IF(AND(E6<>"",INDEX('Состав блюд'!A:A,MATCH(INDEX('Перечень блюд'!A:A,MATCH(E$5,'Перечень блюд'!B:B,)),'Состав блюд'!D:D,)+ROW(E3))=ROW(E2)),INDEX('Состав блюд'!B:B,MATCH(INDEX('Перечень блюд'!A:A,MATCH(E$5,'Перечень блюд'!B:B,)),'Состав блюд'!D:D,)+ROW(E3)),"") -> Свинина | F7: ООО "Метро"
E8: =IF(AND(E7<>"",INDEX('Состав блюд'!A:A,MATCH(INDEX('Перечень блюд'!A:A,MATCH(E$5,'Перечень блюд'!B:B,)),'Состав блюд'!D:D,)+ROW(E4))=ROW(E3)),INDEX('Состав блюд'!B:B,MATCH(INDEX('Перечень блюд'!A:A,MATCH(E$5,'Перечень блюд'!B:B,)),'Состав блюд'!D:D,)+ROW(E4)),"") -> Соль | F8: наименование поставщика | M8: Вид деятельности по ОКДП
E9: =IF(AND(E8<>"",INDEX('Состав блюд'!A:A,MATCH(INDEX('Перечень блюд'!A:A,MATCH(E$5,'Перечень блюд'!B:B,)),'Состав блюд'!D:D,)+ROW(E5))=ROW(E4)),INDEX('Состав блюд'!B:B,MATCH(INDEX('Перечень блюд'!A:A,MATCH(E$5,'Перечень блюд'!B:B,)),'Состав блюд'!D:D,)+ROW(E5)),"") -> Томатная паста
E10: =IF(AND(E9<>"",INDEX('Состав блюд'!A:A,MATCH(INDEX('Перечень блюд'!A:A,MATCH(E$5,'Перечень блюд'!B:B,)),'Состав блюд'!D:D,)+ROW(E6))=ROW(E5)),INDEX('Состав блюд'!B:B,MATCH(INDEX('Перечень блюд'!A:A,MATCH(E$5,'Перечень блюд'!B:B,)),'Состав блюд'!D:D,)+ROW(E6)),"") -> Уксус 9%-ный | F10: ООО "Сервис-М"
E11: =IF(AND(E10<>"",INDEX('Состав блюд'!A:A,MATCH(INDEX('Перечень блюд'!A:A,MATCH(E$5,'Перечень блюд'!B:B,)),'Состав блюд'!D:D,)+ROW(E7))=ROW(E6)),INDEX('Состав блюд'!B:B,MATCH(INDEX('Перечень блюд'!A:A,MATCH(E$5,'Перечень блюд'!B:B,)),'Состав блюд'!D:D,)+ROW(E7)),"") -> Лук | F11: наименование получателя
E12: =IF(AND(E11<>"",INDEX('Состав блюд'!A:A,MATCH(INDEX('Перечень блюд'!A:A,MATCH(E$5,'Перечень блюд'!B:B,)),'Состав блюд'!D:D,)+ROW(E8))=ROW(E7)),INDEX('Состав блюд'!B:B,MATCH(INDEX('Перечень блюд'!A:A,MATCH(E$5,'Перечень блюд'!B:B,)),'Состав блюд'!D:D,)+ROW(E8)),"") -> Соль | R12: Вид операции
E13: =IF(AND(E12<>"",INDEX('Состав блюд'!A:A,MATCH(INDEX('Перечень блюд'!A:A,MATCH(E$5,'Перечень блюд'!B:B,)),'Состав блюд'!D:D,)+ROW(E9))=ROW(E8)),INDEX('Состав блюд'!B:B,MATCH(INDEX('Перечень блюд'!A:A,MATCH(E$5,'Перечень блюд'!B:B,)),'Состав блюд'!D:D,)+ROW(E9)),"") -> Капуста
E14: =IF(AND(E13<>"",INDEX('Состав блюд'!A:A,MATCH(INDEX('Перечень блюд'!A:A,MATCH(E$5,'Перечень блюд'!B:B,)),'Состав блюд'!D:D,)+ROW(E10))=ROW(E9)),INDEX('Состав блюд'!B:B,MATCH(INDEX('Перечень блюд'!A:A,MATCH(E$5,'Перечень блюд'!B:B,)),'Состав блюд'!D:D,)+ROW(E10)),"") -> Картофель | L14: Номер документа | S14: Дата прихода
E15: =IF(AND(E14<>"",INDEX('Состав блюд'!A:A,MATCH(INDEX('Перечень блюд'!A:A,MATCH(E$5,'Перечень блюд'!B:B,)),'Состав блюд'!D:D,)+ROW(E11))=ROW(E10)),INDEX('Состав блюд'!B:B,MATCH(INDEX('Перечень блюд'!A:A,MATCH(E$5,'Перечень блюд'!B:B,)),'Состав блюд'!D:D,)+ROW(E11)),"") -> 0 | G15: ПРИХОДНАЯ НАКЛАДНАЯ | L15: 1 | S15: =DATE($AB$4,$AB$3,$AB$2) -> 2022-11-09
E16: =IF(AND(E15<>"",INDEX('Состав блюд'!A:A,MATCH(INDEX('Перечень блюд'!A:A,MATCH(E$5,'Перечень блюд'!B:B,)),'Состав блюд'!D:D,)+ROW(E12))=ROW(E11)),INDEX('Состав блюд'!B:B,MATCH(INDEX('Перечень блюд'!A:A,MATCH(E$5,'Перечень блюд'!B:B,)),'Состав блюд'!D:D,)+ROW(E12)),"") -> 0
E17: =IF(AND(#REF!<>"",INDEX('Состав блюд'!A:A,MATCH(INDEX('Перечень блюд'!A:A,MATCH(E$5,'Перечень блюд'!B:B,)),'Состав блюд'!D:D,)+ROW(E14))=ROW(E13)),INDEX('Состав блюд'!B:B,MATCH(INDEX('Перечень блюд'!A:A,MATCH(E$5,'Перечень блюд'!B:B,)),'Состав блюд'!D:D,)+ROW(E14)),"") ->  | F17: № | G17: Продукты | N17: Ед. | P17: Количество, кг | U17: Цена закупки, руб | W17: Сумма, руб
E18: =IF(AND(E17<>"",INDEX('Состав блюд'!A:A,MATCH(INDEX('Перечень блюд'!A:A,MATCH(E$5,'Перечень блюд'!B:B,)),'Состав блюд'!D:D,)+ROW(E15))=ROW(E14)),INDEX('Состав блюд'!B:B,MATCH(INDEX('Перечень блюд'!A:A,MATCH(E$5,'Перечень блюд'!B:B,)),'Состав блюд'!D:D,)+ROW(E15)),"") ->  | F18: 1 | G18: Арбуз | N18: кг | P18: 10 | U18: 12 | W18: =IFERROR(P18*U18,"") -> 120
E19: =IF(AND(E18<>"",INDEX('Состав блюд'!A:A,MATCH(INDEX('Перечень блюд'!A:A,MATCH(E$5,'Перечень блюд'!B:B,)),'Состав блюд'!D:D,)+ROW(E16))=ROW(E15)),INDEX('Состав блюд'!B:B,MATCH(INDEX('Перечень блюд'!A:A,MATCH(E$5,'Перечень блюд'!B:B,)),'Состав блюд'!D:D,)+ROW(E16)),"") ->  | F19: 2 | G19: Гречка | N19: кг | P19: 5 | U19: 100 | W19: 500
E20: =IF(AND(E19<>"",INDEX('Состав блюд'!A:A,MATCH(INDEX('Перечень блюд'!A:A,MATCH(E$5,'Перечень блюд'!B:B,)),'Состав блюд'!D:D,)+ROW(#REF!))=ROW(E16)),INDEX('Состав блюд'!B:B,MATCH(INDEX('Перечень блюд'!A:A,MATCH(E$5,'Перечень блюд'!B:B,)),'Состав блюд'!D:D,)+ROW(#REF!)),"") ->  | F20: 3 | G20: Какао в порошке | N20: кг | P20: 2 | U20: 60 | W20: 120
E21: =IF(AND(E20<>"",INDEX('Состав блюд'!A:A,MATCH(INDEX('Перечень блюд'!A:A,MATCH(E$5,'Перечень блюд'!B:B,)),'Состав блюд'!D:D,)+ROW(E17))=ROW(#REF!)),INDEX('Состав блюд'!B:B,MATCH(INDEX('Перечень блюд'!A:A,MATCH(E$5,'Перечень блюд'!B:B,)),'Состав блюд'!D:D,)+ROW(E17)),"") ->  | F21: 4 | G21: Горох | N21: кг | P21: 5 | U21: 50 | W21: 250
E22: =IF(AND(E21<>"",INDEX('Состав блюд'!A:A,MATCH(INDEX('Перечень блюд'!A:A,MATCH(E$5,'Перечень блюд'!B:B,)),'Состав блюд'!D:D,)+ROW(E18))=ROW(E17)),INDEX('Состав блюд'!B:B,MATCH(INDEX('Перечень блюд'!A:A,MATCH(E$5,'Перечень блюд'!B:B,)),'Состав блюд'!D:D,)+ROW(E18)),"") ->  | F22: 5 | G22: Горох | N22: кг | P22: 5 | U22: 1000 | W22: 5000
E23: =IF(AND(E22<>"",INDEX('Состав блюд'!A:A,MATCH(INDEX('Перечень блюд'!A:A,MATCH(E$5,'Перечень блюд'!B:B,)),'Состав блюд'!D:D,)+ROW(E19))=ROW(E18)),INDEX('Состав блюд'!B:B,MATCH(INDEX('Перечень блюд'!A:A,MATCH(E$5,'Перечень блюд'!B:B,)),'Состав блюд'!D:D,)+ROW(E19)),"") ->  | F23: 6 | G23: Горох | N23: кг | P23: 5 | U23: 3 | W23: 15
E24: =IF(AND(E23<>"",INDEX('Состав блюд'!A:A,MATCH(INDEX('Перечень блюд'!A:A,MATCH(E$5,'Перечень блюд'!B:B,)),'Состав блюд'!D:D,)+ROW(E20))=ROW(E19)),INDEX('Состав блюд'!B:B,MATCH(INDEX('Перечень блюд'!A:A,MATCH(E$5,'Перечень блюд'!B:B,)),'Состав блюд'!D:D,)+ROW(E20)),"") ->  | F24: 7 | G24: Горох | N24: кг | P24: 5 | U24: 1 | W24: 5
E25: =IF(AND(E24<>"",INDEX('Состав блюд'!A:A,MATCH(INDEX('Перечень блюд'!A:A,MATCH(E$5,'Перечень блюд'!B:B,)),'Состав блюд'!D:D,)+ROW(E21))=ROW(E20)),INDEX('Состав блюд'!B:B,MATCH(INDEX('Перечень блюд'!A:A,MATCH(E$5,'Перечень блюд'!B:B,)),'Состав блюд'!D:D,)+ROW(E21)),"") ->  | F25: 8 | G25: Горох | N25: кг | P25: 10 | U25: 10 | W25: =IFERROR(P25*U25,"") -> 100
E26: =IF(AND(E25<>"",INDEX('Состав блюд'!A:A,MATCH(INDEX('Перечень блюд'!A:A,MATCH(E$5,'Перечень блюд'!B:B,)),'Состав блюд'!D:D,)+ROW(E22))=ROW(E21)),INDEX('Состав блюд'!B:B,MATCH(INDEX('Перечень блюд'!A:A,MATCH(E$5,'Перечень блюд'!B:B,)),'Состав блюд'!D:D,)+ROW(E22)),"") ->  | F26: 9 | G26: Горох | N26: кг
E27: =IF(AND(E26<>"",INDEX('Состав блюд'!A:A,MATCH(INDEX('Перечень блюд'!A:A,MATCH(E$5,'Перечень блюд'!B:B,)),'Состав блюд'!D:D,)+ROW(E23))=ROW(E22)),INDEX('Состав блюд'!B:B,MATCH(INDEX('Перечень блюд'!A:A,MATCH(E$5,'Перечень блюд'!B:B,)),'Состав блюд'!D:D,)+ROW(E23)),"") ->  | F27: 10 | N27: кг
E28: =IF(AND(E27<>"",INDEX('Состав блюд'!A:A,MATCH(INDEX('Перечень блюд'!A:A,MATCH(E$5,'Перечень блюд'!B:B,)),'Состав блюд'!D:D,)+ROW(E24))=ROW(E23)),INDEX('Состав блюд'!B:B,MATCH(INDEX('Перечень блюд'!A:A,MATCH(E$5,'Перечень блюд'!B:B,)),'Состав блюд'!D:D,)+ROW(E24)),"") ->  | F28: 11 | N28: кг
F29: 12 | N29: кг
F30: 13 | N30: кг
F31: 14 | N31: кг
F32: 15 | N32: кг
F33: 16 | N33: кг
F34: 17 | N34: кг
F35: 18 | N35: кг
F36: 19 | N36: кг
F37: 20 | N37: кг
F38: 21 | N38: кг
F39: 22 | N39: кг
F40: 23 | N40: кг
F41: 24 | N41: кг
F42: 25 | N42: кг
F43: 26 | N43: кг
F44: 27 | N44: кг
F45: 28 | N45: кг
F46: 29 | N46: кг
F47: 30 | N47: кг
F48: 31 | N48: кг
F49: 32 | N49: кг
F50: 33 | N50: кг
F51: 34 | N51: кг
F52: 35 | N52: кг
F53: 36 | N53: кг
F54: 37 | N54: кг
F55: 38 | N55: кг
F56: 39 | N56: кг
F57: 40 | N57: кг
F58: 41 | N58: кг
F59: Итого стоимость, руб | W59: =SUM(W18:X58) -> 6110

Sheet Выгрузка из прих.накл.
A1: Дата | B1: № документа | C1: Итого | D1: Примечание | E1: Говядина | F1: Гречка | G1: Какао в порошке | H1: Капуста | I1: Картофель | J1: Колбаса "Докторская" | K1: Курица | L1: Лавровый лист | M1: Лук | N1: Майонез | O1: Масло растительное | P1: Масло сливочное | Q1: Морковь | R1: Огурец свежий | S1: Перец сладкий | T1: Помидоры | U1: Рис | V1: Сахар | W1: Свекла | X1: Свинина | Y1: Соль | Z1: Сухари панировочные | AA1: Сыр | AB1: Томатная паста | AC1: Уксус 9%-ный | AD1: Чай | AE1: Яйца куриные | AF1: Фасоль | AG1: Арбуз
A3: 2022-11-08 | B3: 1 | C3: 5860 | F3: 7 | AG3: 10
A4: 2022-11-08 | B4: 1 | C4: __________ | F4: 60 | AG4: 12
A5: 2022-11-08 | B5: 1 | C5: 5860 | F5: 7 | AG5: 10
A6: 2022-11-08 | B6: 1 | C6: __________ | F6: 60 | AG6: 12
A7: 2022-11-08 | B7: 1 | C7: 6110 | F7: 7 | AG7: 10
A8: 2022-11-08 | B8: 1 | C8: __________ | F8: 60 | AG8: 12
A9: 2022-11-09 | B9: 1 | C9: 6110 | F9: 7 | AG9: 10
A10: 2022-11-09 | B10: 1 | C10: __________ | F10: 60 | AG10: 12
A11: 2022-11-09 | B11: 1 | C11: 6110 | F11: 5 | G11: 2 | AG11: 10
A12: 2022-11-09 | B12: 1 | C12: __________ | F12: 100 | G12: 60 | AG12: 12

Sheet Расход
M2: Унифицированная форма № ОП-1 Утверждена постановлением Госкомстата России от 25.12.98 № 132 | AA2: День | AB2: 11
AA3: Месяц | AB3: 9 | AH3: добавить хлеб в закуски
E4: Товар | V4: Код | AA4: Год | AB4: 2022 | AH4: добавить % отходов
E5: Борщ украинский | Q5: Форма по ОКУД | V5: 330501 | AH5: написать в составе блюд блюда по алфавиту
E6: =IF(AND(E5<>"",INDEX('Состав блюд'!A:A,MATCH(INDEX('Перечень блюд'!A:A,MATCH(E$5,'Перечень блюд'!B:B,)),'Состав блюд'!D:D,)+ROW(E2))=ROW(E1)),INDEX('Состав блюд'!B:B,MATCH(INDEX('Перечень блюд'!A:A,MATCH(E$5,'Перечень блюд'!B:B,)),'Состав блюд'!D:D,)+ROW(E2)),"") -> Свекла | F6: ООО | T6: по ОКПО | AA6: Кол-во порций | AB6: 100 | AH6: написать выход блюда в граммах
E7: =IF(AND(E6<>"",INDEX('Состав блюд'!A:A,MATCH(INDEX('Перечень блюд'!A:A,MATCH(E$5,'Перечень блюд'!B:B,)),'Состав блюд'!D:D,)+ROW(E3))=ROW(E2)),INDEX('Состав блюд'!B:B,MATCH(INDEX('Перечень блюд'!A:A,MATCH(E$5,'Перечень блюд'!B:B,)),'Состав блюд'!D:D,)+ROW(E3)),"") -> Свинина | F7: "Сервис-М"
E8: =IF(AND(E7<>"",INDEX('Состав блюд'!A:A,MATCH(INDEX('Перечень блюд'!A:A,MATCH(E$5,'Перечень блюд'!B:B,)),'Состав блюд'!D:D,)+ROW(E4))=ROW(E3)),INDEX('Состав блюд'!B:B,MATCH(INDEX('Перечень блюд'!A:A,MATCH(E$5,'Перечень блюд'!B:B,)),'Состав блюд'!D:D,)+ROW(E4)),"") -> Соль | F8: структурное подразделение | M8: Вид деятельности по ОКДП | AA8: Итоговая стоимость всех блюд на | AB8: =$AB$6 -> 100 | AC8: порций | AD8: =K32+K66+K100+K134+K169 -> 6460 | AE8: руб | AH8: заблокировать ячейки
E9: =IF(AND(E8<>"",INDEX('Состав блюд'!A:A,MATCH(INDEX('Перечень блюд'!A:A,MATCH(E$5,'Перечень блюд'!B:B,)),'Состав блюд'!D:D,)+ROW(E5))=ROW(E4)),INDEX('Состав блюд'!B:B,MATCH(INDEX('Перечень блюд'!A:A,MATCH(E$5,'Перечень блюд'!B:B,)),'Состав блюд'!D:D,)+ROW(E5)),"") -> Томатная паста
E10: =IF(AND(E9<>"",INDEX('Состав блюд'!A:A,MATCH(INDEX('Перечень блюд'!A:A,MATCH(E$5,'Перечень блюд'!B:B,)),'Состав блюд'!D:D,)+ROW(E6))=ROW(E5)),INDEX('Состав блюд'!B:B,MATCH(INDEX('Перечень блюд'!A:A,MATCH(E$5,'Перечень блюд'!B:B,)),'Состав блюд'!D:D,)+ROW(E6)),"") -> Уксус 9%-ный | F10: Борщ украинский | AH10: установить правило печати
E11: =IF(AND(E10<>"",INDEX('Состав блюд'!A:A,MATCH(INDEX('Перечень блюд'!A:A,MATCH(E$5,'Перечень блюд'!B:B,)),'Состав блюд'!D:D,)+ROW(E7))=ROW(E6)),INDEX('Состав блюд'!B:B,MATCH(INDEX('Перечень блюд'!A:A,MATCH(E$5,'Перечень блюд'!B:B,)),'Состав блюд'!D:D,)+ROW(E7)),"") -> Лук | F11: наименование первого блюда (изделия) | J11: Номер блюда по сборнику рецептур, ТТК, СТП | V11: ТТК №8 | AH11: на листе "Выгрузка и к.карт" удалять строки Delete!!!
E12: =IF(AND(E11<>"",INDEX('Состав блюд'!A:A,MATCH(INDEX('Перечень блюд'!A:A,MATCH(E$5,'Перечень блюд'!B:B,)),'Состав блюд'!D:D,)+ROW(E8))=ROW(E7)),INDEX('Состав блюд'!B:B,MATCH(INDEX('Перечень блюд'!A:A,MATCH(E$5,'Перечень блюд'!B:B,)),'Состав блюд'!D:D,)+ROW(E8)),"") -> Соль | R12: Вид операции | AH12: продлить формулу в ! На сред.цены
E13: =IF(AND(E12<>"",INDEX('Состав блюд'!A:A,MATCH(INDEX('Перечень блюд'!A:A,MATCH(E$5,'Перечень блюд'!B:B,)),'Состав блюд'!D:D,)+ROW(E9))=ROW(E8)),INDEX('Состав блюд'!B:B,MATCH(INDEX('Перечень блюд'!A:A,MATCH(E$5,'Перечень блюд'!B:B,)),'Состав блюд'!D:D,)+ROW(E9)),"") -> Капуста
E14: =IF(AND(E13<>"",INDEX('Состав блюд'!A:A,MATCH(INDEX('Перечень блюд'!A:A,MATCH(E$5,'Перечень блюд'!B:B,)),'Состав блюд'!D:D,)+ROW(E10))=ROW(E9)),INDEX('Состав блюд'!B:B,MATCH(INDEX('Перечень блюд'!A:A,MATCH(E$5,'Перечень блюд'!B:B,)),'Состав блюд'!D:D,)+ROW(E10)),"") -> Картофель | L14: Номер документа | S14: Дата составления
E15: =IF(AND(E14<>"",INDEX('Состав блюд'!A:A,MATCH(INDEX('Перечень блюд'!A:A,MATCH(E$5,'Перечень блюд'!B:B,)),'Состав блюд'!D:D,)+ROW(E11))=ROW(E10)),INDEX('Состав блюд'!B:B,MATCH(INDEX('Перечень блюд'!A:A,MATCH(E$5,'Перечень блюд'!B:B,)),'Состав блюд'!D:D,)+ROW(E11)),"") -> 0 | G15: КАЛЬКУЛЯЦИОННАЯ КАРТОЧКА | L15: 1 | S15: =DATE($AB$4,$AB$3,$AB$2) -> 2022-09-11
E16: =IF(AND(E15<>"",INDEX('Состав блюд'!A:A,MATCH(INDEX('Перечень блюд'!A:A,MATCH(E$5,'Перечень блюд'!B:B,)),'Состав блюд'!D:D,)+ROW(E12))=ROW(E11)),INDEX('Состав блюд'!B:B,MATCH(INDEX('Перечень блюд'!A:A,MATCH(E$5,'Перечень блюд'!B:B,)),'Состав блюд'!D:D,)+ROW(E12)),"") -> 0
E17: =IF(AND(#REF!<>"",INDEX('Состав блюд'!A:A,MATCH(INDEX('Перечень блюд'!A:A,MATCH(E$5,'Перечень блюд'!B:B,)),'Состав блюд'!D:D,)+ROW(E14))=ROW(E13)),INDEX('Состав блюд'!B:B,MATCH(INDEX('Перечень блюд'!A:A,MATCH(E$5,'Перечень блюд'!B:B,)),'Состав блюд'!D:D,)+ROW(E14)),"") ->  | F17: № | G17: Продукты | N17: Ед. | P17: Норма на порцию | U17: Цена закупки, руб | W17: Сумма, руб
E18: =IF(AND(E17<>"",INDEX('Состав блюд'!A:A,MATCH(INDEX('Перечень блюд'!A:A,MATCH(E$5,'Перечень блюд'!B:B,)),'Состав блюд'!D:D,)+ROW(E15))=ROW(E14)),INDEX('Состав блюд'!B:B,MATCH(INDEX('Перечень блюд'!A:A,MATCH(E$5,'Перечень блюд'!B:B,)),'Состав блюд'!D:D,)+ROW(E15)),"") ->  | F18: 1 | G18: =IF(AND(F10<>"",INDEX('Состав блюд'!A:A,MATCH(INDEX('Перечень блюд'!A:A,MATCH(F$10,'Перечень блюд'!B:B,)),'Состав блюд'!D:D,)+ROW(E2))=ROW(E1)),INDEX('Состав блюд'!B:B,MATCH(INDEX('Перечень блюд'!A:A,MATCH(F$10,'Перечень блюд'!B:B,)),'Состав блюд'!D:D,)+ROW(E2)),"") -> Свекла | N18: г | P18: =IF(AND($F$10<>"",INDEX('Состав блюд'!A:A,MATCH(INDEX('Перечень блюд'!A:A,MATCH(F$10,'Перечень блюд'!B:B,)),'Состав блюд'!D:D,)+ROW(E2))=ROW(E1)),INDEX('Состав блюд'!C:C,MATCH(INDEX('Перечень блюд'!A:A,MATCH(F$10,'Перечень блюд'!B:B,)),'Состав блюд'!D:D,)+ROW(E2)),"") -> 40 | U18: 0.1 | W18: =IFERROR(P18*U18,"") -> 4
E19: =IF(AND(E18<>"",INDEX('Состав блюд'!A:A,MATCH(INDEX('Перечень блюд'!A:A,MATCH(E$5,'Перечень блюд'!B:B,)),'Состав блюд'!D:D,)+ROW(E16))=ROW(E15)),INDEX('Состав блюд'!B:B,MATCH(INDEX('Перечень блюд'!A:A,MATCH(E$5,'Перечень блюд'!B:B,)),'Состав блюд'!D:D,)+ROW(E16)),"") ->  | F19: 2 | G19: =IF(AND(F10<>"",INDEX('Состав блюд'!A:A,MATCH(INDEX('Перечень блюд'!A:A,MATCH(F$10,'Перечень блюд'!B:B,)),'Состав блюд'!D:D,)+ROW(E3))=ROW(E2)),INDEX('Состав блюд'!B:B,MATCH(INDEX('Перечень блюд'!A:A,MATCH(F$10,'Перечень блюд'!B:B,)),'Состав блюд'!D:D,)+ROW(E3)),"") -> Свинина | N19: г | P19: =IF(AND($F$10<>"",INDEX('Состав блюд'!A:A,MATCH(INDEX('Перечень блюд'!A:A,MATCH(F$10,'Перечень блюд'!B:B,)),'Состав блюд'!D:D,)+ROW(E3))=ROW(E2)),INDEX('Состав блюд'!C:C,MATCH(INDEX('Перечень блюд'!A:A,MATCH(F$10,'Перечень блюд'!B:B,)),'Состав блюд'!D:D,)+ROW(E3)),"") -> 10 | U19: 0.1 | W19: =IFERROR(P19*U19,"") -> 1
E20: =IF(AND(E19<>"",INDEX('Состав блюд'!A:A,MATCH(INDEX('Перечень блюд'!A:A,MATCH(E$5,'Перечень блюд'!B:B,)),'Состав блюд'!D:D,)+ROW(#REF!))=ROW(E16)),INDEX('Состав блюд'!B:B,MATCH(INDEX('Перечень блюд'!A:A,MATCH(E$5,'Перечень блюд'!B:B,)),'Состав блюд'!D:D,)+ROW(#REF!)),"") ->  | F20: 3 | G20: =IF(AND(F10<>"",INDEX('Состав блюд'!A:A,MATCH(INDEX('Перечень блюд'!A:A,MATCH(F$10,'Перечень блюд'!B:B,)),'Состав блюд'!D:D,)+ROW(E4))=ROW(E3)),INDEX('Состав блюд'!B:B,MATCH(INDEX('Перечень блюд'!A:A,MATCH(F$10,'Перечень блюд'!B:B,)),'Состав блюд'!D:D,)+ROW(E4)),"") -> Соль | N20: г | P20: =IF(AND($F$10<>"",INDEX('Состав блюд'!A:A,MATCH(INDEX('Перечень блюд'!A:A,MATCH(F$10,'Перечень блюд'!B:B,)),'Состав блюд'!D:D,)+ROW(E4))=ROW(E3)),INDEX('Состав блюд'!C:C,MATCH(INDEX('Перечень блюд'!A:A,MATCH(F$10,'Перечень блюд'!B:B,)),'Состав блюд'!D:D,)+ROW(E4)),"") -> 30 | U20: 0.1 | W20: 3
E21: =IF(AND(E20<>"",INDEX('Состав блюд'!A:A,MATCH(INDEX('Перечень блюд'!A:A,MATCH(E$5,'Перечень блюд'!B:B,)),'Состав блюд'!D:D,)+ROW(E17))=ROW(#REF!)),INDEX('Состав блюд'!B:B,MATCH(INDEX('Перечень блюд'!A:A,MATCH(E$5,'Перечень блюд'!B:B,)),'Состав блюд'!D:D,)+ROW(E17)),"") ->  | F21: 4 | G21: =IF(AND(F10<>"",INDEX('Состав блюд'!A:A,MATCH(INDEX('Перечень блюд'!A:A,MATCH(F$10,'Перечень блюд'!B:B,)),'Состав блюд'!D:D,)+ROW(E5))=ROW(E4)),INDEX('Состав блюд'!B:B,MATCH(INDEX('Перечень блюд'!A:A,MATCH(F$10,'Перечень блюд'!B:B,)),'Состав блюд'!D:D,)+ROW(E5)),"") -> Томатная паста | N21: г | P21: =IF(AND($F$10<>"",INDEX('Состав блюд'!A:A,MATCH(INDEX('Перечень блюд'!A:A,MATCH(F$10,'Перечень блюд'!B:B,)),'Состав блюд'!D:D,)+ROW(E5))=ROW(E4)),INDEX('Состав блюд'!C:C,MATCH(INDEX('Перечень блюд'!A:A,MATCH(F$10,'Перечень блюд'!B:B,)),'Состав блюд'!D:D,)+ROW(E5)),"") -> 32 | U21: 0.1 | W21: 3.2
E22: =IF(AND(E21<>"",INDEX('Состав блюд'!A:A,MATCH(INDEX('Перечень блюд'!A:A,MATCH(E$5,'Перечень блюд'!B:B,)),'Состав блюд'!D:D,)+ROW(E18))=ROW(E17)),INDEX('Состав блюд'!B:B,MATCH(INDEX('Перечень блюд'!A:A,MATCH(E$5,'Перечень блюд'!B:B,)),'Состав блюд'!D:D,)+ROW(E18)),"") ->  | F22: 5 | G22: =IF(AND(F10<>"",INDEX('Состав блюд'!A:A,MATCH(INDEX('Перечень блюд'!A:A,MATCH(F$10,'Перечень блюд'!B:B,)),'Состав блюд'!D:D,)+ROW(E6))=ROW(E5)),INDEX('Состав блюд'!B:B,MATCH(INDEX('Перечень блюд'!A:A,MATCH(F$10,'Перечень блюд'!B:B,)),'Состав блюд'!D:D,)+ROW(E6)),"") -> Уксус 9%-ный | N22: г | P22: =IF(AND($F$10<>"",INDEX('Состав блюд'!A:A,MATCH(INDEX('Перечень блюд'!A:A,MATCH(F$10,'Перечень блюд'!B:B,)),'Состав блюд'!D:D,)+ROW(E6))=ROW(E5)),INDEX('Состав блюд'!C:C,MATCH(INDEX('Перечень блюд'!A:A,MATCH(F$10,'Перечень блюд'!B:B,)),'Состав блюд'!D:D,)+ROW(E6)),"") -> 5 | U22: 0.1 | W22: 0.5
E23: =IF(AND(E22<>"",INDEX('Состав блюд'!A:A,MATCH(INDEX('Перечень блюд'!A:A,MATCH(E$5,'Перечень блюд'!B:B,)),'Состав блюд'!D:D,)+ROW(E19))=ROW(E18)),INDEX('Состав блюд'!B:B,MATCH(INDEX('Перечень блюд'!A:A,MATCH(E$5,'Перечень блюд'!B:B,)),'Состав блюд'!D:D,)+ROW(E19)),"") ->  | F23: 6 | G23: =IF(AND(F10<>"",INDEX('Состав блюд'!A:A,MATCH(INDEX('Перечень блюд'!A:A,MATCH(F$10,'Перечень блюд'!B:B,)),'Состав блюд'!D:D,)+ROW(E7))=ROW(E6)),INDEX('Состав блюд'!B:B,MATCH(INDEX('Перечень блюд'!A:A,MATCH(F$10,'Перечень блюд'!B:B,)),'Состав блюд'!D:D,)+ROW(E7)),"") -> Лук | N23: г | P23: =IF(AND($F$10<>"",INDEX('Состав блюд'!A:A,MATCH(INDEX('Перечень блюд'!A:A,MATCH(F$10,'Перечень блюд'!B:B,)),'Состав блюд'!D:D,)+ROW(E7))=ROW(E6)),INDEX('Состав блюд'!C:C,MATCH(INDEX('Перечень блюд'!A:A,MATCH(F$10,'Перечень блюд'!B:B,)),'Состав блюд'!D:D,)+ROW(E7)),"") -> 26 | U23: 0.1 | W23: 2.6
E24: =IF(AND(E23<>"",INDEX('Состав блюд'!A:A,MATCH(INDEX('Перечень блюд'!A:A,MATCH(E$5,'Перечень блюд'!B:B,)),'Состав блюд'!D:D,)+ROW(E20))=ROW(E19)),INDEX('Состав блюд'!B:B,MATCH(INDEX('Перечень блюд'!A:A,MATCH(E$5,'Перечень блюд'!B:B,)),'Состав блюд'!D:D,)+ROW(E20)),"") ->  | F24: 7 | G24: =IF(AND(F10<>"",INDEX('Состав блюд'!A:A,MATCH(INDEX('Перечень блюд'!A:A,MATCH(F$10,'Перечень блюд'!B:B,)),'Состав блюд'!D:D,)+ROW(E8))=ROW(E7)),INDEX('Состав блюд'!B:B,MATCH(INDEX('Перечень блюд'!A:A,MATCH(F$10,'Перечень блюд'!B:B,)),'Состав блюд'!D:D,)+ROW(E8)),"") -> Соль | N24: г | P24: =IF(AND($F$10<>"",INDEX('Состав блюд'!A:A,MATCH(INDEX('Перечень блюд'!A:A,MATCH(F$10,'Перечень блюд'!B:B,)),'Состав блюд'!D:D,)+ROW(E8))=ROW(E7)),INDEX('Состав блюд'!C:C,MATCH(INDEX('Перечень блюд'!A:A,MATCH(F$10,'Перечень блюд'!B:B,)),'Состав блюд'!D:D,)+ROW(E8)),"") -> 10 | U24: 0.1 | W24: 1
E25: =IF(AND(E24<>"",INDEX('Состав блюд'!A:A,MATCH(INDEX('Перечень блюд'!A:A,MATCH(E$5,'Перечень блюд'!B:B,)),'Состав блюд'!D:D,)+ROW(E21))=ROW(E20)),INDEX('Состав блюд'!B:B,MATCH(INDEX('Перечень блюд'!A:A,MATCH(E$5,'Перечень блюд'!B:B,)),'Состав блюд'!D:D,)+ROW(E21)),"") ->  | F25: 8 | G25: =IF(AND(F10<>"",INDEX('Состав блюд'!A:A,MATCH(INDEX('Перечень блюд'!A:A,MATCH(F$10,'Перечень блюд'!B:B,)),'Состав блюд'!D:D,)+ROW(E9))=ROW(E8)),INDEX('Состав блюд'!B:B,MATCH(INDEX('Перечень блюд'!A:A,MATCH(F$10,'Перечень блюд'!B:B,)),'Состав блюд'!D:D,)+ROW(E9)),"") -> Капуста | N25: г | P25: =IF(AND($F$10<>"",INDEX('Состав блюд'!A:A,MATCH(INDEX('Перечень блюд'!A:A,MATCH(F$10,'Перечень блюд'!B:B,)),'Состав блюд'!D:D,)+ROW(E9))=ROW(E8)),INDEX('Состав блюд'!C:C,MATCH(INDEX('Перечень блюд'!A:A,MATCH(F$10,'Перечень блюд'!B:B,)),'Состав блюд'!D:D,)+ROW(E9)),"") -> 10 | U25: 0.1 | W25: 1
E26: =IF(AND(E25<>"",INDEX('Состав блюд'!A:A,MATCH(INDEX('Перечень блюд'!A:A,MATCH(E$5,'Перечень блюд'!B:B,)),'Состав блюд'!D:D,)+ROW(E22))=ROW(E21)),INDEX('Состав блюд'!B:B,MATCH(INDEX('Перечень блюд'!A:A,MATCH(E$5,'Перечень блюд'!B:B,)),'Состав блюд'!D:D,)+ROW(E22)),"") ->  | F26: 9 | G26: =IF(AND(F10<>"",INDEX('Состав блюд'!A:A,MATCH(INDEX('Перечень блюд'!A:A,MATCH(F$10,'Перечень блюд'!B:B,)),'Состав блюд'!D:D,)+ROW(E10))=ROW(E9)),INDEX('Состав блюд'!B:B,MATCH(INDEX('Перечень блюд'!A:A,MATCH(F$10,'Перечень блюд'!B:B,)),'Состав блюд'!D:D,)+ROW(E10)),"") -> Картофель | N26: г | P26: =IF(AND($F$10<>"",INDEX('Состав блюд'!A:A,MATCH(INDEX('Перечень блюд'!A:A,MATCH(F$10,'Перечень блюд'!B:B,)),'Состав блюд'!D:D,)+ROW(E10))=ROW(E9)),INDEX('Состав блюд'!C:C,MATCH(INDEX('Перечень блюд'!A:A,MATCH(F$10,'Перечень блюд'!B:B,)),'Состав блюд'!D:D,)+ROW(E10)),"") -> 10 | U26: 0.1 | W26: 1
E27: =IF(AND(E26<>"",INDEX('Состав блюд'!A:A,MATCH(INDEX('Перечень блюд'!A:A,MATCH(E$5,'Перечень блюд'!B:B,)),'Состав блюд'!D:D,)+ROW(E23))=ROW(E22)),INDEX('Состав блюд'!B:B,MATCH(INDEX('Перечень блюд'!A:A,MATCH(E$5,'Перечень блюд'!B:B,)),'Состав блюд'!D:D,)+ROW(E23)),"") ->  | F27: 10 | G27: =IF(AND(F10<>"",INDEX('Состав блюд'!A:A,MATCH(INDEX('Перечень блюд'!A:A,MATCH(F$10,'Перечень блюд'!B:B,)),'Состав блюд'!D:D,)+ROW(E11))=ROW(E10)),INDEX('Состав блюд'!B:B,MATCH(INDEX('Перечень блюд'!A:A,MATCH(F$10,'Перечень блюд'!B:B,)),'Состав блюд'!D:D,)+ROW(E11)),"") -> 0 | N27: г | P27: =IF(AND($F$10<>"",INDEX('Состав блюд'!A:A,MATCH(INDEX('Перечень блюд'!A:A,MATCH(F$10,'Перечень блюд'!B:B,)),'Состав блюд'!D:D,)+ROW(E11))=ROW(E10)),INDEX('Состав блюд'!C:C,MATCH(INDEX('Перечень блюд'!A:A,MATCH(F$10,'Перечень блюд'!B:B,)),'Состав блюд'!D:D,)+ROW(E11)),"") -> 10 | U27: 0 | W27: 0
E28: =IF(AND(E27<>"",INDEX('Состав блюд'!A:A,MATCH(INDEX('Перечень блюд'!A:A,MATCH(E$5,'Перечень блюд'!B:B,)),'Состав блюд'!D:D,)+ROW(E24))=ROW(E23)),INDEX('Состав блюд'!B:B,MATCH(INDEX('Перечень блюд'!A:A,MATCH(E$5,'Перечень блюд'!B:B,)),'Состав блюд'!D:D,)+ROW(E24)),"") ->  | F28: 11 | G28: =IF(AND(F10<>"",INDEX('Состав блюд'!A:A,MATCH(INDEX('Перечень блюд'!A:A,MATCH(F$10,'Перечень блюд'!B:B,)),'Состав блюд'!D:D,)+ROW(E12))=ROW(E11)),INDEX('Состав блюд'!B:B,MATCH(INDEX('Перечень блюд'!A:A,MATCH(F$10,'Перечень блюд'!B:B,)),'Состав блюд'!D:D,)+ROW(E12)),"") -> 0 | N28: г | P28: =IF(AND($F$10<>"",INDEX('Состав блюд'!A:A,MATCH(INDEX('Перечень блюд'!A:A,MATCH(F$10,'Перечень блюд'!B:B,)),'Состав блюд'!D:D,)+ROW(E12))=ROW(E11)),INDEX('Состав блюд'!C:C,MATCH(INDEX('Перечень блюд'!A:A,MATCH(F$10,'Перечень блюд'!B:B,)),'Состав блюд'!D:D,)+ROW(E12)),"") -> 10 | U28: 0 | W28: 0
F29: 12 | G29: =IF(AND(F10<>"",INDEX('Состав блюд'!A:A,MATCH(INDEX('Перечень блюд'!A:A,MATCH(F$10,'Перечень блюд'!B:B,)),'Состав блюд'!D:D,)+ROW(E13))=ROW(E12)),INDEX('Состав блюд'!B:B,MATCH(INDEX('Перечень блюд'!A:A,MATCH(F$10,'Перечень блюд'!B:B,)),'Состав блюд'!D:D,)+ROW(E13)),"") -> 0 | N29: г | P29: =IF(AND($F$10<>"",INDEX('Состав блюд'!A:A,MATCH(INDEX('Перечень блюд'!A:A,MATCH(F$10,'Перечень блюд'!B:B,)),'Состав блюд'!D:D,)+ROW(E13))=ROW(E12)),INDEX('Состав блюд'!C:C,MATCH(INDEX('Перечень блюд'!A:A,MATCH(F$10,'Перечень блюд'!B:B,)),'Состав блюд'!D:D,)+ROW(E13)),"") -> 0 | U29: 0 | W29: 0
F30: 13 | G30: =IF(AND(F10<>"",INDEX('Состав блюд'!A:A,MATCH(INDEX('Перечень блюд'!A:A,MATCH(F$10,'Перечень блюд'!B:B,)),'Состав блюд'!D:D,)+ROW(E14))=ROW(E13)),INDEX('Состав блюд'!B:B,MATCH(INDEX('Перечень блюд'!A:A,MATCH(F$10,'Перечень блюд'!B:B,)),'Состав блюд'!D:D,)+ROW(E14)),"") -> 0 | N30: г | P30: =IF(AND($F$10<>"",INDEX('Состав блюд'!A:A,MATCH(INDEX('Перечень блюд'!A:A,MATCH(F$10,'Перечень блюд'!B:B,)),'Состав блюд'!D:D,)+ROW(E14))=ROW(E13)),INDEX('Состав блюд'!C:C,MATCH(INDEX('Перечень блюд'!A:A,MATCH(F$10,'Перечень блюд'!B:B,)),'Состав блюд'!D:D,)+ROW(E14)),"") -> 0 | U30: 0 | W30: 0
F31: Cтоимость сырьевого набора, руб | K31: =SUM(W18:X30) -> 17.3 | O31: Подписи
F32: Cтоимость сырьевого набора на | I32: =$AB$6 -> 100 | J32: блюд, руб | K32: =I32*K31 -> 1730 | O32: Начальник производства: Бритов М.А.
F33: Выход 1 блюда, грамм | O33: Бухгалтер: Осипова Е.А.
F34: Утверждаю | H34: Исполнительный директор: Шехватов А.В. __________
M36: Унифицированная форма № ОП-1 Утверждена постановлением Госкомстата России от 25.12.98 № 132
V38: Код
Q39: Форма по ОКУД | V39: 330501
F40: ООО | T40: по ОКПО
F41: "Сервис-М"
F42: структурное подразделение | M42: Вид деятельности по ОКДП
F44: Котлета по-киевски
F45: наименование второго блюда (изделия) | J45: Номер блюда по сборнику рецептур, ТТК, СТП | V45: ТТК №8
R46: Вид операции
L48: Номер документа | S48: Дата составления
G49: КАЛЬКУЛЯЦИОННАЯ КАРТОЧКА | L49: 2 | S49: =DATE($AB$4,$AB$3,$AB$2) -> 2022-09-11
F51: № | G51: Продукты | N51: Ед. | P51: Норма на порцию | U51: Цена закупки, руб | W51: Сумма, руб
F52: 1 | G52: =IF(AND($F$44<>"",INDEX('Состав блюд'!G:G,MATCH(INDEX('Перечень блюд'!D:D,MATCH(F$44,'Перечень блюд'!E:E,)),'Состав блюд'!J:J,)+ROW(J2))=ROW(J1)),INDEX('Состав блюд'!H:H,MATCH(INDEX('Перечень блюд'!D:D,MATCH(F$44,'Перечень блюд'!E:E,)),'Состав блюд'!J:J,)+ROW(J2)),"") -> Курица | N52: г | P52: =IF(AND($F$44<>"",INDEX('Состав блюд'!G:G,MATCH(INDEX('Перечень блюд'!D:D,MATCH(F$44,'Перечень блюд'!E:E,)),'Состав блюд'!J:J,)+ROW(J2))=ROW(J1)),INDEX('Состав блюд'!I:I,MATCH(INDEX('Перечень блюд'!D:D,MATCH(F$44,'Перечень блюд'!E:E,)),'Состав блюд'!J:J,)+ROW(J2)),"") -> 40 | U52: 0.1 | W52: =IFERROR(P52*U52,"") -> 4
F53: 2 | G53: =IF(AND($F$44<>"",INDEX('Состав блюд'!G:G,MATCH(INDEX('Перечень блюд'!D:D,MATCH(F$44,'Перечень блюд'!E:E,)),'Состав блюд'!J:J,)+ROW(J3))=ROW(J2)),INDEX('Состав блюд'!H:H,MATCH(INDEX('Перечень блюд'!D:D,MATCH(F$44,'Перечень блюд'!E:E,)),'Состав блюд'!J:J,)+ROW(J3)),"") -> Сыр | N53: г | P53: =IF(AND($F$44<>"",INDEX('Состав блюд'!G:G,MATCH(INDEX('Перечень блюд'!D:D,MATCH(F$44,'Перечень блюд'!E:E,)),'Состав блюд'!J:J,)+ROW(J3))=ROW(J2)),INDEX('Состав блюд'!I:I,MATCH(INDEX('Перечень блюд'!D:D,MATCH(F$44,'Перечень блюд'!E:E,)),'Состав блюд'!J:J,)+ROW(J3)),"") -> 10 | U53: 0.1 | W53: =IFERROR(P53*U53,"") -> 1
F54: 3 | G54: =IF(AND($F$44<>"",INDEX('Состав блюд'!G:G,MATCH(INDEX('Перечень блюд'!D:D,MATCH(F$44,'Перечень блюд'!E:E,)),'Состав блюд'!J:J,)+ROW(J4))=ROW(J3)),INDEX('Состав блюд'!H:H,MATCH(INDEX('Перечень блюд'!D:D,MATCH(F$44,'Перечень блюд'!E:E,)),'Состав блюд'!J:J,)+ROW(J4)),"") -> Томатная паста | N54: г | P54: =IF(AND($F$44<>"",INDEX('Состав блюд'!G:G,MATCH(INDEX('Перечень блюд'!D:D,MATCH(F$44,'Перечень блюд'!E:E,)),'Состав блюд'!J:J,)+ROW(J4))=ROW(J3)),INDEX('Состав блюд'!I:I,MATCH(INDEX('Перечень блюд'!D:D,MATCH(F$44,'Перечень блюд'!E:E,)),'Состав блюд'!J:J,)+ROW(J4)),"") -> 30 | U54: 0.1 | W54: 3
F55: 4 | G55: =IF(AND($F$44<>"",INDEX('Состав блюд'!G:G,MATCH(INDEX('Перечень блюд'!D:D,MATCH(F$44,'Перечень блюд'!E:E,)),'Состав блюд'!J:J,)+ROW(J5))=ROW(J4)),INDEX('Состав блюд'!H:H,MATCH(INDEX('Перечень блюд'!D:D,MATCH(F$44,'Перечень блюд'!E:E,)),'Состав блюд'!J:J,)+ROW(J5)),"") -> Сухари панировочные | N55: г | P55: =IF(AND($F$44<>"",INDEX('Состав блюд'!G:G,MATCH(INDEX('Перечень блюд'!D:D,MATCH(F$44,'Перечень блюд'!E:E,)),'Состав блюд'!J:J,)+ROW(J5))=ROW(J4)),INDEX('Состав блюд'!I:I,MATCH(INDEX('Перечень блюд'!D:D,MATCH(F$44,'Перечень блюд'!E:E,)),'Состав блюд'!J:J,)+ROW(J5)),"") -> 32 | U55: 0.1 | W55: 3.2
F56: 5 | G56: =IF(AND($F$44<>"",INDEX('Состав блюд'!G:G,MATCH(INDEX('Перечень блюд'!D:D,MATCH(F$44,'Перечень блюд'!E:E,)),'Состав блюд'!J:J,)+ROW(J6))=ROW(J5)),INDEX('Состав блюд'!H:H,MATCH(INDEX('Перечень блюд'!D:D,MATCH(F$44,'Перечень блюд'!E:E,)),'Состав блюд'!J:J,)+ROW(J6)),"") -> Лук | N56: г | P56: =IF(AND($F$44<>"",INDEX('Состав блюд'!G:G,MATCH(INDEX('Перечень блюд'!D:D,MATCH(F$44,'Перечень блюд'!E:E,)),'Состав блюд'!J:J,)+ROW(J6))=ROW(J5)),INDEX('Состав блюд'!I:I,MATCH(INDEX('Перечень блюд'!D:D,MATCH(F$44,'Перечень блюд'!E:E,)),'Состав блюд'!J:J,)+ROW(J6)),"") -> 5 | U56: 0.1 | W56: 0.5
F57: 6 | G57: =IF(AND($F$44<>"",INDEX('Состав блюд'!G:G,MATCH(INDEX('Перечень блюд'!D:D,MATCH(F$44,'Перечень блюд'!E:E,)),'Состав блюд'!J:J,)+ROW(J7))=ROW(J6)),INDEX('Состав блюд'!H:H,MATCH(INDEX('Перечень блюд'!D:D,MATCH(F$44,'Перечень блюд'!E:E,)),'Состав блюд'!J:J,)+ROW(J7)),"") -> 0 | N57: г | P57: =IF(AND($F$44<>"",INDEX('Состав блюд'!G:G,MATCH(INDEX('Перечень блюд'!D:D,MATCH(F$44,'Перечень блюд'!E:E,)),'Состав блюд'!J:J,)+ROW(J7))=ROW(J6)),INDEX('Состав блюд'!I:I,MATCH(INDEX('Перечень блюд'!D:D,MATCH(F$44,'Перечень блюд'!E:E,)),'Состав блюд'!J:J,)+ROW(J7)),"") -> 26 | U57: 0.1 | W57: 2.6
F58: 7 | G58: =IF(AND($F$44<>"",INDEX('Состав блюд'!G:G,MATCH(INDEX('Перечень блюд'!D:D,MATCH(F$44,'Перечень блюд'!E:E,)),'Состав блюд'!J:J,)+ROW(J8))=ROW(J7)),INDEX('Состав блюд'!H:H,MATCH(INDEX('Перечень блюд'!D:D,MATCH(F$44,'Перечень блюд'!E:E,)),'Состав блюд'!J:J,)+ROW(J8)),"") -> 0 | N58: г | P58: =IF(AND($F$44<>"",INDEX('Состав блюд'!G:G,MATCH(INDEX('Перечень блюд'!D:D,MATCH(F$44,'Перечень блюд'!E:E,)),'Состав блюд'!J:J,)+ROW(J8))=ROW(J7)),INDEX('Состав блюд'!I:I,MATCH(INDEX('Перечень блюд'!D:D,MATCH(F$44,'Перечень блюд'!E:E,)),'Состав блюд'!J:J,)+ROW(J8)),"") -> 0 | W58: 0
F59: 8 | G59: =IF(AND($F$44<>"",INDEX('Состав блюд'!G:G,MATCH(INDEX('Перечень блюд'!D:D,MATCH(F$44,'Перечень блюд'!E:E,)),'Состав блюд'!J:J,)+ROW(J9))=ROW(J8)),INDEX('Состав блюд'!H:H,MATCH(INDEX('Перечень блюд'!D:D,MATCH(F$44,'Перечень блюд'!E:E,)),'Состав блюд'!J:J,)+ROW(J9)),"") -> 0 | N59: г | P59: =IF(AND($F$44<>"",INDEX('Состав блюд'!G:G,MATCH(INDEX('Перечень блюд'!D:D,MATCH(F$44,'Перечень блюд'!E:E,)),'Состав блюд'!J:J,)+ROW(J9))=ROW(J8)),INDEX('Состав блюд'!I:I,MATCH(INDEX('Перечень блюд'!D:D,MATCH(F$44,'Перечень блюд'!E:E,)),'Состав блюд'!J:J,)+ROW(J9)),"") -> 0 | W59: 0
F60: 9 | G60: =IF(AND($F$44<>"",INDEX('Состав блюд'!G:G,MATCH(INDEX('Перечень блюд'!D:D,MATCH(F$44,'Перечень блюд'!E:E,)),'Состав блюд'!J:J,)+ROW(J10))=ROW(J9)),INDEX('Состав блюд'!H:H,MATCH(INDEX('Перечень блюд'!D:D,MATCH(F$44,'Перечень блюд'!E:E,)),'Состав блюд'!J:J,)+ROW(J10)),"") -> 0 | N60: г | P60: =IF(AND($F$44<>"",INDEX('Состав блюд'!G:G,MATCH(INDEX('Перечень блюд'!D:D,MATCH(F$44,'Перечень блюд'!E:E,)),'Состав блюд'!J:J,)+ROW(J10))=ROW(J9)),INDEX('Состав блюд'!I:I,MATCH(INDEX('Перечень блюд'!D:D,MATCH(F$44,'Перечень блюд'!E:E,)),'Состав блюд'!J:J,)+ROW(J10)),"") -> 0 | W60: 0
F61: 10 | G61: =IF(AND($F$44<>"",INDEX('Состав блюд'!G:G,MATCH(INDEX('Перечень блюд'!D:D,MATCH(F$44,'Перечень блюд'!E:E,)),'Состав блюд'!J:J,)+ROW(J11))=ROW(J10)),INDEX('Состав блюд'!H:H,MATCH(INDEX('Перечень блюд'!D:D,MATCH(F$44,'Перечень блюд'!E:E,)),'Состав блюд'!J:J,)+ROW(J11)),"") -> 0 | N61: г | P61: =IF(AND($F$44<>"",INDEX('Состав блюд'!G:G,MATCH(INDEX('Перечень блюд'!D:D,MATCH(F$44,'Перечень блюд'!E:E,)),'Состав блюд'!J:J,)+ROW(J11))=ROW(J10)),INDEX('Состав блюд'!I:I,MATCH(INDEX('Перечень блюд'!D:D,MATCH(F$44,'Перечень блюд'!E:E,)),'Состав блюд'!J:J,)+ROW(J11)),"") -> 0 | W61: 0
F62: 11 | G62: =IF(AND($F$44<>"",INDEX('Состав блюд'!G:G,MATCH(INDEX('Перечень блюд'!D:D,MATCH(F$44,'Перечень блюд'!E:E,)),'Состав блюд'!J:J,)+ROW(J12))=ROW(J11)),INDEX('Состав блюд'!H:H,MATCH(INDEX('Перечень блюд'!D:D,MATCH(F$44,'Перечень блюд'!E:E,)),'Состав блюд'!J:J,)+ROW(J12)),"") -> 0 | N62: г | P62: =IF(AND($F$44<>"",INDEX('Состав блюд'!G:G,MATCH(INDEX('Перечень блюд'!D:D,MATCH(F$44,'Перечень блюд'!E:E,)),'Состав блюд'!J:J,)+ROW(J12))=ROW(J11)),INDEX('Состав блюд'!I:I,MATCH(INDEX('Перечень блюд'!D:D,MATCH(F$44,'Перечень блюд'!E:E,)),'Состав блюд'!J:J,)+ROW(J12)),"") -> 0 | W62: 0
F63: 12 | G63: =IF(AND($F$44<>"",INDEX('Состав блюд'!G:G,MATCH(INDEX('Перечень блюд'!D:D,MATCH(F$44,'Перечень блюд'!E:E,)),'Состав блюд'!J:J,)+ROW(J13))=ROW(J12)),INDEX('Состав блюд'!H:H,MATCH(INDEX('Перечень блюд'!D:D,MATCH(F$44,'Перечень блюд'!E:E,)),'Состав блюд'!J:J,)+ROW(J13)),"") -> 0 | N63: г | P63: =IF(AND($F$44<>"",INDEX('Состав блюд'!G:G,MATCH(INDEX('Перечень блюд'!D:D,MATCH(F$44,'Перечень блюд'!E:E,)),'Состав блюд'!J:J,)+ROW(J13))=ROW(J12)),INDEX('Состав блюд'!I:I,MATCH(INDEX('Перечень блюд'!D:D,MATCH(F$44,'Перечень блюд'!E:E,)),'Состав блюд'!J:J,)+ROW(J13)),"") -> 0 | W63: 0
F64: 13 | G64: =IF(AND($F$44<>"",INDEX('Состав блюд'!G:G,MATCH(INDEX('Перечень блюд'!D:D,MATCH(F$44,'Перечень блюд'!E:E,)),'Состав блюд'!J:J,)+ROW(J14))=ROW(J13)),INDEX('Состав блюд'!H:H,MATCH(INDEX('Перечень блюд'!D:D,MATCH(F$44,'Перечень блюд'!E:E,)),'Состав блюд'!J:J,)+ROW(J14)),"") -> 0 | N64: г | P64: =IF(AND($F$44<>"",INDEX('Состав блюд'!G:G,MATCH(INDEX('Перечень блюд'!D:D,MATCH(F$44,'Перечень блюд'!E:E,)),'Состав блюд'!J:J,)+ROW(J14))=ROW(J13)),INDEX('Состав блюд'!I:I,MATCH(INDEX('Перечень блюд'!D:D,MATCH(F$44,'Перечень блюд'!E:E,)),'Состав блюд'!J:J,)+ROW(J14)),"") -> 0 | W64: 0
F65: Cтоимость сырьевого набора, руб | K65: =SUM(W52:X64) -> 14.3 | O65: Подписи
F66: Cтоимость сырьевого набора на | I66: =$AB$6 -> 100 | J66: блюд, руб | K66: =I66*K65 -> 1430 | O66: Начальник производства: Бритов М.А.
F67: Выход 1 блюда, грамм | K67: 350 | O67: Бухгалтер: Осипова Е.А.
F68: Утверждаю | H68: Исполнительный директор: Шехватов А.В. __________
M70: Унифицированная форма № ОП-1 Утверждена постановлением Госкомстата России от 25.12.98 № 132
V72: Код
Q73: Форма по ОКУД | V73: 330501
F74: ООО | T74: по ОКПО
F75: "Сервис-М"
F76: структурное подразделение | M76: Вид деятельности по ОКДП
F78: Гречка отварная
F79: наименование гарнира (изделия) | J79: Номер блюда по сборнику рецептур, ТТК, СТП | V79: ТТК №8
R80: Вид операции
L82: Номер документа | S82: Дата составления
G83: КАЛЬКУЛЯЦИОННАЯ КАРТОЧКА | L83: 3 | S83: =DATE($AB$4,$AB$3,$AB$2) -> 2022-09-11
F85: № | G85: Продукты | N85: Ед. | P85: Норма на порцию | U85: Цена закупки, руб | W85: Сумма, руб
F86: 1 | G86: =IF(AND($F$78<>"",INDEX('Состав блюд'!M:M,MATCH(INDEX('Перечень блюд'!G:G,MATCH(F$78,'Перечень блюд'!H:H,)),'Состав блюд'!P:P,)+ROW(O2))=ROW(O1)),INDEX('Состав блюд'!N:N,MATCH(INDEX('Перечень блюд'!G:G,MATCH(F$78,'Перечень блюд'!H:H,)),'Состав блюд'!P:P,)+ROW(O2)),"") -> Гречка | N86: г | P86: =IF(AND($F$78<>"",INDEX('Состав блюд'!M:M,MATCH(INDEX('Перечень блюд'!G:G,MATCH(F$78,'Перечень блюд'!H:H,)),'Состав блюд'!P:P,)+ROW(O2))=ROW(O1)),INDEX('Состав блюд'!O:O,MATCH(INDEX('Перечень блюд'!G:G,MATCH(F$78,'Перечень блюд'!H:H,)),'Состав блюд'!P:P,)+ROW(O2)),"") -> 100 | U86: 0.1 | W86: =IFERROR(P86*U86,"") -> 10
F87: 2 | G87: =IF(AND($F$78<>"",INDEX('Состав блюд'!M:M,MATCH(INDEX('Перечень блюд'!G:G,MATCH(F$78,'Перечень блюд'!H:H,)),'Состав блюд'!P:P,)+ROW(O3))=ROW(O2)),INDEX('Состав блюд'!N:N,MATCH(INDEX('Перечень блюд'!G:G,MATCH(F$78,'Перечень блюд'!H:H,)),'Состав блюд'!P:P,)+ROW(O3)),"") -> Соль | N87: г | P87: =IF(AND($F$78<>"",INDEX('Состав блюд'!M:M,MATCH(INDEX('Перечень блюд'!G:G,MATCH(F$78,'Перечень блюд'!H:H,)),'Состав блюд'!P:P,)+ROW(O3))=ROW(O2)),INDEX('Состав блюд'!O:O,MATCH(INDEX('Перечень блюд'!G:G,MATCH(F$78,'Перечень блюд'!H:H,)),'Состав блюд'!P:P,)+ROW(O3)),"") -> 32 | U87: 0.1 | W87: =IFERROR(P87*U87,"") -> 3.2
F88: 3 | G88: =IF(AND($F$78<>"",INDEX('Состав блюд'!M:M,MATCH(INDEX('Перечень блюд'!G:G,MATCH(F$78,'Перечень блюд'!H:H,)),'Состав блюд'!P:P,)+ROW(O4))=ROW(O3)),INDEX('Состав блюд'!N:N,MATCH(INDEX('Перечень блюд'!G:G,MATCH(F$78,'Перечень блюд'!H:H,)),'Состав блюд'!P:P,)+ROW(O4)),"") -> Масло сливочное | N88: г | P88: =IF(AND($F$78<>"",INDEX('Состав блюд'!M:M,MATCH(INDEX('Перечень блюд'!G:G,MATCH(F$78,'Перечень блюд'!H:H,)),'Состав блюд'!P:P,)+ROW(O4))=ROW(O3)),INDEX('Состав блюд'!O:O,MATCH(INDEX('Перечень блюд'!G:G,MATCH(F$78,'Перечень блюд'!H:H,)),'Состав блюд'!P:P,)+ROW(O4)),"") -> 5 | U88: 0.1 | W88: 0.5
F89: 4 | G89: =IF(AND($F$78<>"",INDEX('Состав блюд'!M:M,MATCH(INDEX('Перечень блюд'!G:G,MATCH(F$78,'Перечень блюд'!H:H,)),'Состав блюд'!P:P,)+ROW(O5))=ROW(O4)),INDEX('Состав блюд'!N:N,MATCH(INDEX('Перечень блюд'!G:G,MATCH(F$78,'Перечень блюд'!H:H,)),'Состав блюд'!P:P,)+ROW(O5)),"") -> 0 | N89: г | P89: =IF(AND($F$78<>"",INDEX('Состав блюд'!M:M,MATCH(INDEX('Перечень блюд'!G:G,MATCH(F$78,'Перечень блюд'!H:H,)),'Состав блюд'!P:P,)+ROW(O5))=ROW(O4)),INDEX('Состав блюд'!O:O,MATCH(INDEX('Перечень блюд'!G:G,MATCH(F$78,'Перечень блюд'!H:H,)),'Состав блюд'!P:P,)+ROW(O5)),"") -> 0 | W89: 0
F90: 5 | G90: =IF(AND($F$78<>"",INDEX('Состав блюд'!M:M,MATCH(INDEX('Перечень блюд'!G:G,MATCH(F$78,'Перечень блюд'!H:H,)),'Состав блюд'!P:P,)+ROW(O6))=ROW(O5)),INDEX('Состав блюд'!N:N,MATCH(INDEX('Перечень блюд'!G:G,MATCH(F$78,'Перечень блюд'!H:H,)),'Состав блюд'!P:P,)+ROW(O6)),"") -> 0 | N90: г | P90: =IF(AND($F$78<>"",INDEX('Состав блюд'!M:M,MATCH(INDEX('Перечень блюд'!G:G,MATCH(F$78,'Перечень блюд'!H:H,)),'Состав блюд'!P:P,)+ROW(O6))=ROW(O5)),INDEX('Состав блюд'!O:O,MATCH(INDEX('Перечень блюд'!G:G,MATCH(F$78,'Перечень блюд'!H:H,)),'Состав блюд'!P:P,)+ROW(O6)),"") -> 0 | W90: 0
F91: 6 | G91: =IF(AND($F$78<>"",INDEX('Состав блюд'!M:M,MATCH(INDEX('Перечень блюд'!G:G,MATCH(F$78,'Перечень блюд'!H:H,)),'Состав блюд'!P:P,)+ROW(O7))=ROW(O6)),INDEX('Состав блюд'!N:N,MATCH(INDEX('Перечень блюд'!G:G,MATCH(F$78,'Перечень блюд'!H:H,)),'Состав блюд'!P:P,)+ROW(O7)),"") -> 0 | N91: г | P91: =IF(AND($F$78<>"",INDEX('Состав блюд'!M:M,MATCH(INDEX('Перечень блюд'!G:G,MATCH(F$78,'Перечень блюд'!H:H,)),'Состав блюд'!P:P,)+ROW(O7))=ROW(O6)),INDEX('Состав блюд'!O:O,MATCH(INDEX('Перечень блюд'!G:G,MATCH(F$78,'Перечень блюд'!H:H,)),'Состав блюд'!P:P,)+ROW(O7)),"") -> 0 | W91: 0
F92: 7 | G92: =IF(AND($F$78<>"",INDEX('Состав блюд'!M:M,MATCH(INDEX('Перечень блюд'!G:G,MATCH(F$78,'Перечень блюд'!H:H,)),'Состав блюд'!P:P,)+ROW(O8))=ROW(O7)),INDEX('Состав блюд'!N:N,MATCH(INDEX('Перечень блюд'!G:G,MATCH(F$78,'Перечень блюд'!H:H,)),'Состав блюд'!P:P,)+ROW(O8)),"") -> 0 | N92: г | P92: =IF(AND($F$78<>"",INDEX('Состав блюд'!M:M,MATCH(INDEX('Перечень блюд'!G:G,MATCH(F$78,'Перечень блюд'!H:H,)),'Состав блюд'!P:P,)+ROW(O8))=ROW(O7)),INDEX('Состав блюд'!O:O,MATCH(INDEX('Перечень блюд'!G:G,MATCH(F$78,'Перечень блюд'!H:H,)),'Состав блюд'!P:P,)+ROW(O8)),"") -> 0 | W92: 0
F93: 8 | G93: =IF(AND($F$78<>"",INDEX('Состав блюд'!M:M,MATCH(INDEX('Перечень блюд'!G:G,MATCH(F$78,'Перечень блюд'!H:H,)),'Состав блюд'!P:P,)+ROW(O9))=ROW(O8)),INDEX('Состав блюд'!N:N,MATCH(INDEX('Перечень блюд'!G:G,MATCH(F$78,'Перечень блюд'!H:H,)),'Состав блюд'!P:P,)+ROW(O9)),"") -> 0 | N93: г | P93: =IF(AND($F$78<>"",INDEX('Состав блюд'!M:M,MATCH(INDEX('Перечень блюд'!G:G,MATCH(F$78,'Перечень блюд'!H:H,)),'Состав блюд'!P:P,)+ROW(O9))=ROW(O8)),INDEX('Состав блюд'!O:O,MATCH(INDEX('Перечень блюд'!G:G,MATCH(F$78,'Перечень блюд'!H:H,)),'Состав блюд'!P:P,)+ROW(O9)),"") -> 0 | W93: 0
F94: 9 | G94: =IF(AND($F$78<>"",INDEX('Состав блюд'!M:M,MATCH(INDEX('Перечень блюд'!G:G,MATCH(F$78,'Перечень блюд'!H:H,)),'Состав блюд'!P:P,)+ROW(O10))=ROW(O9)),INDEX('Состав блюд'!N:N,MATCH(INDEX('Перечень блюд'!G:G,MATCH(F$78,'Перечень блюд'!H:H,)),'Состав блюд'!P:P,)+ROW(O10)),"") -> 0 | N94: г | P94: =IF(AND($F$78<>"",INDEX('Состав блюд'!M:M,MATCH(INDEX('Перечень блюд'!G:G,MATCH(F$78,'Перечень блюд'!H:H,)),'Состав блюд'!P:P,)+ROW(O10))=ROW(O9)),INDEX('Состав блюд'!O:O,MATCH(INDEX('Перечень блюд'!G:G,MATCH(F$78,'Перечень блюд'!H:H,)),'Состав блюд'!P:P,)+ROW(O10)),"") -> 0 | W94: 0
F95: 10 | G95: =IF(AND($F$78<>"",INDEX('Состав блюд'!M:M,MATCH(INDEX('Перечень блюд'!G:G,MATCH(F$78,'Перечень блюд'!H:H,)),'Состав блюд'!P:P,)+ROW(O11))=ROW(O10)),INDEX('Состав блюд'!N:N,MATCH(INDEX('Перечень блюд'!G:G,MATCH(F$78,'Перечень блюд'!H:H,)),'Состав блюд'!P:P,)+ROW(O11)),"") -> 0 | N95: г | P95: =IF(AND($F$78<>"",INDEX('Состав блюд'!M:M,MATCH(INDEX('Перечень блюд'!G:G,MATCH(F$78,'Перечень блюд'!H:H,)),'Состав блюд'!P:P,)+ROW(O11))=ROW(O10)),INDEX('Состав блюд'!O:O,MATCH(INDEX('Перечень блюд'!G:G,MATCH(F$78,'Перечень блюд'!H:H,)),'Состав блюд'!P:P,)+ROW(O11)),"") -> 0 | W95: 0
F96: 11 | G96: =IF(AND($F$78<>"",INDEX('Состав блюд'!M:M,MATCH(INDEX('Перечень блюд'!G:G,MATCH(F$78,'Перечень блюд'!H:H,)),'Состав блюд'!P:P,)+ROW(O12))=ROW(O11)),INDEX('Состав блюд'!N:N,MATCH(INDEX('Перечень блюд'!G:G,MATCH(F$78,'Перечень блюд'!H:H,)),'Состав блюд'!P:P,)+ROW(O12)),"") -> 0 | N96: г | P96: =IF(AND($F$78<>"",INDEX('Состав блюд'!M:M,MATCH(INDEX('Перечень блюд'!G:G,MATCH(F$78,'Перечень блюд'!H:H,)),'Состав блюд'!P:P,)+ROW(O12))=ROW(O11)),INDEX('Состав блюд'!O:O,MATCH(INDEX('Перечень блюд'!G:G,MATCH(F$78,'Перечень блюд'!H:H,)),'Состав блюд'!P:P,)+ROW(O12)),"") -> 0 | W96: 0
F97: 12 | G97: =IF(AND($F$78<>"",INDEX('Состав блюд'!M:M,MATCH(INDEX('Перечень блюд'!G:G,MATCH(F$78,'Перечень блюд'!H:H,)),'Состав блюд'!P:P,)+ROW(O13))=ROW(O12)),INDEX('Состав блюд'!N:N,MATCH(INDEX('Перечень блюд'!G:G,MATCH(F$78,'Перечень блюд'!H:H,)),'Состав блюд'!P:P,)+ROW(O13)),"") -> 0 | N97: г | P97: =IF(AND($F$78<>"",INDEX('Состав блюд'!M:M,MATCH(INDEX('Перечень блюд'!G:G,MATCH(F$78,'Перечень блюд'!H:H,)),'Состав блюд'!P:P,)+ROW(O13))=ROW(O12)),INDEX('Состав блюд'!O:O,MATCH(INDEX('Перечень блюд'!G:G,MATCH(F$78,'Перечень блюд'!H:H,)),'Состав блюд'!P:P,)+ROW(O13)),"") -> 0 | W97: 0
F98: 13 | G98: =IF(AND($F$78<>"",INDEX('Состав блюд'!M:M,MATCH(INDEX('Перечень блюд'!G:G,MATCH(F$78,'Перечень блюд'!H:H,)),'Состав блюд'!P:P,)+ROW(O14))=ROW(O13)),INDEX('Состав блюд'!N:N,MATCH(INDEX('Перечень блюд'!G:G,MATCH(F$78,'Перечень блюд'!H:H,)),'Состав блюд'!P:P,)+ROW(O14)),"") ->  | N98: г | P98: =IF(AND($F$78<>"",INDEX('Состав блюд'!M:M,MATCH(INDEX('Перечень блюд'!G:G,MATCH(F$78,'Перечень блюд'!H:H,)),'Состав блюд'!P:P,)+ROW(O14))=ROW(O13)),INDEX('Состав блюд'!O:O,MATCH(INDEX('Перечень блюд'!G:G,MATCH(F$78,'Перечень блюд'!H:H,)),'Состав блюд'!P:P,)+ROW(O14)),"") -> 
F99: Cтоимость сырьевого набора, руб | K99: =SUM(W86:X98) -> 13.7 | O99: Подписи
F100: Cтоимость сырьевого набора на | I100: =$AB$6 -> 100 | J100: блюд, руб | K100: =I100*K99 -> 1370 | O100: Начальник производства: Бритов М.А.
F101: Выход 1 блюда, грамм | K101: 350 | O101: Бухгалтер: Осипова Е.А.
F102: Утверждаю | H102: Исполнительный директор: Шехватов А.В. __________
M104: Унифицированная форма № ОП-1 Утверждена постановлением Госкомстата России от 25.12.98 № 132
V106: Код
Q107: Форма по ОКУД | V107: 330501
F108: ООО | T108: по ОКПО
F109: "Сервис-М"
F110: структурное подразделение | M110: Вид деятельности по ОКДП
F112: Салат "Оливье"
F113: наименование салата (изделия) | J113: Номер блюда по сборнику рецептур, ТТК, СТП | V113: ТТК №8
R114: Вид операции
L116: Номер документа | S116: Дата составления
G117: КАЛЬКУЛЯЦИОННАЯ КАРТОЧКА | L117: 4 | S117: =DATE($AB$4,$AB$3,$AB$2) -> 2022-09-11
F119: № | G119: Продукты | N119: Ед. | P119: Норма на порцию | U119: Цена закупки, руб | W119: Сумма, руб
F120: 1 | G120: =IF(AND($F$112<>"",INDEX('Состав блюд'!S:S,MATCH(INDEX('Перечень блюд'!J:J,MATCH(F$112,'Перечень блюд'!K:K,)),'Состав блюд'!V:V,)+ROW(T2))=ROW(T1)),INDEX('Состав блюд'!T:T,MATCH(INDEX('Перечень блюд'!J:J,MATCH(F$112,'Перечень блюд'!K:K,)),'Состав блюд'!V:V,)+ROW(T2)),"") -> Колбаса "Докторская" | N120: г | P120: =IF(AND($F$112<>"",INDEX('Состав блюд'!S:S,MATCH(INDEX('Перечень блюд'!J:J,MATCH(F$112,'Перечень блюд'!K:K,)),'Состав блюд'!V:V,)+ROW(T2))=ROW(T1)),INDEX('Состав блюд'!U:U,MATCH(INDEX('Перечень блюд'!J:J,MATCH(F$112,'Перечень блюд'!K:K,)),'Состав блюд'!V:V,)+ROW(T2)),"") -> 40 | U120: 0.1 | W120: =IFERROR(P120*U120,"") -> 4
F121: 2 | G121: =IF(AND($F$112<>"",INDEX('Состав блюд'!S:S,MATCH(INDEX('Перечень блюд'!J:J,MATCH(F$112,'Перечень блюд'!K:K,)),'Состав блюд'!V:V,)+ROW(T3))=ROW(T2)),INDEX('Состав блюд'!T:T,MATCH(INDEX('Перечень блюд'!J:J,MATCH(F$112,'Перечень блюд'!K:K,)),'Состав блюд'!V:V,)+ROW(T3)),"") -> Картофель | N121: г | P121: =IF(AND($F$112<>"",INDEX('Состав блюд'!S:S,MATCH(INDEX('Перечень блюд'!J:J,MATCH(F$112,'Перечень блюд'!K:K,)),'Состав блюд'!V:V,)+ROW(T3))=ROW(T2)),INDEX('Состав блюд'!U:U,MATCH(INDEX('Перечень блюд'!J:J,MATCH(F$112,'Перечень блюд'!K:K,)),'Состав блюд'!V:V,)+ROW(T3)),"") -> 10 | U121: 0.1 | W121: =IFERROR(P121*U121,"") -> 1
F122: 3 | G122: =IF(AND($F$112<>"",INDEX('Состав блюд'!S:S,MATCH(INDEX('Перечень блюд'!J:J,MATCH(F$112,'Перечень блюд'!K:K,)),'Состав блюд'!V:V,)+ROW(T4))=ROW(T3)),INDEX('Состав блюд'!T:T,MATCH(INDEX('Перечень блюд'!J:J,MATCH(F$112,'Перечень блюд'!K:K,)),'Состав блюд'!V:V,)+ROW(T4)),"") -> Морковь | N122: г | P122: =IF(AND($F$112<>"",INDEX('Состав блюд'!S:S,MATCH(INDEX('Перечень блюд'!J:J,MATCH(F$112,'Перечень блюд'!K:K,)),'Состав блюд'!V:V,)+ROW(T4))=ROW(T3)),INDEX('Состав блюд'!U:U,MATCH(INDEX('Перечень блюд'!J:J,MATCH(F$112,'Перечень блюд'!K:K,)),'Состав блюд'!V:V,)+ROW(T4)),"") -> 30 | U122: 0.1 | W122: 3
F123: 4 | G123: =IF(AND($F$112<>"",INDEX('Состав блюд'!S:S,MATCH(INDEX('Перечень блюд'!J:J,MATCH(F$112,'Перечень блюд'!K:K,)),'Состав блюд'!V:V,)+ROW(T5))=ROW(T4)),INDEX('Состав блюд'!T:T,MATCH(INDEX('Перечень блюд'!J:J,MATCH(F$112,'Перечень блюд'!K:K,)),'Состав блюд'!V:V,)+ROW(T5)),"") -> Яйца куриные | N123: г | P123: =IF(AND($F$112<>"",INDEX('Состав блюд'!S:S,MATCH(INDEX('Перечень блюд'!J:J,MATCH(F$112,'Перечень блюд'!K:K,)),'Состав блюд'!V:V,)+ROW(T5))=ROW(T4)),INDEX('Состав блюд'!U:U,MATCH(INDEX('Перечень блюд'!J:J,MATCH(F$112,'Перечень блюд'!K:K,)),'Состав блюд'!V:V,)+ROW(T5)),"") -> 32 | U123: 0.1 | W123: 3.2
F124: 5 | G124: =IF(AND($F$112<>"",INDEX('Состав блюд'!S:S,MATCH(INDEX('Перечень блюд'!J:J,MATCH(F$112,'Перечень блюд'!K:K,)),'Состав блюд'!V:V,)+ROW(T6))=ROW(T5)),INDEX('Состав блюд'!T:T,MATCH(INDEX('Перечень блюд'!J:J,MATCH(F$112,'Перечень блюд'!K:K,)),'Состав блюд'!V:V,)+ROW(T6)),"") -> Майонез | N124: г | P124: =IF(AND($F$112<>"",INDEX('Состав блюд'!S:S,MATCH(INDEX('Перечень блюд'!J:J,MATCH(F$112,'Перечень блюд'!K:K,)),'Состав блюд'!V:V,)+ROW(T6))=ROW(T5)),INDEX('Состав блюд'!U:U,MATCH(INDEX('Перечень блюд'!J:J,MATCH(F$112,'Перечень блюд'!K:K,)),'Состав блюд'!V:V,)+ROW(T6)),"") -> 5 | U124: 0.1 | W124: 0.5
F125: 6 | G125: =IF(AND($F$112<>"",INDEX('Состав блюд'!S:S,MATCH(INDEX('Перечень блюд'!J:J,MATCH(F$112,'Перечень блюд'!K:K,)),'Состав блюд'!V:V,)+ROW(T7))=ROW(T6)),INDEX('Состав блюд'!T:T,MATCH(INDEX('Перечень блюд'!J:J,MATCH(F$112,'Перечень блюд'!K:K,)),'Состав блюд'!V:V,)+ROW(T7)),"") -> 0 | N125: г | P125: =IF(AND($F$112<>"",INDEX('Состав блюд'!S:S,MATCH(INDEX('Перечень блюд'!J:J,MATCH(F$112,'Перечень блюд'!K:K,)),'Состав блюд'!V:V,)+ROW(T7))=ROW(T6)),INDEX('Состав блюд'!U:U,MATCH(INDEX('Перечень блюд'!J:J,MATCH(F$112,'Перечень блюд'!K:K,)),'Состав блюд'!V:V,)+ROW(T7)),"") -> 26 | U125: 0.1 | W125: 2.6
F126: 7 | G126: =IF(AND($F$112<>"",INDEX('Состав блюд'!S:S,MATCH(INDEX('Перечень блюд'!J:J,MATCH(F$112,'Перечень блюд'!K:K,)),'Состав блюд'!V:V,)+ROW(T8))=ROW(T7)),INDEX('Состав блюд'!T:T,MATCH(INDEX('Перечень блюд'!J:J,MATCH(F$112,'Перечень блюд'!K:K,)),'Состав блюд'!V:V,)+ROW(T8)),"") -> 0 | N126: г | P126: =IF(AND($F$112<>"",INDEX('Состав блюд'!S:S,MATCH(INDEX('Перечень блюд'!J:J,MATCH(F$112,'Перечень блюд'!K:K,)),'Состав блюд'!V:V,)+ROW(T8))=ROW(T7)),INDEX('Состав блюд'!U:U,MATCH(INDEX('Перечень блюд'!J:J,MATCH(F$112,'Перечень блюд'!K:K,)),'Состав блюд'!V:V,)+ROW(T8)),"") -> 10 | W126: 0
F127: 8 | G127: =IF(AND($F$112<>"",INDEX('Состав блюд'!S:S,MATCH(INDEX('Перечень блюд'!J:J,MATCH(F$112,'Перечень блюд'!K:K,)),'Состав блюд'!V:V,)+ROW(T9))=ROW(T8)),INDEX('Состав блюд'!T:T,MATCH(INDEX('Перечень блюд'!J:J,MATCH(F$112,'Перечень блюд'!K:K,)),'Состав блюд'!V:V,)+ROW(T9)),"") -> 0 | N127: г | P127: =IF(AND($F$112<>"",INDEX('Состав блюд'!S:S,MATCH(INDEX('Перечень блюд'!J:J,MATCH(F$112,'Перечень блюд'!K:K,)),'Состав блюд'!V:V,)+ROW(T9))=ROW(T8)),INDEX('Состав блюд'!U:U,MATCH(INDEX('Перечень блюд'!J:J,MATCH(F$112,'Перечень блюд'!K:K,)),'Состав блюд'!V:V,)+ROW(T9)),"") -> 10 | W127: 0
F128: 9 | G128: =IF(AND($F$112<>"",INDEX('Состав блюд'!S:S,MATCH(INDEX('Перечень блюд'!J:J,MATCH(F$112,'Перечень блюд'!K:K,)),'Состав блюд'!V:V,)+ROW(T10))=ROW(T9)),INDEX('Состав блюд'!T:T,MATCH(INDEX('Перечень блюд'!J:J,MATCH(F$112,'Перечень блюд'!K:K,)),'Состав блюд'!V:V,)+ROW(T10)),"") -> 0 | N128: г | P128: =IF(AND($F$112<>"",INDEX('Состав блюд'!S:S,MATCH(INDEX('Перечень блюд'!J:J,MATCH(F$112,'Перечень блюд'!K:K,)),'Состав блюд'!V:V,)+ROW(T10))=ROW(T9)),INDEX('Состав блюд'!U:U,MATCH(INDEX('Перечень блюд'!J:J,MATCH(F$112,'Перечень блюд'!K:K,)),'Состав блюд'!V:V,)+ROW(T10)),"") -> 0 | W128: 0
F129: 10 | G129: =IF(AND($F$112<>"",INDEX('Состав блюд'!S:S,MATCH(INDEX('Перечень блюд'!J:J,MATCH(F$112,'Перечень блюд'!K:K,)),'Состав блюд'!V:V,)+ROW(T11))=ROW(T10)),INDEX('Состав блюд'!T:T,MATCH(INDEX('Перечень блюд'!J:J,MATCH(F$112,'Перечень блюд'!K:K,)),'Состав блюд'!V:V,)+ROW(T11)),"") -> 0 | N129: г | P129: =IF(AND($F$112<>"",INDEX('Состав блюд'!S:S,MATCH(INDEX('Перечень блюд'!J:J,MATCH(F$112,'Перечень блюд'!K:K,)),'Состав блюд'!V:V,)+ROW(T11))=ROW(T10)),INDEX('Состав блюд'!U:U,MATCH(INDEX('Перечень блюд'!J:J,MATCH(F$112,'Перечень блюд'!K:K,)),'Состав блюд'!V:V,)+ROW(T11)),"") -> 0 | W129: 0
F130: 11 | G130: =IF(AND($F$112<>"",INDEX('Состав блюд'!S:S,MATCH(INDEX('Перечень блюд'!J:J,MATCH(F$112,'Перечень блюд'!K:K,)),'Состав блюд'!V:V,)+ROW(T12))=ROW(T11)),INDEX('Состав блюд'!T:T,MATCH(INDEX('Перечень блюд'!J:J,MATCH(F$112,'Перечень блюд'!K:K,)),'Состав блюд'!V:V,)+ROW(T12)),"") -> 0 | N130: г | P130: =IF(AND($F$112<>"",INDEX('Состав блюд'!S:S,MATCH(INDEX('Перечень блюд'!J:J,MATCH(F$112,'Перечень блюд'!K:K,)),'Состав блюд'!V:V,)+ROW(T12))=ROW(T11)),INDEX('Состав блюд'!U:U,MATCH(INDEX('Перечень блюд'!J:J,MATCH(F$112,'Перечень блюд'!K:K,)),'Состав блюд'!V:V,)+ROW(T12)),"") -> 0 | W130: 0
F131: 12 | G131: =IF(AND($F$112<>"",INDEX('Состав блюд'!S:S,MATCH(INDEX('Перечень блюд'!J:J,MATCH(F$112,'Перечень блюд'!K:K,)),'Состав блюд'!V:V,)+ROW(T13))=ROW(T12)),INDEX('Состав блюд'!T:T,MATCH(INDEX('Перечень блюд'!J:J,MATCH(F$112,'Перечень блюд'!K:K,)),'Состав блюд'!V:V,)+ROW(T13)),"") -> 0 | N131: г | P131: =IF(AND($F$112<>"",INDEX('Состав блюд'!S:S,MATCH(INDEX('Перечень блюд'!J:J,MATCH(F$112,'Перечень блюд'!K:K,)),'Состав блюд'!V:V,)+ROW(T13))=ROW(T12)),INDEX('Состав блюд'!U:U,MATCH(INDEX('Перечень блюд'!J:J,MATCH(F$112,'Перечень блюд'!K:K,)),'Состав блюд'!V:V,)+ROW(T13)),"") -> 0 | W131: 0
F132: 13 | G132: =IF(AND($F$112<>"",INDEX('Состав блюд'!S:S,MATCH(INDEX('Перечень блюд'!J:J,MATCH(F$112,'Перечень блюд'!K:K,)),'Состав блюд'!V:V,)+ROW(T14))=ROW(T13)),INDEX('Состав блюд'!T:T,MATCH(INDEX('Перечень блюд'!J:J,MATCH(F$112,'Перечень блюд'!K:K,)),'Состав блюд'!V:V,)+ROW(T14)),"") -> 0 | N132: г | P132: =IF(AND($F$112<>"",INDEX('Состав блюд'!S:S,MATCH(INDEX('Перечень блюд'!J:J,MATCH(F$112,'Перечень блюд'!K:K,)),'Состав блюд'!V:V,)+ROW(T14))=ROW(T13)),INDEX('Состав блюд'!U:U,MATCH(INDEX('Перечень блюд'!J:J,MATCH(F$112,'Перечень блюд'!K:K,)),'Состав блюд'!V:V,)+ROW(T14)),"") -> 0 | W132: 0
F133: Cтоимость сырьевого набора, руб | K133: =SUM(W120:X132) -> 14.3 | O133: Подписи
F134: Cтоимость сырьевого набора на | I134: =$AB$6 -> 100 | J134: блюд, руб | K134: =I134*K133 -> 1430 | O134: Начальник производства: Бритов М.А.
F135: Выход 1 блюда, грамм | K135: 350 | O135: Бухгалтер: Осипова Е.А.
F136: Утверждаю | H136: Исполнительный директор: Шехватов А.В. __________
M139: Унифицированная форма № ОП-1 Утверждена постановлением Госкомстата России от 25.12.98 № 132
V141: Код
Q142: Форма по ОКУД | V142: 330501
F143: ООО | T143: по ОКПО
F144: "Сервис-М"
F145: структурное подразделение | M145: Вид деятельности по ОКДП
F147: Чай
F148: наименование напитка (изделия) | J148: Номер блюда по сборнику рецептур, ТТК, СТП | V148: ТТК №8
R149: Вид операции
L151: Номер документа | S151: Дата составления
G152: КАЛЬКУЛЯЦИОННАЯ КАРТОЧКА | L152: 5 | S152: =DATE($AB$4,$AB$3,$AB$2) -> 2022-09-11
F154: № | G154: Продукты | N154: Ед. | P154: Норма на порцию | U154: Цена закупки, руб | W154: Сумма, руб
F155: 1 | G155: =IF(AND($F$147<>"",INDEX('Состав блюд'!Y:Y,MATCH(INDEX('Перечень блюд'!M:M,MATCH(F$147,'Перечень блюд'!N:N,)),'Состав блюд'!AB:AB,)+ROW(X2))=ROW(X1)),INDEX('Состав блюд'!Z:Z,MATCH(INDEX('Перечень блюд'!M:M,MATCH(F$147,'Перечень блюд'!N:N,)),'Состав блюд'!AB:AB,)+ROW(X2)),"") -> Чай | N155: г | P155: =IF(AND($F$147<>"",INDEX('Состав блюд'!Y:Y,MATCH(INDEX('Перечень блюд'!M:M,MATCH(F$147,'Перечень блюд'!N:N,)),'Состав блюд'!AB:AB,)+ROW(X2))=ROW(X1)),INDEX('Состав блюд'!AA:AA,MATCH(INDEX('Перечень блюд'!M:M,MATCH(F$147,'Перечень блюд'!N:N,)),'Состав блюд'!AB:AB,)+ROW(X2)),"") -> 40 | U155: 0.1 | W155: =IFERROR(P155*U155,"") -> 4
F156: 2 | G156: =IF(AND($F$147<>"",INDEX('Состав блюд'!Y:Y,MATCH(INDEX('Перечень блюд'!M:M,MATCH(F$147,'Перечень блюд'!N:N,)),'Состав блюд'!AB:AB,)+ROW(X3))=ROW(X2)),INDEX('Состав блюд'!Z:Z,MATCH(INDEX('Перечень блюд'!M:M,MATCH(F$147,'Перечень блюд'!N:N,)),'Состав блюд'!AB:AB,)+ROW(X3)),"") -> Сахар | N156: г | P156: =IF(AND($F$147<>"",INDEX('Состав блюд'!Y:Y,MATCH(INDEX('Перечень блюд'!M:M,MATCH(F$147,'Перечень блюд'!N:N,)),'Состав блюд'!AB:AB,)+ROW(X3))=ROW(X2)),INDEX('Состав блюд'!AA:AA,MATCH(INDEX('Перечень блюд'!M:M,MATCH(F$147,'Перечень блюд'!N:N,)),'Состав блюд'!AB:AB,)+ROW(X3)),"") -> 10 | U156: 0.1 | W156: =IFERROR(P156*U156,"") -> 1
F157: 3 | G157: =IF(AND($F$147<>"",INDEX('Состав блюд'!Y:Y,MATCH(INDEX('Перечень блюд'!M:M,MATCH(F$147,'Перечень блюд'!N:N,)),'Состав блюд'!AB:AB,)+ROW(X4))=ROW(X3)),INDEX('Состав блюд'!Z:Z,MATCH(INDEX('Перечень блюд'!M:M,MATCH(F$147,'Перечень блюд'!N:N,)),'Состав блюд'!AB:AB,)+ROW(X4)),"") -> 0 | N157: г | P157: =IF(AND($F$147<>"",INDEX('Состав блюд'!Y:Y,MATCH(INDEX('Перечень блюд'!M:M,MATCH(F$147,'Перечень блюд'!N:N,)),'Состав блюд'!AB:AB,)+ROW(X4))=ROW(X3)),INDEX('Состав блюд'!AA:AA,MATCH(INDEX('Перечень блюд'!M:M,MATCH(F$147,'Перечень блюд'!N:N,)),'Состав блюд'!AB:AB,)+ROW(X4)),"") -> 0 | W157: 0
F158: 4 | G158: =IF(AND($F$147<>"",INDEX('Состав блюд'!Y:Y,MATCH(INDEX('Перечень блюд'!M:M,MATCH(F$147,'Перечень блюд'!N:N,)),'Состав блюд'!AB:AB,)+ROW(X5))=ROW(X4)),INDEX('Состав блюд'!Z:Z,MATCH(INDEX('Перечень блюд'!M:M,MATCH(F$147,'Перечень блюд'!N:N,)),'Состав блюд'!AB:AB,)+ROW(X5)),"") -> 0 | N158: г | P158: =IF(AND($F$147<>"",INDEX('Состав блюд'!Y:Y,MATCH(INDEX('Перечень блюд'!M:M,MATCH(F$147,'Перечень блюд'!N:N,)),'Состав блюд'!AB:AB,)+ROW(X5))=ROW(X4)),INDEX('Состав блюд'!AA:AA,MATCH(INDEX('Перечень блюд'!M:M,MATCH(F$147,'Перечень блюд'!N:N,)),'Состав блюд'!AB:AB,)+ROW(X5)),"") -> 0 | W158: 0
F159: 5 | G159: =IF(AND($F$147<>"",INDEX('Состав блюд'!Y:Y,MATCH(INDEX('Перечень блюд'!M:M,MATCH(F$147,'Перечень блюд'!N:N,)),'Состав блюд'!AB:AB,)+ROW(X6))=ROW(X5)),INDEX('Состав блюд'!Z:Z,MATCH(INDEX('Перечень блюд'!M:M,MATCH(F$147,'Перечень блюд'!N:N,)),'Состав блюд'!AB:AB,)+ROW(X6)),"") -> 0 | N159: г | P159: =IF(AND($F$147<>"",INDEX('Состав блюд'!Y:Y,MATCH(INDEX('Перечень блюд'!M:M,MATCH(F$147,'Перечень блюд'!N:N,)),'Состав блюд'!AB:AB,)+ROW(X6))=ROW(X5)),INDEX('Состав блюд'!AA:AA,MATCH(INDEX('Перечень блюд'!M:M,MATCH(F$147,'Перечень блюд'!N:N,)),'Состав блюд'!AB:AB,)+ROW(X6)),"") -> 0 | W159: 0
F160: 6 | G160: =IF(AND($F$147<>"",INDEX('Состав блюд'!Y:Y,MATCH(INDEX('Перечень блюд'!M:M,MATCH(F$147,'Перечень блюд'!N:N,)),'Состав блюд'!AB:AB,)+ROW(X7))=ROW(X6)),INDEX('Состав блюд'!Z:Z,MATCH(INDEX('Перечень блюд'!M:M,MATCH(F$147,'Перечень блюд'!N:N,)),'Состав блюд'!AB:AB,)+ROW(X7)),"") -> 0 | N160: г | P160: =IF(AND($F$147<>"",INDEX('Состав блюд'!Y:Y,MATCH(INDEX('Перечень блюд'!M:M,MATCH(F$147,'Перечень блюд'!N:N,)),'Состав блюд'!AB:AB,)+ROW(X7))=ROW(X6)),INDEX('Состав блюд'!AA:AA,MATCH(INDEX('Перечень блюд'!M:M,MATCH(F$147,'Перечень блюд'!N:N,)),'Состав блюд'!AB:AB,)+ROW(X7)),"") -> 0 | W160: 0
F161: 7 | G161: =IF(AND($F$147<>"",INDEX('Состав блюд'!Y:Y,MATCH(INDEX('Перечень блюд'!M:M,MATCH(F$147,'Перечень блюд'!N:N,)),'Состав блюд'!AB:AB,)+ROW(X8))=ROW(X7)),INDEX('Состав блюд'!Z:Z,MATCH(INDEX('Перечень блюд'!M:M,MATCH(F$147,'Перечень блюд'!N:N,)),'Состав блюд'!AB:AB,)+ROW(X8)),"") -> 0 | N161: г | P161: =IF(AND($F$147<>"",INDEX('Состав блюд'!Y:Y,MATCH(INDEX('Перечень блюд'!M:M,MATCH(F$147,'Перечень блюд'!N:N,)),'Состав блюд'!AB:AB,)+ROW(X8))=ROW(X7)),INDEX('Состав блюд'!AA:AA,MATCH(INDEX('Перечень блюд'!M:M,MATCH(F$147,'Перечень блюд'!N:N,)),'Состав блюд'!AB:AB,)+ROW(X8)),"") -> 0 | W161: 0
F162: 8 | G162: =IF(AND($F$147<>"",INDEX('Состав блюд'!Y:Y,MATCH(INDEX('Перечень блюд'!M:M,MATCH(F$147,'Перечень блюд'!N:N,)),'Состав блюд'!AB:AB,)+ROW(X9))=ROW(X8)),INDEX('Состав блюд'!Z:Z,MATCH(INDEX('Перечень блюд'!M:M,MATCH(F$147,'Перечень блюд'!N:N,)),'Состав блюд'!AB:AB,)+ROW(X9)),"") -> 0 | N162: г | P162: =IF(AND($F$147<>"",INDEX('Состав блюд'!Y:Y,MATCH(INDEX('Перечень блюд'!M:M,MATCH(F$147,'Перечень блюд'!N:N,)),'Состав блюд'!AB:AB,)+ROW(X9))=ROW(X8)),INDEX('Состав блюд'!AA:AA,MATCH(INDEX('Перечень блюд'!M:M,MATCH(F$147,'Перечень блюд'!N:N,)),'Состав блюд'!AB:AB,)+ROW(X9)),"") -> 0 | W162: 0
F163: 9 | G163: =IF(AND($F$147<>"",INDEX('Состав блюд'!Y:Y,MATCH(INDEX('Перечень блюд'!M:M,MATCH(F$147,'Перечень блюд'!N:N,)),'Состав блюд'!AB:AB,)+ROW(X10))=ROW(X9)),INDEX('Состав блюд'!Z:Z,MATCH(INDEX('Перечень блюд'!M:M,MATCH(F$147,'Перечень блюд'!N:N,)),'Состав блюд'!AB:AB,)+ROW(X10)),"") -> 0 | N163: г | P163: =IF(AND($F$147<>"",INDEX('Состав блюд'!Y:Y,MATCH(INDEX('Перечень блюд'!M:M,MATCH(F$147,'Перечень блюд'!N:N,)),'Состав блюд'!AB:AB,)+ROW(X10))=ROW(X9)),INDEX('Состав блюд'!AA:AA,MATCH(INDEX('Перечень блюд'!M:M,MATCH(F$147,'Перечень блюд'!N:N,)),'Состав блюд'!AB:AB,)+ROW(X10)),"") -> 0 | W163: 0
F164: 10 | G164: =IF(AND($F$147<>"",INDEX('Состав блюд'!Y:Y,MATCH(INDEX('Перечень блюд'!M:M,MATCH(F$147,'Перечень блюд'!N:N,)),'Состав блюд'!AB:AB,)+ROW(X11))=ROW(X10)),INDEX('Состав блюд'!Z:Z,MATCH(INDEX('Перечень блюд'!M:M,MATCH(F$147,'Перечень блюд'!N:N,)),'Состав блюд'!AB:AB,)+ROW(X11)),"") -> 0 | N164: г | P164: =IF(AND($F$147<>"",INDEX('Состав блюд'!Y:Y,MATCH(INDEX('Перечень блюд'!M:M,MATCH(F$147,'Перечень блюд'!N:N,)),'Состав блюд'!AB:AB,)+ROW(X11))=ROW(X10)),INDEX('Состав блюд'!AA:AA,MATCH(INDEX('Перечень блюд'!M:M,MATCH(F$147,'Перечень блюд'!N:N,)),'Состав блюд'!AB:AB,)+ROW(X11)),"") -> 0 | W164: 0
F165: 11 | G165: =IF(AND($F$147<>"",INDEX('Состав блюд'!Y:Y,MATCH(INDEX('Перечень блюд'!M:M,MATCH(F$147,'Перечень блюд'!N:N,)),'Состав блюд'!AB:AB,)+ROW(X12))=ROW(X11)),INDEX('Состав блюд'!Z:Z,MATCH(INDEX('Перечень блюд'!M:M,MATCH(F$147,'Перечень блюд'!N:N,)),'Состав блюд'!AB:AB,)+ROW(X12)),"") -> 0 | N165: г | P165: =IF(AND($F$147<>"",INDEX('Состав блюд'!Y:Y,MATCH(INDEX('Перечень блюд'!M:M,MATCH(F$147,'Перечень блюд'!N:N,)),'Состав блюд'!AB:AB,)+ROW(X12))=ROW(X11)),INDEX('Состав блюд'!AA:AA,MATCH(INDEX('Перечень блюд'!M:M,MATCH(F$147,'Перечень блюд'!N:N,)),'Состав блюд'!AB:AB,)+ROW(X12)),"") -> 0 | W165: 0
F166: 12 | G166: =IF(AND($F$147<>"",INDEX('Состав блюд'!Y:Y,MATCH(INDEX('Перечень блюд'!M:M,MATCH(F$147,'Перечень блюд'!N:N,)),'Состав блюд'!AB:AB,)+ROW(X13))=ROW(X12)),INDEX('Состав блюд'!Z:Z,MATCH(INDEX('Перечень блюд'!M:M,MATCH(F$147,'Перечень блюд'!N:N,)),'Состав блюд'!AB:AB,)+ROW(X13)),"") -> 0 | N166: г | P166: =IF(AND($F$147<>"",INDEX('Состав блюд'!Y:Y,MATCH(INDEX('Перечень блюд'!M:M,MATCH(F$147,'Перечень блюд'!N:N,)),'Состав блюд'!AB:AB,)+ROW(X13))=ROW(X12)),INDEX('Состав блюд'!AA:AA,MATCH(INDEX('Перечень блюд'!M:M,MATCH(F$147,'Перечень блюд'!N:N,)),'Состав блюд'!AB:AB,)+ROW(X13)),"") -> 0 | W166: 0
F167: 13 | G167: =IF(AND($F$147<>"",INDEX('Состав блюд'!Y:Y,MATCH(INDEX('Перечень блюд'!M:M,MATCH(F$147,'Перечень блюд'!N:N,)),'Состав блюд'!AB:AB,)+ROW(X14))=ROW(X13)),INDEX('Состав блюд'!Z:Z,MATCH(INDEX('Перечень блюд'!M:M,MATCH(F$147,'Перечень блюд'!N:N,)),'Состав блюд'!AB:AB,)+ROW(X14)),"") -> 0 | N167: г | P167: =IF(AND($F$147<>"",INDEX('Состав блюд'!Y:Y,MATCH(INDEX('Перечень блюд'!M:M,MATCH(F$147,'Перечень блюд'!N:N,)),'Состав блюд'!AB:AB,)+ROW(X14))=ROW(X13)),INDEX('Состав блюд'!AA:AA,MATCH(INDEX('Перечень блюд'!M:M,MATCH(F$147,'Перечень блюд'!N:N,)),'Состав блюд'!AB:AB,)+ROW(X14)),"") -> 0 | W167: 0
F168: Cтоимость сырьевого набора, руб | K168: =SUM(W155:X167) -> 5 | O168: Подписи
F169: Cтоимость сырьевого набора на | I169: =$AB$6 -> 100 | J169: блюд, руб | K169: =I169*K168 -> 500 | O169: Начальник производства: Бритов М.А.
F170: Выход 1 блюда, грамм | K170: 350 | O170: Бухгалтер: Осипова Е.А.
F171: Утверждаю | H171: Исполнительный директор: Шехватов А.В. __________

Sheet Выгрузка из кальк.карт
A1: Дата расхода | B1: Блюдо | C1: Кол-во порций | D1: № документа | E1: Говядина | F1: Гречка | G1: Какао в порошке | H1: Капуста | I1: Картофель | J1: Колбаса "Докторская" | K1: Курица | L1: Лавровый лист | M1: Лук | N1: Майонез | O1: Масло растительное | P1: Масло сливочное | Q1: Морковь | R1: Огурец свежий | S1: Перец сладкий | T1: Помидоры | U1: Рис | V1: Сахар | W1: Свекла | X1: Свинина | Y1: Соль | Z1: Сухари панировочные | AA1: Сыр | AB1: Томатная паста | AC1: Уксус 9%-ный | AD1: Чай | AE1: Яйца куриные
A2: 2022-09-01 | B2: Жаркое по-домашнему | C2: 700 | D2: 2 | I2: 3500 | M2: 7000 | O2: 7000 | Q2: 22400 | X2: 70000 | Y2: 56000 | AB2: 3500
A3: 2022-09-05 | B3: Борщ украинский | C3: 700 | D3: 1 | H3: 7000 | I3: 21000 | L3: 22400 | M3: 3500 | O3: 7000 | Q3: 18200 | S3: 7000 | W3: 28000 | Y3: 7000 | AB3: 7000 | AC3: 7000
A4: 2022-10-05 | B4: Щи | C4: 700 | D4: 1 | E4: 3500 | H4: 70000 | I4: 3500 | L4: 7000 | M4: 7000 | O4: 7000 | Q4: 22400 | S4: 3500 | Y4: 56000
A5: 2022-11-05 | B5: Щи | C5: 700 | D5: 1 | E5: 3500 | H5: 70000 | I5: 3500 | L5: 7000 | M5: 7000 | O5: 7000 | Q5: 22400 | S5: 3500 | Y5: 56000
A6: 2022-09-05 | B6: Щи | C6: 700 | D6: 1 | E6: 3500 | H6: 70000 | I6: 3500 | L6: 7000 | M6: 7000 | O6: 7000 | Q6: 22400 | S6: 3500 | Y6: 56000
A7: 2022-09-05 | B7: Жаркое по-домашнему | C7: 700 | D7: 2 | I7: 3500 | M7: 7000 | O7: 7000 | Q7: 22400 | X7: 70000 | Y7: 56000 | AB7: 3500
A8: 2022-09-05 | B8: Гречка отварная | C8: 700 | D8: 3 | F8: 70000 | P8: 22400 | Y8: 3500
A9: 2022-09-05 | B9: Какао | C9: 700 | D9: 5 | G9: 70000 | V9: 22400
A10: 2022-12-05 | B10: Щи | C10: 700 | D10: 1 | E10: 3500 | H10: 70000 | I10: 3500 | L10: 7000 | M10: 7000 | O10: 7000 | Q10: 22400 | S10: 3500 | Y10: 56000
A11: 2022-12-05 | B11: Котлета по-киевски | C11: 700 | D11: 2 | J11: 18200 | K11: 28000 | M11: 7000 | O11: 21000 | Z11: 3500 | AA11: 22400
A12: 2022-12-10 | B12: Щи | C12: 700 | D12: 1 | E12: 3500 | H12: 70000 | I12: 3500 | L12: 7000 | M12: 7000 | O12: 7000 | Q12: 22400 | S12: 3500 | Y12: 56000
A13: 2022-09-10 | B13: Котлета по-киевски | C13: 700 | D13: 2 | K13: 28000 | M13: 3500 | Z13: 22400 | AA13: 7000 | AB13: 21000
A14: 2022-09-10 | B14: Щи | C14: 100 | D14: 1 | H14: 10000 | L14: 1000 | M14: 3200 | O14: 1000 | X14: 500 | Y14: 8000
A15: 2022-09-10 | B15: Щи | C15: 100 | D15: 1 | H15: 10000 | L15: 1000 | M15: 3200 | O15: 1000 | X15: 500 | Y15: 8000
A16: 2022-09-10 | B16: Борщ украинский | C16: 100 | D16: 1 | H16: 1000 | I16: 1000 | M16: 2600 | W16: 4000 | X16: 1000 | Y16: 1000 | AB16: 3200 | AC16: 500
A17: 2022-09-11 | B17: Борщ украинский | C17: 100 | D17: 1 | H17: 1000 | I17: 1000 | M17: 2600 | W17: 4000 | X17: 1000 | Y17: 1000 | AB17: 3200 | AC17: 500
